{"text_format":"1","workbook":"xlsx","n_sheets":5,"sheets":["Formulier","JHA AGB","tbl_JHA","xblad","referentieblad"],"not_rendered":{"charts":0,"images":1,"macros":1,"external_links":1,"defined_names":240,"comments":2,"pivot_tables":0},"unopened":[],"bounds":{"document_bytes":16777216,"sheet_cells":100000,"rows_first":2000,"rows_last":500,"rows_between":2000,"halvings":0,"cell_chars":16384,"cell_head_chars":4096},"cells_cut":0,"cells_raw":0,"read":"whole","date_system":"1900"}

{"sheet":"Formulier","index":0,"n_rows":85,"n_cols":4,"rows_kept":85,"cut":false,"hidden":false,"merged":[[74,1,77,3],[79,1,82,3],[84,1,87,3],[2,1,2,3],[3,1,3,2],[60,1,62,3],[65,1,67,3],[23,1,23,2],[43,1,44,1],[46,1,47,1],[50,1,52,3],[55,1,57,3]]}
[null,"RIGG Invulformulier 2025"]
[null,"\nIn het formulier kunt u de jeugdhulpaanbieder met de gecontracteerde jeugdhulpproducten 2021 selecteren. \nVerstuur dit forumier naar de backoffice van de betreffende gemeente.                                                                                                                              Versie 1 januari 2021"]
[null,"In het formulier kunt u de jeugdhulpaanbieder met de gecontracteerde jeugdhulpproducten 2025 selecteren "]
[null,"Verstuur dit formulier naar de backoffice van de betreffende gemeente",null,{"$f":"xblad!$A$100","v":"Versie2 november 2025"}]
[null,"Clientgegevens","Waarde","Opmerking"]
[null,"BSN:","012345678"]
[null,"Geboortedatum","dd-mm-jjjj"]
[null,"Geslacht","MAAK EEN KEUZE"]
[null,"Naam:","Voornamen, Achternamen Kind"]
[null,"Naamcode:","MAAK EEN KEUZE"]
[null,"Leefeenheid","MAAK EEN KEUZE"]
[null,"Adres","Grote markt 1, 1234AB, Ten Boer"]
[null,"Gemeente  (woonplaats-beginsel)","Pekela"]
[null,"Soort adres","MAAK EEN KEUZE"]
[]
[null,"Gezag over jeugdige","Waarde","Opmerking"]
[null,"BSN: ","876543210"]
[null,"Naam:","Voornaam, Achternaam gezaghebbende"]
[null,"Geboortedatum:","dd-mm-jjjj"]
[null,"Soort relatie","MAAK EEN KEUZE"]
[null,"Adres","Grote markt 1, 1234 AB Ten Boer"]
[null,"Soort adres","GBA ADRES"]
[null,"Gemeente gezaghebbende","MAAK EEN KEUZE"]
[]
[null,"Individuele voorziening","Waarde","Opmerking"]
[null,"Soort voorziening","MAAK EEN KEUZE"]
[null,"Jeugdhulpaanbieder","MAAK EEN KEUZE"]
[null,"AGB-code Jeugdhulpaanbieder *",{"$f":"IF($C27=\"MAAK EEN KEUZE\",\"\",VLOOKUP($C$27,'JHA AGB'!$A:$B,2,0))","v":""}]
[null,"Voorziening of Product in geval ZIN",""]
[null,"Tarief voorziening/product JHA*",{"$f":"IF(ISERROR(VLOOKUP($C$29,xblad!$F:$K,MATCH($B30,xblad!$F$1:$K$1,0),0)),\"\",VLOOKUP($C$29,xblad!$F:$K,MATCH($B30,xblad!$F$1:$K$1,0),0))","v":""}]
[null,"Product categorie* ",{"$f":"IF(ISERROR(VLOOKUP($C$29,xblad!$F:$I,MATCH($B31,xblad!$F$1:$I$1,0),0)),\"\",VLOOKUP($C$29,xblad!$F:$I,MATCH($B31,xblad!$F$1:$I$1,0),0))","v":""}]
[null,"Omvang toekenning"]
[null,"Eenheid bij toekenning*",{"$f":"IF(ISERROR(VLOOKUP($C$29,xblad!$F:$I,MATCH($B33,xblad!$F$1:$I$1,0),0)),\"\",VLOOKUP($C$29,xblad!$F:$I,MATCH($B33,xblad!$F$1:$I$1,0),0))","v":""}]
[null,"Frequentie bij toekenning*",{"$f":"IF(ISERROR(VLOOKUP($C$29,xblad!$F:$I,MATCH($B34,xblad!$F$1:$I$1,0),0)),\"\",VLOOKUP($C$29,xblad!$F:$I,MATCH($B34,xblad!$F$1:$I$1,0),0))","v":""}]
[null,"Budget bij toekenning ZIN *",{"$f":"IF($C$30=\"\",\"€\",$C$32*$C$30)","v":"€"}]
[null,"Budget bij toekenning PGB",0]
[null,"Ingangsdatum toewijzing","2019-01-01"]
[null,"Einddatum toewijzing","2019-06-01"]
[null," * wordt automatisch ingevuld "]
[null,"Verwijsgegevens","Waarde","Opmerking"]
[null,"Betreft het een Melding Aanvang Zorg (MAZ)","MAAK EEN KEUZE"]
[null,"Verwijzende instantie (Gemeente/Jeugdhulpaanbieder/Specialist)","MAAK EEN KEUZE"]
[null,"Naam verwijzer","A. Verwijzer"]
[null,"Contactgegevens verwijzer","Tel:"]
[null,null,"Mail:"]
[null,"Casuregiseur kind","B. Casemanager"]
[null,"Contactgegevens casusregiseur","Tel:"]
[null,null,"Mail:"]
[]
[null,"Probleem- en krachtenanalyse jeugdige, gezin en netwerk (inclusief eventuele zorgen over de veiligheid):"]
[]
[]
[]
[]
[null,"Inzet en resultaat eerder verleende hulp/ondersteuning:"]
[]
[]
[]
[]
[null,"Onderbouwing huidige aanvraag, inclusief hulpvraag en doelen:"]
[]
[]
[]
[]
[null,"Samenvatting advies expertpool:"]
[]
[]
[]
[]
[]
[]
[null,"Akkoord Toegangsteam:"]
[null,"Met dit formulier neemt het Toegangsteam een besluit voor de inzet van een individuele voorziening."]
[]
[null,"Toelichtingen en bijzonderheden"]
[]
[]
[]
[]
[null,"Opmerkingen Toegangsteam"]
[]
[]
[]
[]
[null,"Datum:\n\n\nAkkoord Toegangsteam"]

{"sheet":"JHA AGB","index":1,"n_rows":173,"n_cols":5,"rows_kept":173,"cut":false,"hidden":true,"merged":[]}
["Naam JHA","AGB-Code JHA","Controle","verticaal zoeken op agb Bronbest-tabblad JHA"]
["MAAK EEN KEUZE"]
["Aardema Thuiszorg B.V.",75751252,{"$f":"VLOOKUP(A3,tbl_JHA!M:M,1,0)","v":"Aardema Thuiszorg B.V."},{"$f":"VLOOKUP(B3,tbl_JHA!L:M,2,FALSE)","v":"Aardema Thuiszorg B.V."}]
["Activiteitencentrum De Brink B.V.","98102991",{"$f":"VLOOKUP(A4,tbl_JHA!M:M,1,0)","v":"Activiteitencentrum De Brink B.V."},{"$f":"VLOOKUP(B4,tbl_JHA!L:M,2,FALSE)","v":"Activiteitencentrum De Brink B.V."}]
["Ambulante hulpverlening Groningen","98103733",{"$f":"VLOOKUP(A5,tbl_JHA!M:M,1,0)","v":"Ambulante hulpverlening Groningen"},{"$f":"VLOOKUP(B5,tbl_JHA!L:M,2,FALSE)","v":"Ambulante hulpverlening Groningen"}]
["A-MeZo B.V.",98107904,{"$f":"VLOOKUP(A6,tbl_JHA!M:M,1,0)","v":"A-MeZo B.V."},{"$f":"VLOOKUP(B6,tbl_JHA!L:M,2,FALSE)","v":"A-MeZo B.V."}]
["autismehuis B.V.",73730430,{"$f":"VLOOKUP(A7,tbl_JHA!M:M,1,0)","v":"autismehuis B.V."},{"$f":"VLOOKUP(B7,tbl_JHA!L:M,2,FALSE)","v":"autismehuis B.V."}]
["BeterBrein",94060633,{"$f":"VLOOKUP(A8,tbl_JHA!M:M,1,0)","v":"BeterBrein"},{"$f":"VLOOKUP(B8,tbl_JHA!L:M,2,FALSE)","v":"BeterBrein"}]
["Bloezem Zorg Thuis B.V.","75751769",{"$f":"VLOOKUP(A9,tbl_JHA!M:M,1,0)","v":"Bloezem Zorg Thuis B.V."},{"$f":"VLOOKUP(B9,tbl_JHA!L:M,2,FALSE)","v":"Bloezem Zorg Thuis B.V."}]
["Calidad B.V.",98101345,{"$f":"VLOOKUP(A10,tbl_JHA!M:M,1,0)","v":"Calidad B.V."},{"$f":"VLOOKUP(B10,tbl_JHA!L:M,2,FALSE)","v":"Calidad B.V."}]
["Care Forward Noord B.V.",98105723,{"$f":"VLOOKUP(A11,tbl_JHA!M:M,1,0)","v":"Care Forward Noord B.V."},{"$f":"VLOOKUP(B11,tbl_JHA!L:M,2,FALSE)","v":"Care Forward Noord B.V."}]
["Cedin B.V.","53530112",{"$f":"VLOOKUP(A12,tbl_JHA!M:M,1,0)","v":"Cedin B.V."},{"$f":"VLOOKUP(B12,tbl_JHA!L:M,2,FALSE)","v":"Cedin B.V."}]
["Comfortzorg Contract B.V.","73730236",{"$f":"VLOOKUP(A13,tbl_JHA!M:M,1,0)","v":"Comfortzorg Contract B.V."},{"$f":"VLOOKUP(B13,tbl_JHA!L:M,2,FALSE)","v":"Comfortzorg Contract B.V."}]
["Coöperatie Dichtbij U.A.","75751904",{"$f":"VLOOKUP(A14,tbl_JHA!M:M,1,0)","v":"Coöperatie Dichtbij U.A."},{"$f":"VLOOKUP(B14,tbl_JHA!L:M,2,FALSE)","v":"Coöperatie Dichtbij U.A."}]
["Coöperatie Stee050 U.A.","98104252",{"$f":"VLOOKUP(A15,tbl_JHA!M:M,1,0)","v":"Coöperatie Stee050 U.A."},{"$f":"VLOOKUP(B15,tbl_JHA!L:M,2,FALSE)","v":"Coöperatie Stee050 U.A."}]
["Cornerstones Jeugdzorg B.V.","98102383",{"$f":"VLOOKUP(A16,tbl_JHA!M:M,1,0)","v":"Cornerstones Jeugdzorg B.V."},{"$f":"VLOOKUP(B16,tbl_JHA!L:M,2,FALSE)","v":"Cornerstones Jeugdzorg B.V."}]
["Cultureel Maatschappelijk Zorgbureau B.V.","73730144",{"$f":"VLOOKUP(A17,tbl_JHA!M:M,1,0)","v":"Cultureel Maatschappelijk Zorgbureau B.V."},{"$f":"VLOOKUP(B17,tbl_JHA!L:M,2,FALSE)","v":"Cultureel Maatschappelijk Zorgbureau B.V."}]
["Cura XL B.V.","73730146",{"$f":"VLOOKUP(A18,tbl_JHA!M:M,1,0)","v":"Cura XL B.V."},{"$f":"VLOOKUP(B18,tbl_JHA!L:M,2,FALSE)","v":"Cura XL B.V."}]
["De Beukenhorst B.V.","73730341",{"$f":"VLOOKUP(A19,tbl_JHA!M:M,1,0)","v":"De Beukenhorst B.V."},{"$f":"VLOOKUP(B19,tbl_JHA!L:M,2,FALSE)","v":"De Beukenhorst B.V."}]
["De Ezelsbrug B.V.","98107597",{"$f":"VLOOKUP(A20,tbl_JHA!M:M,1,0)","v":"De Ezelsbrug B.V."},{"$f":"VLOOKUP(B20,tbl_JHA!L:M,2,FALSE)","v":"De Ezelsbrug B.V."}]
["De Kasparhoeve B.V.","73730198",{"$f":"VLOOKUP(A21,tbl_JHA!M:M,1,0)","v":"De Kasparhoeve B.V."},{"$f":"VLOOKUP(B21,tbl_JHA!L:M,2,FALSE)","v":"De Kasparhoeve B.V."}]
["De Ruumte B.V.","98105037",{"$f":"VLOOKUP(A22,tbl_JHA!M:M,1,0)","v":"De Ruumte B.V."},{"$f":"VLOOKUP(B22,tbl_JHA!L:M,2,FALSE)","v":"De Ruumte B.V."}]
["De Ruumte B.V.",98105037,{"$f":"VLOOKUP(A23,tbl_JHA!M:M,1,0)","v":"De Ruumte B.V."},{"$f":"VLOOKUP(B23,tbl_JHA!L:M,2,FALSE)","v":"De Ruumte B.V."}]
["De Slingertuin v.o.f.","98100943",{"$f":"VLOOKUP(A24,tbl_JHA!M:M,1,0)","v":"De Slingertuin v.o.f."},{"$f":"VLOOKUP(B24,tbl_JHA!L:M,2,FALSE)","v":"De Slingertuin v.o.f."}]
["Effect B.V.","98100550",{"$f":"VLOOKUP(A25,tbl_JHA!M:M,1,0)","v":"Effect B.V."},{"$f":"VLOOKUP(B25,tbl_JHA!L:M,2,FALSE)","v":"Effect B.V."}]
["Even(T)Huis",98107576,{"$f":"VLOOKUP(A26,tbl_JHA!M:M,1,0)","v":"Even(T)Huis"},{"$f":"VLOOKUP(B26,tbl_JHA!L:M,2,FALSE)","v":"Even(T)Huis"}]
["Familia Forte",98105180,{"$f":"VLOOKUP(A27,tbl_JHA!M:M,1,0)","v":"Familia Forte"},{"$f":"VLOOKUP(B27,tbl_JHA!L:M,2,FALSE)","v":"Familia Forte"}]
["Feniks Zorg en Jeugd B.V.",98102110,{"$f":"VLOOKUP(A28,tbl_JHA!M:M,1,0)","v":"Feniks Zorg en Jeugd B.V."},{"$f":"VLOOKUP(B28,tbl_JHA!L:M,2,FALSE)","v":"Feniks Zorg en Jeugd B.V."}]
["GeWoon begeleiding B.V.",78780153,{"$f":"VLOOKUP(A29,tbl_JHA!M:M,1,0)","v":"GeWoon begeleiding B.V."},{"$f":"VLOOKUP(B29,tbl_JHA!L:M,2,FALSE)","v":"GeWoon begeleiding B.V."}]
["Gezinshuis Margriet","98104067",{"$f":"VLOOKUP(A30,tbl_JHA!M:M,1,0)","v":"Gezinshuis Margriet"},{"$f":"VLOOKUP(B30,tbl_JHA!L:M,2,FALSE)","v":"Gezinshuis Margriet"}]
["Gezinshuis Opaal","98107336",{"$f":"VLOOKUP(A31,tbl_JHA!M:M,1,0)","v":"Gezinshuis Opaal"},{"$f":"VLOOKUP(B31,tbl_JHA!L:M,2,FALSE)","v":"Gezinshuis Opaal"}]
["Hersenfabriek",90068272,{"$f":"VLOOKUP(A32,tbl_JHA!M:M,1,0)","v":"Hersenfabriek"},{"$f":"VLOOKUP(B32,tbl_JHA!L:M,2,FALSE)","v":"Hersenfabriek"}]
["Het Behouden Huys",22221105,{"$f":"VLOOKUP(A33,tbl_JHA!M:M,1,0)","v":"Het Behouden Huys"},{"$f":"VLOOKUP(B33,tbl_JHA!L:M,2,FALSE)","v":"Het Behouden Huys"}]
["Het Naoberhuis B.V.","90066114",{"$f":"VLOOKUP(A34,tbl_JHA!M:M,1,0)","v":"Het Naoberhuis B.V."},{"$f":"VLOOKUP(B34,tbl_JHA!L:M,2,FALSE)","v":"Het Naoberhuis B.V."}]
["Hoeve Paradij",41415236,{"$f":"VLOOKUP(A35,tbl_JHA!M:M,1,0)","v":"Hoeve Paradij"},{"$f":"VLOOKUP(B35,tbl_JHA!L:M,2,FALSE)","v":"Hoeve Paradij"}]
["Hof van Arcadia, zorg in het groen",98102030,{"$f":"VLOOKUP(A36,tbl_JHA!M:M,1,0)","v":"Hof van Arcadia, zorg in het groen"},{"$f":"VLOOKUP(B36,tbl_JHA!L:M,2,FALSE)","v":"Hof van Arcadia, zorg in het groen"}]
["Holding Psychotherapiepraktijk @Manon B.V.",94063795,{"$f":"VLOOKUP(A37,tbl_JHA!M:M,1,0)","v":"Holding Psychotherapiepraktijk @Manon B.V."},{"$f":"VLOOKUP(B37,tbl_JHA!L:M,2,FALSE)","v":"Holding Psychotherapiepraktijk @Manon B.V."}]
["Horizon Begeleiding B.V.",73730356,{"$f":"VLOOKUP(A38,tbl_JHA!M:M,1,0)","v":"Horizon Begeleiding B.V."},{"$f":"VLOOKUP(B38,tbl_JHA!L:M,2,FALSE)","v":"Horizon Begeleiding B.V."}]
["Ik ben een regenboog, coaching & training","98103195",{"$f":"VLOOKUP(A39,tbl_JHA!M:M,1,0)","v":"Ik ben een regenboog, coaching & training"},{"$f":"VLOOKUP(B39,tbl_JHA!L:M,2,FALSE)","v":"Ik ben een regenboog, coaching & training"},"& teken kan niet in DeSuite!"]
["Ik ben Ik! Praktijk voor orthopedagogiek en psychologie",94065241,{"$f":"VLOOKUP(A40,tbl_JHA!M:M,1,0)","v":"Ik ben ik! Praktijk voor orthopedagogiek en psychologie"},{"$f":"VLOOKUP(B40,tbl_JHA!L:M,2,FALSE)","v":"Ik ben ik! Praktijk voor orthopedagogiek en psychologie"}]
["INTER-PSY B.V.",22227338,{"$f":"VLOOKUP(A41,tbl_JHA!M:M,1,0)","v":"INTER-PSY B.V."},{"$f":"VLOOKUP(B41,tbl_JHA!L:M,2,FALSE)","v":"INTER-PSY B.V."}]
["Janette Kuipers Coaching & Advies",94063412,{"$f":"VLOOKUP(A42,tbl_JHA!M:M,1,0)","v":"Janette Kuipers Coaching & Advies"},{"$f":"VLOOKUP(B42,tbl_JHA!L:M,2,FALSE)","v":"Janette Kuipers Coaching & Advies"}]
["Jemalupe",98100320,{"$f":"VLOOKUP(A43,tbl_JHA!M:M,1,0)","v":"Jemalupe"},{"$f":"VLOOKUP(B43,tbl_JHA!L:M,2,FALSE)","v":"Jemalupe"}]
["Jij bent tov Kindercoaching",41521628,{"$f":"VLOOKUP(A44,tbl_JHA!M:M,1,0)","v":"Jij bent tov Kindercoaching"},{"$f":"VLOOKUP(B44,tbl_JHA!L:M,2,FALSE)","v":"Jij bent tov Kindercoaching"}]
["Jody Schoolpsychologie","94063526",{"$f":"VLOOKUP(A45,tbl_JHA!M:M,1,0)","v":"Jody Schoolpsychologie"},{"$f":"VLOOKUP(B45,tbl_JHA!L:M,2,FALSE)","v":"Jody Schoolpsychologie"}]
["Jongerenzorg Barkema en De Haan B.V.",98107274,{"$f":"VLOOKUP(A46,tbl_JHA!M:M,1,0)","v":"Jongerenzorg Barkema en De Haan B.V."},{"$f":"VLOOKUP(B46,tbl_JHA!L:M,2,FALSE)","v":"Jongerenzorg Barkema en De Haan B.V."}]
["Kennis in Kracht B.V.",94065636,{"$f":"VLOOKUP(A47,tbl_JHA!M:M,1,0)","v":"Kennis in Kracht B.V."},{"$f":"VLOOKUP(B47,tbl_JHA!L:M,2,FALSE)","v":"Kennis in Kracht B.V."}]
["Kernvisie Methode","90018827",{"$f":"VLOOKUP(A48,tbl_JHA!M:M,1,0)","v":"Kernvisie Methode"},{"$f":"VLOOKUP(B48,tbl_JHA!L:M,2,FALSE)","v":"Kernvisie Methode"}]
["KeuningsHof B.V.","98103021",{"$f":"VLOOKUP(A49,tbl_JHA!M:M,1,0)","v":"KeuningsHof B.V."},{"$f":"VLOOKUP(B49,tbl_JHA!L:M,2,FALSE)","v":"KeuningsHof B.V."}]
["Kind en Jeugd Centraal","94063270",{"$f":"VLOOKUP(A50,tbl_JHA!M:M,1,0)","v":"Kind en Jeugd Centraal"},{"$f":"VLOOKUP(B50,tbl_JHA!L:M,2,FALSE)","v":"Kind en Jeugd Centraal"}]
["Kinder- en Jeugd GGZ Praktijk Noorderblinck","22220918",{"$f":"VLOOKUP(A51,tbl_JHA!M:M,1,0)","v":"Kinder- en Jeugd GGZ Praktijk Noorderblinck"},{"$f":"VLOOKUP(B51,tbl_JHA!L:M,2,FALSE)","v":"Kinder- en Jeugd GGZ Praktijk Noorderblinck"}]
["Kinderbijstand (orthopedagogisch onderzoek en advies)","94063510",{"$f":"VLOOKUP(A52,tbl_JHA!M:M,1,0)","v":"Kinderbijstand (orthopedagogisch onderzoek en advies)"},{"$f":"VLOOKUP(B52,tbl_JHA!L:M,2,FALSE)","v":"Kinderbijstand (orthopedagogisch onderzoek en advies)"}]
["Kindercoach Leersaam","41419688",{"$f":"VLOOKUP(A53,tbl_JHA!M:M,1,0)","v":"Kindercoach Leersaam"},{"$f":"VLOOKUP(B53,tbl_JHA!L:M,2,FALSE)","v":"Kindercoach Leersaam"}]
["Kinderconsulent Groningen",90019236,{"$f":"VLOOKUP(A54,tbl_JHA!M:M,1,0)","v":"Kinderconsulent Groningen"},{"$f":"VLOOKUP(B54,tbl_JHA!L:M,2,FALSE)","v":"Kinderconsulent Groningen"}]
["Kindertherapie & Coaching - Jasna Joosten","90056027",{"$f":"VLOOKUP(A55,tbl_JHA!M:M,1,0)","v":"Kindertherapie & Coaching - Jasna Joosten"},{"$f":"VLOOKUP(B55,tbl_JHA!L:M,2,FALSE)","v":"Kindertherapie & Coaching - Jasna Joosten"}]
["Kindertherapie Anouk Endeveld","90060482",{"$f":"VLOOKUP(A56,tbl_JHA!M:M,1,0)","v":"Kindertherapie Anouk Endeveld"},{"$f":"VLOOKUP(B56,tbl_JHA!L:M,2,FALSE)","v":"Kindertherapie Anouk Endeveld"}]
["KOEN B.V.",98105818,{"$f":"VLOOKUP(A57,tbl_JHA!M:M,1,0)","v":"KOEN B.V."},{"$f":"VLOOKUP(B57,tbl_JHA!L:M,2,FALSE)","v":"KOEN B.V."}]
["La Hacienda B.V.",90054404,{"$f":"VLOOKUP(A58,tbl_JHA!M:M,1,0)","v":"La Hacienda B.V."},{"$f":"VLOOKUP(B58,tbl_JHA!L:M,2,FALSE)","v":"La Hacienda B.V."}]
["La Luna Care B.V.",75752422,{"$f":"VLOOKUP(A59,tbl_JHA!M:M,1,0)","v":"La Luna Care B.V."},{"$f":"VLOOKUP(B59,tbl_JHA!L:M,2,FALSE)","v":"La Luna Care B.V."}]
["Leger des Heils Jeugdbescherming en Reclassering","98100236",{"$f":"VLOOKUP(A60,tbl_JHA!M:M,1,0)","v":"Leger des Heils Jeugdbescherming en Reclassering"},{"$f":"VLOOKUP(B60,tbl_JHA!L:M,2,FALSE)","v":"Leger des Heils Jeugdbescherming en Reclassering"}]
["Liganta B.V.",98101997,{"$f":"VLOOKUP(A61,tbl_JHA!M:M,1,0)","v":"Liganta B.V."},{"$f":"VLOOKUP(B61,tbl_JHA!L:M,2,FALSE)","v":"Liganta B.V."}]
["Madelies B.V.",98102203,{"$f":"VLOOKUP(A62,tbl_JHA!M:M,1,0)","v":"Madelies B.V."},{"$f":"VLOOKUP(B62,tbl_JHA!L:M,2,FALSE)","v":"Madelies B.V."}]
["Mentaal Beter Cure B.V.",73732403,{"$f":"VLOOKUP(A63,tbl_JHA!M:M,1,0)","v":"Mentaal Beter Cure B.V."},{"$f":"VLOOKUP(B63,tbl_JHA!L:M,2,FALSE)","v":"Mentaal Beter Cure B.V."}]
["Mereo",98103185,{"$f":"VLOOKUP(A64,tbl_JHA!M:M,1,0)","v":"Mereo"},{"$f":"VLOOKUP(B64,tbl_JHA!L:M,2,FALSE)","v":"Mereo"}]
["Mij een Zorg B.V.",98106080,{"$f":"VLOOKUP(A65,tbl_JHA!M:M,1,0)","v":"Mij een Zorg B.V."},{"$f":"VLOOKUP(B65,tbl_JHA!L:M,2,FALSE)","v":"Mij een Zorg B.V."}]
["Mindcare Assen B.V.","94064988",{"$f":"VLOOKUP(A66,tbl_JHA!M:M,1,0)","v":"Mindcare Assen B.V."},{"$f":"VLOOKUP(B66,tbl_JHA!L:M,2,FALSE)","v":"Mindcare Assen B.V."}]
["Molendrift B.V.",73730109,{"$f":"VLOOKUP(A67,tbl_JHA!M:M,1,0)","v":"Molendrift B.V."},{"$f":"VLOOKUP(B67,tbl_JHA!L:M,2,FALSE)","v":"Molendrift B.V."}]
["Momento",98103649,{"$f":"VLOOKUP(A68,tbl_JHA!M:M,1,0)","v":"Momento"},{"$f":"VLOOKUP(B68,tbl_JHA!L:M,2,FALSE)","v":"Momento"}]
["Moodboost",94062149,{"$f":"VLOOKUP(A69,tbl_JHA!M:M,1,0)","v":"Moodboost"},{"$f":"VLOOKUP(B69,tbl_JHA!L:M,2,FALSE)","v":"Moodboost"}]
["Noorderkompas","98100382",{"$f":"VLOOKUP(A70,tbl_JHA!M:M,1,0)","v":"Noorderkompas"},{"$f":"VLOOKUP(B70,tbl_JHA!L:M,2,FALSE)","v":"Noorderkompas"}]
["OCRN B.V.","22227218",{"$f":"VLOOKUP(A71,tbl_JHA!M:M,1,0)","v":"OCRN B.V."},{"$f":"VLOOKUP(B71,tbl_JHA!L:M,2,FALSE)","v":"OCRN B.V."}]
["Omega Groep B.V.",73730415,{"$f":"VLOOKUP(A72,tbl_JHA!M:M,1,0)","v":"Omega Groep B.V."},{"$f":"VLOOKUP(B72,tbl_JHA!L:M,2,FALSE)","v":"Omega Groep B.V."}]
["omgangshuis Loman",94065671,{"$f":"VLOOKUP(A73,tbl_JHA!M:M,1,0)","v":"omgangshuis Loman"},{"$f":"VLOOKUP(B73,tbl_JHA!L:M,2,FALSE)","v":"omgangshuis Loman"}]
["Opdidakt B.V.",98102686,{"$f":"VLOOKUP(A74,tbl_JHA!M:M,1,0)","v":"Opdidakt B.V."},{"$f":"VLOOKUP(B74,tbl_JHA!L:M,2,FALSE)","v":"Opdidakt B.V."}]
["Orthopedagogische Praktijk De Kern",94060369,{"$f":"VLOOKUP(A75,tbl_JHA!M:M,1,0)","v":"Orthopedagogische Praktijk De Kern"},{"$f":"VLOOKUP(B75,tbl_JHA!L:M,2,FALSE)","v":"Orthopedagogische Praktijk De Kern"}]
["Overstag Zorg B.V.",73730183,{"$f":"VLOOKUP(A76,tbl_JHA!M:M,1,0)","v":"Overstag Zorg B.V."},{"$f":"VLOOKUP(B76,tbl_JHA!L:M,2,FALSE)","v":"Overstag Zorg B.V."}]
["Overstag Zorg B.V.",73730183,{"$f":"VLOOKUP(A77,tbl_JHA!M:M,1,0)","v":"Overstag Zorg B.V."},{"$f":"VLOOKUP(B77,tbl_JHA!L:M,2,FALSE)","v":"Overstag Zorg B.V."}]
["Parlayan B.V.",73737023,{"$f":"VLOOKUP(A78,tbl_JHA!M:M,1,0)","v":"Parlayan B.V."},{"$f":"VLOOKUP(B78,tbl_JHA!L:M,2,FALSE)","v":"Parlayan B.V."}]
["Passend Begeleiden","94063901",{"$f":"VLOOKUP(A79,tbl_JHA!M:M,1,0)","v":"Passend Begeleiden"},{"$f":"VLOOKUP(B79,tbl_JHA!L:M,2,FALSE)","v":"Passend Begeleiden"}]
["Pedagogische praktijk Gieten",94064729,{"$f":"VLOOKUP(A80,tbl_JHA!M:M,1,0)","v":"Pedagogische praktijk Gieten"},{"$f":"VLOOKUP(B80,tbl_JHA!L:M,2,FALSE)","v":"Pedagogische praktijk Gieten"}]
["Pedagogische Praktijk Marum","94066333",{"$f":"VLOOKUP(A81,tbl_JHA!M:M,1,0)","v":"Pedagogische Praktijk Marum"},{"$f":"VLOOKUP(B81,tbl_JHA!L:M,2,FALSE)","v":"Pedagogische Praktijk Marum"}]
["Pi-groep Zorg B.V.","72727340",{"$f":"VLOOKUP(A82,tbl_JHA!M:M,1,0)","v":"Pi-groep Zorg B.V."},{"$f":"VLOOKUP(B82,tbl_JHA!L:M,2,FALSE)","v":"Pi-groep Zorg B.V."}]
["PP UNIEK voor Kind, Jongere en Gezin","98104456",{"$f":"VLOOKUP(A83,tbl_JHA!M:M,1,0)","v":"PP UNIEK voor Kind, Jongere en Gezin"},{"$f":"VLOOKUP(B83,tbl_JHA!L:M,2,FALSE)","v":"PP UNIEK voor Kind, Jongere en Gezin"}]
["Praktijk de Bongerd",94002681,{"$f":"VLOOKUP(A84,tbl_JHA!M:M,1,0)","v":"Praktijk de Bongerd"},{"$f":"VLOOKUP(B84,tbl_JHA!L:M,2,FALSE)","v":"Praktijk de Bongerd"}]
["Praktijk Eerstelijns Psychologen Groningen",94000865,{"$f":"VLOOKUP(A85,tbl_JHA!M:M,1,0)","v":"Praktijk Eerstelijns Psychologen Groningen"},{"$f":"VLOOKUP(B85,tbl_JHA!L:M,2,FALSE)","v":"Praktijk Eerstelijns Psychologen Groningen"}]
["Praktijk Groningen Zuid","94065632",{"$f":"VLOOKUP(A86,tbl_JHA!M:M,1,0)","v":"Praktijk Groningen Zuid"},{"$f":"VLOOKUP(B86,tbl_JHA!L:M,2,FALSE)","v":"Praktijk Groningen Zuid"}]
["Praktijk KJ",94059741,{"$f":"VLOOKUP(A87,tbl_JHA!M:M,1,0)","v":"Praktijk KJ"},{"$f":"VLOOKUP(B87,tbl_JHA!L:M,2,FALSE)","v":"Praktijk KJ"}]
["Praktijk Koekkoek","94057529",{"$f":"VLOOKUP(A88,tbl_JHA!M:M,1,0)","v":"Praktijk Koekkoek"},{"$f":"VLOOKUP(B88,tbl_JHA!L:M,2,FALSE)","v":"Praktijk Koekkoek"}]
["Praktijk Praght",94067980,{"$f":"VLOOKUP(A89,tbl_JHA!M:M,1,0)","v":"Praktijk Praght"},{"$f":"VLOOKUP(B89,tbl_JHA!L:M,2,FALSE)","v":"Praktijk Praght"}]
["Praktijk Psychotrauma Groningen",94063240,{"$f":"VLOOKUP(A90,tbl_JHA!M:M,1,0)","v":"Praktijk Psychotrauma Groningen"},{"$f":"VLOOKUP(B90,tbl_JHA!L:M,2,FALSE)","v":"Praktijk Psychotrauma Groningen"}]
["Praktijk Systeemtherapie Groningen B.V.",90092588,{"$f":"VLOOKUP(A91,tbl_JHA!M:M,1,0)","v":"Praktijk Systeemtherapie Groningen B.V."},{"$f":"VLOOKUP(B91,tbl_JHA!L:M,2,FALSE)","v":"Praktijk Systeemtherapie Groningen B.V."}]
["Praktijk van Dijk",94057410,{"$f":"VLOOKUP(A92,tbl_JHA!M:M,1,0)","v":"Praktijk van Dijk"},{"$f":"VLOOKUP(B92,tbl_JHA!L:M,2,FALSE)","v":"Praktijk van Dijk"}]
["Praktijk voor eerstelijns psychologie Trijn Mulder",94002155,{"$f":"VLOOKUP(A93,tbl_JHA!M:M,1,0)","v":"Praktijk voor eerstelijns psychologie Trijn Mulder"},{"$f":"VLOOKUP(B93,tbl_JHA!L:M,2,FALSE)","v":"Praktijk voor eerstelijns psychologie Trijn Mulder"}]
["Praktijk voor Psychosociale Hulpverlening B.V. ",94068910,{"$f":"VLOOKUP(A94,tbl_JHA!M:M,1,0)","v":"Praktijk voor Psychosociale Hulpverlening B.V. "},{"$f":"VLOOKUP(B94,tbl_JHA!L:M,2,FALSE)","v":"Praktijk voor Psychosociale Hulpverlening B.V. "}]
["Protestants-Christelijke Stichting Philadelphia Zorg",98099028,{"$f":"VLOOKUP(A95,tbl_JHA!M:M,1,0)","v":"Protestants-Christelijke Stichting Philadelphia Zorg"},{"$f":"VLOOKUP(B95,tbl_JHA!L:M,2,FALSE)","v":"Protestants-Christelijke Stichting Philadelphia Zorg"}]
["Psychologenpraktijk De Vaart B.V.",22221125,{"$f":"VLOOKUP(A96,tbl_JHA!M:M,1,0)","v":"Psychologenpraktijk De Vaart B.V."},{"$f":"VLOOKUP(B96,tbl_JHA!L:M,2,FALSE)","v":"Psychologenpraktijk De Vaart B.V."}]
["Psychologenpraktijk van Wetten","94057245",{"$f":"VLOOKUP(A97,tbl_JHA!M:M,1,0)","v":"Psychologenpraktijk van Wetten"},{"$f":"VLOOKUP(B97,tbl_JHA!L:M,2,FALSE)","v":"Psychologenpraktijk van Wetten"}]
["Psychologie Praktijk Lotgerink",94001671,{"$f":"VLOOKUP(A98,tbl_JHA!M:M,1,0)","v":"Psychologie Praktijk Lotgerink"},{"$f":"VLOOKUP(B98,tbl_JHA!L:M,2,FALSE)","v":"Psychologie Praktijk Lotgerink"}]
["Psy-praktijk Grootegast","94062709",{"$f":"VLOOKUP(A99,tbl_JHA!M:M,1,0)","v":"Psy-praktijk Grootegast"},{"$f":"VLOOKUP(B99,tbl_JHA!L:M,2,FALSE)","v":"Psy-praktijk Grootegast"}]
["Psy-zo! B.V.",22220478,{"$f":"VLOOKUP(A100,tbl_JHA!M:M,1,0)","v":"Psy-zo! B.V."},{"$f":"VLOOKUP(B100,tbl_JHA!L:M,2,FALSE)","v":"Psy-zo! B.V."},"! Kan niet worden gebruikte in Desuite"]
["Regionaal Instituut voor Dyslexie B.V.",53530281,{"$f":"VLOOKUP(A101,tbl_JHA!M:M,1,0)","v":"Regionaal Instituut voor Dyslexie B.V."},{"$f":"VLOOKUP(B101,tbl_JHA!L:M,2,FALSE)","v":"Regionaal Instituut voor Dyslexie B.V."}]
["Roccohoeve B.V.","98104360",{"$f":"VLOOKUP(A102,tbl_JHA!M:M,1,0)","v":"Roccohoeve B.V."},{"$f":"VLOOKUP(B102,tbl_JHA!L:M,2,FALSE)","v":"Roccohoeve B.V."}]
["S. Buma","03072913",{"$f":"VLOOKUP(A103,tbl_JHA!M:M,1,0)","v":"S. Buma"},{"$f":"VLOOKUP(B103,tbl_JHA!L:M,2,FALSE)","v":"S. Buma"}]
["SamenOmTafel",98102566,{"$f":"VLOOKUP(A104,tbl_JHA!M:M,1,0)","v":"SamenOmTafel"},{"$f":"VLOOKUP(B104,tbl_JHA!L:M,2,FALSE)","v":"SamenOmTafel"}]
["Saul B.V.","98104298",{"$f":"VLOOKUP(A105,tbl_JHA!M:M,1,0)","v":"Saul B.V."},{"$f":"VLOOKUP(B105,tbl_JHA!L:M,2,FALSE)","v":"Saul B.V."}]
["Script B.V.",98105253,{"$f":"VLOOKUP(A106,tbl_JHA!M:M,1,0)","v":"Script B.V."},{"$f":"VLOOKUP(B106,tbl_JHA!L:M,2,FALSE)","v":"Script B.V."}]
["Solid Zorg&Welzijn",41528449,{"$f":"VLOOKUP(A107,tbl_JHA!M:M,1,0)","v":"Solid Zorg&Welzijn"},{"$f":"VLOOKUP(B107,tbl_JHA!L:M,2,FALSE)","v":"Solid Zorg&Welzijn"}]
["Statera Jeugd en Gezin B.V.","98098852",{"$f":"VLOOKUP(A108,tbl_JHA!M:M,1,0)","v":"Statera Jeugd en Gezin B.V."},{"$f":"VLOOKUP(B108,tbl_JHA!L:M,2,FALSE)","v":"Statera Jeugd en Gezin B.V."}]
["Station Noord B.V.",98106367,{"$f":"VLOOKUP(A109,tbl_JHA!M:M,1,0)","v":"Station Noord B.V."},{"$f":"VLOOKUP(B109,tbl_JHA!L:M,2,FALSE)","v":"Station Noord B.V."}]
["Stichting Accare","06290104",{"$f":"VLOOKUP(A110,tbl_JHA!M:M,1,0)","v":"Stichting Accare"},{"$f":"VLOOKUP(B110,tbl_JHA!L:M,2,FALSE)","v":"Stichting Accare"}]
["Stichting Ambiq","30300514",{"$f":"VLOOKUP(A111,tbl_JHA!M:M,1,0)","v":"Stichting Ambiq"},{"$f":"VLOOKUP(B111,tbl_JHA!L:M,2,FALSE)","v":"Stichting Ambiq"}]
["Stichting Ambiq",30300514,{"$f":"VLOOKUP(A112,tbl_JHA!M:M,1,0)","v":"Stichting Ambiq"},{"$f":"VLOOKUP(B112,tbl_JHA!L:M,2,FALSE)","v":"Stichting Ambiq"}]
["Stichting Amigo","98099724",{"$f":"VLOOKUP(A113,tbl_JHA!M:M,1,0)","v":"Stichting Amigo"},{"$f":"VLOOKUP(B113,tbl_JHA!L:M,2,FALSE)","v":"Stichting Amigo"}]
["Stichting Buurderij De Wilde Haan","72727446",{"$f":"VLOOKUP(A114,tbl_JHA!M:M,1,0)","v":"Stichting Buurderij De Wilde Haan"},{"$f":"VLOOKUP(B114,tbl_JHA!L:M,2,FALSE)","v":"Stichting Buurderij De Wilde Haan"},"De Buurderij Balloo"]
["Stichting Cerato","98099692",{"$f":"VLOOKUP(A115,tbl_JHA!M:M,1,0)","v":"Stichting Cerato"},{"$f":"VLOOKUP(B115,tbl_JHA!L:M,2,FALSE)","v":"Stichting Cerato"}]
["Stichting Chavah",98107787,{"$f":"VLOOKUP(A116,tbl_JHA!M:M,1,0)","v":"Stichting Chavah"},{"$f":"VLOOKUP(B116,tbl_JHA!L:M,2,FALSE)","v":"Stichting Chavah"}]
["Stichting Community Support",98103642,{"$f":"VLOOKUP(A117,tbl_JHA!M:M,1,0)","v":"Stichting Community Support"},{"$f":"VLOOKUP(B117,tbl_JHA!L:M,2,FALSE)","v":"Stichting Community Support"}]
["Stichting Cosis","65656687",{"$f":"VLOOKUP(A118,tbl_JHA!M:M,1,0)","v":"Stichting Cosis"},{"$f":"VLOOKUP(B118,tbl_JHA!L:M,2,FALSE)","v":"Stichting Cosis"}]
["Stichting de Buffelaar","98102979",{"$f":"VLOOKUP(A119,tbl_JHA!M:M,1,0)","v":"Stichting de Buffelaar"},{"$f":"VLOOKUP(B119,tbl_JHA!L:M,2,FALSE)","v":"Stichting de Buffelaar"}]
["Stichting De Trans","30300397",{"$f":"VLOOKUP(A120,tbl_JHA!M:M,1,0)","v":"Stichting De Trans"},{"$f":"VLOOKUP(B120,tbl_JHA!L:M,2,FALSE)","v":"Stichting De Trans"}]
["Stichting De Zijlen",65651117,{"$f":"VLOOKUP(A121,tbl_JHA!M:M,1,0)","v":"Stichting De Zijlen"},{"$f":"VLOOKUP(B121,tbl_JHA!L:M,2,FALSE)","v":"Stichting De Zijlen"}]
["Stichting Driestroom","66660705",{"$f":"VLOOKUP(A122,tbl_JHA!M:M,1,0)","v":"Stichting Driestroom"},{"$f":"VLOOKUP(B122,tbl_JHA!L:M,2,FALSE)","v":"Stichting Driestroom"}]
["Stichting Eleos, christelijke ggz","06290613",{"$f":"VLOOKUP(A123,tbl_JHA!M:M,1,0)","v":"Stichting Eleos, christelijke ggz"},{"$f":"VLOOKUP(B123,tbl_JHA!L:M,2,FALSE)","v":"Stichting Eleos, christelijke ggz"}]
["Stichting Elker","06290106",{"$f":"VLOOKUP(A124,tbl_JHA!M:M,1,0)","v":"Stichting Elker"},{"$f":"VLOOKUP(B124,tbl_JHA!L:M,2,FALSE)","v":"Stichting Elker"}]
["Stichting Elker",6290106,{"$f":"VLOOKUP(A125,tbl_JHA!M:M,1,0)","v":"Stichting Elker"},{"$f":"VLOOKUP(B125,tbl_JHA!L:M,2,FALSE)","v":"Stichting Elker"}]
["Stichting Fier","72727349",{"$f":"VLOOKUP(A126,tbl_JHA!M:M,1,0)","v":"Stichting Fier"},{"$f":"VLOOKUP(B126,tbl_JHA!L:M,2,FALSE)","v":"Stichting Fier"}]
["Stichting GGZ Drenthe","06290301",{"$f":"VLOOKUP(A127,tbl_JHA!M:M,1,0)","v":"Stichting GGZ Drenthe"},{"$f":"VLOOKUP(B127,tbl_JHA!L:M,2,FALSE)","v":"Stichting GGZ Drenthe"}]
["Stichting GGZ Friesland","06290204",{"$f":"VLOOKUP(A128,tbl_JHA!M:M,1,0)","v":"Stichting GGZ Friesland"},{"$f":"VLOOKUP(B128,tbl_JHA!L:M,2,FALSE)","v":"Stichting GGZ Friesland"}]
["Stichting Jeugdbescherming Noord en Veilig Thuis Groningen",98100201,{"$f":"VLOOKUP(A129,tbl_JHA!M:M,1,0)","v":"Stichting Jeugdbescherming Noord en Veilig Thuis Groningen"},{"$f":"VLOOKUP(B129,tbl_JHA!L:M,2,FALSE)","v":"Stichting Jeugdbescherming Noord en Veilig Thuis Groningen"}]
["Stichting Jeugdhulp Friesland","06290205",{"$f":"VLOOKUP(A130,tbl_JHA!M:M,1,0)","v":"Stichting Jeugdhulp Friesland"},{"$f":"VLOOKUP(B130,tbl_JHA!L:M,2,FALSE)","v":"Stichting Jeugdhulp Friesland"}]
["Stichting Leger des Heils Welzijns- en Gezondheidszorg",98099048,{"$f":"VLOOKUP(A131,tbl_JHA!M:M,1,0)","v":"Stichting Leger des Heils Welzijns- en Gezondheidszorg"},{"$f":"VLOOKUP(B131,tbl_JHA!L:M,2,FALSE)","v":"Leger des Heils Welzijns- en Gezondheidszorg"}]
["Stichting Lentis Maatschappelijke Onderneming","06290308",{"$f":"VLOOKUP(A132,tbl_JHA!M:M,1,0)","v":"Stichting Lentis Maatschappelijke Onderneming"},{"$f":"VLOOKUP(B132,tbl_JHA!L:M,2,FALSE)","v":"Stichting Lentis Maatschappelijke Onderneming"}]
["Stichting MEE Noord",98100521,{"$f":"VLOOKUP(A133,tbl_JHA!M:M,1,0)","v":"Stichting MEE Noord"},{"$f":"VLOOKUP(B133,tbl_JHA!L:M,2,FALSE)","v":"Stichting MEE Noord"}]
["Stichting Pento","53530382",{"$f":"VLOOKUP(A134,tbl_JHA!M:M,1,0)","v":"Stichting Pento"},{"$f":"VLOOKUP(B134,tbl_JHA!L:M,2,FALSE)","v":"Stichting Pento"},"Dyslexienetwerk Pento"]
["Stichting Petten Zorg","98100080",{"$f":"VLOOKUP(A135,tbl_JHA!M:M,1,0)","v":"Stichting Petten Zorg"},{"$f":"VLOOKUP(B135,tbl_JHA!L:M,2,FALSE)","v":"Stichting Petten Zorg"}]
["Stichting 's Heeren Loo Zorggroep","30300685",{"$f":"VLOOKUP(A136,tbl_JHA!M:M,1,0)","v":"Stichting 's Heeren Loo Zorggroep"},{"$f":"VLOOKUP(B136,tbl_JHA!L:M,2,FALSE)","v":"Stichting 's Heeren Loo Zorggroep"}]
["Stichting Schouder aan Schouder",73730175,{"$f":"VLOOKUP(A137,tbl_JHA!M:M,1,0)","v":"Stichting Schouder aan Schouder"},{"$f":"VLOOKUP(B137,tbl_JHA!L:M,2,FALSE)","v":"Stichting Schouder aan Schouder"}]
["Stichting Siriz",98099155,{"$f":"VLOOKUP(A138,tbl_JHA!M:M,1,0)","v":"Stichting Siriz"},{"$f":"VLOOKUP(B138,tbl_JHA!L:M,2,FALSE)","v":"Stichting Siriz"}]
["Stichting Verslavingszorg Noord Nederland","06290105",{"$f":"VLOOKUP(A139,tbl_JHA!M:M,1,0)","v":"Stichting Verslavingszorg Noord Nederland"},{"$f":"VLOOKUP(B139,tbl_JHA!L:M,2,FALSE)","v":"Stichting Verslavingszorg Noord Nederland"}]
["Stichting Yes We Can Clinics",22227299,{"$f":"VLOOKUP(A140,tbl_JHA!M:M,1,0)","v":"Stichting Yes We Can Clinics"},{"$f":"VLOOKUP(B140,tbl_JHA!L:M,2,FALSE)","v":"Stichting Yes We Can Clinics"}]
["Stichting Yorneo Beheer",73730305,{"$f":"VLOOKUP(A141,tbl_JHA!M:M,1,0)","v":"Stichting Yorneo Beheer"},{"$f":"VLOOKUP(B141,tbl_JHA!L:M,2,FALSE)","v":"Stichting Yorneo Beheer"}]
["Stichting ZorgInitiatief de Bosk",98104119,{"$f":"VLOOKUP(A142,tbl_JHA!M:M,1,0)","v":"Stichting ZorgInitiatief de Bosk"},{"$f":"VLOOKUP(B142,tbl_JHA!L:M,2,FALSE)","v":"Stichting ZorgInitiatief de Bosk"}]
["Synaeda PMC B.V.",73737753,{"$f":"VLOOKUP(A143,tbl_JHA!M:M,1,0)","v":"Synaeda PMC B.V."},{"$f":"VLOOKUP(B143,tbl_JHA!L:M,2,FALSE)","v":"Synaeda PMC B.V."}]
["Syncope",73730114,{"$f":"VLOOKUP(A144,tbl_JHA!M:M,1,0)","v":"Syncope"},{"$f":"VLOOKUP(B144,tbl_JHA!L:M,2,FALSE)","v":"Syncope"}]
["Team 050 B.V.",73730188,{"$f":"VLOOKUP(A145,tbl_JHA!M:M,1,0)","v":"Team 050 B.V."},{"$f":"VLOOKUP(B145,tbl_JHA!L:M,2,FALSE)","v":"Team 050 B.V."}]
["Timpaan Onderwijs B.V.",53530275,{"$f":"VLOOKUP(A146,tbl_JHA!M:M,1,0)","v":"Timpaan Onderwijs B.V."},{"$f":"VLOOKUP(B146,tbl_JHA!L:M,2,FALSE)","v":"Timpaan Onderwijs B.V."}]
["Transcare Pijn B.V.","22221126",{"$f":"VLOOKUP(A147,tbl_JHA!M:M,1,0)","v":"Transcare Pijn B.V."},{"$f":"VLOOKUP(B147,tbl_JHA!L:M,2,FALSE)","v":"Transcare Pijn B.V."}]
["Tressan",90050955,{"$f":"VLOOKUP(A148,tbl_JHA!M:M,1,0)","v":"Tressan"},{"$f":"VLOOKUP(B148,tbl_JHA!L:M,2,FALSE)","v":"Tressan"}]
["UnLimiteD B.V.","73736696",{"$f":"VLOOKUP(A149,tbl_JHA!M:M,1,0)","v":"UnLimiteD B.V."},{"$f":"VLOOKUP(B149,tbl_JHA!L:M,2,FALSE)","v":"UnLimiteD B.V."}]
["Veni Etinam B.V.",98104681,{"$f":"VLOOKUP(A150,tbl_JHA!M:M,1,0)","v":"Veni Etinam B.V."},{"$f":"VLOOKUP(B150,tbl_JHA!L:M,2,FALSE)","v":"Veni Etinam B.V."}]
["Via Trox B.V.",94065371,{"$f":"VLOOKUP(A151,tbl_JHA!M:M,1,0)","v":"Via Trox B.V."},{"$f":"VLOOKUP(B151,tbl_JHA!L:M,2,FALSE)","v":"Via Trox B.V."}]
["Vossenburght B.V.",98106901,{"$f":"VLOOKUP(A152,tbl_JHA!M:M,1,0)","v":"Vossenburght B.V."},{"$f":"VLOOKUP(B152,tbl_JHA!L:M,2,FALSE)","v":"Vossenburght B.V."}]
["Westerweelde Pedagogisch Centrum B.V.","94068859",{"$f":"VLOOKUP(A153,tbl_JHA!M:M,1,0)","v":"Westerweelde Pedagogisch Centrum B.V."},{"$f":"VLOOKUP(B153,tbl_JHA!L:M,2,FALSE)","v":"Westerweelde Pedagogisch Centrum B.V."}]
["William Schrikker Stichting Gezinsvormen",98099350,{"$f":"VLOOKUP(A154,tbl_JHA!M:M,1,0)","v":"William Schrikker Stichting Gezinsvormen"},{"$f":"VLOOKUP(B154,tbl_JHA!L:M,2,FALSE)","v":"William Schrikker Stichting Gezinsvormen"}]
["William Schrikker Stichting Jeugdbescherming- Jeugdreclassering","98099349",{"$f":"VLOOKUP(A155,tbl_JHA!M:M,1,0)","v":"William Schrikker Stichting Jeugdbescherming- Jeugdreclassering"},{"$f":"VLOOKUP(B155,tbl_JHA!L:M,2,FALSE)","v":"William Schrikker Stichting Jeugdbescherming- Jeugdreclassering"}]
["Xperanza Nederland B.V.","98101596",{"$f":"VLOOKUP(A156,tbl_JHA!M:M,1,0)","v":"Xperanza Nederland B.V."},{"$f":"VLOOKUP(B156,tbl_JHA!L:M,2,FALSE)","v":"Xperanza Nederland B.V."}]
["Xperanza Nederland B.V.",98101596,{"$f":"VLOOKUP(A157,tbl_JHA!M:M,1,0)","v":"Xperanza Nederland B.V."},{"$f":"VLOOKUP(B157,tbl_JHA!L:M,2,FALSE)","v":"Xperanza Nederland B.V."}]
["X-Tense B.V.",98105917,{"$f":"VLOOKUP(A158,tbl_JHA!M:M,1,0)","v":"X-Tense B.V."},{"$f":"VLOOKUP(B158,tbl_JHA!L:M,2,FALSE)","v":"X-Tense B.V."}]
["Yvonne van Pijkeren",94059103,{"$f":"VLOOKUP(A159,tbl_JHA!M:M,1,0)","v":"Yvonne van Pijkeren"},{"$f":"VLOOKUP(B159,tbl_JHA!L:M,2,FALSE)","v":"Yvonne van Pijkeren"}]
["Zo- Zorgoplossingen",94003646,{"$f":"VLOOKUP(A160,tbl_JHA!M:M,1,0)","v":"Zo- Zorgoplossingen"},{"$f":"VLOOKUP(B160,tbl_JHA!L:M,2,FALSE)","v":"Zo- Zorgoplossingen"}]
["Zonnestraal Pedagogische Hulp","98103331",{"$f":"VLOOKUP(A161,tbl_JHA!M:M,1,0)","v":"Zonnestraal Pedagogische Hulp"},{"$f":"VLOOKUP(B161,tbl_JHA!L:M,2,FALSE)","v":"Zonnestraal Pedagogische Hulp"}]
["Zorg Anders B.V.","98103043",{"$f":"VLOOKUP(A162,tbl_JHA!M:M,1,0)","v":"Zorg Anders B.V."},{"$f":"VLOOKUP(B162,tbl_JHA!L:M,2,FALSE)","v":"Zorg Anders B.V."}]
["Zorg en Coaching Noord Nederland B.V.","98102631",{"$f":"VLOOKUP(A163,tbl_JHA!M:M,1,0)","v":"Zorg en Coaching Noord Nederland B.V."},{"$f":"VLOOKUP(B163,tbl_JHA!L:M,2,FALSE)","v":"Zorg en Coaching Noord Nederland B.V."}]
["Zorg en Welzijn Academy Knaap B.V. ",98104930,{"$f":"VLOOKUP(A164,tbl_JHA!M:M,1,0)","v":"Zorg en Welzijn Academy Knaap B.V. "},{"$f":"VLOOKUP(B164,tbl_JHA!L:M,2,FALSE)","v":"Zorg en Welzijn Academy Knaap B.V. "}]
["Zorg Intens B.V.",73730258,{"$f":"VLOOKUP(A165,tbl_JHA!M:M,1,0)","v":"Zorg Intens B.V."},{"$f":"VLOOKUP(B165,tbl_JHA!L:M,2,FALSE)","v":"Zorg Intens B.V."}]
["Zorg Op Stee I B.V.",41526844,{"$f":"VLOOKUP(A166,tbl_JHA!M:M,1,0)","v":"Zorg Op Stee I B.V."},{"$f":"VLOOKUP(B166,tbl_JHA!L:M,2,FALSE)","v":"Zorg Op Stee I B.V."}]
["Zorgboerderij Veldzicht Zeegse",98101742,{"$f":"VLOOKUP(A167,tbl_JHA!M:M,1,0)","v":"Zorgboerderij Veldzicht Zeegse"},{"$f":"VLOOKUP(B167,tbl_JHA!L:M,2,FALSE)","v":"Zorgboerderij Veldzicht Zeegse"}]
["Zorgbureau Embrace ","94063543",{"$f":"VLOOKUP(A168,tbl_JHA!M:M,1,0)","v":"Zorgbureau Embrace "},{"$f":"VLOOKUP(B168,tbl_JHA!L:M,2,FALSE)","v":"Zorgbureau Embrace "}]
["Zorgkracht 12, de Noordelijke Zorgcoöperatie U.A.","98105913",{"$f":"VLOOKUP(A169,tbl_JHA!M:M,1,0)","v":"Zorgkracht 12, de Noordelijke Zorgcoöperatie U.A."},{"$f":"VLOOKUP(B169,tbl_JHA!L:M,2,FALSE)","v":"Zorgkracht 12, de Noordelijke Zorgcoöperatie U.A."}]
["Zwat Werkplaats B.V.",98099815,{"$f":"VLOOKUP(A170,tbl_JHA!M:M,1,0)","v":"Zwat Werkplaats B.V."},{"$f":"VLOOKUP(B170,tbl_JHA!L:M,2,FALSE)","v":"Zwat Werkplaats B.V."}]
[]
[]
[null,null,"is gewijzigd met project namen"]

{"sheet":"tbl_JHA","index":2,"n_rows":861,"n_cols":14,"rows_kept":861,"cut":false,"hidden":true,"merged":[]}
["Teller1","Num_Aanbieder","Voorziening/Product in geval ZIN","Productcode","Productomschrijving","Product categorie * ","Eenheid bij toekenning","Frequentie bij toekenning","Max tarief JHA bij traject (tarief JHA /12)","Max. tarief","Tarief voorziening/product JHA *","AGB-Code JHA","Naam JHA"]
[{"$f":"IF($M2=\"\",\"\",IF($M2=$M1,$A1+1,1))","v":1},{"$f":"IF($A2=\"\",\"\",$A2&\"_\"&$M2)","v":"1_Aardema Thuiszorg B.V."},{"$f":"IF($A2=\"\",\"\",$D2&\" \"&$E2)","v":"45A04 Individuele begeleiding basis"},"45A04","Individuele begeleiding basis","Ambulant","uur","Totaal binnen geldigheidsduur of tijdsonafhankelijk",null,81.75,81.100000000000009,75751252,"Aardema Thuiszorg B.V."]
[{"$f":"IF($M3=\"\",\"\",IF($M3=$M2,$A2+1,1))","v":2},{"$f":"IF($A3=\"\",\"\",$A3&\"_\"&$M3)","v":"2_Aardema Thuiszorg B.V."},{"$f":"IF($A3=\"\",\"\",$D3&\" \"&$E3)","v":"45A51 Gezinsbegeleiding basis"},"45A51","Gezinsbegeleiding basis","Ambulant","uur","Totaal binnen geldigheidsduur of tijdsonafhankelijk",null,81.75,79.100000000000009,75751252,"Aardema Thuiszorg B.V."]
[{"$f":"IF($M4=\"\",\"\",IF($M4=$M3,$A3+1,1))","v":3},{"$f":"IF($A4=\"\",\"\",$A4&\"_\"&$M4)","v":"3_Aardema Thuiszorg B.V."},{"$f":"IF($A4=\"\",\"\",$D4&\" \"&$E4)","v":"45A53 Individuele begeleiding specialistisch"},"45A53","Individuele begeleiding specialistisch","Ambulant","uur","Totaal binnen geldigheidsduur of tijdsonafhankelijk",null,104.15,98.850000000000009,75751252,"Aardema Thuiszorg B.V."]
[{"$f":"IF($M5=\"\",\"\",IF($M5=$M4,$A4+1,1))","v":4},{"$f":"IF($A5=\"\",\"\",$A5&\"_\"&$M5)","v":"4_Aardema Thuiszorg B.V."},{"$f":"IF($A5=\"\",\"\",$D5&\" \"&$E5)","v":"45A56 Gezinsbegeleiding specialistisch"},"45A56","Gezinsbegeleiding specialistisch","Ambulant","uur","Totaal binnen geldigheidsduur of tijdsonafhankelijk",null,104.15,98.850000000000009,75751252,"Aardema Thuiszorg B.V."]
[{"$f":"IF($M6=\"\",\"\",IF($M6=$M5,$A5+1,1))","v":1},{"$f":"IF($A6=\"\",\"\",$A6&\"_\"&$M6)","v":"1_Activiteitencentrum De Brink B.V."},{"$f":"IF($A6=\"\",\"\",$D6&\" \"&$E6)","v":"42A01 Vervoer regulier"},"42A01","Vervoer regulier","Overig","stuk","Totaal binnen geldigheidsduur of tijdsonafhankelijk",null,11.9,8.1000000000000014,"98102991","Activiteitencentrum De Brink B.V."]
[{"$f":"IF($M7=\"\",\"\",IF($M7=$M6,$A6+1,1))","v":2},{"$f":"IF($A7=\"\",\"\",$A7&\"_\"&$M7)","v":"2_Activiteitencentrum De Brink B.V."},{"$f":"IF($A7=\"\",\"\",$D7&\" \"&$E7)","v":"45A54 Groepsbegeleiding specialistisch"},"45A54","Groepsbegeleiding specialistisch","Ambulant","uur","Totaal binnen geldigheidsduur of tijdsonafhankelijk",null,26.4,16.150000000000002,"98102991","Activiteitencentrum De Brink B.V."]
[{"$f":"IF($M8=\"\",\"\",IF($M8=$M7,$A7+1,1))","v":1},{"$f":"IF($A8=\"\",\"\",$A8&\"_\"&$M8)","v":"1_Ambulante hulpverlening Groningen"},{"$f":"IF($A8=\"\",\"\",$D8&\" \"&$E8)","v":"45A04 Individuele begeleiding basis"},"45A04","Individuele begeleiding basis","Ambulant","uur","Totaal binnen geldigheidsduur of tijdsonafhankelijk",null,81.75,81.75,"98103733","Ambulante hulpverlening Groningen"]
[{"$f":"IF($M9=\"\",\"\",IF($M9=$M8,$A8+1,1))","v":2},{"$f":"IF($A9=\"\",\"\",$A9&\"_\"&$M9)","v":"2_Ambulante hulpverlening Groningen"},{"$f":"IF($A9=\"\",\"\",$D9&\" \"&$E9)","v":"45A49 Groepsbegeleiding basis"},"45A49","Groepsbegeleiding basis","Ambulant","uur","Totaal binnen geldigheidsduur of tijdsonafhankelijk",null,21.05,21.05,"98103733","Ambulante hulpverlening Groningen"]
[{"$f":"IF($M10=\"\",\"\",IF($M10=$M9,$A9+1,1))","v":3},{"$f":"IF($A10=\"\",\"\",$A10&\"_\"&$M10)","v":"3_Ambulante hulpverlening Groningen"},{"$f":"IF($A10=\"\",\"\",$D10&\" \"&$E10)","v":"45A53 Individuele begeleiding specialistisch"},"45A53","Individuele begeleiding specialistisch","Ambulant","uur","Totaal binnen geldigheidsduur of tijdsonafhankelijk",null,104.15,104.15,"98103733","Ambulante hulpverlening Groningen"]
[{"$f":"IF($M11=\"\",\"\",IF($M11=$M10,$A10+1,1))","v":1},{"$f":"IF($A11=\"\",\"\",$A11&\"_\"&$M11)","v":"1_A-MeZo B.V."},{"$f":"IF($A11=\"\",\"\",$D11&\" \"&$E11)","v":"45A51 Gezinsbegeleiding basis"},"45A51","Gezinsbegeleiding basis","Ambulant","uur","Totaal binnen geldigheidsduur of tijdsonafhankelijk",null,81.75,61.300000000000004,98107904,"A-MeZo B.V."]
[{"$f":"IF($M12=\"\",\"\",IF($M12=$M11,$A11+1,1))","v":1},{"$f":"IF($A12=\"\",\"\",$A12&\"_\"&$M12)","v":"1_autismehuis B.V."},{"$f":"IF($A12=\"\",\"\",$D12&\" \"&$E12)","v":"45A53 Individuele begeleiding specialistisch"},"45A53","Individuele begeleiding specialistisch","Ambulant","uur","Totaal binnen geldigheidsduur of tijdsonafhankelijk",null,104.15,96.050000000000011,73730430,"autismehuis B.V."]
[{"$f":"IF($M13=\"\",\"\",IF($M13=$M12,$A12+1,1))","v":2},{"$f":"IF($A13=\"\",\"\",$A13&\"_\"&$M13)","v":"2_autismehuis B.V."},{"$f":"IF($A13=\"\",\"\",$D13&\" \"&$E13)","v":"50G26 Specifieke doelgroepen 3 Behoud van en Toeleiding naar onderwijsdeelname (deelproduct jeugdhulp)"},"50G26","Specifieke doelgroepen 3 Behoud van en Toeleiding naar onderwijsdeelname (deelproduct jeugdhulp)","Specifieke doelgroepen","uur","Totaal binnen geldigheidsduur of tijdsonafhankelijk",null,113.4,104.55000000000001,73730430,"autismehuis B.V."]
[{"$f":"IF($M14=\"\",\"\",IF($M14=$M13,$A13+1,1))","v":1},{"$f":"IF($A14=\"\",\"\",$A14&\"_\"&$M14)","v":"1_BeterBrein"},{"$f":"IF($A14=\"\",\"\",$D14&\" \"&$E14)","v":"52G09 Individuele behandeling specialistisch"},"52G09","Individuele behandeling specialistisch","Ambulant","uur","Totaal binnen geldigheidsduur of tijdsonafhankelijk",null,130.5,127.35000000000001,94060633,"BeterBrein"]
[{"$f":"IF($M15=\"\",\"\",IF($M15=$M14,$A14+1,1))","v":1},{"$f":"IF($A15=\"\",\"\",$A15&\"_\"&$M15)","v":"1_Bloezem Zorg Thuis B.V."},{"$f":"IF($A15=\"\",\"\",$D15&\" \"&$E15)","v":"45A04 Individuele begeleiding basis"},"45A04","Individuele begeleiding basis","Ambulant","uur","Totaal binnen geldigheidsduur of tijdsonafhankelijk",null,81.75,81.75,"75751769","Bloezem Zorg Thuis B.V."]
[{"$f":"IF($M16=\"\",\"\",IF($M16=$M15,$A15+1,1))","v":2},{"$f":"IF($A16=\"\",\"\",$A16&\"_\"&$M16)","v":"2_Bloezem Zorg Thuis B.V."},{"$f":"IF($A16=\"\",\"\",$D16&\" \"&$E16)","v":"45A51 Gezinsbegeleiding basis"},"45A51","Gezinsbegeleiding basis","Ambulant","uur","Totaal binnen geldigheidsduur of tijdsonafhankelijk",null,81.75,81.75,"75751769","Bloezem Zorg Thuis B.V."]
[{"$f":"IF($M17=\"\",\"\",IF($M17=$M16,$A16+1,1))","v":3},{"$f":"IF($A17=\"\",\"\",$A17&\"_\"&$M17)","v":"3_Bloezem Zorg Thuis B.V."},{"$f":"IF($A17=\"\",\"\",$D17&\" \"&$E17)","v":"45A53 Individuele begeleiding specialistisch"},"45A53","Individuele begeleiding specialistisch","Ambulant","uur","Totaal binnen geldigheidsduur of tijdsonafhankelijk",null,104.15,104.15,"75751769","Bloezem Zorg Thuis B.V."]
[{"$f":"IF($M18=\"\",\"\",IF($M18=$M17,$A17+1,1))","v":4},{"$f":"IF($A18=\"\",\"\",$A18&\"_\"&$M18)","v":"4_Bloezem Zorg Thuis B.V."},{"$f":"IF($A18=\"\",\"\",$D18&\" \"&$E18)","v":"45A56 Gezinsbegeleiding specialistisch"},"45A56","Gezinsbegeleiding specialistisch","Ambulant","uur","Totaal binnen geldigheidsduur of tijdsonafhankelijk",null,104.15,104.15,"75751769","Bloezem Zorg Thuis B.V."]
[{"$f":"IF($M19=\"\",\"\",IF($M19=$M18,$A18+1,1))","v":1},{"$f":"IF($A19=\"\",\"\",$A19&\"_\"&$M19)","v":"1_Calidad B.V."},{"$f":"IF($A19=\"\",\"\",$D19&\" \"&$E19)","v":"41A18 Dagbesteding"},"41A18","Dagbesteding","Dagbesteding / dagbehandeling","dagdeel","per week",null,76.5,76.5,98101345,"Calidad B.V."]
[{"$f":"IF($M20=\"\",\"\",IF($M20=$M19,$A19+1,1))","v":2},{"$f":"IF($A20=\"\",\"\",$A20&\"_\"&$M20)","v":"2_Calidad B.V."},{"$f":"IF($A20=\"\",\"\",$D20&\" \"&$E20)","v":"43A37 Verblijfstraject middelzwaar"},"43A37","Verblijfstraject middelzwaar","Verblijf/ opname","etmaal","Totaal binnen geldigheidsduur of tijdsonafhankelijk",null,398.15,398.15,98101345,"Calidad B.V."]
[{"$f":"IF($M21=\"\",\"\",IF($M21=$M20,$A20+1,1))","v":3},{"$f":"IF($A21=\"\",\"\",$A21&\"_\"&$M21)","v":"3_Calidad B.V."},{"$f":"IF($A21=\"\",\"\",$D21&\" \"&$E21)","v":"44G02 Verblijf langdurig (beschermd) wonen"},"44G02","Verblijf langdurig (beschermd) wonen","Verblijf/ opname","etmaal","per week",null,230.7,230.7,98101345,"Calidad B.V."]
[{"$f":"IF($M22=\"\",\"\",IF($M22=$M21,$A21+1,1))","v":4},{"$f":"IF($A22=\"\",\"\",$A22&\"_\"&$M22)","v":"4_Calidad B.V."},{"$f":"IF($A22=\"\",\"\",$D22&\" \"&$E22)","v":"45A04 Individuele begeleiding basis"},"45A04","Individuele begeleiding basis","Ambulant","uur","Totaal binnen geldigheidsduur of tijdsonafhankelijk",null,81.75,81.75,98101345,"Calidad B.V."]
[{"$f":"IF($M23=\"\",\"\",IF($M23=$M22,$A22+1,1))","v":5},{"$f":"IF($A23=\"\",\"\",$A23&\"_\"&$M23)","v":"5_Calidad B.V."},{"$f":"IF($A23=\"\",\"\",$D23&\" \"&$E23)","v":"45A53 Individuele begeleiding specialistisch"},"45A53","Individuele begeleiding specialistisch","Ambulant","uur","Totaal binnen geldigheidsduur of tijdsonafhankelijk",null,104.15,104.15,98101345,"Calidad B.V."]
[{"$f":"IF($M24=\"\",\"\",IF($M24=$M23,$A23+1,1))","v":1},{"$f":"IF($A24=\"\",\"\",$A24&\"_\"&$M24)","v":"1_Care Forward Noord B.V."},{"$f":"IF($A24=\"\",\"\",$D24&\" \"&$E24)","v":"45A04 Individuele begeleiding basis"},"45A04","Individuele begeleiding basis","Ambulant","uur","Totaal binnen geldigheidsduur of tijdsonafhankelijk",null,81.75,81.75,98105723,"Care Forward Noord B.V."]
[{"$f":"IF($M25=\"\",\"\",IF($M25=$M24,$A24+1,1))","v":2},{"$f":"IF($A25=\"\",\"\",$A25&\"_\"&$M25)","v":"2_Care Forward Noord B.V."},{"$f":"IF($A25=\"\",\"\",$D25&\" \"&$E25)","v":"45A51 Gezinsbegeleiding basis"},"45A51","Gezinsbegeleiding basis","Ambulant","uur","Totaal binnen geldigheidsduur of tijdsonafhankelijk",null,81.75,81.75,98105723,"Care Forward Noord B.V."]
[{"$f":"IF($M26=\"\",\"\",IF($M26=$M25,$A25+1,1))","v":3},{"$f":"IF($A26=\"\",\"\",$A26&\"_\"&$M26)","v":"3_Care Forward Noord B.V."},{"$f":"IF($A26=\"\",\"\",$D26&\" \"&$E26)","v":"45A53 Individuele begeleiding specialistisch"},"45A53","Individuele begeleiding specialistisch","Ambulant","uur","Totaal binnen geldigheidsduur of tijdsonafhankelijk",null,104.15,104.15,98105723,"Care Forward Noord B.V."]
[{"$f":"IF($M27=\"\",\"\",IF($M27=$M26,$A26+1,1))","v":4},{"$f":"IF($A27=\"\",\"\",$A27&\"_\"&$M27)","v":"4_Care Forward Noord B.V."},{"$f":"IF($A27=\"\",\"\",$D27&\" \"&$E27)","v":"45A56 Gezinsbegeleiding specialistisch"},"45A56","Gezinsbegeleiding specialistisch","Ambulant","uur","Totaal binnen geldigheidsduur of tijdsonafhankelijk",null,104.15,104.15,98105723,"Care Forward Noord B.V."]
[{"$f":"IF($M28=\"\",\"\",IF($M28=$M27,$A27+1,1))","v":5},{"$f":"IF($A28=\"\",\"\",$A28&\"_\"&$M28)","v":"5_Care Forward Noord B.V."},{"$f":"IF($A28=\"\",\"\",$D28&\" \"&$E28)","v":"45G03 Intensieve ambulante of psychiatrische gezinsbehandeling"},"45G03","Intensieve ambulante of psychiatrische gezinsbehandeling","Ambulant","uur","Totaal binnen geldigheidsduur of tijdsonafhankelijk",null,113.4,113.4,98105723,"Care Forward Noord B.V."]
[{"$f":"IF($M29=\"\",\"\",IF($M29=$M28,$A28+1,1))","v":1},{"$f":"IF($A29=\"\",\"\",$A29&\"_\"&$M29)","v":"1_Cedin B.V."},{"$f":"IF($A29=\"\",\"\",$D29&\" \"&$E29)","v":"45A51 Gezinsbegeleiding basis"},"45A51","Gezinsbegeleiding basis","Ambulant","uur","Totaal binnen geldigheidsduur of tijdsonafhankelijk",null,81.75,81.75,"53530112","Cedin B.V."]
[{"$f":"IF($M30=\"\",\"\",IF($M30=$M29,$A29+1,1))","v":2},{"$f":"IF($A30=\"\",\"\",$A30&\"_\"&$M30)","v":"2_Cedin B.V."},{"$f":"IF($A30=\"\",\"\",$D30&\" \"&$E30)","v":"45A53 Individuele begeleiding specialistisch"},"45A53","Individuele begeleiding specialistisch","Ambulant","uur","Totaal binnen geldigheidsduur of tijdsonafhankelijk",null,104.15,104.15,"53530112","Cedin B.V."]
[{"$f":"IF($M31=\"\",\"\",IF($M31=$M30,$A30+1,1))","v":3},{"$f":"IF($A31=\"\",\"\",$A31&\"_\"&$M31)","v":"3_Cedin B.V."},{"$f":"IF($A31=\"\",\"\",$D31&\" \"&$E31)","v":"45A54 Groepsbegeleiding specialistisch"},"45A54","Groepsbegeleiding specialistisch","Ambulant","uur","Totaal binnen geldigheidsduur of tijdsonafhankelijk",null,26.4,26.400000000000002,"53530112","Cedin B.V."]
[{"$f":"IF($M32=\"\",\"\",IF($M32=$M31,$A31+1,1))","v":4},{"$f":"IF($A32=\"\",\"\",$A32&\"_\"&$M32)","v":"4_Cedin B.V."},{"$f":"IF($A32=\"\",\"\",$D32&\" \"&$E32)","v":"45A56 Gezinsbegeleiding specialistisch"},"45A56","Gezinsbegeleiding specialistisch","Ambulant","uur","Totaal binnen geldigheidsduur of tijdsonafhankelijk",null,104.15,104.15,"53530112","Cedin B.V."]
[{"$f":"IF($M33=\"\",\"\",IF($M33=$M32,$A32+1,1))","v":5},{"$f":"IF($A33=\"\",\"\",$A33&\"_\"&$M33)","v":"5_Cedin B.V."},{"$f":"IF($A33=\"\",\"\",$D33&\" \"&$E33)","v":"45G02 Gezinsdiagnostiek"},"45G02","Gezinsdiagnostiek","Ambulant","uur","Totaal binnen geldigheidsduur of tijdsonafhankelijk",null,129.25,129.25,"53530112","Cedin B.V."]
[{"$f":"IF($M34=\"\",\"\",IF($M34=$M33,$A33+1,1))","v":6},{"$f":"IF($A34=\"\",\"\",$A34&\"_\"&$M34)","v":"6_Cedin B.V."},{"$f":"IF($A34=\"\",\"\",$D34&\" \"&$E34)","v":"45G04 Systeemtherapie"},"45G04","Systeemtherapie","Intensief ambulant","uur","Totaal binnen geldigheidsduur of tijdsonafhankelijk",null,141,141,53530112,"Cedin B.V."]
[{"$f":"IF($M35=\"\",\"\",IF($M35=$M34,$A34+1,1))","v":7},{"$f":"IF($A35=\"\",\"\",$A35&\"_\"&$M35)","v":"7_Cedin B.V."},{"$f":"IF($A35=\"\",\"\",$D35&\" \"&$E35)","v":"50G06 Specifieke doelgroepen 1 Integrale vroeghulp bij diffuse ontwikkelingsproblemen jonge kinderen"},"50G06","Specifieke doelgroepen 1 Integrale vroeghulp bij diffuse ontwikkelingsproblemen jonge kinderen","Specifieke doelgroepen","uur","Totaal binnen geldigheidsduur of tijdsonafhankelijk",null,109.45,109.45,"53530112","Cedin B.V."]
[{"$f":"IF($M36=\"\",\"\",IF($M36=$M35,$A35+1,1))","v":8},{"$f":"IF($A36=\"\",\"\",$A36&\"_\"&$M36)","v":"8_Cedin B.V."},{"$f":"IF($A36=\"\",\"\",$D36&\" \"&$E36)","v":"50G26 Specifieke doelgroepen 3 Behoud van en Toeleiding naar onderwijsdeelname (deelproduct jeugdhulp)"},"50G26","Specifieke doelgroepen 3 Behoud van en Toeleiding naar onderwijsdeelname (deelproduct jeugdhulp)","Specifieke doelgroepen","uur","Totaal binnen geldigheidsduur of tijdsonafhankelijk",null,113.4,113.4,"53530112","Cedin B.V."]
[{"$f":"IF($M37=\"\",\"\",IF($M37=$M36,$A36+1,1))","v":9},{"$f":"IF($A37=\"\",\"\",$A37&\"_\"&$M37)","v":"9_Cedin B.V."},{"$f":"IF($A37=\"\",\"\",$D37&\" \"&$E37)","v":"51G01 Individuele behandeling basis"},"51G01","Individuele behandeling basis","Ambulant","uur","Totaal binnen geldigheidsduur of tijdsonafhankelijk",null,122.65,122.65,"53530112","Cedin B.V."]
[{"$f":"IF($M38=\"\",\"\",IF($M38=$M37,$A37+1,1))","v":10},{"$f":"IF($A38=\"\",\"\",$A38&\"_\"&$M38)","v":"10_Cedin B.V."},{"$f":"IF($A38=\"\",\"\",$D38&\" \"&$E38)","v":"52G06 Individuele diagnostiek"},"52G06","Individuele diagnostiek","Ambulant","uur","Totaal binnen geldigheidsduur of tijdsonafhankelijk",null,123.95,123.95,"53530112","Cedin B.V."]
[{"$f":"IF($M39=\"\",\"\",IF($M39=$M38,$A38+1,1))","v":11},{"$f":"IF($A39=\"\",\"\",$A39&\"_\"&$M39)","v":"11_Cedin B.V."},{"$f":"IF($A39=\"\",\"\",$D39&\" \"&$E39)","v":"52G08 Individuele behandeling specialistisch zwaar-zeer zwaar"},"52G08","Individuele behandeling specialistisch zwaar-zeer zwaar","Ambulant","uur","Totaal binnen geldigheidsduur of tijdsonafhankelijk",null,134.5,134.5,"53530112","Cedin B.V."]
[{"$f":"IF($M40=\"\",\"\",IF($M40=$M39,$A39+1,1))","v":12},{"$f":"IF($A40=\"\",\"\",$A40&\"_\"&$M40)","v":"12_Cedin B.V."},{"$f":"IF($A40=\"\",\"\",$D40&\" \"&$E40)","v":"52G09 Individuele behandeling specialistisch"},"52G09","Individuele behandeling specialistisch","Ambulant","uur","Totaal binnen geldigheidsduur of tijdsonafhankelijk",null,130.5,130.5,"53530112","Cedin B.V."]
[{"$f":"IF($M41=\"\",\"\",IF($M41=$M40,$A40+1,1))","v":13},{"$f":"IF($A41=\"\",\"\",$A41&\"_\"&$M41)","v":"13_Cedin B.V."},{"$f":"IF($A41=\"\",\"\",$D41&\" \"&$E41)","v":"52G12 Individuele behandeling specialistisch licht medicatiecontrole"},"52G12","Individuele behandeling specialistisch licht medicatiecontrole","Ambulant","uur","Totaal binnen geldigheidsduur of tijdsonafhankelijk",null,174.1,174.10000000000002,"53530112","Cedin B.V."]
[{"$f":"IF($M42=\"\",\"\",IF($M42=$M41,$A41+1,1))","v":14},{"$f":"IF($A42=\"\",\"\",$A42&\"_\"&$M42)","v":"14_Cedin B.V."},{"$f":"IF($A42=\"\",\"\",$D42&\" \"&$E42)","v":"52G14 Specifieke doelgroepen 8 Ernstige Dyslexie (ED)"},"52G14","Specifieke doelgroepen 8 Ernstige Dyslexie (ED)","Specifieke doelgroepen","stuk (12)","Totaal binnen geldigheidsduur of tijdsonafhankelijk",7000,9228.2000000000007,9228.2000000000007,"53530112","Cedin B.V."]
[{"$f":"IF($M43=\"\",\"\",IF($M43=$M42,$A42+1,1))","v":1},{"$f":"IF($A43=\"\",\"\",$A43&\"_\"&$M43)","v":"1_Comfortzorg Contract B.V."},{"$f":"IF($A43=\"\",\"\",$D43&\" \"&$E43)","v":"45A04 Individuele begeleiding basis"},"45A04","Individuele begeleiding basis","Ambulant","uur","Totaal binnen geldigheidsduur of tijdsonafhankelijk",null,81.75,73.5,"73730236","Comfortzorg Contract B.V."]
[{"$f":"IF($M44=\"\",\"\",IF($M44=$M43,$A43+1,1))","v":2},{"$f":"IF($A44=\"\",\"\",$A44&\"_\"&$M44)","v":"2_Comfortzorg Contract B.V."},{"$f":"IF($A44=\"\",\"\",$D44&\" \"&$E44)","v":"45A53 Individuele begeleiding specialistisch"},"45A53","Individuele begeleiding specialistisch","Ambulant","uur","Totaal binnen geldigheidsduur of tijdsonafhankelijk",null,104.15,91.9,"73730236","Comfortzorg Contract B.V."]
[{"$f":"IF($M45=\"\",\"\",IF($M45=$M44,$A44+1,1))","v":1},{"$f":"IF($A45=\"\",\"\",$A45&\"_\"&$M45)","v":"1_Coöperatie Dichtbij U.A."},{"$f":"IF($A45=\"\",\"\",$D45&\" \"&$E45)","v":"40A04 Persoonlijke verzorging"},"40A04","Persoonlijke verzorging","Overig","uur","per week",null,71.25,71.25,"75751904","Coöperatie Dichtbij U.A."]
[{"$f":"IF($M46=\"\",\"\",IF($M46=$M45,$A45+1,1))","v":2},{"$f":"IF($A46=\"\",\"\",$A46&\"_\"&$M46)","v":"2_Coöperatie Dichtbij U.A."},{"$f":"IF($A46=\"\",\"\",$D46&\" \"&$E46)","v":"41A18 Dagbesteding"},"41A18","Dagbesteding","Dagbesteding / dagbehandeling","dagdeel","per week",null,76.5,76.5,"75751904","Coöperatie Dichtbij U.A."]
[{"$f":"IF($M47=\"\",\"\",IF($M47=$M46,$A46+1,1))","v":3},{"$f":"IF($A47=\"\",\"\",$A47&\"_\"&$M47)","v":"3_Coöperatie Dichtbij U.A."},{"$f":"IF($A47=\"\",\"\",$D47&\" \"&$E47)","v":"42A01 Vervoer regulier"},"42A01","Vervoer regulier","Overig","stuk","Totaal binnen geldigheidsduur of tijdsonafhankelijk",null,11.9,11.9,"75751904","Coöperatie Dichtbij U.A."]
[{"$f":"IF($M48=\"\",\"\",IF($M48=$M47,$A47+1,1))","v":4},{"$f":"IF($A48=\"\",\"\",$A48&\"_\"&$M48)","v":"4_Coöperatie Dichtbij U.A."},{"$f":"IF($A48=\"\",\"\",$D48&\" \"&$E48)","v":"43A11 Logeren hoog intensief"},"43A11","Logeren hoog intensief","Logeren / Respijtzorg","etmaal","Totaal binnen geldigheidsduur of tijdsonafhankelijk",null,375.8,375.8,"75751904","Coöperatie Dichtbij U.A."]
[{"$f":"IF($M49=\"\",\"\",IF($M49=$M48,$A48+1,1))","v":5},{"$f":"IF($A49=\"\",\"\",$A49&\"_\"&$M49)","v":"5_Coöperatie Dichtbij U.A."},{"$f":"IF($A49=\"\",\"\",$D49&\" \"&$E49)","v":"43A35 Verblijf licht"},"43A35","Verblijf licht","Verblijf/ opname","etmaal","Totaal binnen geldigheidsduur of tijdsonafhankelijk",null,162.15,162.15,"75751904","Coöperatie Dichtbij U.A."]
[{"$f":"IF($M50=\"\",\"\",IF($M50=$M49,$A49+1,1))","v":6},{"$f":"IF($A50=\"\",\"\",$A50&\"_\"&$M50)","v":"6_Coöperatie Dichtbij U.A."},{"$f":"IF($A50=\"\",\"\",$D50&\" \"&$E50)","v":"43G08 Verblijf middel woonhoeve"},"43G08","Verblijf middel woonhoeve","Verblijf/ opname","etmaal","Totaal binnen geldigheidsduur of tijdsonafhankelijk",null,118.7,118.7,"75751904","Coöperatie Dichtbij U.A."]
[{"$f":"IF($M51=\"\",\"\",IF($M51=$M50,$A50+1,1))","v":7},{"$f":"IF($A51=\"\",\"\",$A51&\"_\"&$M51)","v":"7_Coöperatie Dichtbij U.A."},{"$f":"IF($A51=\"\",\"\",$D51&\" \"&$E51)","v":"43G09 Verblijf middel gezinshuis"},"43G09","Verblijf middel gezinshuis","Verblijf/ opname","etmaal","per week",null,131.9,131.9,"75751904","Coöperatie Dichtbij U.A."]
[{"$f":"IF($M52=\"\",\"\",IF($M52=$M51,$A51+1,1))","v":8},{"$f":"IF($A52=\"\",\"\",$A52&\"_\"&$M52)","v":"8_Coöperatie Dichtbij U.A."},{"$f":"IF($A52=\"\",\"\",$D52&\" \"&$E52)","v":"44A09 Logeren laag intensief"},"44A09","Logeren laag intensief","Logeren / Respijtzorg","etmaal","Totaal binnen geldigheidsduur of tijdsonafhankelijk",null,237.3,237.3,"75751904","Coöperatie Dichtbij U.A."]
[{"$f":"IF($M53=\"\",\"\",IF($M53=$M52,$A52+1,1))","v":9},{"$f":"IF($A53=\"\",\"\",$A53&\"_\"&$M53)","v":"9_Coöperatie Dichtbij U.A."},{"$f":"IF($A53=\"\",\"\",$D53&\" \"&$E53)","v":"44G02 Verblijf langdurig (beschermd) wonen"},"44G02","Verblijf langdurig (beschermd) wonen","Verblijf/ opname","etmaal","per week",null,230.7,219.15,"75751904","Coöperatie Dichtbij U.A."]
[{"$f":"IF($M54=\"\",\"\",IF($M54=$M53,$A53+1,1))","v":10},{"$f":"IF($A54=\"\",\"\",$A54&\"_\"&$M54)","v":"10_Coöperatie Dichtbij U.A."},{"$f":"IF($A54=\"\",\"\",$D54&\" \"&$E54)","v":"45A04 Individuele begeleiding basis"},"45A04","Individuele begeleiding basis","Ambulant","uur","Totaal binnen geldigheidsduur of tijdsonafhankelijk",null,81.75,77.600000000000009,"75751904","Coöperatie Dichtbij U.A."]
[{"$f":"IF($M55=\"\",\"\",IF($M55=$M54,$A54+1,1))","v":11},{"$f":"IF($A55=\"\",\"\",$A55&\"_\"&$M55)","v":"11_Coöperatie Dichtbij U.A."},{"$f":"IF($A55=\"\",\"\",$D55&\" \"&$E55)","v":"45A49 Groepsbegeleiding basis"},"45A49","Groepsbegeleiding basis","Ambulant","uur","Totaal binnen geldigheidsduur of tijdsonafhankelijk",null,21.05,21.05,"75751904","Coöperatie Dichtbij U.A."]
[{"$f":"IF($M56=\"\",\"\",IF($M56=$M55,$A55+1,1))","v":12},{"$f":"IF($A56=\"\",\"\",$A56&\"_\"&$M56)","v":"12_Coöperatie Dichtbij U.A."},{"$f":"IF($A56=\"\",\"\",$D56&\" \"&$E56)","v":"45A51 Gezinsbegeleiding basis"},"45A51","Gezinsbegeleiding basis","Ambulant","uur","Totaal binnen geldigheidsduur of tijdsonafhankelijk",null,81.75,77.600000000000009,"75751904","Coöperatie Dichtbij U.A."]
[{"$f":"IF($M57=\"\",\"\",IF($M57=$M56,$A56+1,1))","v":13},{"$f":"IF($A57=\"\",\"\",$A57&\"_\"&$M57)","v":"13_Coöperatie Dichtbij U.A."},{"$f":"IF($A57=\"\",\"\",$D57&\" \"&$E57)","v":"45A53 Individuele begeleiding specialistisch"},"45A53","Individuele begeleiding specialistisch","Ambulant","uur","Totaal binnen geldigheidsduur of tijdsonafhankelijk",null,104.15,104.15,"75751904","Coöperatie Dichtbij U.A."]
[{"$f":"IF($M58=\"\",\"\",IF($M58=$M57,$A57+1,1))","v":14},{"$f":"IF($A58=\"\",\"\",$A58&\"_\"&$M58)","v":"14_Coöperatie Dichtbij U.A."},{"$f":"IF($A58=\"\",\"\",$D58&\" \"&$E58)","v":"45A54 Groepsbegeleiding specialistisch"},"45A54","Groepsbegeleiding specialistisch","Ambulant","uur","Totaal binnen geldigheidsduur of tijdsonafhankelijk",null,26.4,26.400000000000002,"75751904","Coöperatie Dichtbij U.A."]
[{"$f":"IF($M59=\"\",\"\",IF($M59=$M58,$A58+1,1))","v":15},{"$f":"IF($A59=\"\",\"\",$A59&\"_\"&$M59)","v":"15_Coöperatie Dichtbij U.A."},{"$f":"IF($A59=\"\",\"\",$D59&\" \"&$E59)","v":"45A56 Gezinsbegeleiding specialistisch"},"45A56","Gezinsbegeleiding specialistisch","Ambulant","uur","Totaal binnen geldigheidsduur of tijdsonafhankelijk",null,104.15,104.15,"75751904","Coöperatie Dichtbij U.A."]
[{"$f":"IF($M60=\"\",\"\",IF($M60=$M59,$A59+1,1))","v":16},{"$f":"IF($A60=\"\",\"\",$A60&\"_\"&$M60)","v":"16_Coöperatie Dichtbij U.A."},{"$f":"IF($A60=\"\",\"\",$D60&\" \"&$E60)","v":"45G04 Systeemtherapie"},"45G04","Systeemtherapie","Intensief ambulant","uur","Totaal binnen geldigheidsduur of tijdsonafhankelijk",null,141,134.05000000000001,"75751904","Coöperatie Dichtbij U.A."]
[{"$f":"IF($M61=\"\",\"\",IF($M61=$M60,$A60+1,1))","v":17},{"$f":"IF($A61=\"\",\"\",$A61&\"_\"&$M61)","v":"17_Coöperatie Dichtbij U.A."},{"$f":"IF($A61=\"\",\"\",$D61&\" \"&$E61)","v":"51G01 Individuele behandeling basis"},"51G01","Individuele behandeling basis","Ambulant","uur","Totaal binnen geldigheidsduur of tijdsonafhankelijk",null,122.65,122.15,"75751904","Coöperatie Dichtbij U.A."]
[{"$f":"IF($M62=\"\",\"\",IF($M62=$M61,$A61+1,1))","v":1},{"$f":"IF($A62=\"\",\"\",$A62&\"_\"&$M62)","v":"1_Coöperatie Stee050 U.A."},{"$f":"IF($A62=\"\",\"\",$D62&\" \"&$E62)","v":"43A35 Verblijf licht"},"43A35","Verblijf licht","Verblijf/ opname","etmaal","Totaal binnen geldigheidsduur of tijdsonafhankelijk",null,162.15,162.15,"98104252","Coöperatie Stee050 U.A."]
[{"$f":"IF($M63=\"\",\"\",IF($M63=$M62,$A62+1,1))","v":2},{"$f":"IF($A63=\"\",\"\",$A63&\"_\"&$M63)","v":"2_Coöperatie Stee050 U.A."},{"$f":"IF($A63=\"\",\"\",$D63&\" \"&$E63)","v":"45A04 Individuele begeleiding basis"},"45A04","Individuele begeleiding basis","Ambulant","uur","Totaal binnen geldigheidsduur of tijdsonafhankelijk",null,81.75,72.45,"98104252","Coöperatie Stee050 U.A."]
[{"$f":"IF($M64=\"\",\"\",IF($M64=$M63,$A63+1,1))","v":3},{"$f":"IF($A64=\"\",\"\",$A64&\"_\"&$M64)","v":"3_Coöperatie Stee050 U.A."},{"$f":"IF($A64=\"\",\"\",$D64&\" \"&$E64)","v":"45A51 Gezinsbegeleiding basis"},"45A51","Gezinsbegeleiding basis","Ambulant","uur","Totaal binnen geldigheidsduur of tijdsonafhankelijk",null,81.75,72.45,"98104252","Coöperatie Stee050 U.A."]
[{"$f":"IF($M65=\"\",\"\",IF($M65=$M64,$A64+1,1))","v":4},{"$f":"IF($A65=\"\",\"\",$A65&\"_\"&$M65)","v":"4_Coöperatie Stee050 U.A."},{"$f":"IF($A65=\"\",\"\",$D65&\" \"&$E65)","v":"45A53 Individuele begeleiding specialistisch"},"45A53","Individuele begeleiding specialistisch","Ambulant","uur","Totaal binnen geldigheidsduur of tijdsonafhankelijk",null,104.15,98.850000000000009,"98104252","Coöperatie Stee050 U.A."]
[{"$f":"IF($M66=\"\",\"\",IF($M66=$M65,$A65+1,1))","v":1},{"$f":"IF($A66=\"\",\"\",$A66&\"_\"&$M66)","v":"1_Cornerstones Jeugdzorg B.V."},{"$f":"IF($A66=\"\",\"\",$D66&\" \"&$E66)","v":"41A18 Dagbesteding"},"41A18","Dagbesteding","Dagbesteding / dagbehandeling","dagdeel","per week",null,76.5,76.5,"98102383","Cornerstones Jeugdzorg B.V."]
[{"$f":"IF($M67=\"\",\"\",IF($M67=$M66,$A66+1,1))","v":2},{"$f":"IF($A67=\"\",\"\",$A67&\"_\"&$M67)","v":"2_Cornerstones Jeugdzorg B.V."},{"$f":"IF($A67=\"\",\"\",$D67&\" \"&$E67)","v":"43A35 Verblijf licht"},"43A35","Verblijf licht","Verblijf/ opname","etmaal","Totaal binnen geldigheidsduur of tijdsonafhankelijk",null,162.15,162.15,"98102383","Cornerstones Jeugdzorg B.V."]
[{"$f":"IF($M68=\"\",\"\",IF($M68=$M67,$A67+1,1))","v":3},{"$f":"IF($A68=\"\",\"\",$A68&\"_\"&$M68)","v":"3_Cornerstones Jeugdzorg B.V."},{"$f":"IF($A68=\"\",\"\",$D68&\" \"&$E68)","v":"43G09 Verblijf middel gezinshuis"},"43G09","Verblijf middel gezinshuis","Verblijf/ opname","etmaal","per week",null,131.9,131.9,"98102383","Cornerstones Jeugdzorg B.V."]
[{"$f":"IF($M69=\"\",\"\",IF($M69=$M68,$A68+1,1))","v":4},{"$f":"IF($A69=\"\",\"\",$A69&\"_\"&$M69)","v":"4_Cornerstones Jeugdzorg B.V."},{"$f":"IF($A69=\"\",\"\",$D69&\" \"&$E69)","v":"43G10 Verblijf middel gezinshuis-plus"},"43G10","Verblijf middel gezinshuis-plus","Verblijf/ opname","etmaal","per week",null,184.6,184.6,"98102383","Cornerstones Jeugdzorg B.V."]
[{"$f":"IF($M70=\"\",\"\",IF($M70=$M69,$A69+1,1))","v":5},{"$f":"IF($A70=\"\",\"\",$A70&\"_\"&$M70)","v":"5_Cornerstones Jeugdzorg B.V."},{"$f":"IF($A70=\"\",\"\",$D70&\" \"&$E70)","v":"44A09 Logeren laag intensief"},"44A09","Logeren laag intensief","Logeren / Respijtzorg","etmaal","Totaal binnen geldigheidsduur of tijdsonafhankelijk",null,237.3,237.3,"98102383","Cornerstones Jeugdzorg B.V."]
[{"$f":"IF($M71=\"\",\"\",IF($M71=$M70,$A70+1,1))","v":6},{"$f":"IF($A71=\"\",\"\",$A71&\"_\"&$M71)","v":"6_Cornerstones Jeugdzorg B.V."},{"$f":"IF($A71=\"\",\"\",$D71&\" \"&$E71)","v":"44G02 Verblijf langdurig (beschermd) wonen"},"44G02","Verblijf langdurig (beschermd) wonen","Verblijf/ opname","etmaal","per week",null,230.7,230.70000000000002,"98102383","Cornerstones Jeugdzorg B.V."]
[{"$f":"IF($M72=\"\",\"\",IF($M72=$M71,$A71+1,1))","v":7},{"$f":"IF($A72=\"\",\"\",$A72&\"_\"&$M72)","v":"7_Cornerstones Jeugdzorg B.V."},{"$f":"IF($A72=\"\",\"\",$D72&\" \"&$E72)","v":"45A04 Individuele begeleiding basis"},"45A04","Individuele begeleiding basis","Ambulant","uur","Totaal binnen geldigheidsduur of tijdsonafhankelijk",null,81.75,81.75,"98102383","Cornerstones Jeugdzorg B.V."]
[{"$f":"IF($M73=\"\",\"\",IF($M73=$M72,$A72+1,1))","v":8},{"$f":"IF($A73=\"\",\"\",$A73&\"_\"&$M73)","v":"8_Cornerstones Jeugdzorg B.V."},{"$f":"IF($A73=\"\",\"\",$D73&\" \"&$E73)","v":"45A51 Gezinsbegeleiding basis"},"45A51","Gezinsbegeleiding basis","Ambulant","uur","Totaal binnen geldigheidsduur of tijdsonafhankelijk",null,81.75,81.75,"98102383","Cornerstones Jeugdzorg B.V."]
[{"$f":"IF($M74=\"\",\"\",IF($M74=$M73,$A73+1,1))","v":9},{"$f":"IF($A74=\"\",\"\",$A74&\"_\"&$M74)","v":"9_Cornerstones Jeugdzorg B.V."},{"$f":"IF($A74=\"\",\"\",$D74&\" \"&$E74)","v":"45A53 Individuele begeleiding specialistisch"},"45A53","Individuele begeleiding specialistisch","Ambulant","uur","Totaal binnen geldigheidsduur of tijdsonafhankelijk",null,104.15,104.15,"98102383","Cornerstones Jeugdzorg B.V."]
[{"$f":"IF($M75=\"\",\"\",IF($M75=$M74,$A74+1,1))","v":10},{"$f":"IF($A75=\"\",\"\",$A75&\"_\"&$M75)","v":"10_Cornerstones Jeugdzorg B.V."},{"$f":"IF($A75=\"\",\"\",$D75&\" \"&$E75)","v":"45A54 Groepsbegeleiding specialistisch"},"45A54","Groepsbegeleiding specialistisch","Ambulant","uur","Totaal binnen geldigheidsduur of tijdsonafhankelijk",null,26.4,26.400000000000002,"98102383","Cornerstones Jeugdzorg B.V."]
[{"$f":"IF($M76=\"\",\"\",IF($M76=$M75,$A75+1,1))","v":1},{"$f":"IF($A76=\"\",\"\",$A76&\"_\"&$M76)","v":"1_Cultureel Maatschappelijk Zorgbureau B.V."},{"$f":"IF($A76=\"\",\"\",$D76&\" \"&$E76)","v":"45A04 Individuele begeleiding basis"},"45A04","Individuele begeleiding basis","Ambulant","uur","Totaal binnen geldigheidsduur of tijdsonafhankelijk",null,81.75,81.75,"73730144","Cultureel Maatschappelijk Zorgbureau B.V."]
[{"$f":"IF($M77=\"\",\"\",IF($M77=$M76,$A76+1,1))","v":2},{"$f":"IF($A77=\"\",\"\",$A77&\"_\"&$M77)","v":"2_Cultureel Maatschappelijk Zorgbureau B.V."},{"$f":"IF($A77=\"\",\"\",$D77&\" \"&$E77)","v":"45A51 Gezinsbegeleiding basis"},"45A51","Gezinsbegeleiding basis","Ambulant","uur","Totaal binnen geldigheidsduur of tijdsonafhankelijk",null,81.75,81.75,"73730144","Cultureel Maatschappelijk Zorgbureau B.V."]
[{"$f":"IF($M78=\"\",\"\",IF($M78=$M77,$A77+1,1))","v":3},{"$f":"IF($A78=\"\",\"\",$A78&\"_\"&$M78)","v":"3_Cultureel Maatschappelijk Zorgbureau B.V."},{"$f":"IF($A78=\"\",\"\",$D78&\" \"&$E78)","v":"45A53 Individuele begeleiding specialistisch"},"45A53","Individuele begeleiding specialistisch","Ambulant","uur","Totaal binnen geldigheidsduur of tijdsonafhankelijk",null,104.15,104.15,"73730144","Cultureel Maatschappelijk Zorgbureau B.V."]
[{"$f":"IF($M79=\"\",\"\",IF($M79=$M78,$A78+1,1))","v":4},{"$f":"IF($A79=\"\",\"\",$A79&\"_\"&$M79)","v":"4_Cultureel Maatschappelijk Zorgbureau B.V."},{"$f":"IF($A79=\"\",\"\",$D79&\" \"&$E79)","v":"45A56 Gezinsbegeleiding specialistisch"},"45A56","Gezinsbegeleiding specialistisch","Ambulant","uur","Totaal binnen geldigheidsduur of tijdsonafhankelijk",null,104.15,104.15,"73730144","Cultureel Maatschappelijk Zorgbureau B.V."]
[{"$f":"IF($M80=\"\",\"\",IF($M80=$M79,$A79+1,1))","v":1},{"$f":"IF($A80=\"\",\"\",$A80&\"_\"&$M80)","v":"1_Cura XL B.V."},{"$f":"IF($A80=\"\",\"\",$D80&\" \"&$E80)","v":"41A18 Dagbesteding"},"41A18","Dagbesteding","Dagbesteding / dagbehandeling","dagdeel","per week",null,76.5,76.5,"73730146","Cura XL B.V."]
[{"$f":"IF($M81=\"\",\"\",IF($M81=$M80,$A80+1,1))","v":2},{"$f":"IF($A81=\"\",\"\",$A81&\"_\"&$M81)","v":"2_Cura XL B.V."},{"$f":"IF($A81=\"\",\"\",$D81&\" \"&$E81)","v":"43A35 Verblijf licht"},"43A35","Verblijf licht","Verblijf/ opname","etmaal","Totaal binnen geldigheidsduur of tijdsonafhankelijk",null,162.15,162.15,"73730146","Cura XL B.V."]
[{"$f":"IF($M82=\"\",\"\",IF($M82=$M81,$A81+1,1))","v":3},{"$f":"IF($A82=\"\",\"\",$A82&\"_\"&$M82)","v":"3_Cura XL B.V."},{"$f":"IF($A82=\"\",\"\",$D82&\" \"&$E82)","v":"43A37 Verblijfstraject middelzwaar"},"43A37","Verblijfstraject middelzwaar","Verblijf/ opname","etmaal","Totaal binnen geldigheidsduur of tijdsonafhankelijk",null,398.15,398.15000000000003,"73730146","Cura XL B.V."]
[{"$f":"IF($M83=\"\",\"\",IF($M83=$M82,$A82+1,1))","v":4},{"$f":"IF($A83=\"\",\"\",$A83&\"_\"&$M83)","v":"4_Cura XL B.V."},{"$f":"IF($A83=\"\",\"\",$D83&\" \"&$E83)","v":"44G02 Verblijf langdurig (beschermd) wonen"},"44G02","Verblijf langdurig (beschermd) wonen","Verblijf/ opname","etmaal","per week",null,230.7,230.70000000000002,"73730146","Cura XL B.V."]
[{"$f":"IF($M84=\"\",\"\",IF($M84=$M83,$A83+1,1))","v":5},{"$f":"IF($A84=\"\",\"\",$A84&\"_\"&$M84)","v":"5_Cura XL B.V."},{"$f":"IF($A84=\"\",\"\",$D84&\" \"&$E84)","v":"45A04 Individuele begeleiding basis"},"45A04","Individuele begeleiding basis","Ambulant","uur","Totaal binnen geldigheidsduur of tijdsonafhankelijk",null,81.75,81.75,"73730146","Cura XL B.V."]
[{"$f":"IF($M85=\"\",\"\",IF($M85=$M84,$A84+1,1))","v":6},{"$f":"IF($A85=\"\",\"\",$A85&\"_\"&$M85)","v":"6_Cura XL B.V."},{"$f":"IF($A85=\"\",\"\",$D85&\" \"&$E85)","v":"45A49 Groepsbegeleiding basis"},"45A49","Groepsbegeleiding basis","Ambulant","uur","Totaal binnen geldigheidsduur of tijdsonafhankelijk",null,21.05,21.05,"73730146","Cura XL B.V."]
[{"$f":"IF($M86=\"\",\"\",IF($M86=$M85,$A85+1,1))","v":7},{"$f":"IF($A86=\"\",\"\",$A86&\"_\"&$M86)","v":"7_Cura XL B.V."},{"$f":"IF($A86=\"\",\"\",$D86&\" \"&$E86)","v":"45A51 Gezinsbegeleiding basis"},"45A51","Gezinsbegeleiding basis","Ambulant","uur","Totaal binnen geldigheidsduur of tijdsonafhankelijk",null,81.75,81.75,"73730146","Cura XL B.V."]
[{"$f":"IF($M87=\"\",\"\",IF($M87=$M86,$A86+1,1))","v":8},{"$f":"IF($A87=\"\",\"\",$A87&\"_\"&$M87)","v":"8_Cura XL B.V."},{"$f":"IF($A87=\"\",\"\",$D87&\" \"&$E87)","v":"45A53 Individuele begeleiding specialistisch"},"45A53","Individuele begeleiding specialistisch","Ambulant","uur","Totaal binnen geldigheidsduur of tijdsonafhankelijk",null,104.15,104.15,"73730146","Cura XL B.V."]
[{"$f":"IF($M88=\"\",\"\",IF($M88=$M87,$A87+1,1))","v":9},{"$f":"IF($A88=\"\",\"\",$A88&\"_\"&$M88)","v":"9_Cura XL B.V."},{"$f":"IF($A88=\"\",\"\",$D88&\" \"&$E88)","v":"45A54 Groepsbegeleiding specialistisch"},"45A54","Groepsbegeleiding specialistisch","Ambulant","uur","Totaal binnen geldigheidsduur of tijdsonafhankelijk",null,26.4,26.400000000000002,"73730146","Cura XL B.V."]
[{"$f":"IF($M89=\"\",\"\",IF($M89=$M88,$A88+1,1))","v":10},{"$f":"IF($A89=\"\",\"\",$A89&\"_\"&$M89)","v":"10_Cura XL B.V."},{"$f":"IF($A89=\"\",\"\",$D89&\" \"&$E89)","v":"51G01 Individuele behandeling basis"},"51G01","Individuele behandeling basis","Ambulant","uur","Totaal binnen geldigheidsduur of tijdsonafhankelijk",null,122.65,122.65,"73730146","Cura XL B.V."]
[{"$f":"IF($M90=\"\",\"\",IF($M90=$M89,$A89+1,1))","v":11},{"$f":"IF($A90=\"\",\"\",$A90&\"_\"&$M90)","v":"11_Cura XL B.V."},{"$f":"IF($A90=\"\",\"\",$D90&\" \"&$E90)","v":"52G06 Individuele diagnostiek"},"52G06","Individuele diagnostiek","Ambulant","uur","Totaal binnen geldigheidsduur of tijdsonafhankelijk",null,123.95,123.95,"73730146","Cura XL B.V."]
[{"$f":"IF($M91=\"\",\"\",IF($M91=$M90,$A90+1,1))","v":12},{"$f":"IF($A91=\"\",\"\",$A91&\"_\"&$M91)","v":"12_Cura XL B.V."},{"$f":"IF($A91=\"\",\"\",$D91&\" \"&$E91)","v":"52G09 Individuele behandeling specialistisch"},"52G09","Individuele behandeling specialistisch","Ambulant","uur","Totaal binnen geldigheidsduur of tijdsonafhankelijk",null,130.5,130.5,"73730146","Cura XL B.V."]
[{"$f":"IF($M92=\"\",\"\",IF($M92=$M91,$A91+1,1))","v":1},{"$f":"IF($A92=\"\",\"\",$A92&\"_\"&$M92)","v":"1_De Beukenhorst B.V."},{"$f":"IF($A92=\"\",\"\",$D92&\" \"&$E92)","v":"44G02 Verblijf langdurig (beschermd) wonen"},"44G02","Verblijf langdurig (beschermd) wonen","Verblijf/ opname","etmaal","per week",null,230.7,206.75,"73730341","De Beukenhorst B.V."]
[{"$f":"IF($M93=\"\",\"\",IF($M93=$M92,$A92+1,1))","v":2},{"$f":"IF($A93=\"\",\"\",$A93&\"_\"&$M93)","v":"2_De Beukenhorst B.V."},{"$f":"IF($A93=\"\",\"\",$D93&\" \"&$E93)","v":"45A04 Individuele begeleiding basis"},"45A04","Individuele begeleiding basis","Ambulant","uur","Totaal binnen geldigheidsduur of tijdsonafhankelijk",null,81.75,73.25,"73730341","De Beukenhorst B.V."]
[{"$f":"IF($M94=\"\",\"\",IF($M94=$M93,$A93+1,1))","v":1},{"$f":"IF($A94=\"\",\"\",$A94&\"_\"&$M94)","v":"1_De Ezelsbrug B.V."},{"$f":"IF($A94=\"\",\"\",$D94&\" \"&$E94)","v":"45A04 Individuele begeleiding basis"},"45A04","Individuele begeleiding basis","Ambulant","uur","Totaal binnen geldigheidsduur of tijdsonafhankelijk",null,81.75,78,"98107597","De Ezelsbrug B.V."]
[{"$f":"IF($M95=\"\",\"\",IF($M95=$M94,$A94+1,1))","v":2},{"$f":"IF($A95=\"\",\"\",$A95&\"_\"&$M95)","v":"2_De Ezelsbrug B.V."},{"$f":"IF($A95=\"\",\"\",$D95&\" \"&$E95)","v":"45A49 Groepsbegeleiding basis"},"45A49","Groepsbegeleiding basis","Ambulant","uur","Totaal binnen geldigheidsduur of tijdsonafhankelijk",null,21.05,20.100000000000001,"98107597","De Ezelsbrug B.V."]
[{"$f":"IF($M96=\"\",\"\",IF($M96=$M95,$A95+1,1))","v":3},{"$f":"IF($A96=\"\",\"\",$A96&\"_\"&$M96)","v":"3_De Ezelsbrug B.V."},{"$f":"IF($A96=\"\",\"\",$D96&\" \"&$E96)","v":"45A53 Individuele begeleiding specialistisch"},"45A53","Individuele begeleiding specialistisch","Ambulant","uur","Totaal binnen geldigheidsduur of tijdsonafhankelijk",null,104.15,99.4,"98107597","De Ezelsbrug B.V."]
[{"$f":"IF($M97=\"\",\"\",IF($M97=$M96,$A96+1,1))","v":4},{"$f":"IF($A97=\"\",\"\",$A97&\"_\"&$M97)","v":"4_De Ezelsbrug B.V."},{"$f":"IF($A97=\"\",\"\",$D97&\" \"&$E97)","v":"45A54 Groepsbegeleiding specialistisch"},"45A54","Groepsbegeleiding specialistisch","Ambulant","uur","Totaal binnen geldigheidsduur of tijdsonafhankelijk",null,26.4,25.200000000000003,"98107597","De Ezelsbrug B.V."]
[{"$f":"IF($M98=\"\",\"\",IF($M98=$M97,$A97+1,1))","v":5},{"$f":"IF($A98=\"\",\"\",$A98&\"_\"&$M98)","v":"5_De Ezelsbrug B.V."},{"$f":"IF($A98=\"\",\"\",$D98&\" \"&$E98)","v":"45A56 Gezinsbegeleiding specialistisch"},"45A56","Gezinsbegeleiding specialistisch","Ambulant","uur","Totaal binnen geldigheidsduur of tijdsonafhankelijk",null,104.15,97.45,"98107597","De Ezelsbrug B.V."]
[{"$f":"IF($M99=\"\",\"\",IF($M99=$M98,$A98+1,1))","v":6},{"$f":"IF($A99=\"\",\"\",$A99&\"_\"&$M99)","v":"6_De Ezelsbrug B.V."},{"$f":"IF($A99=\"\",\"\",$D99&\" \"&$E99)","v":"50G26 Specifieke doelgroepen 3 Behoud van en Toeleiding naar onderwijsdeelname (deelproduct jeugdhulp)"},"50G26","Specifieke doelgroepen 3 Behoud van en Toeleiding naar onderwijsdeelname (deelproduct jeugdhulp)","Specifieke doelgroepen","uur","Totaal binnen geldigheidsduur of tijdsonafhankelijk",null,113.4,106.05000000000001,"98107597","De Ezelsbrug B.V."]
[{"$f":"IF($M100=\"\",\"\",IF($M100=$M99,$A99+1,1))","v":7},{"$f":"IF($A100=\"\",\"\",$A100&\"_\"&$M100)","v":"7_De Ezelsbrug B.V."},{"$f":"IF($A100=\"\",\"\",$D100&\" \"&$E100)","v":"51G01 Individuele behandeling basis"},"51G01","Individuele behandeling basis","Ambulant","uur","Totaal binnen geldigheidsduur of tijdsonafhankelijk",null,122.65,114.7,"98107597","De Ezelsbrug B.V."]
[{"$f":"IF($M101=\"\",\"\",IF($M101=$M100,$A100+1,1))","v":1},{"$f":"IF($A101=\"\",\"\",$A101&\"_\"&$M101)","v":"1_De Kasparhoeve B.V."},{"$f":"IF($A101=\"\",\"\",$D101&\" \"&$E101)","v":"41A18 Dagbesteding"},"41A18","Dagbesteding","Dagbesteding / dagbehandeling","dagdeel","per week",null,76.5,69.8,"73730198","De Kasparhoeve B.V."]
[{"$f":"IF($M102=\"\",\"\",IF($M102=$M101,$A101+1,1))","v":2},{"$f":"IF($A102=\"\",\"\",$A102&\"_\"&$M102)","v":"2_De Kasparhoeve B.V."},{"$f":"IF($A102=\"\",\"\",$D102&\" \"&$E102)","v":"42A01 Vervoer regulier"},"42A01","Vervoer regulier","Overig","stuk","Totaal binnen geldigheidsduur of tijdsonafhankelijk",null,11.9,11.05,"73730198","De Kasparhoeve B.V."]
[{"$f":"IF($M103=\"\",\"\",IF($M103=$M102,$A102+1,1))","v":3},{"$f":"IF($A103=\"\",\"\",$A103&\"_\"&$M103)","v":"3_De Kasparhoeve B.V."},{"$f":"IF($A103=\"\",\"\",$D103&\" \"&$E103)","v":"44A09 Logeren laag intensief"},"44A09","Logeren laag intensief","Logeren / Respijtzorg","etmaal","Totaal binnen geldigheidsduur of tijdsonafhankelijk",null,237.3,218.3,"73730198","De Kasparhoeve B.V."]
[{"$f":"IF($M104=\"\",\"\",IF($M104=$M103,$A103+1,1))","v":4},{"$f":"IF($A104=\"\",\"\",$A104&\"_\"&$M104)","v":"4_De Kasparhoeve B.V."},{"$f":"IF($A104=\"\",\"\",$D104&\" \"&$E104)","v":"44G02 Verblijf langdurig (beschermd) wonen"},"44G02","Verblijf langdurig (beschermd) wonen","Verblijf/ opname","etmaal","per week",null,230.7,212.55,"73730198","De Kasparhoeve B.V."]
[{"$f":"IF($M105=\"\",\"\",IF($M105=$M104,$A104+1,1))","v":5},{"$f":"IF($A105=\"\",\"\",$A105&\"_\"&$M105)","v":"5_De Kasparhoeve B.V."},{"$f":"IF($A105=\"\",\"\",$D105&\" \"&$E105)","v":"45A04 Individuele begeleiding basis"},"45A04","Individuele begeleiding basis","Ambulant","uur","Totaal binnen geldigheidsduur of tijdsonafhankelijk",null,81.75,75.05,"73730198","De Kasparhoeve B.V."]
[{"$f":"IF($M106=\"\",\"\",IF($M106=$M105,$A105+1,1))","v":6},{"$f":"IF($A106=\"\",\"\",$A106&\"_\"&$M106)","v":"6_De Kasparhoeve B.V."},{"$f":"IF($A106=\"\",\"\",$D106&\" \"&$E106)","v":"45A51 Gezinsbegeleiding basis"},"45A51","Gezinsbegeleiding basis","Ambulant","uur","Totaal binnen geldigheidsduur of tijdsonafhankelijk",null,81.75,75.05,"73730198","De Kasparhoeve B.V."]
[{"$f":"IF($M107=\"\",\"\",IF($M107=$M106,$A106+1,1))","v":7},{"$f":"IF($A107=\"\",\"\",$A107&\"_\"&$M107)","v":"7_De Kasparhoeve B.V."},{"$f":"IF($A107=\"\",\"\",$D107&\" \"&$E107)","v":"45A53 Individuele begeleiding specialistisch"},"45A53","Individuele begeleiding specialistisch","Ambulant","uur","Totaal binnen geldigheidsduur of tijdsonafhankelijk",null,104.15,95.5,"73730198","De Kasparhoeve B.V."]
[{"$f":"IF($M108=\"\",\"\",IF($M108=$M107,$A107+1,1))","v":1},{"$f":"IF($A108=\"\",\"\",$A108&\"_\"&$M108)","v":"1_De Ruumte B.V."},{"$f":"IF($A108=\"\",\"\",$D108&\" \"&$E108)","v":"43A37 Verblijfstraject middelzwaar"},"43A37","Verblijfstraject middelzwaar","Verblijf/ opname","etmaal","Totaal binnen geldigheidsduur of tijdsonafhankelijk",null,398.15,398.15,98105037,"De Ruumte B.V."]
[{"$f":"IF($M109=\"\",\"\",IF($M109=$M108,$A108+1,1))","v":2},{"$f":"IF($A109=\"\",\"\",$A109&\"_\"&$M109)","v":"2_De Ruumte B.V."},{"$f":"IF($A109=\"\",\"\",$D109&\" \"&$E109)","v":"44G02 Verblijf langdurig (beschermd) wonen"},"44G02","Verblijf langdurig (beschermd) wonen","Verblijf/ opname","etmaal","per week",null,230.7,226.25,"98105037","De Ruumte B.V."]
[{"$f":"IF($M110=\"\",\"\",IF($M110=$M109,$A109+1,1))","v":3},{"$f":"IF($A110=\"\",\"\",$A110&\"_\"&$M110)","v":"3_De Ruumte B.V."},{"$f":"IF($A110=\"\",\"\",$D110&\" \"&$E110)","v":"45A04 Individuele begeleiding basis"},"45A04","Individuele begeleiding basis","Ambulant","uur","Totaal binnen geldigheidsduur of tijdsonafhankelijk",null,81.75,81.75,98105037,"De Ruumte B.V."]
[{"$f":"IF($M111=\"\",\"\",IF($M111=$M110,$A110+1,1))","v":4},{"$f":"IF($A111=\"\",\"\",$A111&\"_\"&$M111)","v":"4_De Ruumte B.V."},{"$f":"IF($A111=\"\",\"\",$D111&\" \"&$E111)","v":"45A53 Individuele begeleiding specialistisch"},"45A53","Individuele begeleiding specialistisch","Ambulant","uur","Totaal binnen geldigheidsduur of tijdsonafhankelijk",null,104.15,104.15,98105037,"De Ruumte B.V."]
[{"$f":"IF($M112=\"\",\"\",IF($M112=$M111,$A111+1,1))","v":1},{"$f":"IF($A112=\"\",\"\",$A112&\"_\"&$M112)","v":"1_De Slingertuin v.o.f."},{"$f":"IF($A112=\"\",\"\",$D112&\" \"&$E112)","v":"41A18 Dagbesteding"},"41A18","Dagbesteding","Dagbesteding / dagbehandeling","dagdeel","per week",null,76.5,67.7,"98100943","De Slingertuin v.o.f."]
[{"$f":"IF($M113=\"\",\"\",IF($M113=$M112,$A112+1,1))","v":2},{"$f":"IF($A113=\"\",\"\",$A113&\"_\"&$M113)","v":"2_De Slingertuin v.o.f."},{"$f":"IF($A113=\"\",\"\",$D113&\" \"&$E113)","v":"42A01 Vervoer regulier"},"42A01","Vervoer regulier","Overig","stuk","Totaal binnen geldigheidsduur of tijdsonafhankelijk",null,11.9,11.15,"98100943","De Slingertuin v.o.f."]
[{"$f":"IF($M114=\"\",\"\",IF($M114=$M113,$A113+1,1))","v":3},{"$f":"IF($A114=\"\",\"\",$A114&\"_\"&$M114)","v":"3_De Slingertuin v.o.f."},{"$f":"IF($A114=\"\",\"\",$D114&\" \"&$E114)","v":"45A04 Individuele begeleiding basis"},"45A04","Individuele begeleiding basis","Ambulant","uur","Totaal binnen geldigheidsduur of tijdsonafhankelijk",null,81.75,73.900000000000006,"98100943","De Slingertuin v.o.f."]
[{"$f":"IF($M115=\"\",\"\",IF($M115=$M114,$A114+1,1))","v":4},{"$f":"IF($A115=\"\",\"\",$A115&\"_\"&$M115)","v":"4_De Slingertuin v.o.f."},{"$f":"IF($A115=\"\",\"\",$D115&\" \"&$E115)","v":"45A51 Gezinsbegeleiding basis"},"45A51","Gezinsbegeleiding basis","Ambulant","uur","Totaal binnen geldigheidsduur of tijdsonafhankelijk",null,81.75,73.900000000000006,"98100943","De Slingertuin v.o.f."]
[{"$f":"IF($M116=\"\",\"\",IF($M116=$M115,$A115+1,1))","v":1},{"$f":"IF($A116=\"\",\"\",$A116&\"_\"&$M116)","v":"1_Effect B.V."},{"$f":"IF($A116=\"\",\"\",$D116&\" \"&$E116)","v":"45A04 Individuele begeleiding basis"},"45A04","Individuele begeleiding basis","Ambulant","uur","Totaal binnen geldigheidsduur of tijdsonafhankelijk",null,81.75,81.75,"98100550","Effect B.V."]
[{"$f":"IF($M117=\"\",\"\",IF($M117=$M116,$A116+1,1))","v":2},{"$f":"IF($A117=\"\",\"\",$A117&\"_\"&$M117)","v":"2_Effect B.V."},{"$f":"IF($A117=\"\",\"\",$D117&\" \"&$E117)","v":"45A51 Gezinsbegeleiding basis"},"45A51","Gezinsbegeleiding basis","Ambulant","uur","Totaal binnen geldigheidsduur of tijdsonafhankelijk",null,81.75,81.75,"98100550","Effect B.V."]
[{"$f":"IF($M118=\"\",\"\",IF($M118=$M117,$A117+1,1))","v":3},{"$f":"IF($A118=\"\",\"\",$A118&\"_\"&$M118)","v":"3_Effect B.V."},{"$f":"IF($A118=\"\",\"\",$D118&\" \"&$E118)","v":"45A53 Individuele begeleiding specialistisch"},"45A53","Individuele begeleiding specialistisch","Ambulant","uur","Totaal binnen geldigheidsduur of tijdsonafhankelijk",null,104.15,104.15,"98100550","Effect B.V."]
[{"$f":"IF($M119=\"\",\"\",IF($M119=$M118,$A118+1,1))","v":4},{"$f":"IF($A119=\"\",\"\",$A119&\"_\"&$M119)","v":"4_Effect B.V."},{"$f":"IF($A119=\"\",\"\",$D119&\" \"&$E119)","v":"45A56 Gezinsbegeleiding specialistisch"},"45A56","Gezinsbegeleiding specialistisch","Ambulant","uur","Totaal binnen geldigheidsduur of tijdsonafhankelijk",null,104.15,104.15,"98100550","Effect B.V."]
[{"$f":"IF($M120=\"\",\"\",IF($M120=$M119,$A119+1,1))","v":1},{"$f":"IF($A120=\"\",\"\",$A120&\"_\"&$M120)","v":"1_Even(T)Huis"},{"$f":"IF($A120=\"\",\"\",$D120&\" \"&$E120)","v":"42A01 Vervoer regulier"},"42A01","Vervoer regulier","Overig","stuk","Totaal binnen geldigheidsduur of tijdsonafhankelijk",null,11.9,11.9,98107576,"Even(T)Huis"]
[{"$f":"IF($M121=\"\",\"\",IF($M121=$M120,$A120+1,1))","v":2},{"$f":"IF($A121=\"\",\"\",$A121&\"_\"&$M121)","v":"2_Even(T)Huis"},{"$f":"IF($A121=\"\",\"\",$D121&\" \"&$E121)","v":"43A11 Logeren hoog intensief"},"43A11","Logeren hoog intensief","Logeren / Respijtzorg","etmaal","Totaal binnen geldigheidsduur of tijdsonafhankelijk",null,375.8,375.8,98107576,"Even(T)Huis"]
[{"$f":"IF($M122=\"\",\"\",IF($M122=$M121,$A121+1,1))","v":3},{"$f":"IF($A122=\"\",\"\",$A122&\"_\"&$M122)","v":"3_Even(T)Huis"},{"$f":"IF($A122=\"\",\"\",$D122&\" \"&$E122)","v":"44A09 Logeren laag intensief"},"44A09","Logeren laag intensief","Logeren / Respijtzorg","etmaal","Totaal binnen geldigheidsduur of tijdsonafhankelijk",null,237.3,237.3,98107576,"Even(T)Huis"]
[{"$f":"IF($M123=\"\",\"\",IF($M123=$M122,$A122+1,1))","v":4},{"$f":"IF($A123=\"\",\"\",$A123&\"_\"&$M123)","v":"4_Even(T)Huis"},{"$f":"IF($A123=\"\",\"\",$D123&\" \"&$E123)","v":"44G02 Verblijf langdurig (beschermd) wonen"},"44G02","Verblijf langdurig (beschermd) wonen","Verblijf/ opname","etmaal","per week",null,230.7,230.70000000000002,98107576,"Even(T)Huis"]
[{"$f":"IF($M124=\"\",\"\",IF($M124=$M123,$A123+1,1))","v":5},{"$f":"IF($A124=\"\",\"\",$A124&\"_\"&$M124)","v":"5_Even(T)Huis"},{"$f":"IF($A124=\"\",\"\",$D124&\" \"&$E124)","v":"45A04 Individuele begeleiding basis"},"45A04","Individuele begeleiding basis","Ambulant","uur","Totaal binnen geldigheidsduur of tijdsonafhankelijk",null,81.75,77.800000000000011,98107576,"Even(T)Huis"]
[{"$f":"IF($M125=\"\",\"\",IF($M125=$M124,$A124+1,1))","v":6},{"$f":"IF($A125=\"\",\"\",$A125&\"_\"&$M125)","v":"6_Even(T)Huis"},{"$f":"IF($A125=\"\",\"\",$D125&\" \"&$E125)","v":"45A49 Groepsbegeleiding basis"},"45A49","Groepsbegeleiding basis","Ambulant","uur","Totaal binnen geldigheidsduur of tijdsonafhankelijk",null,21.05,21.05,98107576,"Even(T)Huis"]
[{"$f":"IF($M126=\"\",\"\",IF($M126=$M125,$A125+1,1))","v":7},{"$f":"IF($A126=\"\",\"\",$A126&\"_\"&$M126)","v":"7_Even(T)Huis"},{"$f":"IF($A126=\"\",\"\",$D126&\" \"&$E126)","v":"45A54 Groepsbegeleiding specialistisch"},"45A54","Groepsbegeleiding specialistisch","Ambulant","uur","Totaal binnen geldigheidsduur of tijdsonafhankelijk",null,26.4,26.400000000000002,98107576,"Even(T)Huis"]
[{"$f":"IF($M127=\"\",\"\",IF($M127=$M126,$A126+1,1))","v":1},{"$f":"IF($A127=\"\",\"\",$A127&\"_\"&$M127)","v":"1_Familia Forte"},{"$f":"IF($A127=\"\",\"\",$D127&\" \"&$E127)","v":"45A51 Gezinsbegeleiding basis"},"45A51","Gezinsbegeleiding basis","Ambulant","uur","Totaal binnen geldigheidsduur of tijdsonafhankelijk",null,81.75,69.349999999999994,98105180,"Familia Forte"]
[{"$f":"IF($M128=\"\",\"\",IF($M128=$M127,$A127+1,1))","v":2},{"$f":"IF($A128=\"\",\"\",$A128&\"_\"&$M128)","v":"2_Familia Forte"},{"$f":"IF($A128=\"\",\"\",$D128&\" \"&$E128)","v":"45A53 Individuele begeleiding specialistisch"},"45A53","Individuele begeleiding specialistisch","Ambulant","uur","Totaal binnen geldigheidsduur of tijdsonafhankelijk",null,104.15,88.55,98105180,"Familia Forte"]
[{"$f":"IF($M129=\"\",\"\",IF($M129=$M128,$A128+1,1))","v":3},{"$f":"IF($A129=\"\",\"\",$A129&\"_\"&$M129)","v":"3_Familia Forte"},{"$f":"IF($A129=\"\",\"\",$D129&\" \"&$E129)","v":"50G41 Specifieke doelgroepen 4 en 5 Ondersteuning jeugdigen en ouders bij complexe (echt)scheiding"},"50G41","Specifieke doelgroepen 4 en 5 Ondersteuning jeugdigen en ouders bij complexe (echt)scheiding","Specifieke doelgroepen","uur","Totaal binnen geldigheidsduur of tijdsonafhankelijk",null,118.65,102.45,98105180,"Familia Forte"]
[{"$f":"IF($M130=\"\",\"\",IF($M130=$M129,$A129+1,1))","v":1},{"$f":"IF($A130=\"\",\"\",$A130&\"_\"&$M130)","v":"1_Feniks Zorg en Jeugd B.V."},{"$f":"IF($A130=\"\",\"\",$D130&\" \"&$E130)","v":"41A18 Dagbesteding"},"41A18","Dagbesteding","Dagbesteding / dagbehandeling","dagdeel","per week",null,76.5,67.150000000000006,98102110,"Feniks Zorg en Jeugd B.V."]
[{"$f":"IF($M131=\"\",\"\",IF($M131=$M130,$A130+1,1))","v":2},{"$f":"IF($A131=\"\",\"\",$A131&\"_\"&$M131)","v":"2_Feniks Zorg en Jeugd B.V."},{"$f":"IF($A131=\"\",\"\",$D131&\" \"&$E131)","v":"42A01 Vervoer regulier"},"42A01","Vervoer regulier","Overig","stuk","Totaal binnen geldigheidsduur of tijdsonafhankelijk",null,11.9,10.4,98102110,"Feniks Zorg en Jeugd B.V."]
[{"$f":"IF($M132=\"\",\"\",IF($M132=$M131,$A131+1,1))","v":3},{"$f":"IF($A132=\"\",\"\",$A132&\"_\"&$M132)","v":"3_Feniks Zorg en Jeugd B.V."},{"$f":"IF($A132=\"\",\"\",$D132&\" \"&$E132)","v":"43A37 Verblijfstraject middelzwaar"},"43A37","Verblijfstraject middelzwaar","Verblijf/ opname","etmaal","Totaal binnen geldigheidsduur of tijdsonafhankelijk",null,398.15,359.90000000000003,98102110,"Feniks Zorg en Jeugd B.V."]
[{"$f":"IF($M133=\"\",\"\",IF($M133=$M132,$A132+1,1))","v":4},{"$f":"IF($A133=\"\",\"\",$A133&\"_\"&$M133)","v":"4_Feniks Zorg en Jeugd B.V."},{"$f":"IF($A133=\"\",\"\",$D133&\" \"&$E133)","v":"44G02 Verblijf langdurig (beschermd) wonen"},"44G02","Verblijf langdurig (beschermd) wonen","Verblijf/ opname","etmaal","per week",null,230.7,213.45000000000002,98102110,"Feniks Zorg en Jeugd B.V."]
[{"$f":"IF($M134=\"\",\"\",IF($M134=$M133,$A133+1,1))","v":5},{"$f":"IF($A134=\"\",\"\",$A134&\"_\"&$M134)","v":"5_Feniks Zorg en Jeugd B.V."},{"$f":"IF($A134=\"\",\"\",$D134&\" \"&$E134)","v":"45A53 Individuele begeleiding specialistisch"},"45A53","Individuele begeleiding specialistisch","Ambulant","uur","Totaal binnen geldigheidsduur of tijdsonafhankelijk",null,104.15,92.75,98102110,"Feniks Zorg en Jeugd B.V."]
[{"$f":"IF($M135=\"\",\"\",IF($M135=$M134,$A134+1,1))","v":6},{"$f":"IF($A135=\"\",\"\",$A135&\"_\"&$M135)","v":"6_Feniks Zorg en Jeugd B.V."},{"$f":"IF($A135=\"\",\"\",$D135&\" \"&$E135)","v":"45A54 Groepsbegeleiding specialistisch"},"45A54","Groepsbegeleiding specialistisch","Ambulant","uur","Totaal binnen geldigheidsduur of tijdsonafhankelijk",null,26.4,24.400000000000002,98102110,"Feniks Zorg en Jeugd B.V."]
[{"$f":"IF($M136=\"\",\"\",IF($M136=$M135,$A135+1,1))","v":7},{"$f":"IF($A136=\"\",\"\",$A136&\"_\"&$M136)","v":"7_Feniks Zorg en Jeugd B.V."},{"$f":"IF($A136=\"\",\"\",$D136&\" \"&$E136)","v":"45A56 Gezinsbegeleiding specialistisch"},"45A56","Gezinsbegeleiding specialistisch","Ambulant","uur","Totaal binnen geldigheidsduur of tijdsonafhankelijk",null,104.15,99.25,98102110,"Feniks Zorg en Jeugd B.V."]
[{"$f":"IF($M137=\"\",\"\",IF($M137=$M136,$A136+1,1))","v":8},{"$f":"IF($A137=\"\",\"\",$A137&\"_\"&$M137)","v":"8_Feniks Zorg en Jeugd B.V."},{"$f":"IF($A137=\"\",\"\",$D137&\" \"&$E137)","v":"51G01 Individuele behandeling basis"},"51G01","Individuele behandeling basis","Ambulant","uur","Totaal binnen geldigheidsduur of tijdsonafhankelijk",null,122.65,109.80000000000001,98102110,"Feniks Zorg en Jeugd B.V."]
[{"$f":"IF($M138=\"\",\"\",IF($M138=$M137,$A137+1,1))","v":9},{"$f":"IF($A138=\"\",\"\",$A138&\"_\"&$M138)","v":"9_Feniks Zorg en Jeugd B.V."},{"$f":"IF($A138=\"\",\"\",$D138&\" \"&$E138)","v":"52G06 Individuele diagnostiek"},"52G06","Individuele diagnostiek","Ambulant","uur","Totaal binnen geldigheidsduur of tijdsonafhankelijk",null,123.95,113.05000000000001,98102110,"Feniks Zorg en Jeugd B.V."]
[{"$f":"IF($M139=\"\",\"\",IF($M139=$M138,$A138+1,1))","v":10},{"$f":"IF($A139=\"\",\"\",$A139&\"_\"&$M139)","v":"10_Feniks Zorg en Jeugd B.V."},{"$f":"IF($A139=\"\",\"\",$D139&\" \"&$E139)","v":"52G09 Individuele behandeling specialistisch"},"52G09","Individuele behandeling specialistisch","Ambulant","uur","Totaal binnen geldigheidsduur of tijdsonafhankelijk",null,130.5,120.15,98102110,"Feniks Zorg en Jeugd B.V."]
[{"$f":"IF($M140=\"\",\"\",IF($M140=$M139,$A139+1,1))","v":1},{"$f":"IF($A140=\"\",\"\",$A140&\"_\"&$M140)","v":"1_GeWoon begeleiding B.V."},{"$f":"IF($A140=\"\",\"\",$D140&\" \"&$E140)","v":"41A18 Dagbesteding"},"41A18","Dagbesteding","Dagbesteding / dagbehandeling","dagdeel","per week",null,76.5,76.5,78780153,"GeWoon begeleiding B.V."]
[{"$f":"IF($M141=\"\",\"\",IF($M141=$M140,$A140+1,1))","v":2},{"$f":"IF($A141=\"\",\"\",$A141&\"_\"&$M141)","v":"2_GeWoon begeleiding B.V."},{"$f":"IF($A141=\"\",\"\",$D141&\" \"&$E141)","v":"42A01 Vervoer regulier"},"42A01","Vervoer regulier","Overig","stuk","Totaal binnen geldigheidsduur of tijdsonafhankelijk",null,11.9,11.9,78780153,"GeWoon begeleiding B.V."]
[{"$f":"IF($M142=\"\",\"\",IF($M142=$M141,$A141+1,1))","v":3},{"$f":"IF($A142=\"\",\"\",$A142&\"_\"&$M142)","v":"3_GeWoon begeleiding B.V."},{"$f":"IF($A142=\"\",\"\",$D142&\" \"&$E142)","v":"43A35 Verblijf licht"},"43A35","Verblijf licht","Verblijf/ opname","etmaal","Totaal binnen geldigheidsduur of tijdsonafhankelijk",null,162.15,162.15,78780153,"GeWoon begeleiding B.V."]
[{"$f":"IF($M143=\"\",\"\",IF($M143=$M142,$A142+1,1))","v":4},{"$f":"IF($A143=\"\",\"\",$A143&\"_\"&$M143)","v":"4_GeWoon begeleiding B.V."},{"$f":"IF($A143=\"\",\"\",$D143&\" \"&$E143)","v":"45A04 Individuele begeleiding basis"},"45A04","Individuele begeleiding basis","Ambulant","uur","Totaal binnen geldigheidsduur of tijdsonafhankelijk",null,81.75,81.75,78780153,"GeWoon begeleiding B.V."]
[{"$f":"IF($M144=\"\",\"\",IF($M144=$M143,$A143+1,1))","v":5},{"$f":"IF($A144=\"\",\"\",$A144&\"_\"&$M144)","v":"5_GeWoon begeleiding B.V."},{"$f":"IF($A144=\"\",\"\",$D144&\" \"&$E144)","v":"45A51 Gezinsbegeleiding basis"},"45A51","Gezinsbegeleiding basis","Ambulant","uur","Totaal binnen geldigheidsduur of tijdsonafhankelijk",null,81.75,81.75,78780153,"GeWoon begeleiding B.V."]
[{"$f":"IF($M145=\"\",\"\",IF($M145=$M144,$A144+1,1))","v":6},{"$f":"IF($A145=\"\",\"\",$A145&\"_\"&$M145)","v":"6_GeWoon begeleiding B.V."},{"$f":"IF($A145=\"\",\"\",$D145&\" \"&$E145)","v":"51G01 Individuele behandeling basis"},"51G01","Individuele behandeling basis","Ambulant","uur","Totaal binnen geldigheidsduur of tijdsonafhankelijk",null,122.65,122.65,78780153,"GeWoon begeleiding B.V."]
[{"$f":"IF($M146=\"\",\"\",IF($M146=$M145,$A145+1,1))","v":1},{"$f":"IF($A146=\"\",\"\",$A146&\"_\"&$M146)","v":"1_Gezinshuis Margriet"},{"$f":"IF($A146=\"\",\"\",$D146&\" \"&$E146)","v":"43G10 Verblijf middel gezinshuis-plus"},"43G10","Verblijf middel gezinshuis-plus","Verblijf/ opname","etmaal","per week",null,184.6,166.85000000000002,"98104067","Gezinshuis Margriet"]
[{"$f":"IF($M147=\"\",\"\",IF($M147=$M146,$A146+1,1))","v":2},{"$f":"IF($A147=\"\",\"\",$A147&\"_\"&$M147)","v":"2_Gezinshuis Margriet"},{"$f":"IF($A147=\"\",\"\",$D147&\" \"&$E147)","v":"44A09 Logeren laag intensief"},"44A09","Logeren laag intensief","Logeren / Respijtzorg","etmaal","Totaal binnen geldigheidsduur of tijdsonafhankelijk",null,237.3,210.75,"98104067","Gezinshuis Margriet"]
[{"$f":"IF($M148=\"\",\"\",IF($M148=$M147,$A147+1,1))","v":3},{"$f":"IF($A148=\"\",\"\",$A148&\"_\"&$M148)","v":"3_Gezinshuis Margriet"},{"$f":"IF($A148=\"\",\"\",$D148&\" \"&$E148)","v":"45A04 Individuele begeleiding basis"},"45A04","Individuele begeleiding basis","Ambulant","uur","Totaal binnen geldigheidsduur of tijdsonafhankelijk",null,81.75,72.25,"98104067","Gezinshuis Margriet"]
[{"$f":"IF($M149=\"\",\"\",IF($M149=$M148,$A148+1,1))","v":1},{"$f":"IF($A149=\"\",\"\",$A149&\"_\"&$M149)","v":"1_Gezinshuis Opaal"},{"$f":"IF($A149=\"\",\"\",$D149&\" \"&$E149)","v":"45A04 Individuele begeleiding basis"},"45A04","Individuele begeleiding basis","Ambulant","uur","Totaal binnen geldigheidsduur of tijdsonafhankelijk",null,81.75,73,"98107336","Gezinshuis Opaal"]
[{"$f":"IF($M150=\"\",\"\",IF($M150=$M149,$A149+1,1))","v":1},{"$f":"IF($A150=\"\",\"\",$A150&\"_\"&$M150)","v":"1_Hersenfabriek"},{"$f":"IF($A150=\"\",\"\",$D150&\" \"&$E150)","v":"45A53 Individuele begeleiding specialistisch"},"45A53","Individuele begeleiding specialistisch","Ambulant","uur","Totaal binnen geldigheidsduur of tijdsonafhankelijk",null,104.15,96.4,90068272,"Hersenfabriek"]
[{"$f":"IF($M151=\"\",\"\",IF($M151=$M150,$A150+1,1))","v":2},{"$f":"IF($A151=\"\",\"\",$A151&\"_\"&$M151)","v":"2_Hersenfabriek"},{"$f":"IF($A151=\"\",\"\",$D151&\" \"&$E151)","v":"51G01 Individuele behandeling basis"},"51G01","Individuele behandeling basis","Ambulant","uur","Totaal binnen geldigheidsduur of tijdsonafhankelijk",null,122.65,113.05000000000001,90068272,"Hersenfabriek"]
[{"$f":"IF($M152=\"\",\"\",IF($M152=$M151,$A151+1,1))","v":3},{"$f":"IF($A152=\"\",\"\",$A152&\"_\"&$M152)","v":"3_Hersenfabriek"},{"$f":"IF($A152=\"\",\"\",$D152&\" \"&$E152)","v":"52G09 Individuele behandeling specialistisch"},"52G09","Individuele behandeling specialistisch","Ambulant","uur","Totaal binnen geldigheidsduur of tijdsonafhankelijk",null,130.5,119.05000000000001,90068272,"Hersenfabriek"]
[{"$f":"IF($M153=\"\",\"\",IF($M153=$M152,$A152+1,1))","v":1},{"$f":"IF($A153=\"\",\"\",$A153&\"_\"&$M153)","v":"1_Het Behouden Huys"},{"$f":"IF($A153=\"\",\"\",$D153&\" \"&$E153)","v":"51G01 Individuele behandeling basis"},"51G01","Individuele behandeling basis","Ambulant","uur","Totaal binnen geldigheidsduur of tijdsonafhankelijk",null,122.65,117.25,22221105,"Het Behouden Huys"]
[{"$f":"IF($M154=\"\",\"\",IF($M154=$M153,$A153+1,1))","v":2},{"$f":"IF($A154=\"\",\"\",$A154&\"_\"&$M154)","v":"2_Het Behouden Huys"},{"$f":"IF($A154=\"\",\"\",$D154&\" \"&$E154)","v":"52G06 Individuele diagnostiek"},"52G06","Individuele diagnostiek","Ambulant","uur","Totaal binnen geldigheidsduur of tijdsonafhankelijk",null,123.95,120.30000000000001,22221105,"Het Behouden Huys"]
[{"$f":"IF($M155=\"\",\"\",IF($M155=$M154,$A154+1,1))","v":3},{"$f":"IF($A155=\"\",\"\",$A155&\"_\"&$M155)","v":"3_Het Behouden Huys"},{"$f":"IF($A155=\"\",\"\",$D155&\" \"&$E155)","v":"52G09 Individuele behandeling specialistisch"},"52G09","Individuele behandeling specialistisch","Ambulant","uur","Totaal binnen geldigheidsduur of tijdsonafhankelijk",null,130.5,127.95,22221105,"Het Behouden Huys"]
[{"$f":"IF($M156=\"\",\"\",IF($M156=$M155,$A155+1,1))","v":1},{"$f":"IF($A156=\"\",\"\",$A156&\"_\"&$M156)","v":"1_Het Naoberhuis B.V."},{"$f":"IF($A156=\"\",\"\",$D156&\" \"&$E156)","v":"41A18 Dagbesteding"},"41A18","Dagbesteding","Dagbesteding / dagbehandeling","dagdeel","per week",null,76.5,50.5,"90066114","Het Naoberhuis B.V."]
[{"$f":"IF($M157=\"\",\"\",IF($M157=$M156,$A156+1,1))","v":2},{"$f":"IF($A157=\"\",\"\",$A157&\"_\"&$M157)","v":"2_Het Naoberhuis B.V."},{"$f":"IF($A157=\"\",\"\",$D157&\" \"&$E157)","v":"43A35 Verblijf licht"},"43A35","Verblijf licht","Verblijf/ opname","etmaal","Totaal binnen geldigheidsduur of tijdsonafhankelijk",null,162.15,155.15,"90066114","Het Naoberhuis B.V."]
[{"$f":"IF($M158=\"\",\"\",IF($M158=$M157,$A157+1,1))","v":3},{"$f":"IF($A158=\"\",\"\",$A158&\"_\"&$M158)","v":"3_Het Naoberhuis B.V."},{"$f":"IF($A158=\"\",\"\",$D158&\" \"&$E158)","v":"43G09 Verblijf middel gezinshuis"},"43G09","Verblijf middel gezinshuis","Verblijf/ opname","etmaal","per week",null,131.9,129.30000000000001,"90066114","Het Naoberhuis B.V."]
[{"$f":"IF($M159=\"\",\"\",IF($M159=$M158,$A158+1,1))","v":4},{"$f":"IF($A159=\"\",\"\",$A159&\"_\"&$M159)","v":"4_Het Naoberhuis B.V."},{"$f":"IF($A159=\"\",\"\",$D159&\" \"&$E159)","v":"44A09 Logeren laag intensief"},"44A09","Logeren laag intensief","Logeren / Respijtzorg","etmaal","Totaal binnen geldigheidsduur of tijdsonafhankelijk",null,237.3,195.45000000000002,"90066114","Het Naoberhuis B.V."]
[{"$f":"IF($M160=\"\",\"\",IF($M160=$M158,$A158+1,1))","v":4},{"$f":"IF($A160=\"\",\"\",$A160&\"_\"&$M160)","v":"4_Het Naoberhuis B.V."},{"$f":"IF($A160=\"\",\"\",$D160&\" \"&$E160)","v":"44G02 Verblijf langdurig (beschermd) wonen"},"44G02","Verblijf langdurig (beschermd) wonen","Verblijf/ opname","etmaal","per week",null,230.7,220,"90066114","Het Naoberhuis B.V."]
[{"$f":"IF($M161=\"\",\"\",IF($M161=$M160,$A160+1,1))","v":5},{"$f":"IF($A161=\"\",\"\",$A161&\"_\"&$M161)","v":"5_Het Naoberhuis B.V."},{"$f":"IF($A161=\"\",\"\",$D161&\" \"&$E161)","v":"45A04 Individuele begeleiding basis"},"45A04","Individuele begeleiding basis","Ambulant","uur","Totaal binnen geldigheidsduur of tijdsonafhankelijk",null,81.75,70.650000000000006,"90066114","Het Naoberhuis B.V."]
[{"$f":"IF($M162=\"\",\"\",IF($M162=$M161,$A161+1,1))","v":6},{"$f":"IF($A162=\"\",\"\",$A162&\"_\"&$M162)","v":"6_Het Naoberhuis B.V."},{"$f":"IF($A162=\"\",\"\",$D162&\" \"&$E162)","v":"45A53 Individuele begeleiding specialistisch"},"45A53","Individuele begeleiding specialistisch","Ambulant","uur","Totaal binnen geldigheidsduur of tijdsonafhankelijk",null,104.15,90.850000000000009,"90066114","Het Naoberhuis B.V."]
[{"$f":"IF($M163=\"\",\"\",IF($M163=$M162,$A162+1,1))","v":1},{"$f":"IF($A163=\"\",\"\",$A163&\"_\"&$M163)","v":"1_Hoeve Paradij"},{"$f":"IF($A163=\"\",\"\",$D163&\" \"&$E163)","v":"41A18 Dagbesteding"},"41A18","Dagbesteding","Dagbesteding / dagbehandeling","dagdeel","per week",null,76.5,76.5,41415236,"Hoeve Paradij"]
[{"$f":"IF($M164=\"\",\"\",IF($M164=$M163,$A163+1,1))","v":2},{"$f":"IF($A164=\"\",\"\",$A164&\"_\"&$M164)","v":"2_Hoeve Paradij"},{"$f":"IF($A164=\"\",\"\",$D164&\" \"&$E164)","v":"45A04 Individuele begeleiding basis"},"45A04","Individuele begeleiding basis","Ambulant","uur","Totaal binnen geldigheidsduur of tijdsonafhankelijk",null,81.75,81.75,41415236,"Hoeve Paradij"]
[{"$f":"IF($M165=\"\",\"\",IF($M165=$M164,$A164+1,1))","v":1},{"$f":"IF($A165=\"\",\"\",$A165&\"_\"&$M165)","v":"1_Hof van Arcadia, zorg in het groen"},{"$f":"IF($A165=\"\",\"\",$D165&\" \"&$E165)","v":"41A18 Dagbesteding"},"41A18","Dagbesteding","Dagbesteding / dagbehandeling","dagdeel","per week",null,76.5,67.75,98102030,"Hof van Arcadia, zorg in het groen"]
[{"$f":"IF($M166=\"\",\"\",IF($M166=$M165,$A165+1,1))","v":1},{"$f":"IF($A166=\"\",\"\",$A166&\"_\"&$M166)","v":"1_Holding Psychotherapiepraktijk @Manon B.V."},{"$f":"IF($A166=\"\",\"\",$D166&\" \"&$E166)","v":"52G09 Individuele behandeling specialistisch"},"52G09","Individuele behandeling specialistisch","Ambulant","uur","Totaal binnen geldigheidsduur of tijdsonafhankelijk",null,130.5,130.5,94063795,"Holding Psychotherapiepraktijk @Manon B.V."]
[{"$f":"IF($M167=\"\",\"\",IF($M167=$M166,$A166+1,1))","v":1},{"$f":"IF($A167=\"\",\"\",$A167&\"_\"&$M167)","v":"1_Horizon Begeleiding B.V."},{"$f":"IF($A167=\"\",\"\",$D167&\" \"&$E167)","v":"45A53 Individuele begeleiding specialistisch"},"45A53","Individuele begeleiding specialistisch","Ambulant","uur","Totaal binnen geldigheidsduur of tijdsonafhankelijk",null,104.15,104.15,73730356,"Horizon Begeleiding B.V."]
[{"$f":"IF($M168=\"\",\"\",IF($M168=$M167,$A167+1,1))","v":2},{"$f":"IF($A168=\"\",\"\",$A168&\"_\"&$M168)","v":"2_Horizon Begeleiding B.V."},{"$f":"IF($A168=\"\",\"\",$D168&\" \"&$E168)","v":"45A54 Groepsbegeleiding specialistisch"},"45A54","Groepsbegeleiding specialistisch","Ambulant","uur","Totaal binnen geldigheidsduur of tijdsonafhankelijk",null,26.4,26.400000000000002,73730356,"Horizon Begeleiding B.V."]
[{"$f":"IF($M169=\"\",\"\",IF($M169=$M168,$A168+1,1))","v":3},{"$f":"IF($A169=\"\",\"\",$A169&\"_\"&$M169)","v":"3_Horizon Begeleiding B.V."},{"$f":"IF($A169=\"\",\"\",$D169&\" \"&$E169)","v":"45A56 Gezinsbegeleiding specialistisch"},"45A56","Gezinsbegeleiding specialistisch","Ambulant","uur","Totaal binnen geldigheidsduur of tijdsonafhankelijk",null,104.15,104.15,73730356,"Horizon Begeleiding B.V."]
[{"$f":"IF($M170=\"\",\"\",IF($M170=$M169,$A169+1,1))","v":4},{"$f":"IF($A170=\"\",\"\",$A170&\"_\"&$M170)","v":"4_Horizon Begeleiding B.V."},{"$f":"IF($A170=\"\",\"\",$D170&\" \"&$E170)","v":"50G26 Specifieke doelgroepen 3 Behoud van en Toeleiding naar onderwijsdeelname (deelproduct jeugdhulp)"},"50G26","Specifieke doelgroepen 3 Behoud van en Toeleiding naar onderwijsdeelname (deelproduct jeugdhulp)","Specifieke doelgroepen","uur","Totaal binnen geldigheidsduur of tijdsonafhankelijk",null,113.4,113.4,73730356,"Horizon Begeleiding B.V."]
[{"$f":"IF($M171=\"\",\"\",IF($M171=$M170,$A170+1,1))","v":5},{"$f":"IF($A171=\"\",\"\",$A171&\"_\"&$M171)","v":"5_Horizon Begeleiding B.V."},{"$f":"IF($A171=\"\",\"\",$D171&\" \"&$E171)","v":"50G40 Advies en ondersteuning vanuit jeugdhulpaanbieders bij complexe problematiek"},"50G40","Advies en ondersteuning vanuit jeugdhulpaanbieders bij complexe problematiek","Advies","uur","Totaal binnen geldigheidsduur of tijdsonafhankelijk",null,123.95,123.95,73730356,"Horizon Begeleiding B.V."]
[{"$f":"IF($M172=\"\",\"\",IF($M172=$M171,$A171+1,1))","v":1},{"$f":"IF($A172=\"\",\"\",$A172&\"_\"&$M172)","v":"1_Ik ben een regenboog, coaching & training"},{"$f":"IF($A172=\"\",\"\",$D172&\" \"&$E172)","v":"45A04 Individuele begeleiding basis"},"45A04","Individuele begeleiding basis","Ambulant","uur","Totaal binnen geldigheidsduur of tijdsonafhankelijk",null,81.75,76.45,"98103195","Ik ben een regenboog, coaching & training"]
[{"$f":"IF($M173=\"\",\"\",IF($M173=$M172,$A172+1,1))","v":2},{"$f":"IF($A173=\"\",\"\",$A173&\"_\"&$M173)","v":"2_Ik ben een regenboog, coaching & training"},{"$f":"IF($A173=\"\",\"\",$D173&\" \"&$E173)","v":"45A49 Groepsbegeleiding basis"},"45A49","Groepsbegeleiding basis","Ambulant","uur","Totaal binnen geldigheidsduur of tijdsonafhankelijk",null,21.05,21.05,"98103195","Ik ben een regenboog, coaching & training"]
[{"$f":"IF($M174=\"\",\"\",IF($M174=$M173,$A173+1,1))","v":3},{"$f":"IF($A174=\"\",\"\",$A174&\"_\"&$M174)","v":"3_Ik ben een regenboog, coaching & training"},{"$f":"IF($A174=\"\",\"\",$D174&\" \"&$E174)","v":"45A51 Gezinsbegeleiding basis"},"45A51","Gezinsbegeleiding basis","Ambulant","uur","Totaal binnen geldigheidsduur of tijdsonafhankelijk",null,81.75,76.45,"98103195","Ik ben een regenboog, coaching & training"]
[{"$f":"IF($M175=\"\",\"\",IF($M175=$M174,$A174+1,1))","v":4},{"$f":"IF($A175=\"\",\"\",$A175&\"_\"&$M175)","v":"4_Ik ben een regenboog, coaching & training"},{"$f":"IF($A175=\"\",\"\",$D175&\" \"&$E175)","v":"45A53 Individuele begeleiding specialistisch"},"45A53","Individuele begeleiding specialistisch","Ambulant","uur","Totaal binnen geldigheidsduur of tijdsonafhankelijk",null,104.15,97.550000000000011,"98103195","Ik ben een regenboog, coaching & training"]
[{"$f":"IF($M176=\"\",\"\",IF($M176=$M175,$A175+1,1))","v":5},{"$f":"IF($A176=\"\",\"\",$A176&\"_\"&$M176)","v":"5_Ik ben een regenboog, coaching & training"},{"$f":"IF($A176=\"\",\"\",$D176&\" \"&$E176)","v":"45A56 Gezinsbegeleiding specialistisch"},"45A56","Gezinsbegeleiding specialistisch","Ambulant","uur","Totaal binnen geldigheidsduur of tijdsonafhankelijk",null,104.15,97.550000000000011,"98103195","Ik ben een regenboog, coaching & training"]
[{"$f":"IF($M177=\"\",\"\",IF($M177=$M176,$A176+1,1))","v":1},{"$f":"IF($A177=\"\",\"\",$A177&\"_\"&$M177)","v":"1_Ik ben ik! Praktijk voor orthopedagogiek en psychologie"},{"$f":"IF($A177=\"\",\"\",$D177&\" \"&$E177)","v":"45A53 Individuele begeleiding specialistisch"},"45A53","Individuele begeleiding specialistisch","Ambulant","uur","Totaal binnen geldigheidsduur of tijdsonafhankelijk",null,104.15,104.15,94065241,"Ik ben ik! Praktijk voor orthopedagogiek en psychologie"]
[{"$f":"IF($M178=\"\",\"\",IF($M178=$M177,$A177+1,1))","v":1},{"$f":"IF($A178=\"\",\"\",$A178&\"_\"&$M178)","v":"1_INTER-PSY B.V."},{"$f":"IF($A178=\"\",\"\",$D178&\" \"&$E178)","v":"50G41 Specifieke doelgroepen 4 en 5 Ondersteuning jeugdigen en ouders bij complexe (echt)scheiding"},"50G41","Specifieke doelgroepen 4 en 5 Ondersteuning jeugdigen en ouders bij complexe (echt)scheiding","Specifieke doelgroepen","uur","Totaal binnen geldigheidsduur of tijdsonafhankelijk",null,118.65,118.65,22227338,"INTER-PSY B.V."]
[{"$f":"IF($M179=\"\",\"\",IF($M179=$M178,$A178+1,1))","v":2},{"$f":"IF($A179=\"\",\"\",$A179&\"_\"&$M179)","v":"2_INTER-PSY B.V."},{"$f":"IF($A179=\"\",\"\",$D179&\" \"&$E179)","v":"51G01 Individuele behandeling basis"},"51G01","Individuele behandeling basis","Ambulant","uur","Totaal binnen geldigheidsduur of tijdsonafhankelijk",null,122.65,122.65,22227338,"INTER-PSY B.V."]
[{"$f":"IF($M180=\"\",\"\",IF($M180=$M179,$A179+1,1))","v":3},{"$f":"IF($A180=\"\",\"\",$A180&\"_\"&$M180)","v":"3_INTER-PSY B.V."},{"$f":"IF($A180=\"\",\"\",$D180&\" \"&$E180)","v":"52G06 Individuele diagnostiek"},"52G06","Individuele diagnostiek","Ambulant","uur","Totaal binnen geldigheidsduur of tijdsonafhankelijk",null,123.95,123.95,22227338,"INTER-PSY B.V."]
[{"$f":"IF($M181=\"\",\"\",IF($M181=$M180,$A180+1,1))","v":4},{"$f":"IF($A181=\"\",\"\",$A181&\"_\"&$M181)","v":"4_INTER-PSY B.V."},{"$f":"IF($A181=\"\",\"\",$D181&\" \"&$E181)","v":"52G08 Individuele behandeling specialistisch zwaar-zeer zwaar"},"52G08","Individuele behandeling specialistisch zwaar-zeer zwaar","Ambulant","uur","Totaal binnen geldigheidsduur of tijdsonafhankelijk",null,134.5,134.5,22227338,"INTER-PSY B.V."]
[{"$f":"IF($M182=\"\",\"\",IF($M182=$M181,$A181+1,1))","v":5},{"$f":"IF($A182=\"\",\"\",$A182&\"_\"&$M182)","v":"5_INTER-PSY B.V."},{"$f":"IF($A182=\"\",\"\",$D182&\" \"&$E182)","v":"52G09 Individuele behandeling specialistisch"},"52G09","Individuele behandeling specialistisch","Ambulant","uur","Totaal binnen geldigheidsduur of tijdsonafhankelijk",null,130.5,130.5,22227338,"INTER-PSY B.V."]
[{"$f":"IF($M183=\"\",\"\",IF($M183=$M182,$A182+1,1))","v":6},{"$f":"IF($A183=\"\",\"\",$A183&\"_\"&$M183)","v":"6_INTER-PSY B.V."},{"$f":"IF($A183=\"\",\"\",$D183&\" \"&$E183)","v":"52G12 Individuele behandeling specialistisch licht medicatiecontrole"},"52G12","Individuele behandeling specialistisch licht medicatiecontrole","Ambulant","uur","Totaal binnen geldigheidsduur of tijdsonafhankelijk",null,174.1,174.10000000000002,22227338,"INTER-PSY B.V."]
[{"$f":"IF($M184=\"\",\"\",IF($M184=$M183,$A183+1,1))","v":1},{"$f":"IF($A184=\"\",\"\",$A184&\"_\"&$M184)","v":"1_Janette Kuipers Coaching & Advies"},{"$f":"IF($A184=\"\",\"\",$D184&\" \"&$E184)","v":"45A53 Individuele begeleiding specialistisch"},"45A53","Individuele begeleiding specialistisch","Ambulant","uur","Totaal binnen geldigheidsduur of tijdsonafhankelijk",null,104.15,99.65,94063412,"Janette Kuipers Coaching & Advies"]
[{"$f":"IF($M185=\"\",\"\",IF($M185=$M184,$A184+1,1))","v":1},{"$f":"IF($A185=\"\",\"\",$A185&\"_\"&$M185)","v":"1_Jemalupe"},{"$f":"IF($A185=\"\",\"\",$D185&\" \"&$E185)","v":"40A04 Persoonlijke verzorging"},"40A04","Persoonlijke verzorging","Overig","uur","per week",null,71.25,71.25,98100320,"Jemalupe"]
[{"$f":"IF($M186=\"\",\"\",IF($M186=$M185,$A185+1,1))","v":2},{"$f":"IF($A186=\"\",\"\",$A186&\"_\"&$M186)","v":"2_Jemalupe"},{"$f":"IF($A186=\"\",\"\",$D186&\" \"&$E186)","v":"41A18 Dagbesteding"},"41A18","Dagbesteding","Dagbesteding / dagbehandeling","dagdeel","per week",null,76.5,76.5,98100320,"Jemalupe"]
[{"$f":"IF($M187=\"\",\"\",IF($M187=$M186,$A186+1,1))","v":3},{"$f":"IF($A187=\"\",\"\",$A187&\"_\"&$M187)","v":"3_Jemalupe"},{"$f":"IF($A187=\"\",\"\",$D187&\" \"&$E187)","v":"42A01 Vervoer regulier"},"42A01","Vervoer regulier","Overig","stuk","Totaal binnen geldigheidsduur of tijdsonafhankelijk",null,11.9,11.9,98100320,"Jemalupe"]
[{"$f":"IF($M188=\"\",\"\",IF($M188=$M187,$A187+1,1))","v":4},{"$f":"IF($A188=\"\",\"\",$A188&\"_\"&$M188)","v":"4_Jemalupe"},{"$f":"IF($A188=\"\",\"\",$D188&\" \"&$E188)","v":"44A09 Logeren laag intensief"},"44A09","Logeren laag intensief","Logeren / Respijtzorg","etmaal","Totaal binnen geldigheidsduur of tijdsonafhankelijk",null,237.3,237.3,98100320,"Jemalupe"]
[{"$f":"IF($M189=\"\",\"\",IF($M189=$M188,$A188+1,1))","v":5},{"$f":"IF($A189=\"\",\"\",$A189&\"_\"&$M189)","v":"5_Jemalupe"},{"$f":"IF($A189=\"\",\"\",$D189&\" \"&$E189)","v":"44G02 Verblijf langdurig (beschermd) wonen"},"44G02","Verblijf langdurig (beschermd) wonen","Verblijf/ opname","etmaal","per week",null,230.7,230.7,98100320,"Jemalupe"]
[{"$f":"IF($M190=\"\",\"\",IF($M190=$M189,$A189+1,1))","v":6},{"$f":"IF($A190=\"\",\"\",$A190&\"_\"&$M190)","v":"6_Jemalupe"},{"$f":"IF($A190=\"\",\"\",$D190&\" \"&$E190)","v":"45A04 Individuele begeleiding basis"},"45A04","Individuele begeleiding basis","Ambulant","uur","Totaal binnen geldigheidsduur of tijdsonafhankelijk",null,81.75,81.75,98100320,"Jemalupe"]
[{"$f":"IF($M191=\"\",\"\",IF($M191=$M190,$A190+1,1))","v":7},{"$f":"IF($A191=\"\",\"\",$A191&\"_\"&$M191)","v":"7_Jemalupe"},{"$f":"IF($A191=\"\",\"\",$D191&\" \"&$E191)","v":"45A51 Gezinsbegeleiding basis"},"45A51","Gezinsbegeleiding basis","Ambulant","uur","Totaal binnen geldigheidsduur of tijdsonafhankelijk",null,81.75,81.75,98100320,"Jemalupe"]
[{"$f":"IF($M192=\"\",\"\",IF($M192=$M191,$A191+1,1))","v":8},{"$f":"IF($A192=\"\",\"\",$A192&\"_\"&$M192)","v":"8_Jemalupe"},{"$f":"IF($A192=\"\",\"\",$D192&\" \"&$E192)","v":"45A56 Gezinsbegeleiding specialistisch"},"45A56","Gezinsbegeleiding specialistisch","Ambulant","uur","Totaal binnen geldigheidsduur of tijdsonafhankelijk",null,104.15,104.15,98100320,"Jemalupe"]
[{"$f":"IF($M193=\"\",\"\",IF($M193=$M192,$A192+1,1))","v":1},{"$f":"IF($A193=\"\",\"\",$A193&\"_\"&$M193)","v":"1_Jij bent tov Kindercoaching"},{"$f":"IF($A193=\"\",\"\",$D193&\" \"&$E193)","v":"45A04 Individuele begeleiding basis"},"45A04","Individuele begeleiding basis","Ambulant","uur","Totaal binnen geldigheidsduur of tijdsonafhankelijk",null,81.75,78,41521628,"Jij bent tov Kindercoaching"]
[{"$f":"IF($M194=\"\",\"\",IF($M194=$M193,$A193+1,1))","v":2},{"$f":"IF($A194=\"\",\"\",$A194&\"_\"&$M194)","v":"2_Jij bent tov Kindercoaching"},{"$f":"IF($A194=\"\",\"\",$D194&\" \"&$E194)","v":"45A53 Individuele begeleiding specialistisch"},"45A53","Individuele begeleiding specialistisch","Ambulant","uur","Totaal binnen geldigheidsduur of tijdsonafhankelijk",null,104.15,99.4,41521628,"Jij bent tov Kindercoaching"]
[{"$f":"IF($M195=\"\",\"\",IF($M195=$M194,$A194+1,1))","v":1},{"$f":"IF($A195=\"\",\"\",$A195&\"_\"&$M195)","v":"1_Jody Schoolpsychologie"},{"$f":"IF($A195=\"\",\"\",$D195&\" \"&$E195)","v":"45A04 Individuele begeleiding basis"},"45A04","Individuele begeleiding basis","Ambulant","uur","Totaal binnen geldigheidsduur of tijdsonafhankelijk",null,81.75,81.75,"94063526","Jody Schoolpsychologie"]
[{"$f":"IF($M196=\"\",\"\",IF($M196=$M195,$A195+1,1))","v":2},{"$f":"IF($A196=\"\",\"\",$A196&\"_\"&$M196)","v":"2_Jody Schoolpsychologie"},{"$f":"IF($A196=\"\",\"\",$D196&\" \"&$E196)","v":"45A51 Gezinsbegeleiding basis"},"45A51","Gezinsbegeleiding basis","Ambulant","uur","Totaal binnen geldigheidsduur of tijdsonafhankelijk",null,81.75,81.75,"94063526","Jody Schoolpsychologie"]
[{"$f":"IF($M197=\"\",\"\",IF($M197=$M196,$A196+1,1))","v":3},{"$f":"IF($A197=\"\",\"\",$A197&\"_\"&$M197)","v":"3_Jody Schoolpsychologie"},{"$f":"IF($A197=\"\",\"\",$D197&\" \"&$E197)","v":"45A53 Individuele begeleiding specialistisch"},"45A53","Individuele begeleiding specialistisch","Ambulant","uur","Totaal binnen geldigheidsduur of tijdsonafhankelijk",null,104.15,104.15,"94063526","Jody Schoolpsychologie"]
[{"$f":"IF($M198=\"\",\"\",IF($M198=$M197,$A197+1,1))","v":4},{"$f":"IF($A198=\"\",\"\",$A198&\"_\"&$M198)","v":"4_Jody Schoolpsychologie"},{"$f":"IF($A198=\"\",\"\",$D198&\" \"&$E198)","v":"45A56 Gezinsbegeleiding specialistisch"},"45A56","Gezinsbegeleiding specialistisch","Ambulant","uur","Totaal binnen geldigheidsduur of tijdsonafhankelijk",null,104.15,104.15,"94063526","Jody Schoolpsychologie"]
[{"$f":"IF($M199=\"\",\"\",IF($M199=$M198,$A198+1,1))","v":1},{"$f":"IF($A199=\"\",\"\",$A199&\"_\"&$M199)","v":"1_Jongerenzorg Barkema en De Haan B.V."},{"$f":"IF($A199=\"\",\"\",$D199&\" \"&$E199)","v":"45A04 Individuele begeleiding basis"},"45A04","Individuele begeleiding basis","Ambulant","uur","Totaal binnen geldigheidsduur of tijdsonafhankelijk",null,81.75,76.800000000000011,98107274,"Jongerenzorg Barkema en De Haan B.V."]
[{"$f":"IF($M200=\"\",\"\",IF($M200=$M199,$A199+1,1))","v":2},{"$f":"IF($A200=\"\",\"\",$A200&\"_\"&$M200)","v":"2_Jongerenzorg Barkema en De Haan B.V."},{"$f":"IF($A200=\"\",\"\",$D200&\" \"&$E200)","v":"45A49 Groepsbegeleiding basis"},"45A49","Groepsbegeleiding basis","Ambulant","uur","Totaal binnen geldigheidsduur of tijdsonafhankelijk",null,21.05,20.100000000000001,98107274,"Jongerenzorg Barkema en De Haan B.V."]
[{"$f":"IF($M201=\"\",\"\",IF($M201=$M200,$A200+1,1))","v":3},{"$f":"IF($A201=\"\",\"\",$A201&\"_\"&$M201)","v":"3_Jongerenzorg Barkema en De Haan B.V."},{"$f":"IF($A201=\"\",\"\",$D201&\" \"&$E201)","v":"45A51 Gezinsbegeleiding basis"},"45A51","Gezinsbegeleiding basis","Ambulant","uur","Totaal binnen geldigheidsduur of tijdsonafhankelijk",null,81.75,76.800000000000011,98107274,"Jongerenzorg Barkema en De Haan B.V."]
[{"$f":"IF($M202=\"\",\"\",IF($M202=$M201,$A201+1,1))","v":4},{"$f":"IF($A202=\"\",\"\",$A202&\"_\"&$M202)","v":"4_Jongerenzorg Barkema en De Haan B.V."},{"$f":"IF($A202=\"\",\"\",$D202&\" \"&$E202)","v":"45A53 Individuele begeleiding specialistisch"},"45A53","Individuele begeleiding specialistisch","Ambulant","uur","Totaal binnen geldigheidsduur of tijdsonafhankelijk",null,104.15,97.45,98107274,"Jongerenzorg Barkema en De Haan B.V."]
[{"$f":"IF($M203=\"\",\"\",IF($M203=$M202,$A202+1,1))","v":5},{"$f":"IF($A203=\"\",\"\",$A203&\"_\"&$M203)","v":"5_Jongerenzorg Barkema en De Haan B.V."},{"$f":"IF($A203=\"\",\"\",$D203&\" \"&$E203)","v":"45A56 Gezinsbegeleiding specialistisch"},"45A56","Gezinsbegeleiding specialistisch","Ambulant","uur","Totaal binnen geldigheidsduur of tijdsonafhankelijk",null,104.15,97.45,98107274,"Jongerenzorg Barkema en De Haan B.V."]
[{"$f":"IF($M204=\"\",\"\",IF($M204=$M203,$A203+1,1))","v":6},{"$f":"IF($A204=\"\",\"\",$A204&\"_\"&$M204)","v":"6_Jongerenzorg Barkema en De Haan B.V."},{"$f":"IF($A204=\"\",\"\",$D204&\" \"&$E204)","v":"45G05 Specifieke doelgroepen 6 Gezinnen met Geringe Sociale Redzaamheid met het accent op lichtere vormen van begeleiding"},"45G05","Specifieke doelgroepen 6 Gezinnen met Geringe Sociale Redzaamheid met het accent op lichtere vormen van begeleiding","Specifieke doelgroepen","uur","Totaal binnen geldigheidsduur of tijdsonafhankelijk",null,101.5,96.75,98107274,"Jongerenzorg Barkema en De Haan B.V."]
[{"$f":"IF($M205=\"\",\"\",IF($M205=$M204,$A204+1,1))","v":7},{"$f":"IF($A205=\"\",\"\",$A205&\"_\"&$M205)","v":"7_Jongerenzorg Barkema en De Haan B.V."},{"$f":"IF($A205=\"\",\"\",$D205&\" \"&$E205)","v":"50G26 Specifieke doelgroepen 3 Behoud van en Toeleiding naar onderwijsdeelname (deelproduct jeugdhulp)"},"50G26","Specifieke doelgroepen 3 Behoud van en Toeleiding naar onderwijsdeelname (deelproduct jeugdhulp)","Specifieke doelgroepen","uur","Totaal binnen geldigheidsduur of tijdsonafhankelijk",null,113.4,105.10000000000001,98107274,"Jongerenzorg Barkema en De Haan B.V."]
[{"$f":"IF($M206=\"\",\"\",IF($M206=$M205,$A205+1,1))","v":1},{"$f":"IF($A206=\"\",\"\",$A206&\"_\"&$M206)","v":"1_Kennis in Kracht B.V."},{"$f":"IF($A206=\"\",\"\",$D206&\" \"&$E206)","v":"45A04 Individuele begeleiding basis"},"45A04","Individuele begeleiding basis","Ambulant","uur","Totaal binnen geldigheidsduur of tijdsonafhankelijk",null,81.75,80.2,94065636,"Kennis in Kracht B.V."]
[{"$f":"IF($M207=\"\",\"\",IF($M207=$M206,$A206+1,1))","v":2},{"$f":"IF($A207=\"\",\"\",$A207&\"_\"&$M207)","v":"2_Kennis in Kracht B.V."},{"$f":"IF($A207=\"\",\"\",$D207&\" \"&$E207)","v":"45A53 Individuele begeleiding specialistisch"},"45A53","Individuele begeleiding specialistisch","Ambulant","uur","Totaal binnen geldigheidsduur of tijdsonafhankelijk",null,104.15,102.15,94065636,"Kennis in Kracht B.V."]
[{"$f":"IF($M208=\"\",\"\",IF($M208=$M207,$A207+1,1))","v":3},{"$f":"IF($A208=\"\",\"\",$A208&\"_\"&$M208)","v":"3_Kennis in Kracht B.V."},{"$f":"IF($A208=\"\",\"\",$D208&\" \"&$E208)","v":"45A56 Gezinsbegeleiding specialistisch"},"45A56","Gezinsbegeleiding specialistisch","Ambulant","uur","Totaal binnen geldigheidsduur of tijdsonafhankelijk",null,104.15,102.15,94065636,"Kennis in Kracht B.V."]
[{"$f":"IF($M209=\"\",\"\",IF($M209=$M208,$A208+1,1))","v":4},{"$f":"IF($A209=\"\",\"\",$A209&\"_\"&$M209)","v":"4_Kennis in Kracht B.V."},{"$f":"IF($A209=\"\",\"\",$D209&\" \"&$E209)","v":"45G03 Intensieve ambulante of psychiatrische gezinsbehandeling"},"45G03","Intensieve ambulante of psychiatrische gezinsbehandeling","Ambulant","uur","Totaal binnen geldigheidsduur of tijdsonafhankelijk",null,113.4,113.4,94065636,"Kennis in Kracht B.V."]
[{"$f":"IF($M210=\"\",\"\",IF($M210=$M209,$A209+1,1))","v":5},{"$f":"IF($A210=\"\",\"\",$A210&\"_\"&$M210)","v":"5_Kennis in Kracht B.V."},{"$f":"IF($A210=\"\",\"\",$D210&\" \"&$E210)","v":"45G04 Systeemtherapie"},"45G04","Systeemtherapie","Intensief ambulant","uur","Totaal binnen geldigheidsduur of tijdsonafhankelijk",null,141,138.30000000000001,94065636,"Kennis in Kracht B.V."]
[{"$f":"IF($M211=\"\",\"\",IF($M211=$M210,$A210+1,1))","v":1},{"$f":"IF($A211=\"\",\"\",$A211&\"_\"&$M211)","v":"1_Kernvisie Methode"},{"$f":"IF($A211=\"\",\"\",$D211&\" \"&$E211)","v":"45A53 Individuele begeleiding specialistisch"},"45A53","Individuele begeleiding specialistisch","Ambulant","uur","Totaal binnen geldigheidsduur of tijdsonafhankelijk",null,104.15,98,"90018827","Kernvisie Methode"]
[{"$f":"IF($M212=\"\",\"\",IF($M212=$M211,$A211+1,1))","v":1},{"$f":"IF($A212=\"\",\"\",$A212&\"_\"&$M212)","v":"1_KeuningsHof B.V."},{"$f":"IF($A212=\"\",\"\",$D212&\" \"&$E212)","v":"41A18 Dagbesteding"},"41A18","Dagbesteding","Dagbesteding / dagbehandeling","dagdeel","per week",null,76.5,71,"98103021","KeuningsHof B.V."]
[{"$f":"IF($M213=\"\",\"\",IF($M213=$M212,$A212+1,1))","v":2},{"$f":"IF($A213=\"\",\"\",$A213&\"_\"&$M213)","v":"2_KeuningsHof B.V."},{"$f":"IF($A213=\"\",\"\",$D213&\" \"&$E213)","v":"42A01 Vervoer regulier"},"42A01","Vervoer regulier","Overig","stuk","Totaal binnen geldigheidsduur of tijdsonafhankelijk",null,11.9,11.05,"98103021","KeuningsHof B.V."]
[{"$f":"IF($M214=\"\",\"\",IF($M214=$M213,$A213+1,1))","v":3},{"$f":"IF($A214=\"\",\"\",$A214&\"_\"&$M214)","v":"3_KeuningsHof B.V."},{"$f":"IF($A214=\"\",\"\",$D214&\" \"&$E214)","v":"43G08 Verblijf middel woonhoeve"},"43G08","Verblijf middel woonhoeve","Verblijf/ opname","etmaal","Totaal binnen geldigheidsduur of tijdsonafhankelijk",null,118.7,110.25,"98103021","KeuningsHof B.V."]
[{"$f":"IF($M215=\"\",\"\",IF($M215=$M214,$A214+1,1))","v":4},{"$f":"IF($A215=\"\",\"\",$A215&\"_\"&$M215)","v":"4_KeuningsHof B.V."},{"$f":"IF($A215=\"\",\"\",$D215&\" \"&$E215)","v":"45A04 Individuele begeleiding basis"},"45A04","Individuele begeleiding basis","Ambulant","uur","Totaal binnen geldigheidsduur of tijdsonafhankelijk",null,81.75,75.95,"98103021","KeuningsHof B.V."]
[{"$f":"IF($M216=\"\",\"\",IF($M216=$M215,$A215+1,1))","v":5},{"$f":"IF($A216=\"\",\"\",$A216&\"_\"&$M216)","v":"5_KeuningsHof B.V."},{"$f":"IF($A216=\"\",\"\",$D216&\" \"&$E216)","v":"45A49 Groepsbegeleiding basis"},"45A49","Groepsbegeleiding basis","Ambulant","uur","Totaal binnen geldigheidsduur of tijdsonafhankelijk",null,21.05,19.600000000000001,"98103021","KeuningsHof B.V."]
[{"$f":"IF($M217=\"\",\"\",IF($M217=$M216,$A216+1,1))","v":1},{"$f":"IF($A217=\"\",\"\",$A217&\"_\"&$M217)","v":"1_Kind en Jeugd Centraal"},{"$f":"IF($A217=\"\",\"\",$D217&\" \"&$E217)","v":"51G01 Individuele behandeling basis"},"51G01","Individuele behandeling basis","Ambulant","uur","Totaal binnen geldigheidsduur of tijdsonafhankelijk",null,122.65,122.65,"94063270","Kind en Jeugd Centraal"]
[{"$f":"IF($M218=\"\",\"\",IF($M218=$M217,$A217+1,1))","v":2},{"$f":"IF($A218=\"\",\"\",$A218&\"_\"&$M218)","v":"2_Kind en Jeugd Centraal"},{"$f":"IF($A218=\"\",\"\",$D218&\" \"&$E218)","v":"52G09 Individuele behandeling specialistisch"},"52G09","Individuele behandeling specialistisch","Ambulant","uur","Totaal binnen geldigheidsduur of tijdsonafhankelijk",null,130.5,130.5,"94063270","Kind en Jeugd Centraal"]
[{"$f":"IF($M219=\"\",\"\",IF($M219=$M218,$A218+1,1))","v":1},{"$f":"IF($A219=\"\",\"\",$A219&\"_\"&$M219)","v":"1_Kinder- en Jeugd GGZ Praktijk Noorderblinck"},{"$f":"IF($A219=\"\",\"\",$D219&\" \"&$E219)","v":"52G08 Individuele behandeling specialistisch zwaar-zeer zwaar"},"52G08","Individuele behandeling specialistisch zwaar-zeer zwaar","Ambulant","uur","Totaal binnen geldigheidsduur of tijdsonafhankelijk",null,134.5,118.35000000000001,"22220918","Kinder- en Jeugd GGZ Praktijk Noorderblinck"]
[{"$f":"IF($M220=\"\",\"\",IF($M220=$M219,$A219+1,1))","v":2},{"$f":"IF($A220=\"\",\"\",$A220&\"_\"&$M220)","v":"2_Kinder- en Jeugd GGZ Praktijk Noorderblinck"},{"$f":"IF($A220=\"\",\"\",$D220&\" \"&$E220)","v":"52G09 Individuele behandeling specialistisch"},"52G09","Individuele behandeling specialistisch","Ambulant","uur","Totaal binnen geldigheidsduur of tijdsonafhankelijk",null,130.5,115.4,"22220918","Kinder- en Jeugd GGZ Praktijk Noorderblinck"]
[{"$f":"IF($M221=\"\",\"\",IF($M221=$M220,$A220+1,1))","v":3},{"$f":"IF($A221=\"\",\"\",$A221&\"_\"&$M221)","v":"3_Kinder- en Jeugd GGZ Praktijk Noorderblinck"},{"$f":"IF($A221=\"\",\"\",$D221&\" \"&$E221)","v":"52G12 Individuele behandeling specialistisch licht medicatiecontrole"},"52G12","Individuele behandeling specialistisch licht medicatiecontrole","Ambulant","uur","Totaal binnen geldigheidsduur of tijdsonafhankelijk",null,174.1,153.75,"22220918","Kinder- en Jeugd GGZ Praktijk Noorderblinck"]
[{"$f":"IF($M222=\"\",\"\",IF($M222=$M221,$A221+1,1))","v":1},{"$f":"IF($A222=\"\",\"\",$A222&\"_\"&$M222)","v":"1_Kinderbijstand (orthopedagogisch onderzoek en advies)"},{"$f":"IF($A222=\"\",\"\",$D222&\" \"&$E222)","v":"45A48 Ouderschapsdiagnostiek: ambulant "},"45A48","Ouderschapsdiagnostiek: ambulant ","Ambulant","uur","Totaal binnen geldigheidsduur of tijdsonafhankelijk",null,129.25,129.25,"94063510","Kinderbijstand (orthopedagogisch onderzoek en advies)"]
[{"$f":"IF($M223=\"\",\"\",IF($M223=$M222,$A222+1,1))","v":2},{"$f":"IF($A223=\"\",\"\",$A223&\"_\"&$M223)","v":"2_Kinderbijstand (orthopedagogisch onderzoek en advies)"},{"$f":"IF($A223=\"\",\"\",$D223&\" \"&$E223)","v":"45G02 Gezinsdiagnostiek"},"45G02","Gezinsdiagnostiek","Ambulant","uur","Totaal binnen geldigheidsduur of tijdsonafhankelijk",null,129.25,129.25,"94063510","Kinderbijstand (orthopedagogisch onderzoek en advies)"]
[{"$f":"IF($M224=\"\",\"\",IF($M224=$M223,$A223+1,1))","v":3},{"$f":"IF($A224=\"\",\"\",$A224&\"_\"&$M224)","v":"3_Kinderbijstand (orthopedagogisch onderzoek en advies)"},{"$f":"IF($A224=\"\",\"\",$D224&\" \"&$E224)","v":"52G06 Individuele diagnostiek"},"52G06","Individuele diagnostiek","Ambulant","uur","Totaal binnen geldigheidsduur of tijdsonafhankelijk",null,123.95,123.95,"94063510","Kinderbijstand (orthopedagogisch onderzoek en advies)"]
[{"$f":"IF($M225=\"\",\"\",IF($M225=$M224,$A224+1,1))","v":4},{"$f":"IF($A225=\"\",\"\",$A225&\"_\"&$M225)","v":"4_Kinderbijstand (orthopedagogisch onderzoek en advies)"},{"$f":"IF($A225=\"\",\"\",$D225&\" \"&$E225)","v":"52G08 Individuele behandeling specialistisch zwaar-zeer zwaar"},"52G08","Individuele behandeling specialistisch zwaar-zeer zwaar","Ambulant","uur","Totaal binnen geldigheidsduur of tijdsonafhankelijk",null,134.5,134.5,"94063510","Kinderbijstand (orthopedagogisch onderzoek en advies)"]
[{"$f":"IF($M226=\"\",\"\",IF($M226=$M225,$A225+1,1))","v":5},{"$f":"IF($A226=\"\",\"\",$A226&\"_\"&$M226)","v":"5_Kinderbijstand (orthopedagogisch onderzoek en advies)"},{"$f":"IF($A226=\"\",\"\",$D226&\" \"&$E226)","v":"52G09 Individuele behandeling specialistisch"},"52G09","Individuele behandeling specialistisch","Ambulant","uur","Totaal binnen geldigheidsduur of tijdsonafhankelijk",null,130.5,130.5,"94063510","Kinderbijstand (orthopedagogisch onderzoek en advies)"]
[{"$f":"IF($M227=\"\",\"\",IF($M227=$M226,$A226+1,1))","v":1},{"$f":"IF($A227=\"\",\"\",$A227&\"_\"&$M227)","v":"1_Kindercoach Leersaam"},{"$f":"IF($A227=\"\",\"\",$D227&\" \"&$E227)","v":"45A04 Individuele begeleiding basis"},"45A04","Individuele begeleiding basis","Ambulant","uur","Totaal binnen geldigheidsduur of tijdsonafhankelijk",null,81.75,81.75,"41419688","Kindercoach Leersaam"]
[{"$f":"IF($M228=\"\",\"\",IF($M228=$M227,$A227+1,1))","v":2},{"$f":"IF($A228=\"\",\"\",$A228&\"_\"&$M228)","v":"2_Kindercoach Leersaam"},{"$f":"IF($A228=\"\",\"\",$D228&\" \"&$E228)","v":"45A53 Individuele begeleiding specialistisch"},"45A53","Individuele begeleiding specialistisch","Ambulant","uur","Totaal binnen geldigheidsduur of tijdsonafhankelijk",null,104.15,104.15,"41419688","Kindercoach Leersaam"]
[{"$f":"IF($M229=\"\",\"\",IF($M229=$M228,$A228+1,1))","v":3},{"$f":"IF($A229=\"\",\"\",$A229&\"_\"&$M229)","v":"3_Kindercoach Leersaam"},{"$f":"IF($A229=\"\",\"\",$D229&\" \"&$E229)","v":"45A56 Gezinsbegeleiding specialistisch"},"45A56","Gezinsbegeleiding specialistisch","Ambulant","uur","Totaal binnen geldigheidsduur of tijdsonafhankelijk",null,104.15,104.15,"41419688","Kindercoach Leersaam"]
[{"$f":"IF($M230=\"\",\"\",IF($M230=$M229,$A229+1,1))","v":1},{"$f":"IF($A230=\"\",\"\",$A230&\"_\"&$M230)","v":"1_Kinderconsulent Groningen"},{"$f":"IF($A230=\"\",\"\",$D230&\" \"&$E230)","v":"42A01 Vervoer regulier"},"42A01","Vervoer regulier","Overig","stuk","Totaal binnen geldigheidsduur of tijdsonafhankelijk",null,11.9,11.25,90019236,"Kinderconsulent Groningen"]
[{"$f":"IF($M231=\"\",\"\",IF($M231=$M230,$A230+1,1))","v":2},{"$f":"IF($A231=\"\",\"\",$A231&\"_\"&$M231)","v":"2_Kinderconsulent Groningen"},{"$f":"IF($A231=\"\",\"\",$D231&\" \"&$E231)","v":"43G09 Verblijf middel gezinshuis"},"43G09","Verblijf middel gezinshuis","Verblijf/ opname","etmaal","per week",null,131.9,128.1,90019236,"Kinderconsulent Groningen"]
[{"$f":"IF($M232=\"\",\"\",IF($M232=$M231,$A231+1,1))","v":3},{"$f":"IF($A232=\"\",\"\",$A232&\"_\"&$M232)","v":"3_Kinderconsulent Groningen"},{"$f":"IF($A232=\"\",\"\",$D232&\" \"&$E232)","v":"44A09 Logeren laag intensief"},"44A09","Logeren laag intensief","Logeren / Respijtzorg","etmaal","Totaal binnen geldigheidsduur of tijdsonafhankelijk",null,237.3,224.85,90019236,"Kinderconsulent Groningen"]
[{"$f":"IF($M233=\"\",\"\",IF($M233=$M232,$A232+1,1))","v":4},{"$f":"IF($A233=\"\",\"\",$A233&\"_\"&$M233)","v":"4_Kinderconsulent Groningen"},{"$f":"IF($A233=\"\",\"\",$D233&\" \"&$E233)","v":"45A04 Individuele begeleiding basis"},"45A04","Individuele begeleiding basis","Ambulant","uur","Totaal binnen geldigheidsduur of tijdsonafhankelijk",null,81.75,77.45,90019236,"Kinderconsulent Groningen"]
[{"$f":"IF($M234=\"\",\"\",IF($M234=$M233,$A233+1,1))","v":1},{"$f":"IF($A234=\"\",\"\",$A234&\"_\"&$M234)","v":"1_Kindertherapie & Coaching - Jasna Joosten"},{"$f":"IF($A234=\"\",\"\",$D234&\" \"&$E234)","v":"45A53 Individuele begeleiding specialistisch"},"45A53","Individuele begeleiding specialistisch","Ambulant","uur","Totaal binnen geldigheidsduur of tijdsonafhankelijk",null,104.15,80.800000000000011,"90056027","Kindertherapie & Coaching - Jasna Joosten"]
[{"$f":"IF($M235=\"\",\"\",IF($M235=$M234,$A234+1,1))","v":2},{"$f":"IF($A235=\"\",\"\",$A235&\"_\"&$M235)","v":"2_Kindertherapie & Coaching - Jasna Joosten"},{"$f":"IF($A235=\"\",\"\",$D235&\" \"&$E235)","v":"50G41 Specifieke doelgroepen 4 en 5 Ondersteuning jeugdigen en ouders bij complexe (echt)scheiding"},"50G41","Specifieke doelgroepen 4 en 5 Ondersteuning jeugdigen en ouders bij complexe (echt)scheiding","Specifieke doelgroepen","uur","Totaal binnen geldigheidsduur of tijdsonafhankelijk",null,118.65,97,"90056027","Kindertherapie & Coaching - Jasna Joosten"]
[{"$f":"IF($M236=\"\",\"\",IF($M236=$M235,$A235+1,1))","v":1},{"$f":"IF($A236=\"\",\"\",$A236&\"_\"&$M236)","v":"1_Kindertherapie Anouk Endeveld"},{"$f":"IF($A236=\"\",\"\",$D236&\" \"&$E236)","v":"45A53 Individuele begeleiding specialistisch"},"45A53","Individuele begeleiding specialistisch","Ambulant","uur","Totaal binnen geldigheidsduur of tijdsonafhankelijk",null,104.15,94.550000000000011,"90060482","Kindertherapie Anouk Endeveld"]
[{"$f":"IF($M237=\"\",\"\",IF($M237=$M236,$A236+1,1))","v":2},{"$f":"IF($A237=\"\",\"\",$A237&\"_\"&$M237)","v":"2_Kindertherapie Anouk Endeveld"},{"$f":"IF($A237=\"\",\"\",$D237&\" \"&$E237)","v":"45A56 Gezinsbegeleiding specialistisch"},"45A56","Gezinsbegeleiding specialistisch","Ambulant","uur","Totaal binnen geldigheidsduur of tijdsonafhankelijk",null,104.15,94.550000000000011,"90060482","Kindertherapie Anouk Endeveld"]
[{"$f":"IF($M238=\"\",\"\",IF($M238=$M237,$A237+1,1))","v":1},{"$f":"IF($A238=\"\",\"\",$A238&\"_\"&$M238)","v":"1_KOEN B.V."},{"$f":"IF($A238=\"\",\"\",$D238&\" \"&$E238)","v":"45A04 Individuele begeleiding basis"},"45A04","Individuele begeleiding basis","Ambulant","uur","Totaal binnen geldigheidsduur of tijdsonafhankelijk",null,81.75,81.75,98105818,"KOEN B.V."]
[{"$f":"IF($M239=\"\",\"\",IF($M239=$M238,$A238+1,1))","v":2},{"$f":"IF($A239=\"\",\"\",$A239&\"_\"&$M239)","v":"2_KOEN B.V."},{"$f":"IF($A239=\"\",\"\",$D239&\" \"&$E239)","v":"45A48 Ouderschapsdiagnostiek: ambulant "},"45A48","Ouderschapsdiagnostiek: ambulant ","Ambulant","uur","Totaal binnen geldigheidsduur of tijdsonafhankelijk",null,129.25,129.25,98105818,"KOEN B.V."]
[{"$f":"IF($M240=\"\",\"\",IF($M240=$M239,$A239+1,1))","v":3},{"$f":"IF($A240=\"\",\"\",$A240&\"_\"&$M240)","v":"3_KOEN B.V."},{"$f":"IF($A240=\"\",\"\",$D240&\" \"&$E240)","v":"45A51 Gezinsbegeleiding basis"},"45A51","Gezinsbegeleiding basis","Ambulant","uur","Totaal binnen geldigheidsduur of tijdsonafhankelijk",null,81.75,81.75,98105818,"KOEN B.V."]
[{"$f":"IF($M241=\"\",\"\",IF($M241=$M240,$A240+1,1))","v":4},{"$f":"IF($A241=\"\",\"\",$A241&\"_\"&$M241)","v":"4_KOEN B.V."},{"$f":"IF($A241=\"\",\"\",$D241&\" \"&$E241)","v":"45A53 Individuele begeleiding specialistisch"},"45A53","Individuele begeleiding specialistisch","Ambulant","uur","Totaal binnen geldigheidsduur of tijdsonafhankelijk",null,104.15,104.15,98105818,"KOEN B.V."]
[{"$f":"IF($M242=\"\",\"\",IF($M242=$M241,$A241+1,1))","v":5},{"$f":"IF($A242=\"\",\"\",$A242&\"_\"&$M242)","v":"5_KOEN B.V."},{"$f":"IF($A242=\"\",\"\",$D242&\" \"&$E242)","v":"45A54 Groepsbegeleiding specialistisch"},"45A54","Groepsbegeleiding specialistisch","Ambulant","uur","Totaal binnen geldigheidsduur of tijdsonafhankelijk",null,26.4,26.400000000000002,98105818,"KOEN B.V."]
[{"$f":"IF($M243=\"\",\"\",IF($M243=$M242,$A242+1,1))","v":6},{"$f":"IF($A243=\"\",\"\",$A243&\"_\"&$M243)","v":"6_KOEN B.V."},{"$f":"IF($A243=\"\",\"\",$D243&\" \"&$E243)","v":"45A56 Gezinsbegeleiding specialistisch"},"45A56","Gezinsbegeleiding specialistisch","Ambulant","uur","Totaal binnen geldigheidsduur of tijdsonafhankelijk",null,104.15,104.15,98105818,"KOEN B.V."]
[{"$f":"IF($M244=\"\",\"\",IF($M244=$M243,$A243+1,1))","v":7},{"$f":"IF($A244=\"\",\"\",$A244&\"_\"&$M244)","v":"7_KOEN B.V."},{"$f":"IF($A244=\"\",\"\",$D244&\" \"&$E244)","v":"45G02 Gezinsdiagnostiek"},"45G02","Gezinsdiagnostiek","Ambulant","uur","Totaal binnen geldigheidsduur of tijdsonafhankelijk",null,129.25,129.25,98105818,"KOEN B.V."]
[{"$f":"IF($M245=\"\",\"\",IF($M245=$M244,$A244+1,1))","v":8},{"$f":"IF($A245=\"\",\"\",$A245&\"_\"&$M245)","v":"8_KOEN B.V."},{"$f":"IF($A245=\"\",\"\",$D245&\" \"&$E245)","v":"45G03 Intensieve ambulante of psychiatrische gezinsbehandeling"},"45G03","Intensieve ambulante of psychiatrische gezinsbehandeling","Ambulant","uur","Totaal binnen geldigheidsduur of tijdsonafhankelijk",null,113.4,113.4,98105818,"KOEN B.V."]
[{"$f":"IF($M246=\"\",\"\",IF($M246=$M245,$A245+1,1))","v":9},{"$f":"IF($A246=\"\",\"\",$A246&\"_\"&$M246)","v":"9_KOEN B.V."},{"$f":"IF($A246=\"\",\"\",$D246&\" \"&$E246)","v":"45G04 Systeemtherapie"},"45G04","Systeemtherapie","Intensief ambulant","uur","Totaal binnen geldigheidsduur of tijdsonafhankelijk",null,141,141,98105818,"KOEN B.V."]
[{"$f":"IF($M247=\"\",\"\",IF($M247=$M246,$A246+1,1))","v":10},{"$f":"IF($A247=\"\",\"\",$A247&\"_\"&$M247)","v":"10_KOEN B.V."},{"$f":"IF($A247=\"\",\"\",$D247&\" \"&$E247)","v":"50G40 Advies en ondersteuning vanuit jeugdhulpaanbieders bij complexe problematiek"},"50G40","Advies en ondersteuning vanuit jeugdhulpaanbieders bij complexe problematiek","Advies","uur","Totaal binnen geldigheidsduur of tijdsonafhankelijk",null,123.95,123.95,98105818,"KOEN B.V."]
[{"$f":"IF($M248=\"\",\"\",IF($M248=$M247,$A247+1,1))","v":11},{"$f":"IF($A248=\"\",\"\",$A248&\"_\"&$M248)","v":"11_KOEN B.V."},{"$f":"IF($A248=\"\",\"\",$D248&\" \"&$E248)","v":"50G41 Specifieke doelgroepen 4 en 5 Ondersteuning jeugdigen en ouders bij complexe (echt)scheiding"},"50G41","Specifieke doelgroepen 4 en 5 Ondersteuning jeugdigen en ouders bij complexe (echt)scheiding","Specifieke doelgroepen","uur","Totaal binnen geldigheidsduur of tijdsonafhankelijk",null,118.65,118.65,98105818,"KOEN B.V."]
[{"$f":"IF($M249=\"\",\"\",IF($M249=$M248,$A248+1,1))","v":12},{"$f":"IF($A249=\"\",\"\",$A249&\"_\"&$M249)","v":"12_KOEN B.V."},{"$f":"IF($A249=\"\",\"\",$D249&\" \"&$E249)","v":"51G01 Individuele behandeling basis"},"51G01","Individuele behandeling basis","Ambulant","uur","Totaal binnen geldigheidsduur of tijdsonafhankelijk",null,122.65,122.65,98105818,"KOEN B.V."]
[{"$f":"IF($M250=\"\",\"\",IF($M250=$M249,$A249+1,1))","v":13},{"$f":"IF($A250=\"\",\"\",$A250&\"_\"&$M250)","v":"13_KOEN B.V."},{"$f":"IF($A250=\"\",\"\",$D250&\" \"&$E250)","v":"52G06 Individuele diagnostiek"},"52G06","Individuele diagnostiek","Ambulant","uur","Totaal binnen geldigheidsduur of tijdsonafhankelijk",null,123.95,123.95,98105818,"KOEN B.V."]
[{"$f":"IF($M251=\"\",\"\",IF($M251=$M250,$A250+1,1))","v":14},{"$f":"IF($A251=\"\",\"\",$A251&\"_\"&$M251)","v":"14_KOEN B.V."},{"$f":"IF($A251=\"\",\"\",$D251&\" \"&$E251)","v":"52G09 Individuele behandeling specialistisch"},"52G09","Individuele behandeling specialistisch","Ambulant","uur","Totaal binnen geldigheidsduur of tijdsonafhankelijk",null,130.5,130.5,98105818,"KOEN B.V."]
[{"$f":"IF($M252=\"\",\"\",IF($M252=$M251,$A251+1,1))","v":1},{"$f":"IF($A252=\"\",\"\",$A252&\"_\"&$M252)","v":"1_La Hacienda B.V."},{"$f":"IF($A252=\"\",\"\",$D252&\" \"&$E252)","v":"42A01 Vervoer regulier"},"42A01","Vervoer regulier","Overig","stuk","Totaal binnen geldigheidsduur of tijdsonafhankelijk",null,11.9,11.9,90054404,"La Hacienda B.V."]
[{"$f":"IF($M253=\"\",\"\",IF($M253=$M252,$A252+1,1))","v":2},{"$f":"IF($A253=\"\",\"\",$A253&\"_\"&$M253)","v":"2_La Hacienda B.V."},{"$f":"IF($A253=\"\",\"\",$D253&\" \"&$E253)","v":"43A35 Verblijf licht"},"43A35","Verblijf licht","Verblijf/ opname","etmaal","Totaal binnen geldigheidsduur of tijdsonafhankelijk",null,162.15,162.15,90054404,"La Hacienda B.V."]
[{"$f":"IF($M254=\"\",\"\",IF($M254=$M253,$A253+1,1))","v":3},{"$f":"IF($A254=\"\",\"\",$A254&\"_\"&$M254)","v":"3_La Hacienda B.V."},{"$f":"IF($A254=\"\",\"\",$D254&\" \"&$E254)","v":"43A37 Verblijfstraject middelzwaar"},"43A37","Verblijfstraject middelzwaar","Verblijf/ opname","etmaal","Totaal binnen geldigheidsduur of tijdsonafhankelijk",null,398.15,398.15000000000003,90054404,"La Hacienda B.V."]
[{"$f":"IF($M255=\"\",\"\",IF($M255=$M254,$A254+1,1))","v":4},{"$f":"IF($A255=\"\",\"\",$A255&\"_\"&$M255)","v":"4_La Hacienda B.V."},{"$f":"IF($A255=\"\",\"\",$D255&\" \"&$E255)","v":"44A09 Logeren laag intensief"},"44A09","Logeren laag intensief","Logeren / Respijtzorg","etmaal","Totaal binnen geldigheidsduur of tijdsonafhankelijk",null,237.3,237.3,90054404,"La Hacienda B.V."]
[{"$f":"IF($M256=\"\",\"\",IF($M256=$M255,$A255+1,1))","v":5},{"$f":"IF($A256=\"\",\"\",$A256&\"_\"&$M256)","v":"5_La Hacienda B.V."},{"$f":"IF($A256=\"\",\"\",$D256&\" \"&$E256)","v":"44G02 Verblijf langdurig (beschermd) wonen"},"44G02","Verblijf langdurig (beschermd) wonen","Verblijf/ opname","etmaal","per week",null,230.7,230.70000000000002,90054404,"La Hacienda B.V."]
[{"$f":"IF($M257=\"\",\"\",IF($M257=$M256,$A256+1,1))","v":6},{"$f":"IF($A257=\"\",\"\",$A257&\"_\"&$M257)","v":"6_La Hacienda B.V."},{"$f":"IF($A257=\"\",\"\",$D257&\" \"&$E257)","v":"45A04 Individuele begeleiding basis"},"45A04","Individuele begeleiding basis","Ambulant","uur","Totaal binnen geldigheidsduur of tijdsonafhankelijk",null,81.75,81.75,90054404,"La Hacienda B.V."]
[{"$f":"IF($M258=\"\",\"\",IF($M258=$M257,$A257+1,1))","v":7},{"$f":"IF($A258=\"\",\"\",$A258&\"_\"&$M258)","v":"7_La Hacienda B.V."},{"$f":"IF($A258=\"\",\"\",$D258&\" \"&$E258)","v":"45A49 Groepsbegeleiding basis"},"45A49","Groepsbegeleiding basis","Ambulant","uur","Totaal binnen geldigheidsduur of tijdsonafhankelijk",null,21.05,21.05,90054404,"La Hacienda B.V."]
[{"$f":"IF($M259=\"\",\"\",IF($M259=$M258,$A258+1,1))","v":8},{"$f":"IF($A259=\"\",\"\",$A259&\"_\"&$M259)","v":"8_La Hacienda B.V."},{"$f":"IF($A259=\"\",\"\",$D259&\" \"&$E259)","v":"45A51 Gezinsbegeleiding basis"},"45A51","Gezinsbegeleiding basis","Ambulant","uur","Totaal binnen geldigheidsduur of tijdsonafhankelijk",null,81.75,79.100000000000009,90054404,"La Hacienda B.V."]
[{"$f":"IF($M260=\"\",\"\",IF($M260=$M259,$A259+1,1))","v":9},{"$f":"IF($A260=\"\",\"\",$A260&\"_\"&$M260)","v":"9_La Hacienda B.V."},{"$f":"IF($A260=\"\",\"\",$D260&\" \"&$E260)","v":"45A53 Individuele begeleiding specialistisch"},"45A53","Individuele begeleiding specialistisch","Ambulant","uur","Totaal binnen geldigheidsduur of tijdsonafhankelijk",null,104.15,104.15,90054404,"La Hacienda B.V."]
[{"$f":"IF($M261=\"\",\"\",IF($M261=$M260,$A260+1,1))","v":10},{"$f":"IF($A261=\"\",\"\",$A261&\"_\"&$M261)","v":"10_La Hacienda B.V."},{"$f":"IF($A261=\"\",\"\",$D261&\" \"&$E261)","v":"45A56 Gezinsbegeleiding specialistisch"},"45A56","Gezinsbegeleiding specialistisch","Ambulant","uur","Totaal binnen geldigheidsduur of tijdsonafhankelijk",null,104.15,101.55000000000001,90054404,"La Hacienda B.V."]
[{"$f":"IF($M262=\"\",\"\",IF($M262=$M261,$A261+1,1))","v":1},{"$f":"IF($A262=\"\",\"\",$A262&\"_\"&$M262)","v":"1_La Luna Care B.V."},{"$f":"IF($A262=\"\",\"\",$D262&\" \"&$E262)","v":"41A18 Dagbesteding"},"41A18","Dagbesteding","Dagbesteding / dagbehandeling","dagdeel","per week",null,76.5,71.100000000000009,75752422,"La Luna Care B.V."]
[{"$f":"IF($M263=\"\",\"\",IF($M263=$M262,$A262+1,1))","v":2},{"$f":"IF($A263=\"\",\"\",$A263&\"_\"&$M263)","v":"2_La Luna Care B.V."},{"$f":"IF($A263=\"\",\"\",$D263&\" \"&$E263)","v":"43A35 Verblijf licht"},"43A35","Verblijf licht","Verblijf/ opname","etmaal","Totaal binnen geldigheidsduur of tijdsonafhankelijk",null,162.15,150.70000000000002,75752422,"La Luna Care B.V."]
[{"$f":"IF($M264=\"\",\"\",IF($M264=$M263,$A263+1,1))","v":3},{"$f":"IF($A264=\"\",\"\",$A264&\"_\"&$M264)","v":"3_La Luna Care B.V."},{"$f":"IF($A264=\"\",\"\",$D264&\" \"&$E264)","v":"44G02 Verblijf langdurig (beschermd) wonen"},"44G02","Verblijf langdurig (beschermd) wonen","Verblijf/ opname","etmaal","per week",null,230.7,214.45000000000002,75752422,"La Luna Care B.V."]
[{"$f":"IF($M265=\"\",\"\",IF($M265=$M264,$A264+1,1))","v":4},{"$f":"IF($A265=\"\",\"\",$A265&\"_\"&$M265)","v":"4_La Luna Care B.V."},{"$f":"IF($A265=\"\",\"\",$D265&\" \"&$E265)","v":"45A04 Individuele begeleiding basis"},"45A04","Individuele begeleiding basis","Ambulant","uur","Totaal binnen geldigheidsduur of tijdsonafhankelijk",null,81.75,75.95,75752422,"La Luna Care B.V."]
[{"$f":"IF($M266=\"\",\"\",IF($M266=$M265,$A265+1,1))","v":5},{"$f":"IF($A266=\"\",\"\",$A266&\"_\"&$M266)","v":"5_La Luna Care B.V."},{"$f":"IF($A266=\"\",\"\",$D266&\" \"&$E266)","v":"45A53 Individuele begeleiding specialistisch"},"45A53","Individuele begeleiding specialistisch","Ambulant","uur","Totaal binnen geldigheidsduur of tijdsonafhankelijk",null,104.15,96.800000000000011,75752422,"La Luna Care B.V."]
[{"$f":"IF($M267=\"\",\"\",IF($M267=$M266,$A266+1,1))","v":1},{"$f":"IF($A267=\"\",\"\",$A267&\"_\"&$M267)","v":"1_Leger des Heils Jeugdbescherming en Reclassering"},{"$f":"IF($A267=\"\",\"\",$D267&\" \"&$E267)","v":"47B10 Jeugdreclassering"},"47B10","Jeugdreclassering","Jeugdreclassering","stuk","per maand",null,"tarieven niet publiceren",null,"98100236","Leger des Heils Jeugdbescherming en Reclassering"]
[{"$f":"IF($M268=\"\",\"\",IF($M268=$M267,$A267+1,1))","v":2},{"$f":"IF($A268=\"\",\"\",$A268&\"_\"&$M268)","v":"2_Leger des Heils Jeugdbescherming en Reclassering"},{"$f":"IF($A268=\"\",\"\",$D268&\" \"&$E268)","v":"47B11 GedragsBeïnvloedende Maatregel advies"},"47B11","GedragsBeïnvloedende Maatregel advies","Jeugdreclassering","stuk","per maand",null,"tarieven niet publiceren",null,"98100236","Leger des Heils Jeugdbescherming en Reclassering"]
[{"$f":"IF($M269=\"\",\"\",IF($M269=$M268,$A268+1,1))","v":3},{"$f":"IF($A269=\"\",\"\",$A269&\"_\"&$M269)","v":"3_Leger des Heils Jeugdbescherming en Reclassering"},{"$f":"IF($A269=\"\",\"\",$D269&\" \"&$E269)","v":"47B12 GedragsBeïnvloedende Maatregel uitvoering"},"47B12","GedragsBeïnvloedende Maatregel uitvoering","Jeugdreclassering","stuk","per maand",null,"tarieven niet publiceren",null,"98100236","Leger des Heils Jeugdbescherming en Reclassering"]
[{"$f":"IF($M270=\"\",\"\",IF($M270=$M269,$A269+1,1))","v":4},{"$f":"IF($A270=\"\",\"\",$A270&\"_\"&$M270)","v":"4_Leger des Heils Jeugdbescherming en Reclassering"},{"$f":"IF($A270=\"\",\"\",$D270&\" \"&$E270)","v":"47B13 Intensieve TrajectBegeleiding CRIEM"},"47B13","Intensieve TrajectBegeleiding CRIEM","Jeugdreclassering","stuk","per maand",null,"tarieven niet publiceren",null,"98100236","Leger des Heils Jeugdbescherming en Reclassering"]
[{"$f":"IF($M271=\"\",\"\",IF($M271=$M270,$A270+1,1))","v":5},{"$f":"IF($A271=\"\",\"\",$A271&\"_\"&$M271)","v":"5_Leger des Heils Jeugdbescherming en Reclassering"},{"$f":"IF($A271=\"\",\"\",$D271&\" \"&$E271)","v":"47B14 Intensieve TrajectBegeleiding Harde kern"},"47B14","Intensieve TrajectBegeleiding Harde kern","Jeugdreclassering","stuk","per maand",null,"tarieven niet publiceren",null,"98100236","Leger des Heils Jeugdbescherming en Reclassering"]
[{"$f":"IF($M272=\"\",\"\",IF($M272=$M271,$A271+1,1))","v":6},{"$f":"IF($A272=\"\",\"\",$A272&\"_\"&$M272)","v":"6_Leger des Heils Jeugdbescherming en Reclassering"},{"$f":"IF($A272=\"\",\"\",$D272&\" \"&$E272)","v":"47B15 Jeugdreclassering Samenloop"},"47B15","Jeugdreclassering Samenloop","Jeugdreclassering","stuk","per maand",null,"tarieven niet publiceren",null,"98100236","Leger des Heils Jeugdbescherming en Reclassering"]
[{"$f":"IF($M273=\"\",\"\",IF($M273=$M272,$A272+1,1))","v":7},{"$f":"IF($A273=\"\",\"\",$A273&\"_\"&$M273)","v":"7_Leger des Heils Jeugdbescherming en Reclassering"},{"$f":"IF($A273=\"\",\"\",$D273&\" \"&$E273)","v":"47B16 Scholings- en TrainingsProgramma"},"47B16","Scholings- en TrainingsProgramma","Jeugdreclassering","stuk","per maand",null,"tarieven niet publiceren",null,"98100236","Leger des Heils Jeugdbescherming en Reclassering"]
[{"$f":"IF($M274=\"\",\"\",IF($M274=$M273,$A273+1,1))","v":8},{"$f":"IF($A274=\"\",\"\",$A274&\"_\"&$M274)","v":"8_Leger des Heils Jeugdbescherming en Reclassering"},{"$f":"IF($A274=\"\",\"\",$D274&\" \"&$E274)","v":"48B10 Ondertoezichtstelling"},"48B10","Ondertoezichtstelling","Jeugdbescherming","stuk","per maand",null,"tarieven niet publiceren",null,"98100236","Leger des Heils Jeugdbescherming en Reclassering"]
[{"$f":"IF($M275=\"\",\"\",IF($M275=$M274,$A274+1,1))","v":9},{"$f":"IF($A275=\"\",\"\",$A275&\"_\"&$M275)","v":"9_Leger des Heils Jeugdbescherming en Reclassering"},{"$f":"IF($A275=\"\",\"\",$D275&\" \"&$E275)","v":"48B11 Voogdij"},"48B11","Voogdij","Jeugdbescherming","stuk","per maand",null,"tarieven niet publiceren",null,"98100236","Leger des Heils Jeugdbescherming en Reclassering"]
[{"$f":"IF($M276=\"\",\"\",IF($M276=$M275,$A275+1,1))","v":10},{"$f":"IF($A276=\"\",\"\",$A276&\"_\"&$M276)","v":"10_Leger des Heils Jeugdbescherming en Reclassering"},{"$f":"IF($A276=\"\",\"\",$D276&\" \"&$E276)","v":"48B12 LET Jeugdbescherming Ondertoezichtstelling"},"48B12","LET Jeugdbescherming Ondertoezichtstelling","Landelijk Expertise Team Jeugdbescherming","stuk","Totaal binnen geldigheidsduur of tijdsonafhankelijk",null,"tarieven niet publiceren",null,"98100236","Leger des Heils Jeugdbescherming en Reclassering"]
[{"$f":"IF($M277=\"\",\"\",IF($M277=$M276,$A276+1,1))","v":11},{"$f":"IF($A277=\"\",\"\",$A277&\"_\"&$M277)","v":"11_Leger des Heils Jeugdbescherming en Reclassering"},{"$f":"IF($A277=\"\",\"\",$D277&\" \"&$E277)","v":"48B13 LET Jeugdbescherming Voogdij"},"48B13","LET Jeugdbescherming Voogdij","Landelijk Expertise Team Jeugdbescherming","stuk","Totaal binnen geldigheidsduur of tijdsonafhankelijk",null,"tarieven niet publiceren",null,"98100236","Leger des Heils Jeugdbescherming en Reclassering"]
[{"$f":"IF($M278=\"\",\"\",IF($M278=$M277,$A277+1,1))","v":12},{"$f":"IF($A278=\"\",\"\",$A278&\"_\"&$M278)","v":"12_Leger des Heils Jeugdbescherming en Reclassering"},{"$f":"IF($A278=\"\",\"\",$D278&\" \"&$E278)","v":"49B01 Advies en ondersteuning GI bij veiligheidsvraagstukken (ter voorkoming van kinderbeschermingsmaatregelen)"},"49B01","Advies en ondersteuning GI bij veiligheidsvraagstukken (ter voorkoming van kinderbeschermingsmaatregelen)","Advies GI","uur","Totaal binnen geldigheidsduur of tijdsonafhankelijk",null,"tarieven niet publiceren",null,"98100236","Leger des Heils Jeugdbescherming en Reclassering"]
[{"$f":"IF($M279=\"\",\"\",IF($M279=$M620,$A620+1,1))","v":1},{"$f":"IF($A279=\"\",\"\",$A279&\"_\"&$M279)","v":"1_Leger des Heils Welzijns- en Gezondheidszorg"},{"$f":"IF($A279=\"\",\"\",$D279&\" \"&$E279)","v":"43G19 Kleinschalige Voorziening ombouwopdracht SPUK"},"43G19","Kleinschalige Voorziening ombouwopdracht SPUK","Verblijf ","etmaal",null,null,661.25,661.25,98099048,"Leger des Heils Welzijns- en Gezondheidszorg"]
[{"$f":"IF($M280=\"\",\"\",IF($M280=$M279,$A279+1,1))","v":1},{"$f":"IF($A280=\"\",\"\",$A280&\"_\"&$M280)","v":"1_Liganta B.V."},{"$f":"IF($A280=\"\",\"\",$D280&\" \"&$E280)","v":"45A04 Individuele begeleiding basis"},"45A04","Individuele begeleiding basis","Ambulant","uur","Totaal binnen geldigheidsduur of tijdsonafhankelijk",null,81.75,78.2,98101997,"Liganta B.V."]
[{"$f":"IF($M281=\"\",\"\",IF($M281=$M280,$A280+1,1))","v":2},{"$f":"IF($A281=\"\",\"\",$A281&\"_\"&$M281)","v":"2_Liganta B.V."},{"$f":"IF($A281=\"\",\"\",$D281&\" \"&$E281)","v":"45A51 Gezinsbegeleiding basis"},"45A51","Gezinsbegeleiding basis","Ambulant","uur","Totaal binnen geldigheidsduur of tijdsonafhankelijk",null,81.75,78.2,98101997,"Liganta B.V."]
[{"$f":"IF($M282=\"\",\"\",IF($M282=$M281,$A281+1,1))","v":3},{"$f":"IF($A282=\"\",\"\",$A282&\"_\"&$M282)","v":"3_Liganta B.V."},{"$f":"IF($A282=\"\",\"\",$D282&\" \"&$E282)","v":"45A53 Individuele begeleiding specialistisch"},"45A53","Individuele begeleiding specialistisch","Ambulant","uur","Totaal binnen geldigheidsduur of tijdsonafhankelijk",null,104.15,99.65,98101997,"Liganta B.V."]
[{"$f":"IF($M283=\"\",\"\",IF($M283=$M282,$A282+1,1))","v":4},{"$f":"IF($A283=\"\",\"\",$A283&\"_\"&$M283)","v":"4_Liganta B.V."},{"$f":"IF($A283=\"\",\"\",$D283&\" \"&$E283)","v":"45A56 Gezinsbegeleiding specialistisch"},"45A56","Gezinsbegeleiding specialistisch","Ambulant","uur","Totaal binnen geldigheidsduur of tijdsonafhankelijk",null,104.15,99.65,98101997,"Liganta B.V."]
[{"$f":"IF($M284=\"\",\"\",IF($M284=$M283,$A283+1,1))","v":5},{"$f":"IF($A284=\"\",\"\",$A284&\"_\"&$M284)","v":"5_Liganta B.V."},{"$f":"IF($A284=\"\",\"\",$D284&\" \"&$E284)","v":"45G06 Specifieke doelgroepen 7 Gezinnen met Geringe Sociale Redzaamheid met het accent op specialistische begeleiding en behandeling"},"45G06","Specifieke doelgroepen 7 Gezinnen met Geringe Sociale Redzaamheid met het accent op specialistische begeleiding en behandeling","Specifieke doelgroepen","uur","Totaal binnen geldigheidsduur of tijdsonafhankelijk",null,120,117.55000000000001,98101997,"Liganta B.V."]
[{"$f":"IF($M285=\"\",\"\",IF($M285=$M284,$A284+1,1))","v":6},{"$f":"IF($A285=\"\",\"\",$A285&\"_\"&$M285)","v":"6_Liganta B.V."},{"$f":"IF($A285=\"\",\"\",$D285&\" \"&$E285)","v":"50G26 Specifieke doelgroepen 3 Behoud van en Toeleiding naar onderwijsdeelname (deelproduct jeugdhulp)"},"50G26","Specifieke doelgroepen 3 Behoud van en Toeleiding naar onderwijsdeelname (deelproduct jeugdhulp)","Specifieke doelgroepen","uur","Totaal binnen geldigheidsduur of tijdsonafhankelijk",null,113.4,108.5,98101997,"Liganta B.V."]
[{"$f":"IF($M286=\"\",\"\",IF($M286=$M285,$A285+1,1))","v":7},{"$f":"IF($A286=\"\",\"\",$A286&\"_\"&$M286)","v":"7_Liganta B.V."},{"$f":"IF($A286=\"\",\"\",$D286&\" \"&$E286)","v":"50G41 Specifieke doelgroepen 4 en 5 Ondersteuning jeugdigen en ouders bij complexe (echt)scheiding"},"50G41","Specifieke doelgroepen 4 en 5 Ondersteuning jeugdigen en ouders bij complexe (echt)scheiding","Specifieke doelgroepen","uur","Totaal binnen geldigheidsduur of tijdsonafhankelijk",null,118.65,113.45,98101997,"Liganta B.V."]
[{"$f":"IF($M287=\"\",\"\",IF($M287=$M286,$A286+1,1))","v":8},{"$f":"IF($A287=\"\",\"\",$A287&\"_\"&$M287)","v":"8_Liganta B.V."},{"$f":"IF($A287=\"\",\"\",$D287&\" \"&$E287)","v":"51G01 Individuele behandeling basis"},"51G01","Individuele behandeling basis","Ambulant","uur","Totaal binnen geldigheidsduur of tijdsonafhankelijk",null,122.65,117.25,98101997,"Liganta B.V."]
[{"$f":"IF($M288=\"\",\"\",IF($M288=$M287,$A287+1,1))","v":9},{"$f":"IF($A288=\"\",\"\",$A288&\"_\"&$M288)","v":"9_Liganta B.V."},{"$f":"IF($A288=\"\",\"\",$D288&\" \"&$E288)","v":"52G06 Individuele diagnostiek"},"52G06","Individuele diagnostiek","Ambulant","uur","Totaal binnen geldigheidsduur of tijdsonafhankelijk",null,123.95,118.55000000000001,98101997,"Liganta B.V."]
[{"$f":"IF($M289=\"\",\"\",IF($M289=$M288,$A288+1,1))","v":10},{"$f":"IF($A289=\"\",\"\",$A289&\"_\"&$M289)","v":"10_Liganta B.V."},{"$f":"IF($A289=\"\",\"\",$D289&\" \"&$E289)","v":"52G09 Individuele behandeling specialistisch"},"52G09","Individuele behandeling specialistisch","Ambulant","uur","Totaal binnen geldigheidsduur of tijdsonafhankelijk",null,130.5,123.60000000000001,98101997,"Liganta B.V."]
[{"$f":"IF($M290=\"\",\"\",IF($M290=$M289,$A289+1,1))","v":1},{"$f":"IF($A290=\"\",\"\",$A290&\"_\"&$M290)","v":"1_Madelies B.V."},{"$f":"IF($A290=\"\",\"\",$D290&\" \"&$E290)","v":"45G04 Systeemtherapie"},"45G04","Systeemtherapie","Intensief ambulant","uur","Totaal binnen geldigheidsduur of tijdsonafhankelijk",null,141,113.85000000000001,98102203,"Madelies B.V."]
[{"$f":"IF($M291=\"\",\"\",IF($M291=$M290,$A290+1,1))","v":2},{"$f":"IF($A291=\"\",\"\",$A291&\"_\"&$M291)","v":"2_Madelies B.V."},{"$f":"IF($A291=\"\",\"\",$D291&\" \"&$E291)","v":"50G26 Specifieke doelgroepen 3 Behoud van en Toeleiding naar onderwijsdeelname (deelproduct jeugdhulp)"},"50G26","Specifieke doelgroepen 3 Behoud van en Toeleiding naar onderwijsdeelname (deelproduct jeugdhulp)","Specifieke doelgroepen","uur","Totaal binnen geldigheidsduur of tijdsonafhankelijk",null,113.4,74,98102203,"Madelies B.V."]
[{"$f":"IF($M292=\"\",\"\",IF($M292=$M291,$A291+1,1))","v":3},{"$f":"IF($A292=\"\",\"\",$A292&\"_\"&$M292)","v":"3_Madelies B.V."},{"$f":"IF($A292=\"\",\"\",$D292&\" \"&$E292)","v":"52G09 Individuele behandeling specialistisch"},"52G09","Individuele behandeling specialistisch","Ambulant","uur","Totaal binnen geldigheidsduur of tijdsonafhankelijk",null,130.5,112.75,98102203,"Madelies B.V."]
[{"$f":"IF($M293=\"\",\"\",IF($M293=$M292,$A292+1,1))","v":1},{"$f":"IF($A293=\"\",\"\",$A293&\"_\"&$M293)","v":"1_Mentaal Beter Cure B.V."},{"$f":"IF($A293=\"\",\"\",$D293&\" \"&$E293)","v":"45A53 Individuele begeleiding specialistisch"},"45A53","Individuele begeleiding specialistisch","Ambulant","uur","Totaal binnen geldigheidsduur of tijdsonafhankelijk",null,104.15,104.15,73732403,"Mentaal Beter Cure B.V."]
[{"$f":"IF($M294=\"\",\"\",IF($M294=$M293,$A293+1,1))","v":2},{"$f":"IF($A294=\"\",\"\",$A294&\"_\"&$M294)","v":"2_Mentaal Beter Cure B.V."},{"$f":"IF($A294=\"\",\"\",$D294&\" \"&$E294)","v":"45A54 Groepsbegeleiding specialistisch"},"45A54","Groepsbegeleiding specialistisch","Ambulant","uur","Totaal binnen geldigheidsduur of tijdsonafhankelijk",null,26.4,26.400000000000002,73732403,"Mentaal Beter Cure B.V."]
[{"$f":"IF($M295=\"\",\"\",IF($M295=$M294,$A294+1,1))","v":3},{"$f":"IF($A295=\"\",\"\",$A295&\"_\"&$M295)","v":"3_Mentaal Beter Cure B.V."},{"$f":"IF($A295=\"\",\"\",$D295&\" \"&$E295)","v":"45A56 Gezinsbegeleiding specialistisch"},"45A56","Gezinsbegeleiding specialistisch","Ambulant","uur","Totaal binnen geldigheidsduur of tijdsonafhankelijk",null,104.15,104.15,73732403,"Mentaal Beter Cure B.V."]
[{"$f":"IF($M296=\"\",\"\",IF($M296=$M295,$A295+1,1))","v":4},{"$f":"IF($A296=\"\",\"\",$A296&\"_\"&$M296)","v":"4_Mentaal Beter Cure B.V."},{"$f":"IF($A296=\"\",\"\",$D296&\" \"&$E296)","v":"45G03 Intensieve ambulante of psychiatrische gezinsbehandeling"},"45G03","Intensieve ambulante of psychiatrische gezinsbehandeling","Ambulant","uur","Totaal binnen geldigheidsduur of tijdsonafhankelijk",null,113.4,113.4,73732403,"Mentaal Beter Cure B.V."]
[{"$f":"IF($M297=\"\",\"\",IF($M297=$M296,$A296+1,1))","v":5},{"$f":"IF($A297=\"\",\"\",$A297&\"_\"&$M297)","v":"5_Mentaal Beter Cure B.V."},{"$f":"IF($A297=\"\",\"\",$D297&\" \"&$E297)","v":"50G33 Specifieke doelgroepen 14 Specialistisch pakket complex trauma"},"50G33","Specifieke doelgroepen 14 Specialistisch pakket complex trauma","Specifieke doelgroepen","uur","Totaal binnen geldigheidsduur of tijdsonafhankelijk",null,149,103.9,73732403,"Mentaal Beter Cure B.V."]
[{"$f":"IF($M298=\"\",\"\",IF($M298=$M297,$A297+1,1))","v":6},{"$f":"IF($A298=\"\",\"\",$A298&\"_\"&$M298)","v":"6_Mentaal Beter Cure B.V."},{"$f":"IF($A298=\"\",\"\",$D298&\" \"&$E298)","v":"51G01 Individuele behandeling basis"},"51G01","Individuele behandeling basis","Ambulant","uur","Totaal binnen geldigheidsduur of tijdsonafhankelijk",null,122.65,122.65,73732403,"Mentaal Beter Cure B.V."]
[{"$f":"IF($M299=\"\",\"\",IF($M299=$M298,$A298+1,1))","v":7},{"$f":"IF($A299=\"\",\"\",$A299&\"_\"&$M299)","v":"7_Mentaal Beter Cure B.V."},{"$f":"IF($A299=\"\",\"\",$D299&\" \"&$E299)","v":"52G06 Individuele diagnostiek"},"52G06","Individuele diagnostiek","Ambulant","uur","Totaal binnen geldigheidsduur of tijdsonafhankelijk",null,123.95,123.95,73732403,"Mentaal Beter Cure B.V."]
[{"$f":"IF($M300=\"\",\"\",IF($M300=$M299,$A299+1,1))","v":8},{"$f":"IF($A300=\"\",\"\",$A300&\"_\"&$M300)","v":"8_Mentaal Beter Cure B.V."},{"$f":"IF($A300=\"\",\"\",$D300&\" \"&$E300)","v":"52G09 Individuele behandeling specialistisch"},"52G09","Individuele behandeling specialistisch","Ambulant","uur","Totaal binnen geldigheidsduur of tijdsonafhankelijk",null,130.5,130.5,73732403,"Mentaal Beter Cure B.V."]
[{"$f":"IF($M301=\"\",\"\",IF($M301=$M300,$A300+1,1))","v":1},{"$f":"IF($A301=\"\",\"\",$A301&\"_\"&$M301)","v":"1_Mereo"},{"$f":"IF($A301=\"\",\"\",$D301&\" \"&$E301)","v":"45A51 Gezinsbegeleiding basis"},"45A51","Gezinsbegeleiding basis","Ambulant","uur","Totaal binnen geldigheidsduur of tijdsonafhankelijk",null,81.75,69.8,98103185,"Mereo"]
[{"$f":"IF($M302=\"\",\"\",IF($M302=$M301,$A301+1,1))","v":2},{"$f":"IF($A302=\"\",\"\",$A302&\"_\"&$M302)","v":"2_Mereo"},{"$f":"IF($A302=\"\",\"\",$D302&\" \"&$E302)","v":"45A56 Gezinsbegeleiding specialistisch"},"45A56","Gezinsbegeleiding specialistisch","Ambulant","uur","Totaal binnen geldigheidsduur of tijdsonafhankelijk",null,104.15,89,98103185,"Mereo"]
[{"$f":"IF($M303=\"\",\"\",IF($M303=$M302,$A302+1,1))","v":1},{"$f":"IF($A303=\"\",\"\",$A303&\"_\"&$M303)","v":"1_Mij een Zorg B.V."},{"$f":"IF($A303=\"\",\"\",$D303&\" \"&$E303)","v":"45A04 Individuele begeleiding basis"},"45A04","Individuele begeleiding basis","Ambulant","uur","Totaal binnen geldigheidsduur of tijdsonafhankelijk",null,81.75,78.800000000000011,98106080,"Mij een Zorg B.V."]
[{"$f":"IF($M304=\"\",\"\",IF($M304=$M303,$A303+1,1))","v":2},{"$f":"IF($A304=\"\",\"\",$A304&\"_\"&$M304)","v":"2_Mij een Zorg B.V."},{"$f":"IF($A304=\"\",\"\",$D304&\" \"&$E304)","v":"45A51 Gezinsbegeleiding basis"},"45A51","Gezinsbegeleiding basis","Ambulant","uur","Totaal binnen geldigheidsduur of tijdsonafhankelijk",null,81.75,78.800000000000011,98106080,"Mij een Zorg B.V."]
[{"$f":"IF($M305=\"\",\"\",IF($M305=$M304,$A304+1,1))","v":3},{"$f":"IF($A305=\"\",\"\",$A305&\"_\"&$M305)","v":"3_Mij een Zorg B.V."},{"$f":"IF($A305=\"\",\"\",$D305&\" \"&$E305)","v":"45A53 Individuele begeleiding specialistisch"},"45A53","Individuele begeleiding specialistisch","Ambulant","uur","Totaal binnen geldigheidsduur of tijdsonafhankelijk",null,104.15,100.45,98106080,"Mij een Zorg B.V."]
[{"$f":"IF($M306=\"\",\"\",IF($M306=$M305,$A305+1,1))","v":4},{"$f":"IF($A306=\"\",\"\",$A306&\"_\"&$M306)","v":"4_Mij een Zorg B.V."},{"$f":"IF($A306=\"\",\"\",$D306&\" \"&$E306)","v":"45A56 Gezinsbegeleiding specialistisch"},"45A56","Gezinsbegeleiding specialistisch","Ambulant","uur","Totaal binnen geldigheidsduur of tijdsonafhankelijk",null,104.15,100.45,98106080,"Mij een Zorg B.V."]
[{"$f":"IF($M307=\"\",\"\",IF($M307=$M306,$A306+1,1))","v":1},{"$f":"IF($A307=\"\",\"\",$A307&\"_\"&$M307)","v":"1_Mindcare Assen B.V."},{"$f":"IF($A307=\"\",\"\",$D307&\" \"&$E307)","v":"45A04 Individuele begeleiding basis"},"45A04","Individuele begeleiding basis","Ambulant","uur","Totaal binnen geldigheidsduur of tijdsonafhankelijk",null,81.75,75.75,"94064988","Mindcare Assen B.V."]
[{"$f":"IF($M308=\"\",\"\",IF($M308=$M307,$A307+1,1))","v":2},{"$f":"IF($A308=\"\",\"\",$A308&\"_\"&$M308)","v":"2_Mindcare Assen B.V."},{"$f":"IF($A308=\"\",\"\",$D308&\" \"&$E308)","v":"45A51 Gezinsbegeleiding basis"},"45A51","Gezinsbegeleiding basis","Ambulant","uur","Totaal binnen geldigheidsduur of tijdsonafhankelijk",null,81.75,78.2,"94064988","Mindcare Assen B.V."]
[{"$f":"IF($M309=\"\",\"\",IF($M309=$M308,$A308+1,1))","v":3},{"$f":"IF($A309=\"\",\"\",$A309&\"_\"&$M309)","v":"3_Mindcare Assen B.V."},{"$f":"IF($A309=\"\",\"\",$D309&\" \"&$E309)","v":"45A53 Individuele begeleiding specialistisch"},"45A53","Individuele begeleiding specialistisch","Ambulant","uur","Totaal binnen geldigheidsduur of tijdsonafhankelijk",null,104.15,99.65,"94064988","Mindcare Assen B.V."]
[{"$f":"IF($M310=\"\",\"\",IF($M310=$M309,$A309+1,1))","v":4},{"$f":"IF($A310=\"\",\"\",$A310&\"_\"&$M310)","v":"4_Mindcare Assen B.V."},{"$f":"IF($A310=\"\",\"\",$D310&\" \"&$E310)","v":"45A56 Gezinsbegeleiding specialistisch"},"45A56","Gezinsbegeleiding specialistisch","Ambulant","uur","Totaal binnen geldigheidsduur of tijdsonafhankelijk",null,104.15,99.65,"94064988","Mindcare Assen B.V."]
[{"$f":"IF($M311=\"\",\"\",IF($M311=$M310,$A310+1,1))","v":5},{"$f":"IF($A311=\"\",\"\",$A311&\"_\"&$M311)","v":"5_Mindcare Assen B.V."},{"$f":"IF($A311=\"\",\"\",$D311&\" \"&$E311)","v":"45G03 Intensieve ambulante of psychiatrische gezinsbehandeling"},"45G03","Intensieve ambulante of psychiatrische gezinsbehandeling","Ambulant","uur","Totaal binnen geldigheidsduur of tijdsonafhankelijk",null,113.4,107.2,"94064988","Mindcare Assen B.V."]
[{"$f":"IF($M312=\"\",\"\",IF($M312=$M311,$A311+1,1))","v":6},{"$f":"IF($A312=\"\",\"\",$A312&\"_\"&$M312)","v":"6_Mindcare Assen B.V."},{"$f":"IF($A312=\"\",\"\",$D312&\" \"&$E312)","v":"45G04 Systeemtherapie"},"45G04","Systeemtherapie","Intensief ambulant","uur","Totaal binnen geldigheidsduur of tijdsonafhankelijk",null,52.75,141,"94064988","Mindcare Assen B.V."]
[{"$f":"IF($M313=\"\",\"\",IF($M313=$M312,$A312+1,1))","v":7},{"$f":"IF($A313=\"\",\"\",$A313&\"_\"&$M313)","v":"7_Mindcare Assen B.V."},{"$f":"IF($A313=\"\",\"\",$D313&\" \"&$E313)","v":"50G41 Specifieke doelgroepen 4 en 5 Ondersteuning jeugdigen en ouders bij complexe (echt)scheiding"},"50G41","Specifieke doelgroepen 4 en 5 Ondersteuning jeugdigen en ouders bij complexe (echt)scheiding","Specifieke doelgroepen","uur","Totaal binnen geldigheidsduur of tijdsonafhankelijk",null,118.65,118.65,"94064988","Mindcare Assen B.V."]
[{"$f":"IF($M314=\"\",\"\",IF($M314=$M313,$A313+1,1))","v":8},{"$f":"IF($A314=\"\",\"\",$A314&\"_\"&$M314)","v":"8_Mindcare Assen B.V."},{"$f":"IF($A314=\"\",\"\",$D314&\" \"&$E314)","v":"51G01 Individuele behandeling basis"},"51G01","Individuele behandeling basis","Ambulant","uur","Totaal binnen geldigheidsduur of tijdsonafhankelijk",null,122.65,113.45,"94064988","Mindcare Assen B.V."]
[{"$f":"IF($M315=\"\",\"\",IF($M315=$M314,$A314+1,1))","v":9},{"$f":"IF($A315=\"\",\"\",$A315&\"_\"&$M315)","v":"9_Mindcare Assen B.V."},{"$f":"IF($A315=\"\",\"\",$D315&\" \"&$E315)","v":"52G06 Individuele diagnostiek"},"52G06","Individuele diagnostiek","Ambulant","uur","Totaal binnen geldigheidsduur of tijdsonafhankelijk",null,123.95,113.45,"94064988","Mindcare Assen B.V."]
[{"$f":"IF($M316=\"\",\"\",IF($M316=$M315,$A315+1,1))","v":10},{"$f":"IF($A316=\"\",\"\",$A316&\"_\"&$M316)","v":"10_Mindcare Assen B.V."},{"$f":"IF($A316=\"\",\"\",$D316&\" \"&$E316)","v":"52G09 Individuele behandeling specialistisch"},"52G09","Individuele behandeling specialistisch","Ambulant","uur","Totaal binnen geldigheidsduur of tijdsonafhankelijk",null,130.5,119.80000000000001,"94064988","Mindcare Assen B.V."]
[{"$f":"IF($M317=\"\",\"\",IF($M317=$M316,$A316+1,1))","v":1},{"$f":"IF($A317=\"\",\"\",$A317&\"_\"&$M317)","v":"1_Molendrift B.V."},{"$f":"IF($A317=\"\",\"\",$D317&\" \"&$E317)","v":"45A56 Gezinsbegeleiding specialistisch"},"45A56","Gezinsbegeleiding specialistisch","Ambulant","uur","Totaal binnen geldigheidsduur of tijdsonafhankelijk",null,104.15,104.15,73730109,"Molendrift B.V."]
[{"$f":"IF($M318=\"\",\"\",IF($M318=$M317,$A317+1,1))","v":2},{"$f":"IF($A318=\"\",\"\",$A318&\"_\"&$M318)","v":"2_Molendrift B.V."},{"$f":"IF($A318=\"\",\"\",$D318&\" \"&$E318)","v":"50G40 Advies en ondersteuning vanuit jeugdhulpaanbieders bij complexe problematiek"},"50G40","Advies en ondersteuning vanuit jeugdhulpaanbieders bij complexe problematiek","Advies","uur","Totaal binnen geldigheidsduur of tijdsonafhankelijk",null,123.95,123.95,73730109,"Molendrift B.V."]
[{"$f":"IF($M319=\"\",\"\",IF($M319=$M318,$A318+1,1))","v":3},{"$f":"IF($A319=\"\",\"\",$A319&\"_\"&$M319)","v":"3_Molendrift B.V."},{"$f":"IF($A319=\"\",\"\",$D319&\" \"&$E319)","v":"50G41 Specifieke doelgroepen 4 en 5 Ondersteuning jeugdigen en ouders bij complexe (echt)scheiding"},"50G41","Specifieke doelgroepen 4 en 5 Ondersteuning jeugdigen en ouders bij complexe (echt)scheiding","Specifieke doelgroepen","uur","Totaal binnen geldigheidsduur of tijdsonafhankelijk",null,118.65,118.65,73730109,"Molendrift B.V."]
[{"$f":"IF($M320=\"\",\"\",IF($M320=$M319,$A319+1,1))","v":4},{"$f":"IF($A320=\"\",\"\",$A320&\"_\"&$M320)","v":"4_Molendrift B.V."},{"$f":"IF($A320=\"\",\"\",$D320&\" \"&$E320)","v":"51G01 Individuele behandeling basis"},"51G01","Individuele behandeling basis","Ambulant","uur","Totaal binnen geldigheidsduur of tijdsonafhankelijk",null,122.65,122.65,73730109,"Molendrift B.V."]
[{"$f":"IF($M321=\"\",\"\",IF($M321=$M320,$A320+1,1))","v":5},{"$f":"IF($A321=\"\",\"\",$A321&\"_\"&$M321)","v":"5_Molendrift B.V."},{"$f":"IF($A321=\"\",\"\",$D321&\" \"&$E321)","v":"52G06 Individuele diagnostiek"},"52G06","Individuele diagnostiek","Ambulant","uur","Totaal binnen geldigheidsduur of tijdsonafhankelijk",null,123.95,123.95,73730109,"Molendrift B.V."]
[{"$f":"IF($M322=\"\",\"\",IF($M322=$M321,$A321+1,1))","v":6},{"$f":"IF($A322=\"\",\"\",$A322&\"_\"&$M322)","v":"6_Molendrift B.V."},{"$f":"IF($A322=\"\",\"\",$D322&\" \"&$E322)","v":"52G08 Individuele behandeling specialistisch zwaar-zeer zwaar"},"52G08","Individuele behandeling specialistisch zwaar-zeer zwaar","Ambulant","uur","Totaal binnen geldigheidsduur of tijdsonafhankelijk",null,134.5,134.5,73730109,"Molendrift B.V."]
[{"$f":"IF($M323=\"\",\"\",IF($M323=$M322,$A322+1,1))","v":7},{"$f":"IF($A323=\"\",\"\",$A323&\"_\"&$M323)","v":"7_Molendrift B.V."},{"$f":"IF($A323=\"\",\"\",$D323&\" \"&$E323)","v":"52G09 Individuele behandeling specialistisch"},"52G09","Individuele behandeling specialistisch","Ambulant","uur","Totaal binnen geldigheidsduur of tijdsonafhankelijk",null,130.5,130.5,73730109,"Molendrift B.V."]
[{"$f":"IF($M324=\"\",\"\",IF($M324=$M323,$A323+1,1))","v":8},{"$f":"IF($A324=\"\",\"\",$A324&\"_\"&$M324)","v":"8_Molendrift B.V."},{"$f":"IF($A324=\"\",\"\",$D324&\" \"&$E324)","v":"52G12 Individuele behandeling specialistisch licht medicatiecontrole"},"52G12","Individuele behandeling specialistisch licht medicatiecontrole","Ambulant","uur","Totaal binnen geldigheidsduur of tijdsonafhankelijk",null,174.1,174.10000000000002,73730109,"Molendrift B.V."]
[{"$f":"IF($M325=\"\",\"\",IF($M325=$M324,$A324+1,1))","v":9},{"$f":"IF($A325=\"\",\"\",$A325&\"_\"&$M325)","v":"9_Molendrift B.V."},{"$f":"IF($A325=\"\",\"\",$D325&\" \"&$E325)","v":"52G14 Specifieke doelgroepen 8 Ernstige Dyslexie (ED)"},"52G14","Specifieke doelgroepen 8 Ernstige Dyslexie (ED)","Specifieke doelgroepen","stuk (12)","Totaal binnen geldigheidsduur of tijdsonafhankelijk",6950,9228.2000000000007,9228.2000000000007,73730109,"Molendrift B.V."]
[{"$f":"IF($M326=\"\",\"\",IF($M326=$M325,$A325+1,1))","v":1},{"$f":"IF($A326=\"\",\"\",$A326&\"_\"&$M326)","v":"1_Momento"},{"$f":"IF($A326=\"\",\"\",$D326&\" \"&$E326)","v":"44A09 Logeren laag intensief"},"44A09","Logeren laag intensief","Logeren / Respijtzorg","etmaal","Totaal binnen geldigheidsduur of tijdsonafhankelijk",null,237.3,208.45000000000002,98103649,"Momento"]
[{"$f":"IF($M327=\"\",\"\",IF($M327=$M326,$A326+1,1))","v":1},{"$f":"IF($A327=\"\",\"\",$A327&\"_\"&$M327)","v":"1_Moodboost"},{"$f":"IF($A327=\"\",\"\",$D327&\" \"&$E327)","v":"51G01 Individuele behandeling basis"},"51G01","Individuele behandeling basis","Ambulant","uur","Totaal binnen geldigheidsduur of tijdsonafhankelijk",null,122.65,116.2,94062149,"Moodboost"]
[{"$f":"IF($M328=\"\",\"\",IF($M328=$M327,$A327+1,1))","v":2},{"$f":"IF($A328=\"\",\"\",$A328&\"_\"&$M328)","v":"2_Moodboost"},{"$f":"IF($A328=\"\",\"\",$D328&\" \"&$E328)","v":"52G09 Individuele behandeling specialistisch"},"52G09","Individuele behandeling specialistisch","Ambulant","uur","Totaal binnen geldigheidsduur of tijdsonafhankelijk",null,130.5,123.65,94062149,"Moodboost"]
[{"$f":"IF($M329=\"\",\"\",IF($M329=$M328,$A328+1,1))","v":1},{"$f":"IF($A329=\"\",\"\",$A329&\"_\"&$M329)","v":"1_Noorderkompas"},{"$f":"IF($A329=\"\",\"\",$D329&\" \"&$E329)","v":"45A56 Gezinsbegeleiding specialistisch"},"45A56","Gezinsbegeleiding specialistisch","Ambulant","uur","Totaal binnen geldigheidsduur of tijdsonafhankelijk",null,104.15,90.15,"98100382","Noorderkompas"]
[{"$f":"IF($M330=\"\",\"\",IF($M330=$M329,$A329+1,1))","v":2},{"$f":"IF($A330=\"\",\"\",$A330&\"_\"&$M330)","v":"2_Noorderkompas"},{"$f":"IF($A330=\"\",\"\",$D330&\" \"&$E330)","v":"45G03 Intensieve ambulante of psychiatrische gezinsbehandeling"},"45G03","Intensieve ambulante of psychiatrische gezinsbehandeling","Ambulant","uur","Totaal binnen geldigheidsduur of tijdsonafhankelijk",null,113.4,102.80000000000001,"98100382","Noorderkompas"]
[{"$f":"IF($M331=\"\",\"\",IF($M331=$M330,$A330+1,1))","v":1},{"$f":"IF($A331=\"\",\"\",$A331&\"_\"&$M331)","v":"1_Zorgkracht 12, de Noordelijke Zorgcoöperatie U.A."},{"$f":"IF($A331=\"\",\"\",$D331&\" \"&$E331)","v":"45G02 Gezinsdiagnostiek"},"45G02","Gezinsdiagnostiek","Ambulant","uur","Totaal binnen geldigheidsduur of tijdsonafhankelijk",null,129.25,111,"98105913","Zorgkracht 12, de Noordelijke Zorgcoöperatie U.A."]
[{"$f":"IF($M332=\"\",\"\",IF($M332=$M331,$A331+1,1))","v":2},{"$f":"IF($A332=\"\",\"\",$A332&\"_\"&$M332)","v":"2_Zorgkracht 12, de Noordelijke Zorgcoöperatie U.A."},{"$f":"IF($A332=\"\",\"\",$D332&\" \"&$E332)","v":"45G04 Systeemtherapie"},"45G04","Systeemtherapie","Intensief ambulant","uur","Totaal binnen geldigheidsduur of tijdsonafhankelijk",null,141,116.7,"98105913","Zorgkracht 12, de Noordelijke Zorgcoöperatie U.A."]
[{"$f":"IF($M333=\"\",\"\",IF($M333=$M332,$A332+1,1))","v":1},{"$f":"IF($A333=\"\",\"\",$A333&\"_\"&$M333)","v":"1_OCRN B.V."},{"$f":"IF($A333=\"\",\"\",$D333&\" \"&$E333)","v":"45G04 Systeemtherapie"},"45G04","Systeemtherapie","Intensief ambulant","uur","Totaal binnen geldigheidsduur of tijdsonafhankelijk",null,141,141,"22227218","OCRN B.V."]
[{"$f":"IF($M334=\"\",\"\",IF($M334=$M333,$A333+1,1))","v":2},{"$f":"IF($A334=\"\",\"\",$A334&\"_\"&$M334)","v":"2_OCRN B.V."},{"$f":"IF($A334=\"\",\"\",$D334&\" \"&$E334)","v":"51G01 Individuele behandeling basis"},"51G01","Individuele behandeling basis","Ambulant","uur","Totaal binnen geldigheidsduur of tijdsonafhankelijk",null,122.65,122.65,"22227218","OCRN B.V."]
[{"$f":"IF($M335=\"\",\"\",IF($M335=$M334,$A334+1,1))","v":3},{"$f":"IF($A335=\"\",\"\",$A335&\"_\"&$M335)","v":"3_OCRN B.V."},{"$f":"IF($A335=\"\",\"\",$D335&\" \"&$E335)","v":"52G06 Individuele diagnostiek"},"52G06","Individuele diagnostiek","Ambulant","uur","Totaal binnen geldigheidsduur of tijdsonafhankelijk",null,123.95,123.95,"22227218","OCRN B.V."]
[{"$f":"IF($M336=\"\",\"\",IF($M336=$M335,$A335+1,1))","v":4},{"$f":"IF($A336=\"\",\"\",$A336&\"_\"&$M336)","v":"4_OCRN B.V."},{"$f":"IF($A336=\"\",\"\",$D336&\" \"&$E336)","v":"52G08 Individuele behandeling specialistisch zwaar-zeer zwaar"},"52G08","Individuele behandeling specialistisch zwaar-zeer zwaar","Ambulant","uur","Totaal binnen geldigheidsduur of tijdsonafhankelijk",null,134.5,134.5,"22227218","OCRN B.V."]
[{"$f":"IF($M337=\"\",\"\",IF($M337=$M336,$A336+1,1))","v":5},{"$f":"IF($A337=\"\",\"\",$A337&\"_\"&$M337)","v":"5_OCRN B.V."},{"$f":"IF($A337=\"\",\"\",$D337&\" \"&$E337)","v":"52G09 Individuele behandeling specialistisch"},"52G09","Individuele behandeling specialistisch","Ambulant","uur","Totaal binnen geldigheidsduur of tijdsonafhankelijk",null,130.5,130.5,"22227218","OCRN B.V."]
[{"$f":"IF($M338=\"\",\"\",IF($M338=$M337,$A337+1,1))","v":6},{"$f":"IF($A338=\"\",\"\",$A338&\"_\"&$M338)","v":"6_OCRN B.V."},{"$f":"IF($A338=\"\",\"\",$D338&\" \"&$E338)","v":"52G12 Individuele behandeling specialistisch licht medicatiecontrole"},"52G12","Individuele behandeling specialistisch licht medicatiecontrole","Ambulant","uur","Totaal binnen geldigheidsduur of tijdsonafhankelijk",null,174.1,174.10000000000002,"22227218","OCRN B.V."]
[{"$f":"IF($M339=\"\",\"\",IF($M339=$M338,$A338+1,1))","v":7},{"$f":"IF($A339=\"\",\"\",$A339&\"_\"&$M339)","v":"7_OCRN B.V."},{"$f":"IF($A339=\"\",\"\",$D339&\" \"&$E339)","v":"52G14 Specifieke doelgroepen 8 Ernstige Dyslexie (ED)"},"52G14","Specifieke doelgroepen 8 Ernstige Dyslexie (ED)","Specifieke doelgroepen","stuk (12)","Totaal binnen geldigheidsduur of tijdsonafhankelijk",7000,9228.2000000000007,9228.2000000000007,"22227218","OCRN B.V."]
[{"$f":"IF($M340=\"\",\"\",IF($M340=$M339,$A339+1,1))","v":1},{"$f":"IF($A340=\"\",\"\",$A340&\"_\"&$M340)","v":"1_Omega Groep B.V."},{"$f":"IF($A340=\"\",\"\",$D340&\" \"&$E340)","v":"41A18 Dagbesteding"},"41A18","Dagbesteding","Dagbesteding / dagbehandeling","dagdeel","per week",null,76.5,76.5,73730415,"Omega Groep B.V."]
[{"$f":"IF($M341=\"\",\"\",IF($M341=$M340,$A340+1,1))","v":2},{"$f":"IF($A341=\"\",\"\",$A341&\"_\"&$M341)","v":"2_Omega Groep B.V."},{"$f":"IF($A341=\"\",\"\",$D341&\" \"&$E341)","v":"42A01 Vervoer regulier"},"42A01","Vervoer regulier","Overig","stuk","Totaal binnen geldigheidsduur of tijdsonafhankelijk",null,11.9,10.65,73730415,"Omega Groep B.V."]
[{"$f":"IF($M342=\"\",\"\",IF($M342=$M341,$A341+1,1))","v":3},{"$f":"IF($A342=\"\",\"\",$A342&\"_\"&$M342)","v":"3_Omega Groep B.V."},{"$f":"IF($A342=\"\",\"\",$D342&\" \"&$E342)","v":"43A11 Logeren hoog intensief"},"43A11","Logeren hoog intensief","Logeren / Respijtzorg","etmaal","Totaal binnen geldigheidsduur of tijdsonafhankelijk",null,375.8,375.8,73730415,"Omega Groep B.V."]
[{"$f":"IF($M343=\"\",\"\",IF($M343=$M342,$A342+1,1))","v":4},{"$f":"IF($A343=\"\",\"\",$A343&\"_\"&$M343)","v":"4_Omega Groep B.V."},{"$f":"IF($A343=\"\",\"\",$D343&\" \"&$E343)","v":"43A35 Verblijf licht"},"43A35","Verblijf licht","Verblijf/ opname","etmaal","Totaal binnen geldigheidsduur of tijdsonafhankelijk",null,162.15,162.15,73730415,"Omega Groep B.V."]
[{"$f":"IF($M344=\"\",\"\",IF($M344=$M343,$A343+1,1))","v":5},{"$f":"IF($A344=\"\",\"\",$A344&\"_\"&$M344)","v":"5_Omega Groep B.V."},{"$f":"IF($A344=\"\",\"\",$D344&\" \"&$E344)","v":"43A38 Verblijfstraject zwaar"},"43A38","Verblijfstraject zwaar","Verblijf/ opname","etmaal","Totaal binnen geldigheidsduur of tijdsonafhankelijk",null,478.4,454.90000000000003,73730415,"Omega Groep B.V."]
[{"$f":"IF($M345=\"\",\"\",IF($M345=$M344,$A344+1,1))","v":6},{"$f":"IF($A345=\"\",\"\",$A345&\"_\"&$M345)","v":"6_Omega Groep B.V."},{"$f":"IF($A345=\"\",\"\",$D345&\" \"&$E345)","v":"43G09 Verblijf middel gezinshuis"},"43G09","Verblijf middel gezinshuis","Verblijf/ opname","etmaal","per week",null,131.9,131.9,73730415,"Omega Groep B.V."]
[{"$f":"IF($M346=\"\",\"\",IF($M346=$M345,$A345+1,1))","v":7},{"$f":"IF($A346=\"\",\"\",$A346&\"_\"&$M346)","v":"7_Omega Groep B.V."},{"$f":"IF($A346=\"\",\"\",$D346&\" \"&$E346)","v":"43G10 Verblijf middel gezinshuis-plus"},"43G10","Verblijf middel gezinshuis-plus","Verblijf/ opname","etmaal","per week",null,184.6,184.6,73730415,"Omega Groep B.V."]
[{"$f":"IF($M347=\"\",\"\",IF($M347=$M346,$A346+1,1))","v":8},{"$f":"IF($A347=\"\",\"\",$A347&\"_\"&$M347)","v":"8_Omega Groep B.V."},{"$f":"IF($A347=\"\",\"\",$D347&\" \"&$E347)","v":"44A09 Logeren laag intensief"},"44A09","Logeren laag intensief","Logeren / Respijtzorg","etmaal","Totaal binnen geldigheidsduur of tijdsonafhankelijk",null,237.3,237.3,73730415,"Omega Groep B.V."]
[{"$f":"IF($M348=\"\",\"\",IF($M348=$M347,$A347+1,1))","v":9},{"$f":"IF($A348=\"\",\"\",$A348&\"_\"&$M348)","v":"9_Omega Groep B.V."},{"$f":"IF($A348=\"\",\"\",$D348&\" \"&$E348)","v":"44G02 Verblijf langdurig (beschermd) wonen"},"44G02","Verblijf langdurig (beschermd) wonen","Verblijf/ opname","etmaal","per week",null,230.7,230.70000000000002,73730415,"Omega Groep B.V."]
[{"$f":"IF($M349=\"\",\"\",IF($M349=$M348,$A348+1,1))","v":10},{"$f":"IF($A349=\"\",\"\",$A349&\"_\"&$M349)","v":"10_Omega Groep B.V."},{"$f":"IF($A349=\"\",\"\",$D349&\" \"&$E349)","v":"45A04 Individuele begeleiding basis"},"45A04","Individuele begeleiding basis","Ambulant","uur","Totaal binnen geldigheidsduur of tijdsonafhankelijk",null,81.75,81.75,73730415,"Omega Groep B.V."]
[{"$f":"IF($M350=\"\",\"\",IF($M350=$M349,$A349+1,1))","v":11},{"$f":"IF($A350=\"\",\"\",$A350&\"_\"&$M350)","v":"11_Omega Groep B.V."},{"$f":"IF($A350=\"\",\"\",$D350&\" \"&$E350)","v":"45A51 Gezinsbegeleiding basis"},"45A51","Gezinsbegeleiding basis","Ambulant","uur","Totaal binnen geldigheidsduur of tijdsonafhankelijk",null,81.75,81.75,73730415,"Omega Groep B.V."]
[{"$f":"IF($M351=\"\",\"\",IF($M351=$M350,$A350+1,1))","v":12},{"$f":"IF($A351=\"\",\"\",$A351&\"_\"&$M351)","v":"12_Omega Groep B.V."},{"$f":"IF($A351=\"\",\"\",$D351&\" \"&$E351)","v":"45A53 Individuele begeleiding specialistisch"},"45A53","Individuele begeleiding specialistisch","Ambulant","uur","Totaal binnen geldigheidsduur of tijdsonafhankelijk",null,104.15,104.15,73730415,"Omega Groep B.V."]
[{"$f":"IF($M352=\"\",\"\",IF($M352=$M351,$A351+1,1))","v":13},{"$f":"IF($A352=\"\",\"\",$A352&\"_\"&$M352)","v":"13_Omega Groep B.V."},{"$f":"IF($A352=\"\",\"\",$D352&\" \"&$E352)","v":"45A56 Gezinsbegeleiding specialistisch"},"45A56","Gezinsbegeleiding specialistisch","Ambulant","uur","Totaal binnen geldigheidsduur of tijdsonafhankelijk",null,104.15,104.15,73730415,"Omega Groep B.V."]
[{"$f":"IF($M353=\"\",\"\",IF($M353=$M352,$A352+1,1))","v":1},{"$f":"IF($A353=\"\",\"\",$A353&\"_\"&$M353)","v":"1_omgangshuis Loman"},{"$f":"IF($A353=\"\",\"\",$D353&\" \"&$E353)","v":"45A51 Gezinsbegeleiding basis"},"45A51","Gezinsbegeleiding basis","Ambulant","uur","Totaal binnen geldigheidsduur of tijdsonafhankelijk",null,81.75,64.55,94065671,"omgangshuis Loman"]
[{"$f":"IF($M354=\"\",\"\",IF($M354=$M353,$A353+1,1))","v":2},{"$f":"IF($A354=\"\",\"\",$A354&\"_\"&$M354)","v":"2_omgangshuis Loman"},{"$f":"IF($A354=\"\",\"\",$D354&\" \"&$E354)","v":"45A56 Gezinsbegeleiding specialistisch"},"45A56","Gezinsbegeleiding specialistisch","Ambulant","uur","Totaal binnen geldigheidsduur of tijdsonafhankelijk",null,104.15,80.7,94065671,"omgangshuis Loman"]
[{"$f":"IF($M355=\"\",\"\",IF($M355=$M354,$A354+1,1))","v":3},{"$f":"IF($A355=\"\",\"\",$A355&\"_\"&$M355)","v":"3_omgangshuis Loman"},{"$f":"IF($A355=\"\",\"\",$D355&\" \"&$E355)","v":"50G41 Specifieke doelgroepen 4 en 5 Ondersteuning jeugdigen en ouders bij complexe (echt)scheiding"},"50G41","Specifieke doelgroepen 4 en 5 Ondersteuning jeugdigen en ouders bij complexe (echt)scheiding","Specifieke doelgroepen","uur","Totaal binnen geldigheidsduur of tijdsonafhankelijk",null,118.65,96.800000000000011,94065671,"omgangshuis Loman"]
[{"$f":"IF($M356=\"\",\"\",IF($M356=$M355,$A355+1,1))","v":1},{"$f":"IF($A356=\"\",\"\",$A356&\"_\"&$M356)","v":"1_Opdidakt B.V."},{"$f":"IF($A356=\"\",\"\",$D356&\" \"&$E356)","v":"52G14 Specifieke doelgroepen 8 Ernstige Dyslexie (ED)"},"52G14","Specifieke doelgroepen 8 Ernstige Dyslexie (ED)","Specifieke doelgroepen","stuk (12)","Totaal binnen geldigheidsduur of tijdsonafhankelijk",null,9228.2000000000007,9228.2000000000007,98102686,"Opdidakt B.V."]
[{"$f":"IF($M357=\"\",\"\",IF($M357=$M356,$A356+1,1))","v":1},{"$f":"IF($A357=\"\",\"\",$A357&\"_\"&$M357)","v":"1_Orthopedagogische Praktijk De Kern"},{"$f":"IF($A357=\"\",\"\",$D357&\" \"&$E357)","v":"51G01 Individuele behandeling basis"},"51G01","Individuele behandeling basis","Ambulant","uur","Totaal binnen geldigheidsduur of tijdsonafhankelijk",null,122.65,106.75,94060369,"Orthopedagogische Praktijk De Kern"]
[{"$f":"IF($M358=\"\",\"\",IF($M358=$M357,$A357+1,1))","v":2},{"$f":"IF($A358=\"\",\"\",$A358&\"_\"&$M358)","v":"2_Orthopedagogische Praktijk De Kern"},{"$f":"IF($A358=\"\",\"\",$D358&\" \"&$E358)","v":"52G08 Individuele behandeling specialistisch zwaar-zeer zwaar"},"52G08","Individuele behandeling specialistisch zwaar-zeer zwaar","Ambulant","uur","Totaal binnen geldigheidsduur of tijdsonafhankelijk",null,134.5,106.75,94060369,"Orthopedagogische Praktijk De Kern"]
[{"$f":"IF($M359=\"\",\"\",IF($M359=$M358,$A358+1,1))","v":3},{"$f":"IF($A359=\"\",\"\",$A359&\"_\"&$M359)","v":"3_Orthopedagogische Praktijk De Kern"},{"$f":"IF($A359=\"\",\"\",$D359&\" \"&$E359)","v":"52G09 Individuele behandeling specialistisch"},"52G09","Individuele behandeling specialistisch","Ambulant","uur","Totaal binnen geldigheidsduur of tijdsonafhankelijk",null,130.5,106.75,94060369,"Orthopedagogische Praktijk De Kern"]
[{"$f":"IF($M360=\"\",\"\",IF($M360=$M359,$A359+1,1))","v":1},{"$f":"IF($A360=\"\",\"\",$A360&\"_\"&$M360)","v":"1_Overstag Zorg B.V."},{"$f":"IF($A360=\"\",\"\",$D360&\" \"&$E360)","v":"41A18 Dagbesteding"},"41A18","Dagbesteding","Dagbesteding / dagbehandeling","dagdeel","per week",null,76.5,76.5,73730183,"Overstag Zorg B.V."]
[{"$f":"IF($M361=\"\",\"\",IF($M361=$M360,$A360+1,1))","v":2},{"$f":"IF($A361=\"\",\"\",$A361&\"_\"&$M361)","v":"2_Overstag Zorg B.V."},{"$f":"IF($A361=\"\",\"\",$D361&\" \"&$E361)","v":"45A04 Individuele begeleiding basis"},"45A04","Individuele begeleiding basis","Ambulant","uur","Totaal binnen geldigheidsduur of tijdsonafhankelijk",null,81.75,81.75,73730183,"Overstag Zorg B.V."]
[{"$f":"IF($M362=\"\",\"\",IF($M362=$M361,$A361+1,1))","v":1},{"$f":"IF($A362=\"\",\"\",$A362&\"_\"&$M362)","v":"1_Overstag Zorg BV"},{"$f":"IF($A362=\"\",\"\",$D362&\" \"&$E362)","v":"43A11 Logeren hoog intensief"},"43A11","Logeren hoog intensief","Logeren / Respijtzorg","etmaal","Totaal binnen geldigheidsduur of tijdsonafhankelijk",null,375.8,375.8,73730183,"Overstag Zorg BV"]
[{"$f":"IF($M363=\"\",\"\",IF($M363=$M362,$A362+1,1))","v":2},{"$f":"IF($A363=\"\",\"\",$A363&\"_\"&$M363)","v":"2_Overstag Zorg BV"},{"$f":"IF($A363=\"\",\"\",$D363&\" \"&$E363)","v":"43A37 Verblijfstraject middelzwaar"},"43A37","Verblijfstraject middelzwaar","Verblijf/ opname","etmaal","Totaal binnen geldigheidsduur of tijdsonafhankelijk",null,398.15,398.15000000000003,73730183,"Overstag Zorg BV"]
[{"$f":"IF($M364=\"\",\"\",IF($M364=$M363,$A363+1,1))","v":3},{"$f":"IF($A364=\"\",\"\",$A364&\"_\"&$M364)","v":"3_Overstag Zorg BV"},{"$f":"IF($A364=\"\",\"\",$D364&\" \"&$E364)","v":"45A53 Individuele begeleiding specialistisch"},"45A53","Individuele begeleiding specialistisch","Ambulant","uur","Totaal binnen geldigheidsduur of tijdsonafhankelijk",null,104.15,104.15,73730183,"Overstag Zorg BV"]
[{"$f":"IF($M365=\"\",\"\",IF($M365=$M364,$A364+1,1))","v":4},{"$f":"IF($A365=\"\",\"\",$A365&\"_\"&$M365)","v":"4_Overstag Zorg BV"},{"$f":"IF($A365=\"\",\"\",$D365&\" \"&$E365)","v":"45G24 Groepsbegeleidingsprogramma jongeren zonder structurele overnachting"},"45G24","Groepsbegeleidingsprogramma jongeren zonder structurele overnachting","Intensief ambulant","uur","Totaal binnen geldigheidsduur of tijdsonafhankelijk",null,93.55,93.550000000000011,73730183,"Overstag Zorg BV"]
[{"$f":"IF($M366=\"\",\"\",IF($M366=$M365,$A365+1,1))","v":1},{"$f":"IF($A366=\"\",\"\",$A366&\"_\"&$M366)","v":"1_Parlayan B.V."},{"$f":"IF($A366=\"\",\"\",$D366&\" \"&$E366)","v":"45A04 Individuele begeleiding basis"},"45A04","Individuele begeleiding basis","Ambulant","uur","Totaal binnen geldigheidsduur of tijdsonafhankelijk",null,81.75,79.7,73737023,"Parlayan B.V."]
[{"$f":"IF($M367=\"\",\"\",IF($M367=$M366,$A366+1,1))","v":2},{"$f":"IF($A367=\"\",\"\",$A367&\"_\"&$M367)","v":"2_Parlayan B.V."},{"$f":"IF($A367=\"\",\"\",$D367&\" \"&$E367)","v":"45A51 Gezinsbegeleiding basis"},"45A51","Gezinsbegeleiding basis","Ambulant","uur","Totaal binnen geldigheidsduur of tijdsonafhankelijk",null,81.75,79.7,73737023,"Parlayan B.V."]
[{"$f":"IF($M368=\"\",\"\",IF($M368=$M367,$A367+1,1))","v":3},{"$f":"IF($A368=\"\",\"\",$A368&\"_\"&$M368)","v":"3_Parlayan B.V."},{"$f":"IF($A368=\"\",\"\",$D368&\" \"&$E368)","v":"45A53 Individuele begeleiding specialistisch"},"45A53","Individuele begeleiding specialistisch","Ambulant","uur","Totaal binnen geldigheidsduur of tijdsonafhankelijk",null,104.15,101.60000000000001,73737023,"Parlayan B.V."]
[{"$f":"IF($M369=\"\",\"\",IF($M369=$M368,$A368+1,1))","v":4},{"$f":"IF($A369=\"\",\"\",$A369&\"_\"&$M369)","v":"4_Parlayan B.V."},{"$f":"IF($A369=\"\",\"\",$D369&\" \"&$E369)","v":"45A56 Gezinsbegeleiding specialistisch"},"45A56","Gezinsbegeleiding specialistisch","Ambulant","uur","Totaal binnen geldigheidsduur of tijdsonafhankelijk",null,104.15,101.60000000000001,73737023,"Parlayan B.V."]
[{"$f":"IF($M370=\"\",\"\",IF($M370=$M369,$A369+1,1))","v":5},{"$f":"IF($A370=\"\",\"\",$A370&\"_\"&$M370)","v":"5_Parlayan B.V."},{"$f":"IF($A370=\"\",\"\",$D370&\" \"&$E370)","v":"51G01 Individuele behandeling basis"},"51G01","Individuele behandeling basis","Ambulant","uur","Totaal binnen geldigheidsduur of tijdsonafhankelijk",null,122.65,122.65,73737023,"Parlayan B.V."]
[{"$f":"IF($M371=\"\",\"\",IF($M371=$M370,$A370+1,1))","v":6},{"$f":"IF($A371=\"\",\"\",$A371&\"_\"&$M371)","v":"6_Parlayan B.V."},{"$f":"IF($A371=\"\",\"\",$D371&\" \"&$E371)","v":"52G06 Individuele diagnostiek"},"52G06","Individuele diagnostiek","Ambulant","uur","Totaal binnen geldigheidsduur of tijdsonafhankelijk",null,123.95,123.95,73737023,"Parlayan B.V."]
[{"$f":"IF($M372=\"\",\"\",IF($M372=$M371,$A371+1,1))","v":7},{"$f":"IF($A372=\"\",\"\",$A372&\"_\"&$M372)","v":"7_Parlayan B.V."},{"$f":"IF($A372=\"\",\"\",$D372&\" \"&$E372)","v":"52G09 Individuele behandeling specialistisch"},"52G09","Individuele behandeling specialistisch","Ambulant","uur","Totaal binnen geldigheidsduur of tijdsonafhankelijk",null,130.5,130.5,73737023,"Parlayan B.V."]
[{"$f":"IF($M373=\"\",\"\",IF($M373=$M372,$A372+1,1))","v":1},{"$f":"IF($A373=\"\",\"\",$A373&\"_\"&$M373)","v":"1_Passend Begeleiden"},{"$f":"IF($A373=\"\",\"\",$D373&\" \"&$E373)","v":"45A04 Individuele begeleiding basis"},"45A04","Individuele begeleiding basis","Ambulant","uur","Totaal binnen geldigheidsduur of tijdsonafhankelijk",null,81.75,81.75,"94063901","Passend Begeleiden"]
[{"$f":"IF($M374=\"\",\"\",IF($M374=$M373,$A373+1,1))","v":2},{"$f":"IF($A374=\"\",\"\",$A374&\"_\"&$M374)","v":"2_Passend Begeleiden"},{"$f":"IF($A374=\"\",\"\",$D374&\" \"&$E374)","v":"45A53 Individuele begeleiding specialistisch"},"45A53","Individuele begeleiding specialistisch","Ambulant","uur","Totaal binnen geldigheidsduur of tijdsonafhankelijk",null,104.15,104.15,"94063901","Passend Begeleiden"]
[{"$f":"IF($M375=\"\",\"\",IF($M375=$M374,$A374+1,1))","v":1},{"$f":"IF($A375=\"\",\"\",$A375&\"_\"&$M375)","v":"1_Pedagogische praktijk Gieten"},{"$f":"IF($A375=\"\",\"\",$D375&\" \"&$E375)","v":"45A04 Individuele begeleiding basis"},"45A04","Individuele begeleiding basis","Ambulant","uur","Totaal binnen geldigheidsduur of tijdsonafhankelijk",null,81.75,81.75,94064729,"Pedagogische praktijk Gieten"]
[{"$f":"IF($M376=\"\",\"\",IF($M376=$M375,$A375+1,1))","v":2},{"$f":"IF($A376=\"\",\"\",$A376&\"_\"&$M376)","v":"2_Pedagogische praktijk Gieten"},{"$f":"IF($A376=\"\",\"\",$D376&\" \"&$E376)","v":"45A51 Gezinsbegeleiding basis"},"45A51","Gezinsbegeleiding basis","Ambulant","uur","Totaal binnen geldigheidsduur of tijdsonafhankelijk",null,81.75,81.75,94064729,"Pedagogische praktijk Gieten"]
[{"$f":"IF($M377=\"\",\"\",IF($M377=$M376,$A376+1,1))","v":3},{"$f":"IF($A377=\"\",\"\",$A377&\"_\"&$M377)","v":"3_Pedagogische praktijk Gieten"},{"$f":"IF($A377=\"\",\"\",$D377&\" \"&$E377)","v":"45A53 Individuele begeleiding specialistisch"},"45A53","Individuele begeleiding specialistisch","Ambulant","uur","Totaal binnen geldigheidsduur of tijdsonafhankelijk",null,104.15,104.15,94064729,"Pedagogische praktijk Gieten"]
[{"$f":"IF($M378=\"\",\"\",IF($M378=$M377,$A377+1,1))","v":4},{"$f":"IF($A378=\"\",\"\",$A378&\"_\"&$M378)","v":"4_Pedagogische praktijk Gieten"},{"$f":"IF($A378=\"\",\"\",$D378&\" \"&$E378)","v":"45A56 Gezinsbegeleiding specialistisch"},"45A56","Gezinsbegeleiding specialistisch","Ambulant","uur","Totaal binnen geldigheidsduur of tijdsonafhankelijk",null,104.15,104.15,94064729,"Pedagogische praktijk Gieten"]
[{"$f":"IF($M379=\"\",\"\",IF($M379=$M378,$A378+1,1))","v":1},{"$f":"IF($A379=\"\",\"\",$A379&\"_\"&$M379)","v":"1_Pedagogische Praktijk Marum"},{"$f":"IF($A379=\"\",\"\",$D379&\" \"&$E379)","v":"45A04 Individuele begeleiding basis"},"45A04","Individuele begeleiding basis","Ambulant","uur","Totaal binnen geldigheidsduur of tijdsonafhankelijk",null,81.75,78.800000000000011,"94066333","Pedagogische Praktijk Marum"]
[{"$f":"IF($M380=\"\",\"\",IF($M380=$M379,$A379+1,1))","v":2},{"$f":"IF($A380=\"\",\"\",$A380&\"_\"&$M380)","v":"2_Pedagogische Praktijk Marum"},{"$f":"IF($A380=\"\",\"\",$D380&\" \"&$E380)","v":"45A51 Gezinsbegeleiding basis"},"45A51","Gezinsbegeleiding basis","Ambulant","uur","Totaal binnen geldigheidsduur of tijdsonafhankelijk",null,81.75,78.800000000000011,"94066333","Pedagogische Praktijk Marum"]
[{"$f":"IF($M381=\"\",\"\",IF($M381=$M380,$A380+1,1))","v":3},{"$f":"IF($A381=\"\",\"\",$A381&\"_\"&$M381)","v":"3_Pedagogische Praktijk Marum"},{"$f":"IF($A381=\"\",\"\",$D381&\" \"&$E381)","v":"45A53 Individuele begeleiding specialistisch"},"45A53","Individuele begeleiding specialistisch","Ambulant","uur","Totaal binnen geldigheidsduur of tijdsonafhankelijk",null,104.15,100.45,"94066333","Pedagogische Praktijk Marum"]
[{"$f":"IF($M382=\"\",\"\",IF($M382=$M381,$A381+1,1))","v":4},{"$f":"IF($A382=\"\",\"\",$A382&\"_\"&$M382)","v":"4_Pedagogische Praktijk Marum"},{"$f":"IF($A382=\"\",\"\",$D382&\" \"&$E382)","v":"45A56 Gezinsbegeleiding specialistisch"},"45A56","Gezinsbegeleiding specialistisch","Ambulant","uur","Totaal binnen geldigheidsduur of tijdsonafhankelijk",null,104.15,100.45,"94066333","Pedagogische Praktijk Marum"]
[{"$f":"IF($M383=\"\",\"\",IF($M383=$M382,$A382+1,1))","v":1},{"$f":"IF($A383=\"\",\"\",$A383&\"_\"&$M383)","v":"1_Pi-groep Zorg B.V."},{"$f":"IF($A383=\"\",\"\",$D383&\" \"&$E383)","v":"43A35 Verblijf licht"},"43A35","Verblijf licht","Verblijf/ opname","etmaal","Totaal binnen geldigheidsduur of tijdsonafhankelijk",null,162.15,158.9,"72727340","Pi-groep Zorg B.V."]
[{"$f":"IF($M384=\"\",\"\",IF($M384=$M383,$A383+1,1))","v":2},{"$f":"IF($A384=\"\",\"\",$A384&\"_\"&$M384)","v":"2_Pi-groep Zorg B.V."},{"$f":"IF($A384=\"\",\"\",$D384&\" \"&$E384)","v":"45G04 Systeemtherapie"},"45G04","Systeemtherapie","Intensief ambulant","uur","Totaal binnen geldigheidsduur of tijdsonafhankelijk",null,141,130.05000000000001,72727340,"Pi-groep Zorg B.V."]
[{"$f":"IF($M385=\"\",\"\",IF($M385=$M384,$A384+1,1))","v":3},{"$f":"IF($A385=\"\",\"\",$A385&\"_\"&$M385)","v":"3_Pi-groep Zorg B.V."},{"$f":"IF($A385=\"\",\"\",$D385&\" \"&$E385)","v":"51G01 Individuele behandeling basis"},"51G01","Individuele behandeling basis","Ambulant","uur","Totaal binnen geldigheidsduur of tijdsonafhankelijk",null,122.65,113.05000000000001,72727340,"Pi-groep Zorg B.V."]
[{"$f":"IF($M386=\"\",\"\",IF($M386=$M385,$A385+1,1))","v":4},{"$f":"IF($A386=\"\",\"\",$A386&\"_\"&$M386)","v":"4_Pi-groep Zorg B.V."},{"$f":"IF($A386=\"\",\"\",$D386&\" \"&$E386)","v":"52G06 Individuele diagnostiek"},"52G06","Individuele diagnostiek","Ambulant","uur","Totaal binnen geldigheidsduur of tijdsonafhankelijk",null,123.95,114.25,72727340,"Pi-groep Zorg B.V."]
[{"$f":"IF($M387=\"\",\"\",IF($M387=$M386,$A386+1,1))","v":5},{"$f":"IF($A387=\"\",\"\",$A387&\"_\"&$M387)","v":"5_Pi-groep Zorg B.V."},{"$f":"IF($A387=\"\",\"\",$D387&\" \"&$E387)","v":"52G09 Individuele behandeling specialistisch"},"52G09","Individuele behandeling specialistisch","Ambulant","uur","Totaal binnen geldigheidsduur of tijdsonafhankelijk",null,130.5,127.95,72727340,"Pi-groep Zorg B.V."]
[{"$f":"IF($M388=\"\",\"\",IF($M388=$M387,$A387+1,1))","v":6},{"$f":"IF($A388=\"\",\"\",$A388&\"_\"&$M388)","v":"6_Pi-groep Zorg B.V."},{"$f":"IF($A388=\"\",\"\",$D388&\" \"&$E388)","v":"52G12 Individuele behandeling specialistisch licht medicatiecontrole"},"52G12","Individuele behandeling specialistisch licht medicatiecontrole","Ambulant","uur","Totaal binnen geldigheidsduur of tijdsonafhankelijk",null,174.1,157.30000000000001,72727340,"Pi-groep Zorg B.V."]
[{"$f":"IF($M389=\"\",\"\",IF($M389=$M388,$A388+1,1))","v":1},{"$f":"IF($A389=\"\",\"\",$A389&\"_\"&$M389)","v":"1_PP UNIEK voor Kind, Jongere en Gezin"},{"$f":"IF($A389=\"\",\"\",$D389&\" \"&$E389)","v":"51G01 Individuele behandeling basis"},"51G01","Individuele behandeling basis","Ambulant","uur","Totaal binnen geldigheidsduur of tijdsonafhankelijk",null,122.65,94.45,"98104456","PP UNIEK voor Kind, Jongere en Gezin"]
[{"$f":"IF($M390=\"\",\"\",IF($M390=$M389,$A389+1,1))","v":2},{"$f":"IF($A390=\"\",\"\",$A390&\"_\"&$M390)","v":"2_PP UNIEK voor Kind, Jongere en Gezin"},{"$f":"IF($A390=\"\",\"\",$D390&\" \"&$E390)","v":"52G09 Individuele behandeling specialistisch"},"52G09","Individuele behandeling specialistisch","Ambulant","uur","Totaal binnen geldigheidsduur of tijdsonafhankelijk",null,130.5,99.7,"98104456","PP UNIEK voor Kind, Jongere en Gezin"]
[{"$f":"IF($M391=\"\",\"\",IF($M391=$M390,$A390+1,1))","v":1},{"$f":"IF($A391=\"\",\"\",$A391&\"_\"&$M391)","v":"1_Praktijk de Bongerd"},{"$f":"IF($A391=\"\",\"\",$D391&\" \"&$E391)","v":"51G01 Individuele behandeling basis"},"51G01","Individuele behandeling basis","Ambulant","uur","Totaal binnen geldigheidsduur of tijdsonafhankelijk",null,122.65,122.65,94002681,"Praktijk de Bongerd"]
[{"$f":"IF($M392=\"\",\"\",IF($M392=$M391,$A391+1,1))","v":2},{"$f":"IF($A392=\"\",\"\",$A392&\"_\"&$M392)","v":"2_Praktijk de Bongerd"},{"$f":"IF($A392=\"\",\"\",$D392&\" \"&$E392)","v":"52G09 Individuele behandeling specialistisch"},"52G09","Individuele behandeling specialistisch","Ambulant","uur","Totaal binnen geldigheidsduur of tijdsonafhankelijk",null,130.5,130.5,94002681,"Praktijk de Bongerd"]
[{"$f":"IF($M393=\"\",\"\",IF($M393=$M392,$A392+1,1))","v":1},{"$f":"IF($A393=\"\",\"\",$A393&\"_\"&$M393)","v":"1_Praktijk Eerstelijns Psychologen Groningen"},{"$f":"IF($A393=\"\",\"\",$D393&\" \"&$E393)","v":"52G06 Individuele diagnostiek"},"52G06","Individuele diagnostiek","Ambulant","uur","Totaal binnen geldigheidsduur of tijdsonafhankelijk",null,123.95,120.4,94000865,"Praktijk Eerstelijns Psychologen Groningen"]
[{"$f":"IF($M394=\"\",\"\",IF($M394=$M393,$A393+1,1))","v":2},{"$f":"IF($A394=\"\",\"\",$A394&\"_\"&$M394)","v":"2_Praktijk Eerstelijns Psychologen Groningen"},{"$f":"IF($A394=\"\",\"\",$D394&\" \"&$E394)","v":"52G09 Individuele behandeling specialistisch"},"52G09","Individuele behandeling specialistisch","Ambulant","uur","Totaal binnen geldigheidsduur of tijdsonafhankelijk",null,130.5,126.75,94000865,"Praktijk Eerstelijns Psychologen Groningen"]
[{"$f":"IF($M395=\"\",\"\",IF($M395=$M394,$A394+1,1))","v":1},{"$f":"IF($A395=\"\",\"\",$A395&\"_\"&$M395)","v":"1_Praktijk Groningen Zuid"},{"$f":"IF($A395=\"\",\"\",$D395&\" \"&$E395)","v":"51G01 Individuele behandeling basis"},"51G01","Individuele behandeling basis","Ambulant","uur","Totaal binnen geldigheidsduur of tijdsonafhankelijk",null,122.65,122.65,"94065632","Praktijk Groningen Zuid"]
[{"$f":"IF($M396=\"\",\"\",IF($M396=$M395,$A395+1,1))","v":2},{"$f":"IF($A396=\"\",\"\",$A396&\"_\"&$M396)","v":"2_Praktijk Groningen Zuid"},{"$f":"IF($A396=\"\",\"\",$D396&\" \"&$E396)","v":"52G06 Individuele diagnostiek"},"52G06","Individuele diagnostiek","Ambulant","uur","Totaal binnen geldigheidsduur of tijdsonafhankelijk",null,123.95,123.95,"94065632","Praktijk Groningen Zuid"]
[{"$f":"IF($M397=\"\",\"\",IF($M397=$M396,$A396+1,1))","v":3},{"$f":"IF($A397=\"\",\"\",$A397&\"_\"&$M397)","v":"3_Praktijk Groningen Zuid"},{"$f":"IF($A397=\"\",\"\",$D397&\" \"&$E397)","v":"52G09 Individuele behandeling specialistisch"},"52G09","Individuele behandeling specialistisch","Ambulant","uur","Totaal binnen geldigheidsduur of tijdsonafhankelijk",null,130.5,130.5,"94065632","Praktijk Groningen Zuid"]
[{"$f":"IF($M398=\"\",\"\",IF($M398=$M397,$A397+1,1))","v":1},{"$f":"IF($A398=\"\",\"\",$A398&\"_\"&$M398)","v":"1_Praktijk KJ"},{"$f":"IF($A398=\"\",\"\",$D398&\" \"&$E398)","v":"51G01 Individuele behandeling basis"},"51G01","Individuele behandeling basis","Ambulant","uur","Totaal binnen geldigheidsduur of tijdsonafhankelijk",null,122.65,122.65,94059741,"Praktijk KJ"]
[{"$f":"IF($M399=\"\",\"\",IF($M399=$M398,$A398+1,1))","v":2},{"$f":"IF($A399=\"\",\"\",$A399&\"_\"&$M399)","v":"2_Praktijk KJ"},{"$f":"IF($A399=\"\",\"\",$D399&\" \"&$E399)","v":"52G09 Individuele behandeling specialistisch"},"52G09","Individuele behandeling specialistisch","Ambulant","uur","Totaal binnen geldigheidsduur of tijdsonafhankelijk",null,130.5,130.5,94059741,"Praktijk KJ"]
[{"$f":"IF($M400=\"\",\"\",IF($M400=$M399,$A399+1,1))","v":1},{"$f":"IF($A400=\"\",\"\",$A400&\"_\"&$M400)","v":"1_Praktijk Koekkoek"},{"$f":"IF($A400=\"\",\"\",$D400&\" \"&$E400)","v":"51G01 Individuele behandeling basis"},"51G01","Individuele behandeling basis","Ambulant","uur","Totaal binnen geldigheidsduur of tijdsonafhankelijk",null,122.65,112,"94057529","Praktijk Koekkoek"]
[{"$f":"IF($M401=\"\",\"\",IF($M401=$M400,$A400+1,1))","v":2},{"$f":"IF($A401=\"\",\"\",$A401&\"_\"&$M401)","v":"2_Praktijk Koekkoek"},{"$f":"IF($A401=\"\",\"\",$D401&\" \"&$E401)","v":"52G09 Individuele behandeling specialistisch"},"52G09","Individuele behandeling specialistisch","Ambulant","uur","Totaal binnen geldigheidsduur of tijdsonafhankelijk",null,130.5,119.2,"94057529","Praktijk Koekkoek"]
[{"$f":"IF($M402=\"\",\"\",IF($M402=$M401,$A401+1,1))","v":1},{"$f":"IF($A402=\"\",\"\",$A402&\"_\"&$M402)","v":"1_Praktijk Praght"},{"$f":"IF($A402=\"\",\"\",$D402&\" \"&$E402)","v":"45A56 Gezinsbegeleiding specialistisch"},"45A56","Gezinsbegeleiding specialistisch","Ambulant","uur","Totaal binnen geldigheidsduur of tijdsonafhankelijk",null,104.15,104.15,94067980,"Praktijk Praght"]
[{"$f":"IF($M403=\"\",\"\",IF($M403=$M402,$A402+1,1))","v":2},{"$f":"IF($A403=\"\",\"\",$A403&\"_\"&$M403)","v":"2_Praktijk Praght"},{"$f":"IF($A403=\"\",\"\",$D403&\" \"&$E403)","v":"45G03 Intensieve ambulante of psychiatrische gezinsbehandeling"},"45G03","Intensieve ambulante of psychiatrische gezinsbehandeling","Ambulant","uur","Totaal binnen geldigheidsduur of tijdsonafhankelijk",null,113.4,113.4,94067980,"Praktijk Praght"]
[{"$f":"IF($M404=\"\",\"\",IF($M404=$M403,$A403+1,1))","v":3},{"$f":"IF($A404=\"\",\"\",$A404&\"_\"&$M404)","v":"3_Praktijk Praght"},{"$f":"IF($A404=\"\",\"\",$D404&\" \"&$E404)","v":"51G01 Individuele behandeling basis"},"51G01","Individuele behandeling basis","Ambulant","uur","Totaal binnen geldigheidsduur of tijdsonafhankelijk",null,122.65,122.65,94067980,"Praktijk Praght"]
[{"$f":"IF($M405=\"\",\"\",IF($M405=$M404,$A404+1,1))","v":4},{"$f":"IF($A405=\"\",\"\",$A405&\"_\"&$M405)","v":"4_Praktijk Praght"},{"$f":"IF($A405=\"\",\"\",$D405&\" \"&$E405)","v":"52G09 Individuele behandeling specialistisch"},"52G09","Individuele behandeling specialistisch","Ambulant","uur","Totaal binnen geldigheidsduur of tijdsonafhankelijk",null,130.5,130.5,94067980,"Praktijk Praght"]
[{"$f":"IF($M406=\"\",\"\",IF($M406=$M405,$A405+1,1))","v":1},{"$f":"IF($A406=\"\",\"\",$A406&\"_\"&$M406)","v":"1_Praktijk Psychotrauma Groningen"},{"$f":"IF($A406=\"\",\"\",$D406&\" \"&$E406)","v":"51G01 Individuele behandeling basis"},"51G01","Individuele behandeling basis","Ambulant","uur","Totaal binnen geldigheidsduur of tijdsonafhankelijk",null,122.65,121.45,94063240,"Praktijk Psychotrauma Groningen"]
[{"$f":"IF($M407=\"\",\"\",IF($M407=$M406,$A406+1,1))","v":2},{"$f":"IF($A407=\"\",\"\",$A407&\"_\"&$M407)","v":"2_Praktijk Psychotrauma Groningen"},{"$f":"IF($A407=\"\",\"\",$D407&\" \"&$E407)","v":"52G09 Individuele behandeling specialistisch"},"52G09","Individuele behandeling specialistisch","Ambulant","uur","Totaal binnen geldigheidsduur of tijdsonafhankelijk",null,130.5,129.25,94063240,"Praktijk Psychotrauma Groningen"]
[{"$f":"IF($M408=\"\",\"\",IF($M408=$M407,$A407+1,1))","v":1},{"$f":"IF($A408=\"\",\"\",$A408&\"_\"&$M408)","v":"1_Praktijk Systeemtherapie Groningen B.V."},{"$f":"IF($A408=\"\",\"\",$D408&\" \"&$E408)","v":"45G03 Intensieve ambulante of psychiatrische gezinsbehandeling"},"45G03","Intensieve ambulante of psychiatrische gezinsbehandeling","Ambulant","uur","Totaal binnen geldigheidsduur of tijdsonafhankelijk",null,113.4,113.4,90092588,"Praktijk Systeemtherapie Groningen B.V."]
[{"$f":"IF($M409=\"\",\"\",IF($M409=$M408,$A408+1,1))","v":2},{"$f":"IF($A409=\"\",\"\",$A409&\"_\"&$M409)","v":"2_Praktijk Systeemtherapie Groningen B.V."},{"$f":"IF($A409=\"\",\"\",$D409&\" \"&$E409)","v":"45G04 Systeemtherapie"},"45G04","Systeemtherapie","Intensief ambulant","uur","Totaal binnen geldigheidsduur of tijdsonafhankelijk",null,141,136.94999999999999,90092588,"Praktijk Systeemtherapie Groningen B.V."]
[{"$f":"IF($M410=\"\",\"\",IF($M410=$M409,$A409+1,1))","v":3},{"$f":"IF($A410=\"\",\"\",$A410&\"_\"&$M410)","v":"3_Praktijk Systeemtherapie Groningen B.V."},{"$f":"IF($A410=\"\",\"\",$D410&\" \"&$E410)","v":"52G09 Individuele behandeling specialistisch"},"52G09","Individuele behandeling specialistisch","Ambulant","uur","Totaal binnen geldigheidsduur of tijdsonafhankelijk",null,130.5,126.75,90092588,"Praktijk Systeemtherapie Groningen B.V."]
[{"$f":"IF($M411=\"\",\"\",IF($M411=$M410,$A410+1,1))","v":1},{"$f":"IF($A411=\"\",\"\",$A411&\"_\"&$M411)","v":"1_Praktijk van Dijk"},{"$f":"IF($A411=\"\",\"\",$D411&\" \"&$E411)","v":"52G09 Individuele behandeling specialistisch"},"52G09","Individuele behandeling specialistisch","Ambulant","uur","Totaal binnen geldigheidsduur of tijdsonafhankelijk",null,130.5,130.5,94057410,"Praktijk van Dijk"]
[{"$f":"IF($M412=\"\",\"\",IF($M412=$M411,$A411+1,1))","v":1},{"$f":"IF($A412=\"\",\"\",$A412&\"_\"&$M412)","v":"1_Praktijk voor eerstelijns psychologie Trijn Mulder"},{"$f":"IF($A412=\"\",\"\",$D412&\" \"&$E412)","v":"51G01 Individuele behandeling basis"},"51G01","Individuele behandeling basis","Ambulant","uur","Totaal binnen geldigheidsduur of tijdsonafhankelijk",null,122.65,122.65,94002155,"Praktijk voor eerstelijns psychologie Trijn Mulder"]
[{"$f":"IF($M413=\"\",\"\",IF($M413=$M412,$A412+1,1))","v":2},{"$f":"IF($A413=\"\",\"\",$A413&\"_\"&$M413)","v":"2_Praktijk voor eerstelijns psychologie Trijn Mulder"},{"$f":"IF($A413=\"\",\"\",$D413&\" \"&$E413)","v":"52G06 Individuele diagnostiek"},"52G06","Individuele diagnostiek","Ambulant","uur","Totaal binnen geldigheidsduur of tijdsonafhankelijk",null,123.95,123.95,94002155,"Praktijk voor eerstelijns psychologie Trijn Mulder"]
[{"$f":"IF($M414=\"\",\"\",IF($M414=$M413,$A413+1,1))","v":1},{"$f":"IF($A414=\"\",\"\",$A414&\"_\"&$M414)","v":"1_Praktijk voor Psychosociale Hulpverlening B.V. "},{"$f":"IF($A414=\"\",\"\",$D414&\" \"&$E414)","v":"51G01 Individuele behandeling basis"},"51G01","Individuele behandeling basis","Ambulant","uur","Totaal binnen geldigheidsduur of tijdsonafhankelijk",null,122.65,110.9,94068910,"Praktijk voor Psychosociale Hulpverlening B.V. "]
[{"$f":"IF($M415=\"\",\"\",IF($M415=$M414,$A414+1,1))","v":2},{"$f":"IF($A415=\"\",\"\",$A415&\"_\"&$M415)","v":"2_Praktijk voor Psychosociale Hulpverlening B.V. "},{"$f":"IF($A415=\"\",\"\",$D415&\" \"&$E415)","v":"52G06 Individuele diagnostiek"},"52G06","Individuele diagnostiek","Ambulant","uur","Totaal binnen geldigheidsduur of tijdsonafhankelijk",null,123.95,112.1,94068910,"Praktijk voor Psychosociale Hulpverlening B.V. "]
[{"$f":"IF($M416=\"\",\"\",IF($M416=$M415,$A415+1,1))","v":3},{"$f":"IF($A416=\"\",\"\",$A416&\"_\"&$M416)","v":"3_Praktijk voor Psychosociale Hulpverlening B.V. "},{"$f":"IF($A416=\"\",\"\",$D416&\" \"&$E416)","v":"52G09 Individuele behandeling specialistisch"},"52G09","Individuele behandeling specialistisch","Ambulant","uur","Totaal binnen geldigheidsduur of tijdsonafhankelijk",null,130.5,118.05,94068910,"Praktijk voor Psychosociale Hulpverlening B.V. "]
[{"$f":"IF($M417=\"\",\"\",IF($M417=$M416,$A416+1,1))","v":1},{"$f":"IF($A417=\"\",\"\",$A417&\"_\"&$M417)","v":"1_Protestants-Christelijke Stichting Philadelphia Zorg"},{"$f":"IF($A417=\"\",\"\",$D417&\" \"&$E417)","v":"41A18 Dagbesteding"},"41A18","Dagbesteding","Dagbesteding / dagbehandeling","dagdeel","per week",null,76.5,76.5,98099028,"Protestants-Christelijke Stichting Philadelphia Zorg"]
[{"$f":"IF($M418=\"\",\"\",IF($M418=$M417,$A417+1,1))","v":2},{"$f":"IF($A418=\"\",\"\",$A418&\"_\"&$M418)","v":"2_Protestants-Christelijke Stichting Philadelphia Zorg"},{"$f":"IF($A418=\"\",\"\",$D418&\" \"&$E418)","v":"45A04 Individuele begeleiding basis"},"45A04","Individuele begeleiding basis","Ambulant","uur","Totaal binnen geldigheidsduur of tijdsonafhankelijk",null,81.75,81.75,98099028,"Protestants-Christelijke Stichting Philadelphia Zorg"]
[{"$f":"IF($M419=\"\",\"\",IF($M419=$M418,$A418+1,1))","v":3},{"$f":"IF($A419=\"\",\"\",$A419&\"_\"&$M419)","v":"3_Protestants-Christelijke Stichting Philadelphia Zorg"},{"$f":"IF($A419=\"\",\"\",$D419&\" \"&$E419)","v":"45A51 Gezinsbegeleiding basis"},"45A51","Gezinsbegeleiding basis","Ambulant","uur","Totaal binnen geldigheidsduur of tijdsonafhankelijk",null,81.75,81.75,98099028,"Protestants-Christelijke Stichting Philadelphia Zorg"]
[{"$f":"IF($M420=\"\",\"\",IF($M420=$M419,$A419+1,1))","v":4},{"$f":"IF($A420=\"\",\"\",$A420&\"_\"&$M420)","v":"4_Protestants-Christelijke Stichting Philadelphia Zorg"},{"$f":"IF($A420=\"\",\"\",$D420&\" \"&$E420)","v":"45A53 Individuele begeleiding specialistisch"},"45A53","Individuele begeleiding specialistisch","Ambulant","uur","Totaal binnen geldigheidsduur of tijdsonafhankelijk",null,104.15,104.15,98099028,"Protestants-Christelijke Stichting Philadelphia Zorg"]
[{"$f":"IF($M421=\"\",\"\",IF($M421=$M420,$A420+1,1))","v":5},{"$f":"IF($A421=\"\",\"\",$A421&\"_\"&$M421)","v":"5_Protestants-Christelijke Stichting Philadelphia Zorg"},{"$f":"IF($A421=\"\",\"\",$D421&\" \"&$E421)","v":"45A56 Gezinsbegeleiding specialistisch"},"45A56","Gezinsbegeleiding specialistisch","Ambulant","uur","Totaal binnen geldigheidsduur of tijdsonafhankelijk",null,104.15,104.15,98099028,"Protestants-Christelijke Stichting Philadelphia Zorg"]
[{"$f":"IF($M422=\"\",\"\",IF($M422=$M421,$A421+1,1))","v":1},{"$f":"IF($A422=\"\",\"\",$A422&\"_\"&$M422)","v":"1_Psychologenpraktijk De Vaart B.V."},{"$f":"IF($A422=\"\",\"\",$D422&\" \"&$E422)","v":"51G01 Individuele behandeling basis"},"51G01","Individuele behandeling basis","Ambulant","uur","Totaal binnen geldigheidsduur of tijdsonafhankelijk",null,122.65,113.80000000000001,22221125,"Psychologenpraktijk De Vaart B.V."]
[{"$f":"IF($M423=\"\",\"\",IF($M423=$M422,$A422+1,1))","v":2},{"$f":"IF($A423=\"\",\"\",$A423&\"_\"&$M423)","v":"2_Psychologenpraktijk De Vaart B.V."},{"$f":"IF($A423=\"\",\"\",$D423&\" \"&$E423)","v":"52G09 Individuele behandeling specialistisch"},"52G09","Individuele behandeling specialistisch","Ambulant","uur","Totaal binnen geldigheidsduur of tijdsonafhankelijk",null,130.5,121.5,22221125,"Psychologenpraktijk De Vaart B.V."]
[{"$f":"IF($M424=\"\",\"\",IF($M424=$M423,$A423+1,1))","v":1},{"$f":"IF($A424=\"\",\"\",$A424&\"_\"&$M424)","v":"1_Psychologenpraktijk van Wetten"},{"$f":"IF($A424=\"\",\"\",$D424&\" \"&$E424)","v":"50G40 Advies en ondersteuning vanuit jeugdhulpaanbieders bij complexe problematiek"},"50G40","Advies en ondersteuning vanuit jeugdhulpaanbieders bij complexe problematiek","Advies","uur","Totaal binnen geldigheidsduur of tijdsonafhankelijk",null,123.95,117.45,"94057245","Psychologenpraktijk van Wetten"]
[{"$f":"IF($M425=\"\",\"\",IF($M425=$M424,$A424+1,1))","v":2},{"$f":"IF($A425=\"\",\"\",$A425&\"_\"&$M425)","v":"2_Psychologenpraktijk van Wetten"},{"$f":"IF($A425=\"\",\"\",$D425&\" \"&$E425)","v":"51G01 Individuele behandeling basis"},"51G01","Individuele behandeling basis","Ambulant","uur","Totaal binnen geldigheidsduur of tijdsonafhankelijk",null,122.65,112,"94057245","Psychologenpraktijk van Wetten"]
[{"$f":"IF($M426=\"\",\"\",IF($M426=$M425,$A425+1,1))","v":3},{"$f":"IF($A426=\"\",\"\",$A426&\"_\"&$M426)","v":"3_Psychologenpraktijk van Wetten"},{"$f":"IF($A426=\"\",\"\",$D426&\" \"&$E426)","v":"52G06 Individuele diagnostiek"},"52G06","Individuele diagnostiek","Ambulant","uur","Totaal binnen geldigheidsduur of tijdsonafhankelijk",null,123.95,113.2,"94057245","Psychologenpraktijk van Wetten"]
[{"$f":"IF($M427=\"\",\"\",IF($M427=$M426,$A426+1,1))","v":4},{"$f":"IF($A427=\"\",\"\",$A427&\"_\"&$M427)","v":"4_Psychologenpraktijk van Wetten"},{"$f":"IF($A427=\"\",\"\",$D427&\" \"&$E427)","v":"52G08 Individuele behandeling specialistisch zwaar-zeer zwaar"},"52G08","Individuele behandeling specialistisch zwaar-zeer zwaar","Ambulant","uur","Totaal binnen geldigheidsduur of tijdsonafhankelijk",null,134.5,122.85000000000001,"94057245","Psychologenpraktijk van Wetten"]
[{"$f":"IF($M428=\"\",\"\",IF($M428=$M427,$A427+1,1))","v":5},{"$f":"IF($A428=\"\",\"\",$A428&\"_\"&$M428)","v":"5_Psychologenpraktijk van Wetten"},{"$f":"IF($A428=\"\",\"\",$D428&\" \"&$E428)","v":"52G09 Individuele behandeling specialistisch"},"52G09","Individuele behandeling specialistisch","Ambulant","uur","Totaal binnen geldigheidsduur of tijdsonafhankelijk",null,130.5,119.2,"94057245","Psychologenpraktijk van Wetten"]
[{"$f":"IF($M429=\"\",\"\",IF($M429=$M428,$A428+1,1))","v":1},{"$f":"IF($A429=\"\",\"\",$A429&\"_\"&$M429)","v":"1_Psychologie Praktijk Lotgerink"},{"$f":"IF($A429=\"\",\"\",$D429&\" \"&$E429)","v":"51G01 Individuele behandeling basis"},"51G01","Individuele behandeling basis","Ambulant","uur","Totaal binnen geldigheidsduur of tijdsonafhankelijk",null,122.65,122.65,94001671,"Psychologie Praktijk Lotgerink"]
[{"$f":"IF($M430=\"\",\"\",IF($M430=$M429,$A429+1,1))","v":1},{"$f":"IF($A430=\"\",\"\",$A430&\"_\"&$M430)","v":"1_Psy-praktijk Grootegast"},{"$f":"IF($A430=\"\",\"\",$D430&\" \"&$E430)","v":"45G04 Systeemtherapie"},"45G04","Systeemtherapie","Intensief ambulant","uur","Totaal binnen geldigheidsduur of tijdsonafhankelijk",null,141,136.05000000000001,"94062709","Psy-praktijk Grootegast"]
[{"$f":"IF($M431=\"\",\"\",IF($M431=$M430,$A430+1,1))","v":2},{"$f":"IF($A431=\"\",\"\",$A431&\"_\"&$M431)","v":"2_Psy-praktijk Grootegast"},{"$f":"IF($A431=\"\",\"\",$D431&\" \"&$E431)","v":"51G01 Individuele behandeling basis"},"51G01","Individuele behandeling basis","Ambulant","uur","Totaal binnen geldigheidsduur of tijdsonafhankelijk",null,122.65,118.25,"94062709","Psy-praktijk Grootegast"]
[{"$f":"IF($M432=\"\",\"\",IF($M432=$M431,$A431+1,1))","v":3},{"$f":"IF($A432=\"\",\"\",$A432&\"_\"&$M432)","v":"3_Psy-praktijk Grootegast"},{"$f":"IF($A432=\"\",\"\",$D432&\" \"&$E432)","v":"52G09 Individuele behandeling specialistisch"},"52G09","Individuele behandeling specialistisch","Ambulant","uur","Totaal binnen geldigheidsduur of tijdsonafhankelijk",null,130.5,125.85000000000001,"94062709","Psy-praktijk Grootegast"]
[{"$f":"IF($M433=\"\",\"\",IF($M433=$M432,$A432+1,1))","v":1},{"$f":"IF($A433=\"\",\"\",$A433&\"_\"&$M433)","v":"1_Psy-zo! B.V."},{"$f":"IF($A433=\"\",\"\",$D433&\" \"&$E433)","v":"52G09 Individuele behandeling specialistisch"},"52G09","Individuele behandeling specialistisch","Ambulant","uur","Totaal binnen geldigheidsduur of tijdsonafhankelijk",null,130.5,120.9,22220478,"Psy-zo! B.V."]
[{"$f":"IF($M434=\"\",\"\",IF($M434=$M433,$A433+1,1))","v":1},{"$f":"IF($A434=\"\",\"\",$A434&\"_\"&$M434)","v":"1_Regionaal Instituut voor Dyslexie B.V."},{"$f":"IF($A434=\"\",\"\",$D434&\" \"&$E434)","v":"52G06 Individuele diagnostiek"},"52G06","Individuele diagnostiek","Ambulant","uur","Totaal binnen geldigheidsduur of tijdsonafhankelijk",null,123.95,118.55000000000001,53530281,"Regionaal Instituut voor Dyslexie B.V."]
[{"$f":"IF($M435=\"\",\"\",IF($M435=$M434,$A434+1,1))","v":2},{"$f":"IF($A435=\"\",\"\",$A435&\"_\"&$M435)","v":"2_Regionaal Instituut voor Dyslexie B.V."},{"$f":"IF($A435=\"\",\"\",$D435&\" \"&$E435)","v":"52G14 Specifieke doelgroepen 8 Ernstige Dyslexie (ED)"},"52G14","Specifieke doelgroepen 8 Ernstige Dyslexie (ED)","Specifieke doelgroepen","stuk (12)","Totaal binnen geldigheidsduur of tijdsonafhankelijk",7000,9228.2000000000007,8827.65,53530281,"Regionaal Instituut voor Dyslexie B.V."]
[{"$f":"IF($M436=\"\",\"\",IF($M436=$M435,$A435+1,1))","v":1},{"$f":"IF($A436=\"\",\"\",$A436&\"_\"&$M436)","v":"1_Roccohoeve B.V."},{"$f":"IF($A436=\"\",\"\",$D436&\" \"&$E436)","v":"41A18 Dagbesteding"},"41A18","Dagbesteding","Dagbesteding / dagbehandeling","dagdeel","per week",null,76.5,68.8,"98104360","Roccohoeve B.V."]
[{"$f":"IF($M437=\"\",\"\",IF($M437=$M436,$A436+1,1))","v":2},{"$f":"IF($A437=\"\",\"\",$A437&\"_\"&$M437)","v":"2_Roccohoeve B.V."},{"$f":"IF($A437=\"\",\"\",$D437&\" \"&$E437)","v":"42A01 Vervoer regulier"},"42A01","Vervoer regulier","Overig","stuk","Totaal binnen geldigheidsduur of tijdsonafhankelijk",null,11.9,10.65,"98104360","Roccohoeve B.V."]
[{"$f":"IF($M438=\"\",\"\",IF($M438=$M437,$A437+1,1))","v":3},{"$f":"IF($A438=\"\",\"\",$A438&\"_\"&$M438)","v":"3_Roccohoeve B.V."},{"$f":"IF($A438=\"\",\"\",$D438&\" \"&$E438)","v":"44A09 Logeren laag intensief"},"44A09","Logeren laag intensief","Logeren / Respijtzorg","etmaal","Totaal binnen geldigheidsduur of tijdsonafhankelijk",null,237.3,213.45000000000002,"98104360","Roccohoeve B.V."]
[{"$f":"IF($M439=\"\",\"\",IF($M439=$M438,$A438+1,1))","v":4},{"$f":"IF($A439=\"\",\"\",$A439&\"_\"&$M439)","v":"4_Roccohoeve B.V."},{"$f":"IF($A439=\"\",\"\",$D439&\" \"&$E439)","v":"45A04 Individuele begeleiding basis"},"45A04","Individuele begeleiding basis","Ambulant","uur","Totaal binnen geldigheidsduur of tijdsonafhankelijk",null,81.75,73.5,"98104360","Roccohoeve B.V."]
[{"$f":"IF($M440=\"\",\"\",IF($M440=$M439,$A439+1,1))","v":5},{"$f":"IF($A440=\"\",\"\",$A440&\"_\"&$M440)","v":"5_Roccohoeve B.V."},{"$f":"IF($A440=\"\",\"\",$D440&\" \"&$E440)","v":"45A53 Individuele begeleiding specialistisch"},"45A53","Individuele begeleiding specialistisch","Ambulant","uur","Totaal binnen geldigheidsduur of tijdsonafhankelijk",null,104.15,93.7,"98104360","Roccohoeve B.V."]
[{"$f":"IF($M441=\"\",\"\",IF($M441=$M440,$A440+1,1))","v":1},{"$f":"IF($A441=\"\",\"\",$A441&\"_\"&$M441)","v":"1_S. Buma"},{"$f":"IF($A441=\"\",\"\",$D441&\" \"&$E441)","v":"51G01 Individuele behandeling basis"},"51G01","Individuele behandeling basis","Ambulant","uur","Totaal binnen geldigheidsduur of tijdsonafhankelijk",null,122.65,98.2,"03072913","S. Buma"]
[{"$f":"IF($M442=\"\",\"\",IF($M442=$M441,$A441+1,1))","v":2},{"$f":"IF($A442=\"\",\"\",$A442&\"_\"&$M442)","v":"2_S. Buma"},{"$f":"IF($A442=\"\",\"\",$D442&\" \"&$E442)","v":"52G08 Individuele behandeling specialistisch zwaar-zeer zwaar"},"52G08","Individuele behandeling specialistisch zwaar-zeer zwaar","Ambulant","uur","Totaal binnen geldigheidsduur of tijdsonafhankelijk",null,134.5,107.65,"03072913","S. Buma"]
[{"$f":"IF($M443=\"\",\"\",IF($M443=$M442,$A442+1,1))","v":3},{"$f":"IF($A443=\"\",\"\",$A443&\"_\"&$M443)","v":"3_S. Buma"},{"$f":"IF($A443=\"\",\"\",$D443&\" \"&$E443)","v":"52G09 Individuele behandeling specialistisch"},"52G09","Individuele behandeling specialistisch","Ambulant","uur","Totaal binnen geldigheidsduur of tijdsonafhankelijk",null,130.5,104.45,"03072913","S. Buma"]
[{"$f":"IF($M444=\"\",\"\",IF($M444=$M443,$A443+1,1))","v":1},{"$f":"IF($A444=\"\",\"\",$A444&\"_\"&$M444)","v":"1_SamenOmTafel"},{"$f":"IF($A444=\"\",\"\",$D444&\" \"&$E444)","v":"45A51 Gezinsbegeleiding basis"},"45A51","Gezinsbegeleiding basis","Ambulant","uur","Totaal binnen geldigheidsduur of tijdsonafhankelijk",null,81.75,78.800000000000011,98102566,"SamenOmTafel"]
[{"$f":"IF($M445=\"\",\"\",IF($M445=$M444,$A444+1,1))","v":2},{"$f":"IF($A445=\"\",\"\",$A445&\"_\"&$M445)","v":"2_SamenOmTafel"},{"$f":"IF($A445=\"\",\"\",$D445&\" \"&$E445)","v":"45A56 Gezinsbegeleiding specialistisch"},"45A56","Gezinsbegeleiding specialistisch","Ambulant","uur","Totaal binnen geldigheidsduur of tijdsonafhankelijk",null,104.15,100.45,98102566,"SamenOmTafel"]
[{"$f":"IF($M446=\"\",\"\",IF($M446=$M445,$A445+1,1))","v":3},{"$f":"IF($A446=\"\",\"\",$A446&\"_\"&$M446)","v":"3_SamenOmTafel"},{"$f":"IF($A446=\"\",\"\",$D446&\" \"&$E446)","v":"50G41 Specifieke doelgroepen 4 en 5 Ondersteuning jeugdigen en ouders bij complexe (echt)scheiding"},"50G41","Specifieke doelgroepen 4 en 5 Ondersteuning jeugdigen en ouders bij complexe (echt)scheiding","Specifieke doelgroepen","uur","Totaal binnen geldigheidsduur of tijdsonafhankelijk",null,118.65,114.45,98102566,"SamenOmTafel"]
[{"$f":"IF($M447=\"\",\"\",IF($M447=$M446,$A446+1,1))","v":1},{"$f":"IF($A447=\"\",\"\",$A447&\"_\"&$M447)","v":"1_Saul B.V."},{"$f":"IF($A447=\"\",\"\",$D447&\" \"&$E447)","v":"45A04 Individuele begeleiding basis"},"45A04","Individuele begeleiding basis","Ambulant","uur","Totaal binnen geldigheidsduur of tijdsonafhankelijk",null,81.75,81.75,"98104298","Saul B.V."]
[{"$f":"IF($M448=\"\",\"\",IF($M448=$M447,$A447+1,1))","v":2},{"$f":"IF($A448=\"\",\"\",$A448&\"_\"&$M448)","v":"2_Saul B.V."},{"$f":"IF($A448=\"\",\"\",$D448&\" \"&$E448)","v":"45A51 Gezinsbegeleiding basis"},"45A51","Gezinsbegeleiding basis","Ambulant","uur","Totaal binnen geldigheidsduur of tijdsonafhankelijk",null,81.75,81.75,"98104298","Saul B.V."]
[{"$f":"IF($M449=\"\",\"\",IF($M449=$M448,$A448+1,1))","v":3},{"$f":"IF($A449=\"\",\"\",$A449&\"_\"&$M449)","v":"3_Saul B.V."},{"$f":"IF($A449=\"\",\"\",$D449&\" \"&$E449)","v":"45A53 Individuele begeleiding specialistisch"},"45A53","Individuele begeleiding specialistisch","Ambulant","uur","Totaal binnen geldigheidsduur of tijdsonafhankelijk",null,104.15,104.15,"98104298","Saul B.V."]
[{"$f":"IF($M450=\"\",\"\",IF($M450=$M449,$A449+1,1))","v":4},{"$f":"IF($A450=\"\",\"\",$A450&\"_\"&$M450)","v":"4_Saul B.V."},{"$f":"IF($A450=\"\",\"\",$D450&\" \"&$E450)","v":"45A56 Gezinsbegeleiding specialistisch"},"45A56","Gezinsbegeleiding specialistisch","Ambulant","uur","Totaal binnen geldigheidsduur of tijdsonafhankelijk",null,104.15,104.15,"98104298","Saul B.V."]
[{"$f":"IF($M451=\"\",\"\",IF($M451=$M450,$A450+1,1))","v":5},{"$f":"IF($A451=\"\",\"\",$A451&\"_\"&$M451)","v":"5_Saul B.V."},{"$f":"IF($A451=\"\",\"\",$D451&\" \"&$E451)","v":"45G03 Intensieve ambulante of psychiatrische gezinsbehandeling"},"45G03","Intensieve ambulante of psychiatrische gezinsbehandeling","Ambulant","uur","Totaal binnen geldigheidsduur of tijdsonafhankelijk",null,113.4,113.4,"98104298","Saul B.V."]
[{"$f":"IF($M452=\"\",\"\",IF($M452=$M451,$A451+1,1))","v":6},{"$f":"IF($A452=\"\",\"\",$A452&\"_\"&$M452)","v":"6_Saul B.V."},{"$f":"IF($A452=\"\",\"\",$D452&\" \"&$E452)","v":"50G26 Specifieke doelgroepen 3 Behoud van en Toeleiding naar onderwijsdeelname (deelproduct jeugdhulp)"},"50G26","Specifieke doelgroepen 3 Behoud van en Toeleiding naar onderwijsdeelname (deelproduct jeugdhulp)","Specifieke doelgroepen","uur","Totaal binnen geldigheidsduur of tijdsonafhankelijk",null,113.4,113.4,"98104298","Saul B.V."]
[{"$f":"IF($M453=\"\",\"\",IF($M453=$M452,$A452+1,1))","v":7},{"$f":"IF($A453=\"\",\"\",$A453&\"_\"&$M453)","v":"7_Saul B.V."},{"$f":"IF($A453=\"\",\"\",$D453&\" \"&$E453)","v":"51G01 Individuele behandeling basis"},"51G01","Individuele behandeling basis","Ambulant","uur","Totaal binnen geldigheidsduur of tijdsonafhankelijk",null,122.65,122.65,"98104298","Saul B.V."]
[{"$f":"IF($M454=\"\",\"\",IF($M454=$M453,$A453+1,1))","v":8},{"$f":"IF($A454=\"\",\"\",$A454&\"_\"&$M454)","v":"8_Saul B.V."},{"$f":"IF($A454=\"\",\"\",$D454&\" \"&$E454)","v":"52G06 Individuele diagnostiek"},"52G06","Individuele diagnostiek","Ambulant","uur","Totaal binnen geldigheidsduur of tijdsonafhankelijk",null,123.95,123.95,"98104298","Saul B.V."]
[{"$f":"IF($M455=\"\",\"\",IF($M455=$M454,$A454+1,1))","v":9},{"$f":"IF($A455=\"\",\"\",$A455&\"_\"&$M455)","v":"9_Saul B.V."},{"$f":"IF($A455=\"\",\"\",$D455&\" \"&$E455)","v":"52G09 Individuele behandeling specialistisch"},"52G09","Individuele behandeling specialistisch","Ambulant","uur","Totaal binnen geldigheidsduur of tijdsonafhankelijk",null,130.5,130.5,"98104298","Saul B.V."]
[{"$f":"IF($M456=\"\",\"\",IF($M456=$M455,$A455+1,1))","v":1},{"$f":"IF($A456=\"\",\"\",$A456&\"_\"&$M456)","v":"1_Script B.V."},{"$f":"IF($A456=\"\",\"\",$D456&\" \"&$E456)","v":"41A18 Dagbesteding"},"41A18","Dagbesteding","Dagbesteding / dagbehandeling","dagdeel","per week",null,76.5,68.5,98105253,"Script B.V."]
[{"$f":"IF($M457=\"\",\"\",IF($M457=$M456,$A456+1,1))","v":1},{"$f":"IF($A457=\"\",\"\",$A457&\"_\"&$M457)","v":"1_Solid Zorg&Welzijn"},{"$f":"IF($A457=\"\",\"\",$D457&\" \"&$E457)","v":"45A04 Individuele begeleiding basis"},"45A04","Individuele begeleiding basis","Ambulant","uur","Totaal binnen geldigheidsduur of tijdsonafhankelijk",null,81.75,72.75,41528449,"Solid Zorg&Welzijn"]
[{"$f":"IF($M458=\"\",\"\",IF($M458=$M457,$A457+1,1))","v":2},{"$f":"IF($A458=\"\",\"\",$A458&\"_\"&$M458)","v":"2_Solid Zorg&Welzijn"},{"$f":"IF($A458=\"\",\"\",$D458&\" \"&$E458)","v":"45A53 Individuele begeleiding specialistisch"},"45A53","Individuele begeleiding specialistisch","Ambulant","uur","Totaal binnen geldigheidsduur of tijdsonafhankelijk",null,104.15,93.55,41528449,"Solid Zorg&Welzijn"]
[{"$f":"IF($M459=\"\",\"\",IF($M459=$M458,$A458+1,1))","v":1},{"$f":"IF($A459=\"\",\"\",$A459&\"_\"&$M459)","v":"1_Statera Jeugd en Gezin B.V."},{"$f":"IF($A459=\"\",\"\",$D459&\" \"&$E459)","v":"41A18 Dagbesteding"},"41A18","Dagbesteding","Dagbesteding / dagbehandeling","dagdeel","per week",null,76.5,74.55,"98098852","Statera Jeugd en Gezin B.V."]
[{"$f":"IF($M460=\"\",\"\",IF($M460=$M459,$A459+1,1))","v":2},{"$f":"IF($A460=\"\",\"\",$A460&\"_\"&$M460)","v":"2_Statera Jeugd en Gezin B.V."},{"$f":"IF($A460=\"\",\"\",$D460&\" \"&$E460)","v":"43A35 Verblijf licht"},"43A35","Verblijf licht","Verblijf/ opname","etmaal","Totaal binnen geldigheidsduur of tijdsonafhankelijk",null,162.15,158.25,"98098852","Statera Jeugd en Gezin B.V."]
[{"$f":"IF($M461=\"\",\"\",IF($M461=#REF!,#REF!+1,1))","v":{"$error":"#REF!"}},{"$f":"IF($A461=\"\",\"\",$A461&\"_\"&$M461)","v":{"$error":"#REF!"}},{"$f":"IF($A461=\"\",\"\",$D461&\" \"&$E461)","v":{"$error":"#REF!"}},"45A04","Individuele begeleiding basis","Ambulant","uur","Totaal binnen geldigheidsduur of tijdsonafhankelijk",null,81.75,79.7,"98098852","Statera Jeugd en Gezin B.V."]
[{"$f":"IF($M462=\"\",\"\",IF($M462=$M461,$A461+1,1))","v":{"$error":"#REF!"}},{"$f":"IF($A462=\"\",\"\",$A462&\"_\"&$M462)","v":{"$error":"#REF!"}},{"$f":"IF($A462=\"\",\"\",$D462&\" \"&$E462)","v":{"$error":"#REF!"}},"45A53","Individuele begeleiding specialistisch","Ambulant","uur","Totaal binnen geldigheidsduur of tijdsonafhankelijk",null,104.15,92.550000000000011,"98098852","Statera Jeugd en Gezin B.V."]
[{"$f":"IF($M463=\"\",\"\",IF($M463=$M462,$A462+1,1))","v":1},{"$f":"IF($A463=\"\",\"\",$A463&\"_\"&$M463)","v":"1_Station Noord B.V."},{"$f":"IF($A463=\"\",\"\",$D463&\" \"&$E463)","v":"42A01 Vervoer regulier"},"42A01","Vervoer regulier","Overig","stuk","Totaal binnen geldigheidsduur of tijdsonafhankelijk",null,11.9,10,98106367,"Station Noord B.V."]
[{"$f":"IF($M464=\"\",\"\",IF($M464=$M463,$A463+1,1))","v":2},{"$f":"IF($A464=\"\",\"\",$A464&\"_\"&$M464)","v":"2_Station Noord B.V."},{"$f":"IF($A464=\"\",\"\",$D464&\" \"&$E464)","v":"43A11 Logeren hoog intensief"},"43A11","Logeren hoog intensief","Logeren / Respijtzorg","etmaal","Totaal binnen geldigheidsduur of tijdsonafhankelijk",null,375.8,315.70000000000005,98106367,"Station Noord B.V."]
[{"$f":"IF($M465=\"\",\"\",IF($M465=$M464,$A464+1,1))","v":3},{"$f":"IF($A465=\"\",\"\",$A465&\"_\"&$M465)","v":"3_Station Noord B.V."},{"$f":"IF($A465=\"\",\"\",$D465&\" \"&$E465)","v":"43A35 Verblijf licht"},"43A35","Verblijf licht","Verblijf/ opname","etmaal","Totaal binnen geldigheidsduur of tijdsonafhankelijk",null,162.15,136.25,98106367,"Station Noord B.V."]
[{"$f":"IF($M466=\"\",\"\",IF($M466=$M465,$A465+1,1))","v":4},{"$f":"IF($A466=\"\",\"\",$A466&\"_\"&$M466)","v":"4_Station Noord B.V."},{"$f":"IF($A466=\"\",\"\",$D466&\" \"&$E466)","v":"43A37 Verblijfstraject middelzwaar"},"43A37","Verblijfstraject middelzwaar","Verblijf/ opname","etmaal","Totaal binnen geldigheidsduur of tijdsonafhankelijk",null,398.15,377.85,98106367,"Station Noord B.V."]
[{"$f":"IF($M467=\"\",\"\",IF($M467=$M466,$A466+1,1))","v":5},{"$f":"IF($A467=\"\",\"\",$A467&\"_\"&$M467)","v":"5_Station Noord B.V."},{"$f":"IF($A467=\"\",\"\",$D467&\" \"&$E467)","v":"44A09 Logeren laag intensief"},"44A09","Logeren laag intensief","Logeren / Respijtzorg","etmaal","Totaal binnen geldigheidsduur of tijdsonafhankelijk",null,237.3,199.35000000000002,98106367,"Station Noord B.V."]
[{"$f":"IF($M468=\"\",\"\",IF($M468=$M467,$A467+1,1))","v":6},{"$f":"IF($A468=\"\",\"\",$A468&\"_\"&$M468)","v":"6_Station Noord B.V."},{"$f":"IF($A468=\"\",\"\",$D468&\" \"&$E468)","v":"44G02 Verblijf langdurig (beschermd) wonen"},"44G02","Verblijf langdurig (beschermd) wonen","Verblijf/ opname","etmaal","per week",null,230.7,230.70000000000002,98106367,"Station Noord B.V."]
[{"$f":"IF($M469=\"\",\"\",IF($M469=$M468,$A468+1,1))","v":7},{"$f":"IF($A469=\"\",\"\",$A469&\"_\"&$M469)","v":"7_Station Noord B.V."},{"$f":"IF($A469=\"\",\"\",$D469&\" \"&$E469)","v":"45A04 Individuele begeleiding basis"},"45A04","Individuele begeleiding basis","Ambulant","uur","Totaal binnen geldigheidsduur of tijdsonafhankelijk",null,81.75,68.7,98106367,"Station Noord B.V."]
[{"$f":"IF($M470=\"\",\"\",IF($M470=$M469,$A469+1,1))","v":8},{"$f":"IF($A470=\"\",\"\",$A470&\"_\"&$M470)","v":"8_Station Noord B.V."},{"$f":"IF($A470=\"\",\"\",$D470&\" \"&$E470)","v":"45A53 Individuele begeleiding specialistisch"},"45A53","Individuele begeleiding specialistisch","Ambulant","uur","Totaal binnen geldigheidsduur of tijdsonafhankelijk",null,104.15,87.550000000000011,98106367,"Station Noord B.V."]
[{"$f":"IF($M471=\"\",\"\",IF($M471=$M470,$A470+1,1))","v":1},{"$f":"IF($A471=\"\",\"\",$A471&\"_\"&$M471)","v":"1_Stichting Accare"},{"$f":"IF($A471=\"\",\"\",$D471&\" \"&$E471)","v":"41G01 Gezinsdagbehandeling"},"41G01","Gezinsdagbehandeling","Dagbesteding / dagbehandeling","uur","per week",null,145.05000000000001,145.05000000000001,"06290104","Stichting Accare"]
[{"$f":"IF($M472=\"\",\"\",IF($M472=$M471,$A471+1,1))","v":2},{"$f":"IF($A472=\"\",\"\",$A472&\"_\"&$M472)","v":"2_Stichting Accare"},{"$f":"IF($A472=\"\",\"\",$D472&\" \"&$E472)","v":"43G11 Opname kort intensief"},"43G11","Opname kort intensief","Verblijf/ opname","etmaal","Totaal binnen geldigheidsduur of tijdsonafhankelijk",null,477.25,477.25,"06290104","Stichting Accare"]
[{"$f":"IF($M473=\"\",\"\",IF($M473=$M472,$A472+1,1))","v":3},{"$f":"IF($A473=\"\",\"\",$A473&\"_\"&$M473)","v":"3_Stichting Accare"},{"$f":"IF($A473=\"\",\"\",$D473&\" \"&$E473)","v":"43G12 Klinisch verblijf Accare"},"43G12","Klinisch verblijf Accare","Klinisch verblijf","etmaal","Totaal binnen geldigheidsduur of tijdsonafhankelijk",null,"tarieven niet publiceren",null,"06290104","Stichting Accare"]
[{"$f":"IF($M474=\"\",\"\",IF($M474=$M473,$A473+1,1))","v":4},{"$f":"IF($A474=\"\",\"\",$A474&\"_\"&$M474)","v":"4_Stichting Accare"},{"$f":"IF($A474=\"\",\"\",$D474&\" \"&$E474)","v":"43G13 Verlengd klinisch verblijf Accare"},"43G13","Verlengd klinisch verblijf Accare","Klinisch verblijf","etmaal","Totaal binnen geldigheidsduur of tijdsonafhankelijk",null,"tarieven niet publiceren",null,"06290104","Stichting Accare"]
[{"$f":"IF($M475=\"\",\"\",IF($M475=$M474,$A474+1,1))","v":5},{"$f":"IF($A475=\"\",\"\",$A475&\"_\"&$M475)","v":"5_Stichting Accare"},{"$f":"IF($A475=\"\",\"\",$D475&\" \"&$E475)","v":"46A01 Crisis jeugdhulp ambulant"},"46A01","Crisis jeugdhulp ambulant","Crisis","uur","Totaal binnen geldigheidsduur of tijdsonafhankelijk",null,null,208.4,"06290104","Stichting Accare"]
[{"$f":"IF($M476=\"\",\"\",IF($M476=$M475,$A475+1,1))","v":6},{"$f":"IF($A476=\"\",\"\",$A476&\"_\"&$M476)","v":"6_Stichting Accare"},{"$f":"IF($A476=\"\",\"\",$D476&\" \"&$E476)","v":"46A03 Crisis jeugdhulp verblijf"},"46A03","Crisis jeugdhulp verblijf","Crisis","etmaal","Totaal binnen geldigheidsduur of tijdsonafhankelijk",null,null,730.40000000000009,"06290104","Stichting Accare"]
[{"$f":"IF($M477=\"\",\"\",IF($M477=$M476,$A476+1,1))","v":7},{"$f":"IF($A477=\"\",\"\",$A477&\"_\"&$M477)","v":"7_Stichting Accare"},{"$f":"IF($A477=\"\",\"\",$D477&\" \"&$E477)","v":"50G33 Specifieke doelgroepen 14 Specialistisch pakket complex trauma"},"50G33","Specifieke doelgroepen 14 Specialistisch pakket complex trauma","Specifieke doelgroepen","uur","Totaal binnen geldigheidsduur of tijdsonafhankelijk",null,149,149,"06290104","Stichting Accare"]
[{"$f":"IF($M478=\"\",\"\",IF($M478=$M477,$A477+1,1))","v":8},{"$f":"IF($A478=\"\",\"\",$A478&\"_\"&$M478)","v":"8_Stichting Accare"},{"$f":"IF($A478=\"\",\"\",$D478&\" \"&$E478)","v":"50G35 Specifieke doelgroepen 10 Consultatieve en ziekenhuis kinder- en jeugdpsychiatrie"},"50G35","Specifieke doelgroepen 10 Consultatieve en ziekenhuis kinder- en jeugdpsychiatrie","Specifieke doelgroepen","uur","Totaal binnen geldigheidsduur of tijdsonafhankelijk",null,156.9,156.9,"06290104","Stichting Accare"]
[{"$f":"IF($M479=\"\",\"\",IF($M479=$M478,$A478+1,1))","v":9},{"$f":"IF($A479=\"\",\"\",$A479&\"_\"&$M479)","v":"9_Stichting Accare"},{"$f":"IF($A479=\"\",\"\",$D479&\" \"&$E479)","v":"50G38 Flexibel ACT Jeugd"},"50G38","Flexibel ACT Jeugd","Intensief ambulant","uur","Totaal binnen geldigheidsduur of tijdsonafhankelijk",null,131.9,131.9,"06290104","Stichting Accare"]
[{"$f":"IF($M480=\"\",\"\",IF($M480=$M479,$A479+1,1))","v":10},{"$f":"IF($A480=\"\",\"\",$A480&\"_\"&$M480)","v":"10_Stichting Accare"},{"$f":"IF($A480=\"\",\"\",$D480&\" \"&$E480)","v":"50G42 Specifieke doelgroepen 11, 12 en 13 Hoog specialistisch zeer zeldzaam"},"50G42","Specifieke doelgroepen 11, 12 en 13 Hoog specialistisch zeer zeldzaam","Specifieke doelgroepen","uur","Totaal binnen geldigheidsduur of tijdsonafhankelijk",null,149,149,"06290104","Stichting Accare"]
[{"$f":"IF($M481=\"\",\"\",IF($M481=$M480,$A480+1,1))","v":11},{"$f":"IF($A481=\"\",\"\",$A481&\"_\"&$M481)","v":"11_Stichting Accare"},{"$f":"IF($A481=\"\",\"\",$D481&\" \"&$E481)","v":"52G08 Individuele behandeling specialistisch zwaar-zeer zwaar"},"52G08","Individuele behandeling specialistisch zwaar-zeer zwaar","Ambulant","uur","Totaal binnen geldigheidsduur of tijdsonafhankelijk",null,134.5,134.5,"06290104","Stichting Accare"]
[{"$f":"IF($M482=\"\",\"\",IF($M482=$M481,$A481+1,1))","v":12},{"$f":"IF($A482=\"\",\"\",$A482&\"_\"&$M482)","v":"12_Stichting Accare"},{"$f":"IF($A482=\"\",\"\",$D482&\" \"&$E482)","v":"52G09 Individuele behandeling specialistisch"},"52G09","Individuele behandeling specialistisch","Ambulant","uur","Totaal binnen geldigheidsduur of tijdsonafhankelijk",null,130.5,130.5,"06290104","Stichting Accare"]
[{"$f":"IF($M483=\"\",\"\",IF($M483=$M482,$A482+1,1))","v":13},{"$f":"IF($A483=\"\",\"\",$A483&\"_\"&$M483)","v":"13_Stichting Accare"},{"$f":"IF($A483=\"\",\"\",$D483&\" \"&$E483)","v":"52G12 Individuele behandeling specialistisch licht medicatiecontrole"},"52G12","Individuele behandeling specialistisch licht medicatiecontrole","Ambulant","uur","Totaal binnen geldigheidsduur of tijdsonafhankelijk",null,174.1,174.10000000000002,"06290104","Stichting Accare"]
[{"$f":"IF($M484=\"\",\"\",IF($M484=$M483,$A483+1,1))","v":1},{"$f":"IF($A484=\"\",\"\",$A484&\"_\"&$M484)","v":"1_Stichting Ambiq"},{"$f":"IF($A484=\"\",\"\",$D484&\" \"&$E484)","v":"43A37 Verblijfstraject middelzwaar"},"43A37","Verblijfstraject middelzwaar","Verblijf/ opname","etmaal","Totaal binnen geldigheidsduur of tijdsonafhankelijk",null,398.15,294,"30300514","Stichting Ambiq"]
[{"$f":"IF($M485=\"\",\"\",IF($M485=$M484,$A484+1,1))","v":2},{"$f":"IF($A485=\"\",\"\",$A485&\"_\"&$M485)","v":"2_Stichting Ambiq"},{"$f":"IF($A485=\"\",\"\",$D485&\" \"&$E485)","v":"43A38 Verblijfstraject zwaar"},"43A38","Verblijfstraject zwaar","Verblijf/ opname","etmaal","Totaal binnen geldigheidsduur of tijdsonafhankelijk",null,454.9,454.90000000000003,"30300514","Stichting Ambiq"]
[{"$f":"IF($M486=\"\",\"\",IF($M486=$M485,$A485+1,1))","v":3},{"$f":"IF($A486=\"\",\"\",$A486&\"_\"&$M486)","v":"3_Stichting Ambiq"},{"$f":"IF($A486=\"\",\"\",$D486&\" \"&$E486)","v":"43G19 Kleinschalige Voorziening ombouwopdracht SPUK"},"43G19","Kleinschalige Voorziening ombouwopdracht SPUK","Verblijf ","etmaal",null,null,661.25,661.25,30300514,"Stichting Ambiq"]
[{"$f":"IF($M487=\"\",\"\",IF($M487=$M486,$A486+1,1))","v":4},{"$f":"IF($A487=\"\",\"\",$A487&\"_\"&$M487)","v":"4_Stichting Ambiq"},{"$f":"IF($A487=\"\",\"\",$D487&\" \"&$E487)","v":"45G03 Intensieve ambulante of psychiatrische gezinsbehandeling"},"45G03","Intensieve ambulante of psychiatrische gezinsbehandeling","Ambulant","uur","Totaal binnen geldigheidsduur of tijdsonafhankelijk",null,113.4,113.4,"30300514","Stichting Ambiq"]
[{"$f":"IF($M488=\"\",\"\",IF($M488=$M487,$A487+1,1))","v":5},{"$f":"IF($A488=\"\",\"\",$A488&\"_\"&$M488)","v":"5_Stichting Ambiq"},{"$f":"IF($A488=\"\",\"\",$D488&\" \"&$E488)","v":"45G04 Systeemtherapie"},"45G04","Systeemtherapie","Intensief ambulant","uur","Totaal binnen geldigheidsduur of tijdsonafhankelijk",null,141,141,"30300514","Stichting Ambiq"]
[{"$f":"IF($M489=\"\",\"\",IF($M489=$M488,$A488+1,1))","v":6},{"$f":"IF($A489=\"\",\"\",$A489&\"_\"&$M489)","v":"6_Stichting Ambiq"},{"$f":"IF($A489=\"\",\"\",$D489&\" \"&$E489)","v":"45G25 Multi Dimensionele Familie Therapie"},"45G25","Multi Dimensionele Familie Therapie","Intensief ambulant","stuk (12)","Totaal binnen geldigheidsduur of tijdsonafhankelijk",10093,13305.3,13305.300000000001,"30300514","Stichting Ambiq"]
[{"$f":"IF($M490=\"\",\"\",IF($M490=$M489,$A489+1,1))","v":7},{"$f":"IF($A490=\"\",\"\",$A490&\"_\"&$M490)","v":"7_Stichting Ambiq"},{"$f":"IF($A490=\"\",\"\",$D490&\" \"&$E490)","v":"46A03 Crisis jeugdhulp verblijf"},"46A03","Crisis jeugdhulp verblijf","Crisis","etmaal","Totaal binnen geldigheidsduur of tijdsonafhankelijk",null,null,478.40000000000003,"30300514","Stichting Ambiq"]
[{"$f":"IF($M491=\"\",\"\",IF($M491=$M490,$A490+1,1))","v":8},{"$f":"IF($A491=\"\",\"\",$A491&\"_\"&$M491)","v":"8_Stichting Ambiq"},{"$f":"IF($A491=\"\",\"\",$D491&\" \"&$E491)","v":"50G40 Advies en ondersteuning vanuit jeugdhulpaanbieders bij complexe problematiek"},"50G40","Advies en ondersteuning vanuit jeugdhulpaanbieders bij complexe problematiek","Advies","uur","Totaal binnen geldigheidsduur of tijdsonafhankelijk",null,123.95,123.95,"30300514","Stichting Ambiq"]
[{"$f":"IF($M492=\"\",\"\",IF($M492=$M491,$A491+1,1))","v":9},{"$f":"IF($A492=\"\",\"\",$A492&\"_\"&$M492)","v":"9_Stichting Ambiq"},{"$f":"IF($A492=\"\",\"\",$D492&\" \"&$E492)","v":"51G01 Individuele behandeling basis"},"51G01","Individuele behandeling basis","Ambulant","uur","Totaal binnen geldigheidsduur of tijdsonafhankelijk",null,122.65,122.65,"30300514","Stichting Ambiq"]
[{"$f":"IF($M493=\"\",\"\",IF($M493=$M492,$A492+1,1))","v":10},{"$f":"IF($A493=\"\",\"\",$A493&\"_\"&$M493)","v":"10_Stichting Ambiq"},{"$f":"IF($A493=\"\",\"\",$D493&\" \"&$E493)","v":"52G08 Individuele behandeling specialistisch zwaar-zeer zwaar"},"52G08","Individuele behandeling specialistisch zwaar-zeer zwaar","Ambulant","uur","Totaal binnen geldigheidsduur of tijdsonafhankelijk",null,134.5,134.5,"30300514","Stichting Ambiq"]
[{"$f":"IF($M494=\"\",\"\",IF($M494=$M493,$A493+1,1))","v":11},{"$f":"IF($A494=\"\",\"\",$A494&\"_\"&$M494)","v":"11_Stichting Ambiq"},{"$f":"IF($A494=\"\",\"\",$D494&\" \"&$E494)","v":"52G09 Individuele behandeling specialistisch"},"52G09","Individuele behandeling specialistisch","Ambulant","uur","Totaal binnen geldigheidsduur of tijdsonafhankelijk",null,130.5,130.5,"30300514","Stichting Ambiq"]
[{"$f":"IF($M495=\"\",\"\",IF($M495=$M494,$A494+1,1))","v":1},{"$f":"IF($A495=\"\",\"\",$A495&\"_\"&$M495)","v":"1_Stichting Amigo"},{"$f":"IF($A495=\"\",\"\",$D495&\" \"&$E495)","v":"42A01 Vervoer regulier"},"42A01","Vervoer regulier","Overig","stuk","Totaal binnen geldigheidsduur of tijdsonafhankelijk",null,11.9,11.9,"98099724","Stichting Amigo"]
[{"$f":"IF($M496=\"\",\"\",IF($M496=$M495,$A495+1,1))","v":2},{"$f":"IF($A496=\"\",\"\",$A496&\"_\"&$M496)","v":"2_Stichting Amigo"},{"$f":"IF($A496=\"\",\"\",$D496&\" \"&$E496)","v":"43A11 Logeren hoog intensief"},"43A11","Logeren hoog intensief","Logeren / Respijtzorg","etmaal","Totaal binnen geldigheidsduur of tijdsonafhankelijk",null,375.8,375.8,"98099724","Stichting Amigo"]
[{"$f":"IF($M497=\"\",\"\",IF($M497=$M496,$A496+1,1))","v":3},{"$f":"IF($A497=\"\",\"\",$A497&\"_\"&$M497)","v":"3_Stichting Amigo"},{"$f":"IF($A497=\"\",\"\",$D497&\" \"&$E497)","v":"43A35 Verblijf licht"},"43A35","Verblijf licht","Verblijf/ opname","etmaal","Totaal binnen geldigheidsduur of tijdsonafhankelijk",null,162.15,162.15,"98099724","Stichting Amigo"]
[{"$f":"IF($M498=\"\",\"\",IF($M498=$M497,$A497+1,1))","v":4},{"$f":"IF($A498=\"\",\"\",$A498&\"_\"&$M498)","v":"4_Stichting Amigo"},{"$f":"IF($A498=\"\",\"\",$D498&\" \"&$E498)","v":"43A37 Verblijfstraject middelzwaar"},"43A37","Verblijfstraject middelzwaar","Verblijf/ opname","etmaal","Totaal binnen geldigheidsduur of tijdsonafhankelijk",null,398.15,398.15000000000003,"98099724","Stichting Amigo"]
[{"$f":"IF($M499=\"\",\"\",IF($M499=$M498,$A498+1,1))","v":5},{"$f":"IF($A499=\"\",\"\",$A499&\"_\"&$M499)","v":"5_Stichting Amigo"},{"$f":"IF($A499=\"\",\"\",$D499&\" \"&$E499)","v":"44G02 Verblijf langdurig (beschermd) wonen"},"44G02","Verblijf langdurig (beschermd) wonen","Verblijf/ opname","etmaal","per week",null,230.7,230.70000000000002,"98099724","Stichting Amigo"]
[{"$f":"IF($M500=\"\",\"\",IF($M500=#REF!,#REF!+1,1))","v":{"$error":"#REF!"}},{"$f":"IF($A500=\"\",\"\",$A500&\"_\"&$M500)","v":{"$error":"#REF!"}},{"$f":"IF($A500=\"\",\"\",$D500&\" \"&$E500)","v":{"$error":"#REF!"}},"43A37","Verblijfstraject middelzwaar","Verblijf/ opname","etmaal","Totaal binnen geldigheidsduur of tijdsonafhankelijk",null,398.15,384.7,"72727446","Stichting Buurderij De Wilde Haan"]
[{"$f":"IF($M501=\"\",\"\",IF($M501=$M500,$A500+1,1))","v":{"$error":"#REF!"}},{"$f":"IF($A501=\"\",\"\",$A501&\"_\"&$M501)","v":{"$error":"#REF!"}},{"$f":"IF($A501=\"\",\"\",$D501&\" \"&$E501)","v":{"$error":"#REF!"}},"45A53","Individuele begeleiding specialistisch","Ambulant","uur","Totaal binnen geldigheidsduur of tijdsonafhankelijk",null,104.15,100.6,"72727446","Stichting Buurderij De Wilde Haan"]
[{"$f":"IF($M502=\"\",\"\",IF($M502=$M501,$A501+1,1))","v":1},{"$f":"IF($A502=\"\",\"\",$A502&\"_\"&$M502)","v":"1_Stichting Cerato"},{"$f":"IF($A502=\"\",\"\",$D502&\" \"&$E502)","v":"45A04 Individuele begeleiding basis"},"45A04","Individuele begeleiding basis","Ambulant","uur","Totaal binnen geldigheidsduur of tijdsonafhankelijk",null,81.75,63.35,"98099692","Stichting Cerato"]
[{"$f":"IF($M503=\"\",\"\",IF($M503=$M502,$A502+1,1))","v":2},{"$f":"IF($A503=\"\",\"\",$A503&\"_\"&$M503)","v":"2_Stichting Cerato"},{"$f":"IF($A503=\"\",\"\",$D503&\" \"&$E503)","v":"45A51 Gezinsbegeleiding basis"},"45A51","Gezinsbegeleiding basis","Ambulant","uur","Totaal binnen geldigheidsduur of tijdsonafhankelijk",null,81.75,63.35,"98099692","Stichting Cerato"]
[{"$f":"IF($M504=\"\",\"\",IF($M504=$M503,$A503+1,1))","v":3},{"$f":"IF($A504=\"\",\"\",$A504&\"_\"&$M504)","v":"3_Stichting Cerato"},{"$f":"IF($A504=\"\",\"\",$D504&\" \"&$E504)","v":"45A53 Individuele begeleiding specialistisch"},"45A53","Individuele begeleiding specialistisch","Ambulant","uur","Totaal binnen geldigheidsduur of tijdsonafhankelijk",null,104.15,79.5,"98099692","Stichting Cerato"]
[{"$f":"IF($M505=\"\",\"\",IF($M505=$M504,$A504+1,1))","v":1},{"$f":"IF($A505=\"\",\"\",$A505&\"_\"&$M505)","v":"1_Stichting Chavah"},{"$f":"IF($A505=\"\",\"\",$D505&\" \"&$E505)","v":"44G02 Verblijf langdurig (beschermd) wonen"},"44G02","Verblijf langdurig (beschermd) wonen","Verblijf/ opname","etmaal","per week",null,230.7,230.7,98107787,"Stichting Chavah"]
[{"$f":"IF($M506=\"\",\"\",IF($M506=$M505,$A505+1,1))","v":2},{"$f":"IF($A506=\"\",\"\",$A506&\"_\"&$M506)","v":"2_Stichting Chavah"},{"$f":"IF($A506=\"\",\"\",$D506&\" \"&$E506)","v":"45A04 Individuele begeleiding basis"},"45A04","Individuele begeleiding basis","Ambulant","uur","Totaal binnen geldigheidsduur of tijdsonafhankelijk",null,81.75,81.75,98107787,"Stichting Chavah"]
[{"$f":"IF($M507=\"\",\"\",IF($M507=$M506,$A506+1,1))","v":3},{"$f":"IF($A507=\"\",\"\",$A507&\"_\"&$M507)","v":"3_Stichting Chavah"},{"$f":"IF($A507=\"\",\"\",$D507&\" \"&$E507)","v":"45A53 Individuele begeleiding specialistisch"},"45A53","Individuele begeleiding specialistisch","Ambulant","uur","Totaal binnen geldigheidsduur of tijdsonafhankelijk",null,104.15,104.15,98107787,"Stichting Chavah"]
[{"$f":"IF($M508=\"\",\"\",IF($M508=$M507,$A507+1,1))","v":1},{"$f":"IF($A508=\"\",\"\",$A508&\"_\"&$M508)","v":"1_Stichting Community Support"},{"$f":"IF($A508=\"\",\"\",$D508&\" \"&$E508)","v":"45A04 Individuele begeleiding basis"},"45A04","Individuele begeleiding basis","Ambulant","uur","Totaal binnen geldigheidsduur of tijdsonafhankelijk",null,81.75,81.75,98103642,"Stichting Community Support"]
[{"$f":"IF($M509=\"\",\"\",IF($M509=$M508,$A508+1,1))","v":2},{"$f":"IF($A509=\"\",\"\",$A509&\"_\"&$M509)","v":"2_Stichting Community Support"},{"$f":"IF($A509=\"\",\"\",$D509&\" \"&$E509)","v":"45A51 Gezinsbegeleiding basis"},"45A51","Gezinsbegeleiding basis","Ambulant","uur","Totaal binnen geldigheidsduur of tijdsonafhankelijk",null,81.75,81.75,98103642,"Stichting Community Support"]
[{"$f":"IF($M510=\"\",\"\",IF($M510=$M509,$A509+1,1))","v":3},{"$f":"IF($A510=\"\",\"\",$A510&\"_\"&$M510)","v":"3_Stichting Community Support"},{"$f":"IF($A510=\"\",\"\",$D510&\" \"&$E510)","v":"45A53 Individuele begeleiding specialistisch"},"45A53","Individuele begeleiding specialistisch","Ambulant","uur","Totaal binnen geldigheidsduur of tijdsonafhankelijk",null,104.15,104.15,98103642,"Stichting Community Support"]
[{"$f":"IF($M511=\"\",\"\",IF($M511=$M510,$A510+1,1))","v":4},{"$f":"IF($A511=\"\",\"\",$A511&\"_\"&$M511)","v":"4_Stichting Community Support"},{"$f":"IF($A511=\"\",\"\",$D511&\" \"&$E511)","v":"45A56 Gezinsbegeleiding specialistisch"},"45A56","Gezinsbegeleiding specialistisch","Ambulant","uur","Totaal binnen geldigheidsduur of tijdsonafhankelijk",null,104.15,104.15,98103642,"Stichting Community Support"]
[{"$f":"IF($M512=\"\",\"\",IF($M512=$M511,$A511+1,1))","v":5},{"$f":"IF($A512=\"\",\"\",$A512&\"_\"&$M512)","v":"5_Stichting Community Support"},{"$f":"IF($A512=\"\",\"\",$D512&\" \"&$E512)","v":"45G03 Intensieve ambulante of psychiatrische gezinsbehandeling"},"45G03","Intensieve ambulante of psychiatrische gezinsbehandeling","Ambulant","uur","Totaal binnen geldigheidsduur of tijdsonafhankelijk",null,113.4,113.4,98103642,"Stichting Community Support"]
[{"$f":"IF($M513=\"\",\"\",IF($M513=$M512,$A512+1,1))","v":1},{"$f":"IF($A513=\"\",\"\",$A513&\"_\"&$M513)","v":"1_Stichting Cosis"},{"$f":"IF($A513=\"\",\"\",$D513&\" \"&$E513)","v":"41A18 Dagbesteding"},"41A18","Dagbesteding","Dagbesteding / dagbehandeling","dagdeel","per week",null,76.5,76.5,"65656687","Stichting Cosis"]
[{"$f":"IF($M514=\"\",\"\",IF($M514=$M513,$A513+1,1))","v":2},{"$f":"IF($A514=\"\",\"\",$A514&\"_\"&$M514)","v":"2_Stichting Cosis"},{"$f":"IF($A514=\"\",\"\",$D514&\" \"&$E514)","v":"41G02 Dagbehandeling jonge kinderen"},"41G02","Dagbehandeling jonge kinderen","Dagbesteding / dagbehandeling","dagdeel","per week",null,276.89999999999998,257.05,"65656687","Stichting Cosis"]
[{"$f":"IF($M515=\"\",\"\",IF($M515=$M514,$A514+1,1))","v":3},{"$f":"IF($A515=\"\",\"\",$A515&\"_\"&$M515)","v":"3_Stichting Cosis"},{"$f":"IF($A515=\"\",\"\",$D515&\" \"&$E515)","v":"41G03 Dagbehandeling jeugdige met sterk stagnerende ontwikkeling"},"41G03","Dagbehandeling jeugdige met sterk stagnerende ontwikkeling","Dagbesteding / dagbehandeling","dagdeel","per week",null,151.65,151.65,"65656687","Stichting Cosis"]
[{"$f":"IF($M516=\"\",\"\",IF($M516=$M515,$A515+1,1))","v":4},{"$f":"IF($A516=\"\",\"\",$A516&\"_\"&$M516)","v":"4_Stichting Cosis"},{"$f":"IF($A516=\"\",\"\",$D516&\" \"&$E516)","v":"42A01 Vervoer regulier"},"42A01","Vervoer regulier","Overig","stuk","Totaal binnen geldigheidsduur of tijdsonafhankelijk",null,11.9,11.9,"65656687","Stichting Cosis"]
[{"$f":"IF($M517=\"\",\"\",IF($M517=$M516,$A516+1,1))","v":5},{"$f":"IF($A517=\"\",\"\",$A517&\"_\"&$M517)","v":"5_Stichting Cosis"},{"$f":"IF($A517=\"\",\"\",$D517&\" \"&$E517)","v":"42A02 Vervoer rolstoel"},"42A02","Vervoer rolstoel","Overig","stuk","Totaal binnen geldigheidsduur of tijdsonafhankelijk",null,25.1,25.1,"65656687","Stichting Cosis"]
[6,{"$f":"IF($A518=\"\",\"\",$A518&\"_\"&$M518)","v":"6_Stichting Cosis"},{"$f":"IF($A518=\"\",\"\",$D518&\" \"&$E518)","v":"43A11 Logeren hoog intensief"},"43A11","Logeren hoog intensief","Logeren / Respijtzorg","etmaal","Totaal binnen geldigheidsduur of tijdsonafhankelijk",null,375.8,375.8,"65656687","Stichting Cosis"]
[7,{"$f":"IF($A519=\"\",\"\",$A519&\"_\"&$M519)","v":"7_Stichting Cosis"},{"$f":"IF($A519=\"\",\"\",$D519&\" \"&$E519)","v":"43A37 Verblijfstraject middelzwaar"},"43A37","Verblijfstraject middelzwaar","Verblijf/ opname","etmaal","Totaal binnen geldigheidsduur of tijdsonafhankelijk",null,398.15,398.15000000000003,"65656687","Stichting Cosis"]
[8,{"$f":"IF($A520=\"\",\"\",$A520&\"_\"&$M520)","v":"8_Stichting Cosis"},{"$f":"IF($A520=\"\",\"\",$D520&\" \"&$E520)","v":"43A38 Verblijfstraject zwaar"},"43A38","Verblijfstraject zwaar","Verblijf/ opname","etmaal","Totaal binnen geldigheidsduur of tijdsonafhankelijk",null,454.9,454.90000000000003,"65656687","Stichting Cosis"]
[9,{"$f":"IF($A521=\"\",\"\",$A521&\"_\"&$M521)","v":"9_Stichting Cosis"},{"$f":"IF($A521=\"\",\"\",$D521&\" \"&$E521)","v":"43G09 Verblijf middel gezinshuis"},"43G09","Verblijf middel gezinshuis","Verblijf/ opname","etmaal","per week",null,131.9,131.9,"65656687","Stichting Cosis"]
[10,{"$f":"IF($A522=\"\",\"\",$A522&\"_\"&$M522)","v":"10_Stichting Cosis"},{"$f":"IF($A522=\"\",\"\",$D522&\" \"&$E522)","v":"43G10 Verblijf middel gezinshuis-plus"},"43G10","Verblijf middel gezinshuis-plus","Verblijf/ opname","etmaal","per week",null,184.6,184.6,"65656687","Stichting Cosis"]
[11,{"$f":"IF($A523=\"\",\"\",$A523&\"_\"&$M523)","v":"11_Stichting Cosis"},{"$f":"IF($A523=\"\",\"\",$D523&\" \"&$E523)","v":"44A09 Logeren laag intensief"},"44A09","Logeren laag intensief","Logeren / Respijtzorg","etmaal","Totaal binnen geldigheidsduur of tijdsonafhankelijk",null,237.3,237.3,"65656687","Stichting Cosis"]
[12,{"$f":"IF($A524=\"\",\"\",$A524&\"_\"&$M524)","v":"12_Stichting Cosis"},{"$f":"IF($A524=\"\",\"\",$D524&\" \"&$E524)","v":"44A33 Deeltijd respijtzorg voor jeugdigen met meervoudige beperkingen"},"44A33","Deeltijd respijtzorg voor jeugdigen met meervoudige beperkingen","Logeren / Respijtzorg","uur","Totaal binnen geldigheidsduur of tijdsonafhankelijk",null,71.3,43.75,"65656687","Stichting Cosis"]
[13,{"$f":"IF($A525=\"\",\"\",$A525&\"_\"&$M525)","v":"13_Stichting Cosis"},{"$f":"IF($A525=\"\",\"\",$D525&\" \"&$E525)","v":"44G02 Verblijf langdurig (beschermd) wonen"},"44G02","Verblijf langdurig (beschermd) wonen","Verblijf/ opname","etmaal","per week",null,230.7,230.70000000000002,"65656687","Stichting Cosis"]
[14,{"$f":"IF($A526=\"\",\"\",$A526&\"_\"&$M526)","v":"14_Stichting Cosis"},{"$f":"IF($A526=\"\",\"\",$D526&\" \"&$E526)","v":"45A04 Individuele begeleiding basis"},"45A04","Individuele begeleiding basis","Ambulant","uur","Totaal binnen geldigheidsduur of tijdsonafhankelijk",null,81.75,81.75,"65656687","Stichting Cosis"]
[15,{"$f":"IF($A527=\"\",\"\",$A527&\"_\"&$M527)","v":"15_Stichting Cosis"},{"$f":"IF($A527=\"\",\"\",$D527&\" \"&$E527)","v":"45A51 Gezinsbegeleiding basis"},"45A51","Gezinsbegeleiding basis","Ambulant","uur","Totaal binnen geldigheidsduur of tijdsonafhankelijk",null,81.75,81.75,"65656687","Stichting Cosis"]
[16,{"$f":"IF($A528=\"\",\"\",$A528&\"_\"&$M528)","v":"16_Stichting Cosis"},{"$f":"IF($A528=\"\",\"\",$D528&\" \"&$E528)","v":"45A53 Individuele begeleiding specialistisch"},"45A53","Individuele begeleiding specialistisch","Ambulant","uur","Totaal binnen geldigheidsduur of tijdsonafhankelijk",null,104.15,104.15,"65656687","Stichting Cosis"]
[17,{"$f":"IF($A529=\"\",\"\",$A529&\"_\"&$M529)","v":"17_Stichting Cosis"},{"$f":"IF($A529=\"\",\"\",$D529&\" \"&$E529)","v":"45A54 Groepsbegeleiding specialistisch"},"45A54","Groepsbegeleiding specialistisch","Ambulant","uur","Totaal binnen geldigheidsduur of tijdsonafhankelijk",null,26.4,26.400000000000002,"65656687","Stichting Cosis"]
[18,{"$f":"IF($A530=\"\",\"\",$A530&\"_\"&$M530)","v":"18_Stichting Cosis"},{"$f":"IF($A530=\"\",\"\",$D530&\" \"&$E530)","v":"45A56 Gezinsbegeleiding specialistisch"},"45A56","Gezinsbegeleiding specialistisch","Ambulant","uur","Totaal binnen geldigheidsduur of tijdsonafhankelijk",null,104.15,104.15,"65656687","Stichting Cosis"]
[19,{"$f":"IF($A531=\"\",\"\",$A531&\"_\"&$M531)","v":"19_Stichting Cosis"},{"$f":"IF($A531=\"\",\"\",$D531&\" \"&$E531)","v":"45G02 Gezinsdiagnostiek"},"45G02","Gezinsdiagnostiek","Ambulant","uur","Totaal binnen geldigheidsduur of tijdsonafhankelijk",null,129.25,129.25,"65656687","Stichting Cosis"]
[20,{"$f":"IF($A532=\"\",\"\",$A532&\"_\"&$M532)","v":"20_Stichting Cosis"},{"$f":"IF($A532=\"\",\"\",$D532&\" \"&$E532)","v":"45G03 Intensieve ambulante of psychiatrische gezinsbehandeling"},"45G03","Intensieve ambulante of psychiatrische gezinsbehandeling","Ambulant","uur","Totaal binnen geldigheidsduur of tijdsonafhankelijk",null,113.4,113.4,"65656687","Stichting Cosis"]
[21,{"$f":"IF($A533=\"\",\"\",$A533&\"_\"&$M533)","v":"21_Stichting Cosis"},{"$f":"IF($A533=\"\",\"\",$D533&\" \"&$E533)","v":"45G04 Systeemtherapie"},"45G04","Systeemtherapie","Intensief ambulant","uur","Totaal binnen geldigheidsduur of tijdsonafhankelijk",null,141,141,"65656687","Stichting Cosis"]
[22,{"$f":"IF($A534=\"\",\"\",$A534&\"_\"&$M534)","v":"22_Stichting Cosis"},{"$f":"IF($A534=\"\",\"\",$D534&\" \"&$E534)","v":"45G05 Specifieke doelgroepen 6 Gezinnen met Geringe Sociale Redzaamheid met het accent op lichtere vormen van begeleiding"},"45G05","Specifieke doelgroepen 6 Gezinnen met Geringe Sociale Redzaamheid met het accent op lichtere vormen van begeleiding","Specifieke doelgroepen","uur","Totaal binnen geldigheidsduur of tijdsonafhankelijk",null,101.5,101.5,"65656687","Stichting Cosis"]
[23,{"$f":"IF($A535=\"\",\"\",$A535&\"_\"&$M535)","v":"23_Stichting Cosis"},{"$f":"IF($A535=\"\",\"\",$D535&\" \"&$E535)","v":"45G06 Specifieke doelgroepen 7 Gezinnen met Geringe Sociale Redzaamheid met het accent op specialistische begeleiding en behandeling"},"45G06","Specifieke doelgroepen 7 Gezinnen met Geringe Sociale Redzaamheid met het accent op specialistische begeleiding en behandeling","Specifieke doelgroepen","uur","Totaal binnen geldigheidsduur of tijdsonafhankelijk",null,120,120,"65656687","Stichting Cosis"]
[24,{"$f":"IF($A536=\"\",\"\",$A536&\"_\"&$M536)","v":"24_Stichting Cosis"},{"$f":"IF($A536=\"\",\"\",$D536&\" \"&$E536)","v":"50G26 Specifieke doelgroepen 3 Behoud van en Toeleiding naar onderwijsdeelname (deelproduct jeugdhulp)"},"50G26","Specifieke doelgroepen 3 Behoud van en Toeleiding naar onderwijsdeelname (deelproduct jeugdhulp)","Specifieke doelgroepen","uur","Totaal binnen geldigheidsduur of tijdsonafhankelijk",null,113.4,110.10000000000001,"65656687","Stichting Cosis"]
[25,{"$f":"IF($A537=\"\",\"\",$A537&\"_\"&$M537)","v":"25_Stichting Cosis"},{"$f":"IF($A537=\"\",\"\",$D537&\" \"&$E537)","v":"50G36 Specifieke doelgroepen 2 Vroegtijdige interventies jonge kinderen"},"50G36","Specifieke doelgroepen 2 Vroegtijdige interventies jonge kinderen","Specifieke doelgroepen","uur","Totaal binnen geldigheidsduur of tijdsonafhankelijk",null,104.15,104.15,"65656687","Stichting Cosis"]
[26,{"$f":"IF($A538=\"\",\"\",$A538&\"_\"&$M538)","v":"26_Stichting Cosis"},{"$f":"IF($A538=\"\",\"\",$D538&\" \"&$E538)","v":"51G01 Individuele behandeling basis"},"51G01","Individuele behandeling basis","Ambulant","uur","Totaal binnen geldigheidsduur of tijdsonafhankelijk",null,122.65,122.65,"65656687","Stichting Cosis"]
[27,{"$f":"IF($A539=\"\",\"\",$A539&\"_\"&$M539)","v":"27_Stichting Cosis"},{"$f":"IF($A539=\"\",\"\",$D539&\" \"&$E539)","v":"52G06 Individuele diagnostiek"},"52G06","Individuele diagnostiek","Ambulant","uur","Totaal binnen geldigheidsduur of tijdsonafhankelijk",null,123.95,123.95,"65656687","Stichting Cosis"]
[28,{"$f":"IF($A540=\"\",\"\",$A540&\"_\"&$M540)","v":"28_Stichting Cosis"},{"$f":"IF($A540=\"\",\"\",$D540&\" \"&$E540)","v":"52G09 Individuele behandeling specialistisch"},"52G09","Individuele behandeling specialistisch","Ambulant","uur","Totaal binnen geldigheidsduur of tijdsonafhankelijk",null,130.5,130.5,"65656687","Stichting Cosis"]
[1,{"$f":"IF($A541=\"\",\"\",$A541&\"_\"&$M541)","v":"1_Stichting de Buffelaar"},{"$f":"IF($A541=\"\",\"\",$D541&\" \"&$E541)","v":"44A09 Logeren laag intensief"},"44A09","Logeren laag intensief","Logeren / Respijtzorg","etmaal","Totaal binnen geldigheidsduur of tijdsonafhankelijk",null,237.3,214.5,"98102979","Stichting de Buffelaar"]
[2,{"$f":"IF($A542=\"\",\"\",$A542&\"_\"&$M542)","v":"2_Stichting de Buffelaar"},{"$f":"IF($A542=\"\",\"\",$D542&\" \"&$E542)","v":"45A04 Individuele begeleiding basis"},"45A04","Individuele begeleiding basis","Ambulant","uur","Totaal binnen geldigheidsduur of tijdsonafhankelijk",null,81.75,73.900000000000006,"98102979","Stichting de Buffelaar"]
[1,{"$f":"IF($A543=\"\",\"\",$A543&\"_\"&$M543)","v":"1_Stichting De Trans"},{"$f":"IF($A543=\"\",\"\",$D543&\" \"&$E543)","v":"41G03 Dagbehandeling jeugdige met sterk stagnerende ontwikkeling"},"41G03","Dagbehandeling jeugdige met sterk stagnerende ontwikkeling","Dagbesteding / dagbehandeling","dagdeel","per week",null,151.65,137.85,"30300397","Stichting De Trans"]
[2,{"$f":"IF($A544=\"\",\"\",$A544&\"_\"&$M544)","v":"2_Stichting De Trans"},{"$f":"IF($A544=\"\",\"\",$D544&\" \"&$E544)","v":"42A01 Vervoer regulier"},"42A01","Vervoer regulier","Overig","stuk","Totaal binnen geldigheidsduur of tijdsonafhankelijk",null,11.9,11.600000000000001,"30300397","Stichting De Trans"]
[3,{"$f":"IF($A545=\"\",\"\",$A545&\"_\"&$M545)","v":"3_Stichting De Trans"},{"$f":"IF($A545=\"\",\"\",$D545&\" \"&$E545)","v":"42A02 Vervoer rolstoel"},"42A02","Vervoer rolstoel","Overig","stuk","Totaal binnen geldigheidsduur of tijdsonafhankelijk",null,25.1,24.35,"30300397","Stichting De Trans"]
[4,{"$f":"IF($A546=\"\",\"\",$A546&\"_\"&$M546)","v":"4_Stichting De Trans"},{"$f":"IF($A546=\"\",\"\",$D546&\" \"&$E546)","v":"50G36 Specifieke doelgroepen 2 Vroegtijdige interventies jonge kinderen"},"50G36","Specifieke doelgroepen 2 Vroegtijdige interventies jonge kinderen","Specifieke doelgroepen","uur","Totaal binnen geldigheidsduur of tijdsonafhankelijk",null,104.15,101.2,"30300397","Stichting De Trans"]
[1,{"$f":"IF($A547=\"\",\"\",$A547&\"_\"&$M547)","v":"1_Stichting De Zijlen"},{"$f":"IF($A547=\"\",\"\",$D547&\" \"&$E547)","v":"41A18 Dagbesteding"},"41A18","Dagbesteding","Dagbesteding / dagbehandeling","dagdeel","per week",null,76.5,76.5,65651117,"Stichting De Zijlen"]
[2,{"$f":"IF($A548=\"\",\"\",$A548&\"_\"&$M548)","v":"2_Stichting De Zijlen"},{"$f":"IF($A548=\"\",\"\",$D548&\" \"&$E548)","v":"41G02 Dagbehandeling jonge kinderen"},"41G02","Dagbehandeling jonge kinderen","Dagbesteding / dagbehandeling","dagdeel","per week",null,276.89999999999998,276.90000000000003,65651117,"Stichting De Zijlen"]
[3,{"$f":"IF($A549=\"\",\"\",$A549&\"_\"&$M549)","v":"3_Stichting De Zijlen"},{"$f":"IF($A549=\"\",\"\",$D549&\" \"&$E549)","v":"41G03 Dagbehandeling jeugdige met sterk stagnerende ontwikkeling"},"41G03","Dagbehandeling jeugdige met sterk stagnerende ontwikkeling","Dagbesteding / dagbehandeling","dagdeel","per week",null,151.65,151.65,65651117,"Stichting De Zijlen"]
[4,{"$f":"IF($A550=\"\",\"\",$A550&\"_\"&$M550)","v":"4_Stichting De Zijlen"},{"$f":"IF($A550=\"\",\"\",$D550&\" \"&$E550)","v":"42A01 Vervoer regulier"},"42A01","Vervoer regulier","Overig","stuk","Totaal binnen geldigheidsduur of tijdsonafhankelijk",null,11.9,11.9,65651117,"Stichting De Zijlen"]
[5,{"$f":"IF($A551=\"\",\"\",$A551&\"_\"&$M551)","v":"5_Stichting De Zijlen"},{"$f":"IF($A551=\"\",\"\",$D551&\" \"&$E551)","v":"42A02 Vervoer rolstoel"},"42A02","Vervoer rolstoel","Overig","stuk","Totaal binnen geldigheidsduur of tijdsonafhankelijk",null,25.1,25.1,65651117,"Stichting De Zijlen"]
[6,{"$f":"IF($A552=\"\",\"\",$A552&\"_\"&$M552)","v":"6_Stichting De Zijlen"},{"$f":"IF($A552=\"\",\"\",$D552&\" \"&$E552)","v":"43A37 Verblijfstraject middelzwaar"},"43A37","Verblijfstraject middelzwaar","Verblijf/ opname","etmaal","Totaal binnen geldigheidsduur of tijdsonafhankelijk",null,398.15,398.15000000000003,65651117,"Stichting De Zijlen"]
[7,{"$f":"IF($A553=\"\",\"\",$A553&\"_\"&$M553)","v":"7_Stichting De Zijlen"},{"$f":"IF($A553=\"\",\"\",$D553&\" \"&$E553)","v":"43G09 Verblijf middel gezinshuis"},"43G09","Verblijf middel gezinshuis","Verblijf/ opname","etmaal","per week",null,131.9,131.9,65651117,"Stichting De Zijlen"]
[8,{"$f":"IF($A554=\"\",\"\",$A554&\"_\"&$M554)","v":"8_Stichting De Zijlen"},{"$f":"IF($A554=\"\",\"\",$D554&\" \"&$E554)","v":"43G10 Verblijf middel gezinshuis-plus"},"43G10","Verblijf middel gezinshuis-plus","Verblijf/ opname","etmaal","per week",null,184.6,184.6,65651117,"Stichting De Zijlen"]
[9,{"$f":"IF($A555=\"\",\"\",$A555&\"_\"&$M555)","v":"9_Stichting De Zijlen"},{"$f":"IF($A555=\"\",\"\",$D555&\" \"&$E555)","v":"44A09 Logeren laag intensief"},"44A09","Logeren laag intensief","Logeren / Respijtzorg","etmaal","Totaal binnen geldigheidsduur of tijdsonafhankelijk",null,237.3,237.3,65651117,"Stichting De Zijlen"]
[10,{"$f":"IF($A556=\"\",\"\",$A556&\"_\"&$M556)","v":"10_Stichting De Zijlen"},{"$f":"IF($A556=\"\",\"\",$D556&\" \"&$E556)","v":"44G02 Verblijf langdurig (beschermd) wonen"},"44G02","Verblijf langdurig (beschermd) wonen","Verblijf/ opname","etmaal","per week",null,230.7,230.70000000000002,65651117,"Stichting De Zijlen"]
[11,{"$f":"IF($A557=\"\",\"\",$A557&\"_\"&$M557)","v":"11_Stichting De Zijlen"},{"$f":"IF($A557=\"\",\"\",$D557&\" \"&$E557)","v":"45A04 Individuele begeleiding basis"},"45A04","Individuele begeleiding basis","Ambulant","uur","Totaal binnen geldigheidsduur of tijdsonafhankelijk",null,81.75,81.75,65651117,"Stichting De Zijlen"]
[12,"12_Stichting De Zijlen","45A51 Gezinsbegeleiding basis","45A51","Gezinsbegeleiding basis","Ambulant","uur","Totaal binnen geldigheidsduur of tijdsonafhankelijk",null,81.75,81.75,65651117,"Stichting De Zijlen"]
[13,"13_Stichting De Zijlen","45A53 Individuele begeleiding specialistisch","45A53","Individuele begeleiding specialistisch","Ambulant","uur","Totaal binnen geldigheidsduur of tijdsonafhankelijk",null,104.15,104.15,65651117,"Stichting De Zijlen"]
[14,"14_Stichting De Zijlen","45A56 Gezinsbegeleiding specialistisch","45A56","Gezinsbegeleiding specialistisch","Ambulant","uur","Totaal binnen geldigheidsduur of tijdsonafhankelijk",null,104.15,104.15,65651117,"Stichting De Zijlen"]
[15,"15_Stichting De Zijlen","50G40 Advies en ondersteuning vanuit jeugdhulpaanbieders bij complexe problematiek","50G40","Advies en ondersteuning vanuit jeugdhulpaanbieders bij complexe problematiek","Advies","uur","Totaal binnen geldigheidsduur of tijdsonafhankelijk",null,123.95,123.95,65651117,"Stichting De Zijlen"]
[1,"1_Stichting Driestroom","43G10 Verblijf middel gezinshuis-plus","43G10","Verblijf middel gezinshuis-plus","Verblijf/ opname","etmaal","per week",null,184.6,184.6,"66660705","Stichting Driestroom"]
[1,"1_Stichting Eleos, christelijke ggz","45A56 Gezinsbegeleiding specialistisch","45A56","Gezinsbegeleiding specialistisch","Ambulant","uur","Totaal binnen geldigheidsduur of tijdsonafhankelijk",null,104.15,104.15,"06290613","Stichting Eleos, christelijke ggz"]
[2,"2_Stichting Eleos, christelijke ggz","45G03 Intensieve ambulante of psychiatrische gezinsbehandeling","45G03","Intensieve ambulante of psychiatrische gezinsbehandeling","Ambulant","uur","Totaal binnen geldigheidsduur of tijdsonafhankelijk",null,113.4,113.4,"06290613","Stichting Eleos, christelijke ggz"]
[3,"3_Stichting Eleos, christelijke ggz","52G09 Individuele behandeling specialistisch","52G09","Individuele behandeling specialistisch","Ambulant","uur","Totaal binnen geldigheidsduur of tijdsonafhankelijk",null,130.5,130.5,"06290613","Stichting Eleos, christelijke ggz"]
[4,"4_Stichting Eleos, christelijke ggz","52G12 Individuele behandeling specialistisch licht medicatiecontrole","52G12","Individuele behandeling specialistisch licht medicatiecontrole","Ambulant","uur","Totaal binnen geldigheidsduur of tijdsonafhankelijk",null,174.1,174.10000000000002,"06290613","Stichting Eleos, christelijke ggz"]
[1,"1_Stichting Elker","41A18 Dagbesteding","41A18","Dagbesteding","Dagbesteding / dagbehandeling","dagdeel","per week",null,76.5,76.5,"06290106","Stichting Elker"]
[2,"2_Stichting Elker","41G02 Dagbehandeling jonge kinderen","41G02","Dagbehandeling jonge kinderen","Dagbesteding / dagbehandeling","dagdeel","per week",null,276.89999999999998,276.90000000000003,"06290106","Stichting Elker"]
[3,"3_Stichting Elker","42A01 Vervoer regulier","42A01","Vervoer regulier","Overig","stuk","Totaal binnen geldigheidsduur of tijdsonafhankelijk",null,11.9,11.9,"06290106","Stichting Elker"]
[4,"4_Stichting Elker","42A02 Vervoer rolstoel","42A02","Vervoer rolstoel","Overig","stuk","Totaal binnen geldigheidsduur of tijdsonafhankelijk",null,25.1,25.1,"06290106","Stichting Elker"]
[5,"5_Stichting Elker","43A06 Verblijf Jeugdhulp Plus","43A06","Verblijf Jeugdhulp Plus","Jeugdhulp Plus","etmaal","Totaal binnen geldigheidsduur of tijdsonafhankelijk",null,782.22,819.95,"06290106","Stichting Elker"]
[6,"6_Stichting Elker","43A35 Verblijf licht","43A35","Verblijf licht","Verblijf/ opname","etmaal","Totaal binnen geldigheidsduur of tijdsonafhankelijk",null,162.15,162.15,"06290106","Stichting Elker"]
[7,"7_Stichting Elker","43A37 Verblijfstraject middelzwaar","43A37","Verblijfstraject middelzwaar","Verblijf/ opname","etmaal","Totaal binnen geldigheidsduur of tijdsonafhankelijk",null,398.15,398.15000000000003,"06290106","Stichting Elker"]
[8,"8_Stichting Elker","43A38 Verblijfstraject zwaar","43A38","Verblijfstraject zwaar","Verblijf/ opname","etmaal","Totaal binnen geldigheidsduur of tijdsonafhankelijk",null,454.9,454.90000000000003,"06290106","Stichting Elker"]
[9,"9_Stichting Elker","43B02 Verblijf Jeugdhulp Plus (Drenthe)","43B02","Verblijf Jeugdhulp Plus (Drenthe)","Jeugdhulp Plus","etmaal","Totaal binnen geldigheidsduur of tijdsonafhankelijk",null,782.22,821.02,"06290106","Stichting Elker"]
[10,"10_Stichting Elker","43B12 Voorwaardelijke machtiging gesloten jeugdhulp","43B12","Voorwaardelijke machtiging gesloten jeugdhulp","Jeugdhulp Plus","stuk (per half jaar)","Totaal binnen geldigheidsduur of tijdsonafhankelijk",null,0,0,"06290106","Stichting Elker"]
[11,"11_Stichting Elker","43G01 Specialistische begeleiding/behandeling pleegzorg","43G01","Specialistische begeleiding/behandeling pleegzorg","Verblijf/ opname","uur","per week",null,113.4,113.4,"06290106","Stichting Elker"]
[12,"12_Stichting Elker","43G09 Verblijf middel gezinshuis","43G09","Verblijf middel gezinshuis","Verblijf/ opname","etmaal","per week",null,131.9,131.9,"06290106","Stichting Elker"]
[13,"13_Stichting Elker","43G10 Verblijf middel gezinshuis-plus","43G10","Verblijf middel gezinshuis-plus","Verblijf/ opname","etmaal","per week",null,184.6,184.6,"06290106","Stichting Elker"]
[14,"14_Stichting Elker","43G19 Kleinschalige Voorziening ombouwopdracht SPUK","43G19","Kleinschalige Voorziening ombouwopdracht SPUK","Verblijf ","etmaal",null,null,661.25,661.25,6290106,"Stichting Elker"]
[{"$f":"IF($M581=\"\",\"\",IF($M581=$M580,$A580+1,1))","v":15},"15_Stichting Elker","44A07 Pleegzorg","44A07","Pleegzorg","Verblijf/ opname","etmaal","per week",null,52.75,52.75,"06290106","Stichting Elker"]
[16,"16_Stichting Elker","44A09 Logeren laag intensief","44A09","Logeren laag intensief","Logeren / Respijtzorg","etmaal","Totaal binnen geldigheidsduur of tijdsonafhankelijk",null,237.3,237.3,"06290106","Stichting Elker"]
[17,"17_Stichting Elker","44B10 Deeltijd pleegzorg","44B10","Deeltijd pleegzorg","Verblijf/ opname","etmaal","per week",null,null,89.2,"06290106","Stichting Elker"]
[18,"18_Stichting Elker","45A04 Individuele begeleiding basis","45A04","Individuele begeleiding basis","Ambulant","uur","Totaal binnen geldigheidsduur of tijdsonafhankelijk",null,81.75,81.75,"06290106","Stichting Elker"]
[19,"19_Stichting Elker","45A48 Ouderschapsdiagnostiek: ambulant ","45A48","Ouderschapsdiagnostiek: ambulant ","Ambulant","uur","Totaal binnen geldigheidsduur of tijdsonafhankelijk",null,129.25,129.25,"06290106","Stichting Elker"]
[20,"20_Stichting Elker","45A51 Gezinsbegeleiding basis","45A51","Gezinsbegeleiding basis","Ambulant","uur","Totaal binnen geldigheidsduur of tijdsonafhankelijk",null,81.75,81.75,"06290106","Stichting Elker"]
[21,"21_Stichting Elker","45A53 Individuele begeleiding specialistisch","45A53","Individuele begeleiding specialistisch","Ambulant","uur","Totaal binnen geldigheidsduur of tijdsonafhankelijk",null,104.15,104.15,"06290106","Stichting Elker"]
[22,"22_Stichting Elker","45A56 Gezinsbegeleiding specialistisch","45A56","Gezinsbegeleiding specialistisch","Ambulant","uur","Totaal binnen geldigheidsduur of tijdsonafhankelijk",null,104.15,104.15,"06290106","Stichting Elker"]
[23,"23_Stichting Elker","45G02 Gezinsdiagnostiek","45G02","Gezinsdiagnostiek","Ambulant","uur","Totaal binnen geldigheidsduur of tijdsonafhankelijk",null,129.25,129.25,"06290106","Stichting Elker"]
[24,"24_Stichting Elker","45G03 Intensieve ambulante of psychiatrische gezinsbehandeling","45G03","Intensieve ambulante of psychiatrische gezinsbehandeling","Ambulant","uur","Totaal binnen geldigheidsduur of tijdsonafhankelijk",null,113.4,113.4,"06290106","Stichting Elker"]
[25,"25_Stichting Elker","45G25 Multi Dimensionele Familie Therapie","45G25","Multi Dimensionele Familie Therapie","Intensief ambulant","stuk (12)","Totaal binnen geldigheidsduur of tijdsonafhankelijk",10093,13305.3,13305.300000000001,"06290106","Stichting Elker"]
[26,"26_Stichting Elker","46A03 Crisis jeugdhulp verblijf","46A03","Crisis jeugdhulp verblijf","Crisis","etmaal","Totaal binnen geldigheidsduur of tijdsonafhankelijk",null,null,730.40000000000009,"06290106","Stichting Elker"]
[27,"27_Stichting Elker","46A05 Crisis jeugdhulp pleegzorg","46A05","Crisis jeugdhulp pleegzorg","Crisis","etmaal","Totaal binnen geldigheidsduur of tijdsonafhankelijk",null,null,151.1,"06290106","Stichting Elker"]
[28,"28_Stichting Elker","50G04 IT ambulante spoedhulp","50G04","IT ambulante spoedhulp","Crisis","uur","Totaal binnen geldigheidsduur of tijdsonafhankelijk",null,null,228.04,"06290106","Stichting Elker"]
[29,"29_Stichting Elker","50G26 Specifieke doelgroepen 3 Behoud van en Toeleiding naar onderwijsdeelname (deelproduct jeugdhulp)","50G26","Specifieke doelgroepen 3 Behoud van en Toeleiding naar onderwijsdeelname (deelproduct jeugdhulp)","Specifieke doelgroepen","uur","Totaal binnen geldigheidsduur of tijdsonafhankelijk",null,113.4,113.4,"06290106","Stichting Elker"]
[30,"30_Stichting Elker","50G33 Specifieke doelgroepen 14 Specialistisch pakket complex trauma","50G33","Specifieke doelgroepen 14 Specialistisch pakket complex trauma","Specifieke doelgroepen","uur","Totaal binnen geldigheidsduur of tijdsonafhankelijk",null,149,149,"06290106","Stichting Elker"]
[31,"31_Stichting Elker","50G36 Specifieke doelgroepen 2 Vroegtijdige interventies jonge kinderen","50G36","Specifieke doelgroepen 2 Vroegtijdige interventies jonge kinderen","Specifieke doelgroepen","uur","Totaal binnen geldigheidsduur of tijdsonafhankelijk",null,104.15,104.15,"06290106","Stichting Elker"]
[32,"32_Stichting Elker","50G40 Advies en ondersteuning vanuit jeugdhulpaanbieders bij complexe problematiek","50G40","Advies en ondersteuning vanuit jeugdhulpaanbieders bij complexe problematiek","Advies","uur","Totaal binnen geldigheidsduur of tijdsonafhankelijk",null,123.95,123.95,"06290106","Stichting Elker"]
[33,"33_Stichting Elker","50G41 Specifieke doelgroepen 4 en 5 Ondersteuning jeugdigen en ouders bij complexe (echt)scheiding","50G41","Specifieke doelgroepen 4 en 5 Ondersteuning jeugdigen en ouders bij complexe (echt)scheiding","Specifieke doelgroepen","uur","Totaal binnen geldigheidsduur of tijdsonafhankelijk",null,118.65,118.65,"06290106","Stichting Elker"]
[34,"34_Stichting Elker","52G06 Individuele diagnostiek","52G06","Individuele diagnostiek","Ambulant","uur","Totaal binnen geldigheidsduur of tijdsonafhankelijk",null,123.95,123.95,"06290106","Stichting Elker"]
[35,"35_Stichting Elker","52G08 Individuele behandeling specialistisch zwaar-zeer zwaar","52G08","Individuele behandeling specialistisch zwaar-zeer zwaar","Ambulant","uur","Totaal binnen geldigheidsduur of tijdsonafhankelijk",null,134.5,134.5,"06290106","Stichting Elker"]
[36,"36_Stichting Elker","52G09 Individuele behandeling specialistisch","52G09","Individuele behandeling specialistisch","Ambulant","uur","Totaal binnen geldigheidsduur of tijdsonafhankelijk",null,130.5,130.5,"06290106","Stichting Elker"]
[1,"1_Stichting Fier","43A37 Verblijfstraject middelzwaar","43A37","Verblijfstraject middelzwaar","Verblijf/ opname","etmaal","Totaal binnen geldigheidsduur of tijdsonafhankelijk",null,398.15,398.15000000000003,"72727349","Stichting Fier"]
[2,"2_Stichting Fier","43A38 Verblijfstraject zwaar","43A38","Verblijfstraject zwaar","Verblijf/ opname","etmaal","Totaal binnen geldigheidsduur of tijdsonafhankelijk",null,454.9,454.90000000000003,"72727349","Stichting Fier"]
[3,"3_Stichting Fier","43B19 Verblijfstraject extra zwaar","43B19","Verblijfstraject extra zwaar","Verblijf/ opname","etmaal","Totaal binnen geldigheidsduur of tijdsonafhankelijk",null,478.4,478.40000000000003,"72727349","Stichting Fier"]
[1,"1_Stichting GGZ Drenthe","45G07 Gezinspsychiatrie en ouderschapsdiagnostiek","45G07","Gezinspsychiatrie en ouderschapsdiagnostiek","Klinisch verblijf","stuk","Totaal binnen geldigheidsduur of tijdsonafhankelijk",null,12240,"ligt bij joris","06290301","Stichting GGZ Drenthe"]
[1,"1_Stichting GGZ Friesland","52G06 Individuele diagnostiek","52G06","Individuele diagnostiek","Ambulant","uur","Totaal binnen geldigheidsduur of tijdsonafhankelijk",null,123.95,123.95,"06290204","Stichting GGZ Friesland"]
[2,"2_Stichting GGZ Friesland","52G08 Individuele behandeling specialistisch zwaar-zeer zwaar","52G08","Individuele behandeling specialistisch zwaar-zeer zwaar","Ambulant","uur","Totaal binnen geldigheidsduur of tijdsonafhankelijk",null,134.5,134.5,"06290204","Stichting GGZ Friesland"]
[3,"3_Stichting GGZ Friesland","52G09 Individuele behandeling specialistisch","52G09","Individuele behandeling specialistisch","Ambulant","uur","Totaal binnen geldigheidsduur of tijdsonafhankelijk",null,130.5,130.5,"06290204","Stichting GGZ Friesland"]
[4,"4_Stichting GGZ Friesland","52G12 Individuele behandeling specialistisch licht medicatiecontrole","52G12","Individuele behandeling specialistisch licht medicatiecontrole","Ambulant","uur","Totaal binnen geldigheidsduur of tijdsonafhankelijk",null,174.1,174.10000000000002,"06290204","Stichting GGZ Friesland"]
[1,"1_Stichting Jeugdbescherming Noord en Veilig Thuis Groningen","47B10 Jeugdreclassering","47B10","Jeugdreclassering","Jeugdreclassering","stuk","per maand",null,"tarieven niet publiceren",null,98100201,"Stichting Jeugdbescherming Noord en Veilig Thuis Groningen"]
[2,"2_Stichting Jeugdbescherming Noord en Veilig Thuis Groningen","47B11 GedragsBeïnvloedende Maatregel advies","47B11","GedragsBeïnvloedende Maatregel advies","Jeugdreclassering","stuk","per maand",null,"tarieven niet publiceren",null,98100201,"Stichting Jeugdbescherming Noord en Veilig Thuis Groningen"]
[3,"3_Stichting Jeugdbescherming Noord en Veilig Thuis Groningen","47B12 GedragsBeïnvloedende Maatregel uitvoering","47B12","GedragsBeïnvloedende Maatregel uitvoering","Jeugdreclassering","stuk","per maand",null,"tarieven niet publiceren",null,98100201,"Stichting Jeugdbescherming Noord en Veilig Thuis Groningen"]
[4,"4_Stichting Jeugdbescherming Noord en Veilig Thuis Groningen","47B13 Intensieve TrajectBegeleiding CRIEM","47B13","Intensieve TrajectBegeleiding CRIEM","Jeugdreclassering","stuk","per maand",null,"tarieven niet publiceren",null,98100201,"Stichting Jeugdbescherming Noord en Veilig Thuis Groningen"]
[5,"5_Stichting Jeugdbescherming Noord en Veilig Thuis Groningen","47B14 Intensieve TrajectBegeleiding Harde kern","47B14","Intensieve TrajectBegeleiding Harde kern","Jeugdreclassering","stuk","per maand",null,"tarieven niet publiceren",null,98100201,"Stichting Jeugdbescherming Noord en Veilig Thuis Groningen"]
[6,"6_Stichting Jeugdbescherming Noord en Veilig Thuis Groningen","47B15 Jeugdreclassering Samenloop","47B15","Jeugdreclassering Samenloop","Jeugdreclassering","stuk","per maand",null,"tarieven niet publiceren",null,98100201,"Stichting Jeugdbescherming Noord en Veilig Thuis Groningen"]
[7,"7_Stichting Jeugdbescherming Noord en Veilig Thuis Groningen","47B16 Scholings- en TrainingsProgramma","47B16","Scholings- en TrainingsProgramma","Jeugdreclassering","stuk","per maand",null,"tarieven niet publiceren",null,98100201,"Stichting Jeugdbescherming Noord en Veilig Thuis Groningen"]
[8,"8_Stichting Jeugdbescherming Noord en Veilig Thuis Groningen","48B10 Ondertoezichtstelling","48B10","Ondertoezichtstelling","Jeugdbescherming","stuk","per maand",null,"tarieven niet publiceren",null,98100201,"Stichting Jeugdbescherming Noord en Veilig Thuis Groningen"]
[9,"9_Stichting Jeugdbescherming Noord en Veilig Thuis Groningen","48B11 Voogdij","48B11","Voogdij","Jeugdbescherming","stuk","per maand",null,"tarieven niet publiceren",null,98100201,"Stichting Jeugdbescherming Noord en Veilig Thuis Groningen"]
[10,"10_Stichting Jeugdbescherming Noord en Veilig Thuis Groningen","48B12 LET Jeugdbescherming Ondertoezichtstelling","48B12","LET Jeugdbescherming Ondertoezichtstelling","Landelijk Expertise Team Jeugdbescherming","stuk","Totaal binnen geldigheidsduur of tijdsonafhankelijk",null,"tarieven niet publiceren",null,98100201,"Stichting Jeugdbescherming Noord en Veilig Thuis Groningen"]
[11,{"$f":"IF($A621=\"\",\"\",$A621&\"_\"&$M621)","v":"11_Stichting Jeugdbescherming Noord en Veilig Thuis Groningen"},{"$f":"IF($A621=\"\",\"\",$D621&\" \"&$E621)","v":"48B13 LET Jeugdbescherming Voogdij"},"48B13","LET Jeugdbescherming Voogdij","Landelijk Expertise Team Jeugdbescherming","stuk","Totaal binnen geldigheidsduur of tijdsonafhankelijk",null,"tarieven niet publiceren",null,98100201,"Stichting Jeugdbescherming Noord en Veilig Thuis Groningen"]
[12,"12_Stichting Jeugdbescherming Noord en Veilig Thuis Groningen","49B01 Advies en ondersteuning GI bij veiligheidsvraagstukken (ter voorkoming van kinderbeschermingsmaatregelen)","49B01","Advies en ondersteuning GI bij veiligheidsvraagstukken (ter voorkoming van kinderbeschermingsmaatregelen)","Advies GI","uur","Totaal binnen geldigheidsduur of tijdsonafhankelijk",null,"tarieven niet publiceren",null,98100201,"Stichting Jeugdbescherming Noord en Veilig Thuis Groningen"]
[1,"1_Stichting Jeugdhulp Friesland","41G02 Dagbehandeling jonge kinderen","41G02","Dagbehandeling jonge kinderen","Dagbesteding / dagbehandeling","dagdeel","per week",null,276.89999999999998,276.90000000000003,"06290205","Stichting Jeugdhulp Friesland"]
[2,"2_Stichting Jeugdhulp Friesland","43A37 Verblijfstraject middelzwaar","43A37","Verblijfstraject middelzwaar","Verblijf/ opname","etmaal","Totaal binnen geldigheidsduur of tijdsonafhankelijk",null,398.15,398.15000000000003,"06290205","Stichting Jeugdhulp Friesland"]
[3,"3_Stichting Jeugdhulp Friesland","43A38 Verblijfstraject zwaar","43A38","Verblijfstraject zwaar","Verblijf/ opname","etmaal","Totaal binnen geldigheidsduur of tijdsonafhankelijk",null,454.9,454.90000000000003,"06290205","Stichting Jeugdhulp Friesland"]
[4,"4_Stichting Jeugdhulp Friesland","43G01 Specialistische begeleiding/behandeling pleegzorg","43G01","Specialistische begeleiding/behandeling pleegzorg","Verblijf/ opname","uur","per week",null,113.4,113.4,"06290205","Stichting Jeugdhulp Friesland"]
[5,"5_Stichting Jeugdhulp Friesland","43G09 Verblijf middel gezinshuis","43G09","Verblijf middel gezinshuis","Verblijf/ opname","etmaal","per week",null,131.9,131.9,"06290205","Stichting Jeugdhulp Friesland"]
[6,"6_Stichting Jeugdhulp Friesland","43G10 Verblijf middel gezinshuis-plus","43G10","Verblijf middel gezinshuis-plus","Verblijf/ opname","etmaal","per week",null,184.6,184.6,"06290205","Stichting Jeugdhulp Friesland"]
[7,"7_Stichting Jeugdhulp Friesland","44A07 Pleegzorg","44A07","Pleegzorg","Verblijf/ opname","etmaal","per week",null,52.75,52.75,"06290205","Stichting Jeugdhulp Friesland"]
[8,"8_Stichting Jeugdhulp Friesland","44B10 Deeltijd pleegzorg","44B10","Deeltijd pleegzorg","Verblijf/ opname","etmaal","per week",null,null,89.2,"06290205","Stichting Jeugdhulp Friesland"]
[9,"9_Stichting Jeugdhulp Friesland","45A53 Individuele begeleiding specialistisch","45A53","Individuele begeleiding specialistisch","Ambulant","uur","Totaal binnen geldigheidsduur of tijdsonafhankelijk",null,104.15,104.15,"06290205","Stichting Jeugdhulp Friesland"]
[10,"10_Stichting Jeugdhulp Friesland","45A56 Gezinsbegeleiding specialistisch","45A56","Gezinsbegeleiding specialistisch","Ambulant","uur","Totaal binnen geldigheidsduur of tijdsonafhankelijk",null,104.15,104.15,"06290205","Stichting Jeugdhulp Friesland"]
[11,"11_Stichting Jeugdhulp Friesland","45G03 Intensieve ambulante of psychiatrische gezinsbehandeling","45G03","Intensieve ambulante of psychiatrische gezinsbehandeling","Ambulant","uur","Totaal binnen geldigheidsduur of tijdsonafhankelijk",null,113.4,113.4,"06290205","Stichting Jeugdhulp Friesland"]
[12,"12_Stichting Jeugdhulp Friesland","45G25 Multi Dimensionele Familie Therapie","45G25","Multi Dimensionele Familie Therapie","Intensief ambulant","stuk (12)","Totaal binnen geldigheidsduur of tijdsonafhankelijk",10093,13305.3,13305.300000000001,"06290205","Stichting Jeugdhulp Friesland"]
[13,"13_Stichting Jeugdhulp Friesland","50G41 Specifieke doelgroepen 4 en 5 Ondersteuning jeugdigen en ouders bij complexe (echt)scheiding","50G41","Specifieke doelgroepen 4 en 5 Ondersteuning jeugdigen en ouders bij complexe (echt)scheiding","Specifieke doelgroepen","uur","Totaal binnen geldigheidsduur of tijdsonafhankelijk",null,118.65,118.65,"06290205","Stichting Jeugdhulp Friesland"]
[14,"14_Stichting Jeugdhulp Friesland","52G06 Individuele diagnostiek","52G06","Individuele diagnostiek","Ambulant","uur","Totaal binnen geldigheidsduur of tijdsonafhankelijk",null,123.95,123.95,"06290205","Stichting Jeugdhulp Friesland"]
[15,"15_Stichting Jeugdhulp Friesland","52G08 Individuele behandeling specialistisch zwaar-zeer zwaar","52G08","Individuele behandeling specialistisch zwaar-zeer zwaar","Ambulant","uur","Totaal binnen geldigheidsduur of tijdsonafhankelijk",null,134.5,134.5,"06290205","Stichting Jeugdhulp Friesland"]
[16,"16_Stichting Jeugdhulp Friesland","52G09 Individuele behandeling specialistisch","52G09","Individuele behandeling specialistisch","Ambulant","uur","Totaal binnen geldigheidsduur of tijdsonafhankelijk",null,130.5,130.5,"06290205","Stichting Jeugdhulp Friesland"]
[1,"1_Stichting Leger des Heils Welzijns- en Gezondheidszorg","43A37 Verblijfstraject middelzwaar","43A37","Verblijfstraject middelzwaar","Verblijf/ opname","etmaal","Totaal binnen geldigheidsduur of tijdsonafhankelijk",null,398.15,398.15000000000003,98099048,"Stichting Leger des Heils Welzijns- en Gezondheidszorg"]
[2,"2_Stichting Leger des Heils Welzijns- en Gezondheidszorg","43A38 Verblijfstraject zwaar","43A38","Verblijfstraject zwaar","Verblijf/ opname","etmaal","Totaal binnen geldigheidsduur of tijdsonafhankelijk",null,454.9,454.90000000000003,98099048,"Stichting Leger des Heils Welzijns- en Gezondheidszorg"]
[3,"3_Stichting Leger des Heils Welzijns- en Gezondheidszorg","43G01 Specialistische begeleiding/behandeling pleegzorg","43G01","Specialistische begeleiding/behandeling pleegzorg","Verblijf/ opname","uur","per week",null,113.4,113.4,98099048,"Stichting Leger des Heils Welzijns- en Gezondheidszorg"]
[4,"4_Stichting Leger des Heils Welzijns- en Gezondheidszorg","44A07 Pleegzorg","44A07","Pleegzorg","Verblijf/ opname","etmaal","per week",null,52.75,52.75,98099048,"Stichting Leger des Heils Welzijns- en Gezondheidszorg"]
[5,"5_Stichting Leger des Heils Welzijns- en Gezondheidszorg","44B10 Deeltijd pleegzorg","44B10","Deeltijd pleegzorg","Verblijf/ opname","etmaal","per week",null,null,89.2,98099048,"Stichting Leger des Heils Welzijns- en Gezondheidszorg"]
[6,"6_Stichting Leger des Heils Welzijns- en Gezondheidszorg","44G02 Verblijf langdurig (beschermd) wonen","44G02","Verblijf langdurig (beschermd) wonen","Verblijf/ opname","etmaal","per week",null,230.7,230.70000000000002,98099048,"Stichting Leger des Heils Welzijns- en Gezondheidszorg"]
[{"$f":"IF($M645=\"\",\"\",IF($M645=$M644,$A644+1,1))","v":7},"7_Stichting Leger des Heils Welzijns- en Gezondheidszorg","45A48 Ouderschapsdiagnostiek: ambulant ","45A48","Ouderschapsdiagnostiek: ambulant ","Ambulant","uur","Totaal binnen geldigheidsduur of tijdsonafhankelijk",null,129.25,129.25,98099048,"Stichting Leger des Heils Welzijns- en Gezondheidszorg"]
[8,"8_Stichting Leger des Heils Welzijns- en Gezondheidszorg","45A53 Individuele begeleiding specialistisch","45A53","Individuele begeleiding specialistisch","Ambulant","uur","Totaal binnen geldigheidsduur of tijdsonafhankelijk",null,104.15,104.15,98099048,"Stichting Leger des Heils Welzijns- en Gezondheidszorg"]
[9,"9_Stichting Leger des Heils Welzijns- en Gezondheidszorg","45A56 Gezinsbegeleiding specialistisch","45A56","Gezinsbegeleiding specialistisch","Ambulant","uur","Totaal binnen geldigheidsduur of tijdsonafhankelijk",null,104.15,104.15,98099048,"Stichting Leger des Heils Welzijns- en Gezondheidszorg"]
[10,"10_Stichting Leger des Heils Welzijns- en Gezondheidszorg","45G03 Intensieve ambulante of psychiatrische gezinsbehandeling","45G03","Intensieve ambulante of psychiatrische gezinsbehandeling","Ambulant","uur","Totaal binnen geldigheidsduur of tijdsonafhankelijk",null,113.4,113.4,98099048,"Stichting Leger des Heils Welzijns- en Gezondheidszorg"]
[11,"11_Stichting Leger des Heils Welzijns- en Gezondheidszorg","45G06 Specifieke doelgroepen 7 Gezinnen met Geringe Sociale Redzaamheid met het accent op specialistische begeleiding en behandeling","45G06","Specifieke doelgroepen 7 Gezinnen met Geringe Sociale Redzaamheid met het accent op specialistische begeleiding en behandeling","Specifieke doelgroepen","uur","Totaal binnen geldigheidsduur of tijdsonafhankelijk",null,120,120,98099048,"Stichting Leger des Heils Welzijns- en Gezondheidszorg"]
[12,"12_Stichting Leger des Heils Welzijns- en Gezondheidszorg","46A01 Crisis jeugdhulp ambulant","46A01","Crisis jeugdhulp ambulant","Crisis","uur","Totaal binnen geldigheidsduur of tijdsonafhankelijk",null,null,209.9,98099048,"Stichting Leger des Heils Welzijns- en Gezondheidszorg"]
[13,"13_Stichting Leger des Heils Welzijns- en Gezondheidszorg","46A03 Crisis jeugdhulp verblijf","46A03","Crisis jeugdhulp verblijf","Crisis","etmaal","Totaal binnen geldigheidsduur of tijdsonafhankelijk",null,null,730.40000000000009,98099048,"Stichting Leger des Heils Welzijns- en Gezondheidszorg"]
[14,"14_Stichting Leger des Heils Welzijns- en Gezondheidszorg","46A05 Crisis jeugdhulp pleegzorg","46A05","Crisis jeugdhulp pleegzorg","Crisis","etmaal","Totaal binnen geldigheidsduur of tijdsonafhankelijk",null,null,86.7,98099048,"Stichting Leger des Heils Welzijns- en Gezondheidszorg"]
[15,"15_Stichting Leger des Heils Welzijns- en Gezondheidszorg","50G40 Advies en ondersteuning vanuit jeugdhulpaanbieders bij complexe problematiek","50G40","Advies en ondersteuning vanuit jeugdhulpaanbieders bij complexe problematiek","Advies","uur","Totaal binnen geldigheidsduur of tijdsonafhankelijk",null,123.95,123.95,98099048,"Stichting Leger des Heils Welzijns- en Gezondheidszorg"]
[16,"16_Stichting Leger des Heils Welzijns- en Gezondheidszorg","50G41 Specifieke doelgroepen 4 en 5 Ondersteuning jeugdigen en ouders bij complexe (echt)scheiding","50G41","Specifieke doelgroepen 4 en 5 Ondersteuning jeugdigen en ouders bij complexe (echt)scheiding","Specifieke doelgroepen","uur","Totaal binnen geldigheidsduur of tijdsonafhankelijk",null,118.65,118.65,98099048,"Stichting Leger des Heils Welzijns- en Gezondheidszorg"]
[1,"1_Stichting Lentis Maatschappelijke Onderneming","45G02 Gezinsdiagnostiek","45G02","Gezinsdiagnostiek","Ambulant","uur","Totaal binnen geldigheidsduur of tijdsonafhankelijk",null,129.25,129.25,"06290308","Stichting Lentis Maatschappelijke Onderneming"]
[2,"2_Stichting Lentis Maatschappelijke Onderneming","45G04 Systeemtherapie","45G04","Systeemtherapie","Intensief ambulant","uur","Totaal binnen geldigheidsduur of tijdsonafhankelijk",null,141,141,"06290308","Stichting Lentis Maatschappelijke Onderneming"]
[3,"3_Stichting Lentis Maatschappelijke Onderneming","46A01 Crisis jeugdhulp ambulant","46A01","Crisis jeugdhulp ambulant","Crisis","uur","Totaal binnen geldigheidsduur of tijdsonafhankelijk",null,198.57,208.4,"06290308","Stichting Lentis Maatschappelijke Onderneming"]
[4,"4_Stichting Lentis Maatschappelijke Onderneming","50G42 Specifieke doelgroepen 11, 12 en 13 Hoog specialistisch zeer zeldzaam","50G42","Specifieke doelgroepen 11, 12 en 13 Hoog specialistisch zeer zeldzaam","Specifieke doelgroepen","uur","Totaal binnen geldigheidsduur of tijdsonafhankelijk",null,149,149,"06290308","Stichting Lentis Maatschappelijke Onderneming"]
[5,"5_Stichting Lentis Maatschappelijke Onderneming","52G06 Individuele diagnostiek","52G06","Individuele diagnostiek","Ambulant","uur","Totaal binnen geldigheidsduur of tijdsonafhankelijk",null,123.95,123.95,"06290308","Stichting Lentis Maatschappelijke Onderneming"]
[6,"6_Stichting Lentis Maatschappelijke Onderneming","52G08 Individuele behandeling specialistisch zwaar-zeer zwaar","52G08","Individuele behandeling specialistisch zwaar-zeer zwaar","Ambulant","uur","Totaal binnen geldigheidsduur of tijdsonafhankelijk",null,134.5,134.5,"06290308","Stichting Lentis Maatschappelijke Onderneming"]
[7,"7_Stichting Lentis Maatschappelijke Onderneming","52G09 Individuele behandeling specialistisch","52G09","Individuele behandeling specialistisch","Ambulant","uur","Totaal binnen geldigheidsduur of tijdsonafhankelijk",null,130.5,130.5,"06290308","Stichting Lentis Maatschappelijke Onderneming"]
[8,"8_Stichting Lentis Maatschappelijke Onderneming","52G12 Individuele behandeling specialistisch licht medicatiecontrole","52G12","Individuele behandeling specialistisch licht medicatiecontrole","Ambulant","uur","Totaal binnen geldigheidsduur of tijdsonafhankelijk",null,174.1,174.10000000000002,"06290308","Stichting Lentis Maatschappelijke Onderneming"]
[1,"1_Stichting MEE Noord","45A53 Individuele begeleiding specialistisch","45A53","Individuele begeleiding specialistisch","Ambulant","uur","Totaal binnen geldigheidsduur of tijdsonafhankelijk",null,104.15,104.15,98100521,"Stichting MEE Noord"]
[2,"2_Stichting MEE Noord","45A56 Gezinsbegeleiding specialistisch","45A56","Gezinsbegeleiding specialistisch","Ambulant","uur","Totaal binnen geldigheidsduur of tijdsonafhankelijk",null,104.15,104.15,98100521,"Stichting MEE Noord"]
[3,"3_Stichting MEE Noord","45G05 Specifieke doelgroepen 6 Gezinnen met Geringe Sociale Redzaamheid met het accent op lichtere vormen van begeleiding","45G05","Specifieke doelgroepen 6 Gezinnen met Geringe Sociale Redzaamheid met het accent op lichtere vormen van begeleiding","Specifieke doelgroepen","uur","Totaal binnen geldigheidsduur of tijdsonafhankelijk",null,101.5,101.5,98100521,"Stichting MEE Noord"]
[4,"4_Stichting MEE Noord","50G06 Specifieke doelgroepen 1 Integrale vroeghulp bij diffuse ontwikkelingsproblemen jonge kinderen","50G06","Specifieke doelgroepen 1 Integrale vroeghulp bij diffuse ontwikkelingsproblemen jonge kinderen","Specifieke doelgroepen","uur","Totaal binnen geldigheidsduur of tijdsonafhankelijk",null,109.45,109.45,98100521,"Stichting MEE Noord"]
[5,"5_Stichting MEE Noord","50G36 Specifieke doelgroepen 2 Vroegtijdige interventies jonge kinderen","50G36","Specifieke doelgroepen 2 Vroegtijdige interventies jonge kinderen","Specifieke doelgroepen","uur","Totaal binnen geldigheidsduur of tijdsonafhankelijk",null,104.15,104.15,98100521,"Stichting MEE Noord"]
[6,"6_Stichting MEE Noord","50G40 Advies en ondersteuning vanuit jeugdhulpaanbieders bij complexe problematiek","50G40","Advies en ondersteuning vanuit jeugdhulpaanbieders bij complexe problematiek","Advies","uur","Totaal binnen geldigheidsduur of tijdsonafhankelijk",null,123.95,119.95,98100521,"Stichting MEE Noord"]
[7,"7_Stichting MEE Noord","52G06 Individuele diagnostiek","52G06","Individuele diagnostiek","Ambulant","uur","Totaal binnen geldigheidsduur of tijdsonafhankelijk",null,123.95,123.95,98100521,"Stichting MEE Noord"]
[1,"1_Stichting Pento","52G06 Individuele diagnostiek","52G06","Individuele diagnostiek","Ambulant","uur","Totaal binnen geldigheidsduur of tijdsonafhankelijk",null,123.95,118,"53530382","Stichting Pento"]
[2,"2_Stichting Pento","52G14 Specifieke doelgroepen 8 Ernstige Dyslexie (ED)","52G14","Specifieke doelgroepen 8 Ernstige Dyslexie (ED)","Specifieke doelgroepen","stuk (12)","Totaal binnen geldigheidsduur of tijdsonafhankelijk",6900,9228.2000000000007,8451.1,"53530382","Stichting Pento"]
[1,"1_Stichting Petten Zorg","42A01 Vervoer regulier","42A01","Vervoer regulier","Overig","stuk","Totaal binnen geldigheidsduur of tijdsonafhankelijk",null,11.9,11.9,"98100080","Stichting Petten Zorg"]
[2,"2_Stichting Petten Zorg","43G09 Verblijf middel gezinshuis","43G09","Verblijf middel gezinshuis","Verblijf/ opname","etmaal","per week",null,131.9,131.9,"98100080","Stichting Petten Zorg"]
[3,"3_Stichting Petten Zorg","44A09 Logeren laag intensief","44A09","Logeren laag intensief","Logeren / Respijtzorg","etmaal","Totaal binnen geldigheidsduur of tijdsonafhankelijk",null,237.3,237.3,"98100080","Stichting Petten Zorg"]
[4,"4_Stichting Petten Zorg","45A04 Individuele begeleiding basis","45A04","Individuele begeleiding basis","Ambulant","uur","Totaal binnen geldigheidsduur of tijdsonafhankelijk",null,81.75,81.75,"98100080","Stichting Petten Zorg"]
[5,"5_Stichting Petten Zorg","45A51 Gezinsbegeleiding basis","45A51","Gezinsbegeleiding basis","Ambulant","uur","Totaal binnen geldigheidsduur of tijdsonafhankelijk",null,81.75,81.75,"98100080","Stichting Petten Zorg"]
[1,"1_Stichting 's Heeren Loo Zorggroep","41A18 Dagbesteding","41A18","Dagbesteding","Dagbesteding / dagbehandeling","dagdeel","per week",null,76.5,75.05,"30300685","Stichting 's Heeren Loo Zorggroep"]
[2,"2_Stichting 's Heeren Loo Zorggroep","42A01 Vervoer regulier","42A01","Vervoer regulier","Overig","stuk","Totaal binnen geldigheidsduur of tijdsonafhankelijk",null,11.9,11.700000000000001,"30300685","Stichting 's Heeren Loo Zorggroep"]
[3,"3_Stichting 's Heeren Loo Zorggroep","42A02 Vervoer rolstoel","42A02","Vervoer rolstoel","Overig","stuk","Totaal binnen geldigheidsduur of tijdsonafhankelijk",null,25.1,24.55,"30300685","Stichting 's Heeren Loo Zorggroep"]
[4,"4_Stichting 's Heeren Loo Zorggroep","43A37 Verblijfstraject middelzwaar","43A37","Verblijfstraject middelzwaar","Verblijf/ opname","etmaal","Totaal binnen geldigheidsduur of tijdsonafhankelijk",null,398.15,390.35,"30300685","Stichting 's Heeren Loo Zorggroep"]
[5,"5_Stichting 's Heeren Loo Zorggroep","43A38 Verblijfstraject zwaar","43A38","Verblijfstraject zwaar","Verblijf/ opname","etmaal","Totaal binnen geldigheidsduur of tijdsonafhankelijk",null,454.9,446,"30300685","Stichting 's Heeren Loo Zorggroep"]
[6,"6_Stichting 's Heeren Loo Zorggroep","43G10 Verblijf middel gezinshuis-plus","43G10","Verblijf middel gezinshuis-plus","Verblijf/ opname","etmaal","per week",null,184.6,180.95000000000002,"30300685","Stichting 's Heeren Loo Zorggroep"]
[7,"7_Stichting 's Heeren Loo Zorggroep","44G02 Verblijf langdurig (beschermd) wonen","44G02","Verblijf langdurig (beschermd) wonen","Verblijf/ opname","etmaal","per week",null,230.7,226.25,"30300685","Stichting 's Heeren Loo Zorggroep"]
[8,"8_Stichting 's Heeren Loo Zorggroep","45A04 Individuele begeleiding basis","45A04","Individuele begeleiding basis","Ambulant","uur","Totaal binnen geldigheidsduur of tijdsonafhankelijk",null,81.75,80.2,"30300685","Stichting 's Heeren Loo Zorggroep"]
[9,{"$f":"IF($A685=\"\",\"\",$A685&\"_\"&$M685)","v":"9_Stichting 's Heeren Loo Zorggroep"},{"$f":"IF($A685=\"\",\"\",$D685&\" \"&$E685)","v":"45A49 Groepsbegeleiding basis"},"45A49","Groepsbegeleiding basis","Ambulant","uur","Totaal binnen geldigheidsduur of tijdsonafhankelijk",null,21.05,20.75,"30300685","Stichting 's Heeren Loo Zorggroep"]
[10,"10_Stichting 's Heeren Loo Zorggroep","45A51 Gezinsbegeleiding basis","45A51","Gezinsbegeleiding basis","Ambulant","uur","Totaal binnen geldigheidsduur of tijdsonafhankelijk",null,81.75,71.05,"30300685","Stichting 's Heeren Loo Zorggroep"]
[11,"11_Stichting 's Heeren Loo Zorggroep","45A53 Individuele begeleiding specialistisch","45A53","Individuele begeleiding specialistisch","Ambulant","uur","Totaal binnen geldigheidsduur of tijdsonafhankelijk",null,104.15,102.15,"30300685","Stichting 's Heeren Loo Zorggroep"]
[12,"12_Stichting 's Heeren Loo Zorggroep","45A56 Gezinsbegeleiding specialistisch","45A56","Gezinsbegeleiding specialistisch","Ambulant","uur","Totaal binnen geldigheidsduur of tijdsonafhankelijk",null,104.15,90.4,"30300685","Stichting 's Heeren Loo Zorggroep"]
[13,"13_Stichting 's Heeren Loo Zorggroep","45G03 Intensieve ambulante of psychiatrische gezinsbehandeling","45G03","Intensieve ambulante of psychiatrische gezinsbehandeling","Ambulant","uur","Totaal binnen geldigheidsduur of tijdsonafhankelijk",null,113.4,111.15,"30300685","Stichting 's Heeren Loo Zorggroep"]
[14,"14_Stichting 's Heeren Loo Zorggroep","45G04 Systeemtherapie","45G04","Systeemtherapie","Intensief ambulant","uur","Totaal binnen geldigheidsduur of tijdsonafhankelijk",null,141,138.30000000000001,"30300685","Stichting 's Heeren Loo Zorggroep"]
[15,"15_Stichting 's Heeren Loo Zorggroep","51G01 Individuele behandeling basis","51G01","Individuele behandeling basis","Ambulant","uur","Totaal binnen geldigheidsduur of tijdsonafhankelijk",null,122.65,120.25,"30300685","Stichting 's Heeren Loo Zorggroep"]
[16,"16_Stichting 's Heeren Loo Zorggroep","52G06 Individuele diagnostiek","52G06","Individuele diagnostiek","Ambulant","uur","Totaal binnen geldigheidsduur of tijdsonafhankelijk",null,123.95,121.5,"30300685","Stichting 's Heeren Loo Zorggroep"]
[17,"17_Stichting 's Heeren Loo Zorggroep","52G08 Individuele behandeling specialistisch zwaar-zeer zwaar","52G08","Individuele behandeling specialistisch zwaar-zeer zwaar","Ambulant","uur","Totaal binnen geldigheidsduur of tijdsonafhankelijk",null,134.5,131.85,"30300685","Stichting 's Heeren Loo Zorggroep"]
[18,"18_Stichting 's Heeren Loo Zorggroep","52G09 Individuele behandeling specialistisch","52G09","Individuele behandeling specialistisch","Ambulant","uur","Totaal binnen geldigheidsduur of tijdsonafhankelijk",null,130.5,127.95,"30300685","Stichting 's Heeren Loo Zorggroep"]
[19,"19_Stichting 's Heeren Loo Zorggroep","52G12 Individuele behandeling specialistisch licht medicatiecontrole","52G12","Individuele behandeling specialistisch licht medicatiecontrole","Ambulant","uur","Totaal binnen geldigheidsduur of tijdsonafhankelijk",null,174.1,170.60000000000002,"30300685","Stichting 's Heeren Loo Zorggroep"]
[1,"1_Stichting Schouder aan Schouder","45A04 Individuele begeleiding basis","45A04","Individuele begeleiding basis","Ambulant","uur","Totaal binnen geldigheidsduur of tijdsonafhankelijk",null,81.75,79.100000000000009,73730175,"Stichting Schouder aan Schouder"]
[2,"2_Stichting Schouder aan Schouder","45A49 Groepsbegeleiding basis","45A49","Groepsbegeleiding basis","Ambulant","uur","Totaal binnen geldigheidsduur of tijdsonafhankelijk",null,21.05,21.05,73730175,"Stichting Schouder aan Schouder"]
[3,"3_Stichting Schouder aan Schouder","45A51 Gezinsbegeleiding basis","45A51","Gezinsbegeleiding basis","Ambulant","uur","Totaal binnen geldigheidsduur of tijdsonafhankelijk",null,81.75,79.100000000000009,73730175,"Stichting Schouder aan Schouder"]
[4,"4_Stichting Schouder aan Schouder","45A53 Individuele begeleiding specialistisch","45A53","Individuele begeleiding specialistisch","Ambulant","uur","Totaal binnen geldigheidsduur of tijdsonafhankelijk",null,104.15,98.850000000000009,73730175,"Stichting Schouder aan Schouder"]
[5,"5_Stichting Schouder aan Schouder","52G06 Individuele diagnostiek","52G06","Individuele diagnostiek","Ambulant","uur","Totaal binnen geldigheidsduur of tijdsonafhankelijk",null,123.95,122.15,73730175,"Stichting Schouder aan Schouder"]
[1,"1_Stichting Siriz","43G10 Verblijf middel gezinshuis-plus","43G10","Verblijf middel gezinshuis-plus","Verblijf/ opname","etmaal","per week",null,184.6,184.6,98099155,"Stichting Siriz"]
[2,"2_Stichting Siriz","45A04 Individuele begeleiding basis","45A04","Individuele begeleiding basis","Ambulant","uur","Totaal binnen geldigheidsduur of tijdsonafhankelijk",null,81.75,81.75,98099155,"Stichting Siriz"]
[3,"3_Stichting Siriz","45A51 Gezinsbegeleiding basis","45A51","Gezinsbegeleiding basis","Ambulant","uur","Totaal binnen geldigheidsduur of tijdsonafhankelijk",null,81.75,81.75,98099155,"Stichting Siriz"]
[4,"4_Stichting Siriz","45A53 Individuele begeleiding specialistisch","45A53","Individuele begeleiding specialistisch","Ambulant","uur","Totaal binnen geldigheidsduur of tijdsonafhankelijk",null,104.15,104.15,98099155,"Stichting Siriz"]
[1,"1_Stichting Verslavingszorg Noord Nederland","43A37 Verblijfstraject middelzwaar","43A37","Verblijfstraject middelzwaar","Verblijf/ opname","etmaal","Totaal binnen geldigheidsduur of tijdsonafhankelijk",null,398.15,367.05,"06290105","Stichting Verslavingszorg Noord Nederland"]
[2,"2_Stichting Verslavingszorg Noord Nederland","43G11 Opname kort intensief","43G11","Opname kort intensief","Verblijf/ opname","etmaal","Totaal binnen geldigheidsduur of tijdsonafhankelijk",null,477.25,440,"06290105","Stichting Verslavingszorg Noord Nederland"]
[3,"3_Stichting Verslavingszorg Noord Nederland","45A53 Individuele begeleiding specialistisch","45A53","Individuele begeleiding specialistisch","Ambulant","uur","Totaal binnen geldigheidsduur of tijdsonafhankelijk",null,104.15,96.050000000000011,"06290105","Stichting Verslavingszorg Noord Nederland"]
[4,"4_Stichting Verslavingszorg Noord Nederland","45A56 Gezinsbegeleiding specialistisch","45A56","Gezinsbegeleiding specialistisch","Ambulant","uur","Totaal binnen geldigheidsduur of tijdsonafhankelijk",null,104.15,96.050000000000011,"06290105","Stichting Verslavingszorg Noord Nederland"]
[{"$f":"IF($M709=\"\",\"\",IF($M709=$M708,$A708+1,1))","v":5},"5_Stichting Verslavingszorg Noord Nederland","45G04 Systeemtherapie","45G04","Systeemtherapie","Intensief ambulant","uur","Totaal binnen geldigheidsduur of tijdsonafhankelijk",null,141,130.05000000000001,"06290105","Stichting Verslavingszorg Noord Nederland"]
[6,"6_Stichting Verslavingszorg Noord Nederland","45G25 Multi Dimensionele Familie Therapie","45G25","Multi Dimensionele Familie Therapie","Intensief ambulant","stuk (12)","Totaal binnen geldigheidsduur of tijdsonafhankelijk",10093,13305.3,12266.300000000001,"06290105","Stichting Verslavingszorg Noord Nederland"]
[7,"7_Stichting Verslavingszorg Noord Nederland","51G01 Individuele behandeling basis","51G01","Individuele behandeling basis","Ambulant","uur","Totaal binnen geldigheidsduur of tijdsonafhankelijk",null,122.65,113.05000000000001,"06290105","Stichting Verslavingszorg Noord Nederland"]
[8,"8_Stichting Verslavingszorg Noord Nederland","52G06 Individuele diagnostiek","52G06","Individuele diagnostiek","Ambulant","uur","Totaal binnen geldigheidsduur of tijdsonafhankelijk",null,123.95,114.25,"06290105","Stichting Verslavingszorg Noord Nederland"]
[9,"9_Stichting Verslavingszorg Noord Nederland","52G08 Individuele behandeling specialistisch zwaar-zeer zwaar","52G08","Individuele behandeling specialistisch zwaar-zeer zwaar","Ambulant","uur","Totaal binnen geldigheidsduur of tijdsonafhankelijk",null,134.5,123.95,"06290105","Stichting Verslavingszorg Noord Nederland"]
[10,"10_Stichting Verslavingszorg Noord Nederland","52G09 Individuele behandeling specialistisch","52G09","Individuele behandeling specialistisch","Ambulant","uur","Totaal binnen geldigheidsduur of tijdsonafhankelijk",null,130.5,120.35000000000001,"06290105","Stichting Verslavingszorg Noord Nederland"]
[1,"1_Stichting Yes We Can Clinics","41A18 Dagbesteding","41A18","Dagbesteding","Dagbesteding / dagbehandeling","dagdeel","per week",null,76.5,76.5,22227299,"Stichting Yes We Can Clinics"]
[2,"2_Stichting Yes We Can Clinics","43A38 Verblijfstraject zwaar","43A38","Verblijfstraject zwaar","Verblijf/ opname","etmaal","Totaal binnen geldigheidsduur of tijdsonafhankelijk",null,454.9,454.9,22227299,"Stichting Yes We Can Clinics"]
[3,"3_Stichting Yes We Can Clinics","52G06 Individuele diagnostiek","52G06","Individuele diagnostiek","Ambulant","uur","Totaal binnen geldigheidsduur of tijdsonafhankelijk",null,123.95,123.95,22227299,"Stichting Yes We Can Clinics"]
[1,"1_Stichting Yorneo Beheer","41G02 Dagbehandeling jonge kinderen","41G02","Dagbehandeling jonge kinderen","Dagbesteding / dagbehandeling","dagdeel","per week",null,276.89999999999998,276.90000000000003,73730305,"Stichting Yorneo Beheer"]
[2,"2_Stichting Yorneo Beheer","43A37 Verblijfstraject middelzwaar","43A37","Verblijfstraject middelzwaar","Verblijf/ opname","etmaal","Totaal binnen geldigheidsduur of tijdsonafhankelijk",null,398.15,398.15000000000003,73730305,"Stichting Yorneo Beheer"]
[3,"3_Stichting Yorneo Beheer","43G01 Specialistische begeleiding/behandeling pleegzorg","43G01","Specialistische begeleiding/behandeling pleegzorg","Verblijf/ opname","uur","per week",null,113.4,113.4,73730305,"Stichting Yorneo Beheer"]
[4,"4_Stichting Yorneo Beheer","43G10 Verblijf middel gezinshuis-plus","43G10","Verblijf middel gezinshuis-plus","Verblijf/ opname","etmaal","per week",null,184.6,184.6,73730305,"Stichting Yorneo Beheer"]
[5,"5_Stichting Yorneo Beheer","44A07 Pleegzorg","44A07","Pleegzorg","Verblijf/ opname","etmaal","per week",null,52.75,52.75,73730305,"Stichting Yorneo Beheer"]
[6,"6_Stichting Yorneo Beheer","44B10 Deeltijd pleegzorg","44B10","Deeltijd pleegzorg","Verblijf/ opname","etmaal","per week",null,null,89.2,73730305,"Stichting Yorneo Beheer"]
[7,"7_Stichting Yorneo Beheer","45A56 Gezinsbegeleiding specialistisch","45A56","Gezinsbegeleiding specialistisch","Ambulant","uur","Totaal binnen geldigheidsduur of tijdsonafhankelijk",null,104.15,104.15,73730305,"Stichting Yorneo Beheer"]
[8,"8_Stichting Yorneo Beheer","45G03 Intensieve ambulante of psychiatrische gezinsbehandeling","45G03","Intensieve ambulante of psychiatrische gezinsbehandeling","Ambulant","uur","Totaal binnen geldigheidsduur of tijdsonafhankelijk",null,113.4,113.4,73730305,"Stichting Yorneo Beheer"]
[9,"9_Stichting Yorneo Beheer","45G25 Multi Dimensionele Familie Therapie","45G25","Multi Dimensionele Familie Therapie","Intensief ambulant","stuk (12)","Totaal binnen geldigheidsduur of tijdsonafhankelijk",10093,13305.3,13305.300000000001,73730305,"Stichting Yorneo Beheer"]
[10,"10_Stichting Yorneo Beheer","45G27 Multi Systeem Therapie (MST)","45G27","Multi Systeem Therapie (MST)","Intensief ambulant","stuk (12)","Totaal binnen geldigheidsduur of tijdsonafhankelijk",16005,21100.55,21100.550000000003,73730305,"Stichting Yorneo Beheer"]
[11,"11_Stichting Yorneo Beheer","50G41 Specifieke doelgroepen 4 en 5 Ondersteuning jeugdigen en ouders bij complexe (echt)scheiding","50G41","Specifieke doelgroepen 4 en 5 Ondersteuning jeugdigen en ouders bij complexe (echt)scheiding","Specifieke doelgroepen","uur","Totaal binnen geldigheidsduur of tijdsonafhankelijk",null,118.65,118.65,73730305,"Stichting Yorneo Beheer"]
[12,"12_Stichting Yorneo Beheer","52G06 Individuele diagnostiek","52G06","Individuele diagnostiek","Ambulant","uur","Totaal binnen geldigheidsduur of tijdsonafhankelijk",null,123.95,123.95,73730305,"Stichting Yorneo Beheer"]
[13,"13_Stichting Yorneo Beheer","52G09 Individuele behandeling specialistisch","52G09","Individuele behandeling specialistisch","Ambulant","uur","Totaal binnen geldigheidsduur of tijdsonafhankelijk",null,130.5,130.5,73730305,"Stichting Yorneo Beheer"]
[1,"1_Stichting ZorgInitiatief de Bosk","50G26 Specifieke doelgroepen 3 Behoud van en Toeleiding naar onderwijsdeelname (deelproduct jeugdhulp)","50G26","Specifieke doelgroepen 3 Behoud van en Toeleiding naar onderwijsdeelname (deelproduct jeugdhulp)","Specifieke doelgroepen","uur","Totaal binnen geldigheidsduur of tijdsonafhankelijk",null,113.4,102.55000000000001,98104119,"Stichting ZorgInitiatief de Bosk"]
[1,"1_Synaeda PMC B.V.","52G09 Individuele behandeling specialistisch","52G09","Individuele behandeling specialistisch","Ambulant","uur","Totaal binnen geldigheidsduur of tijdsonafhankelijk",null,130.5,120.35000000000001,73737753,"Synaeda PMC B.V."]
[2,"2_Synaeda PMC B.V.","52G12 Individuele behandeling specialistisch licht medicatiecontrole","52G12","Individuele behandeling specialistisch licht medicatiecontrole","Ambulant","uur","Totaal binnen geldigheidsduur of tijdsonafhankelijk",null,174.1,160.45000000000002,73737753,"Synaeda PMC B.V."]
[1,"1_Syncope","45A04 Individuele begeleiding basis","45A04","Individuele begeleiding basis","Ambulant","uur","Totaal binnen geldigheidsduur of tijdsonafhankelijk",null,81.75,69.850000000000009,73730114,"Syncope"]
[2,"2_Syncope","45A51 Gezinsbegeleiding basis","45A51","Gezinsbegeleiding basis","Ambulant","uur","Totaal binnen geldigheidsduur of tijdsonafhankelijk",null,81.75,69.850000000000009,73730114,"Syncope"]
[3,"3_Syncope","45A53 Individuele begeleiding specialistisch","45A53","Individuele begeleiding specialistisch","Ambulant","uur","Totaal binnen geldigheidsduur of tijdsonafhankelijk",null,104.15,89,73730114,"Syncope"]
[4,"4_Syncope","45A56 Gezinsbegeleiding specialistisch","45A56","Gezinsbegeleiding specialistisch","Ambulant","uur","Totaal binnen geldigheidsduur of tijdsonafhankelijk",null,104.15,89,73730114,"Syncope"]
[1,"1_Team 050 B.V.","45A04 Individuele begeleiding basis","45A04","Individuele begeleiding basis","Ambulant","uur","Totaal binnen geldigheidsduur of tijdsonafhankelijk",null,81.75,63.050000000000004,73730188,"Team 050 B.V."]
[2,"2_Team 050 B.V.","45A51 Gezinsbegeleiding basis","45A51","Gezinsbegeleiding basis","Ambulant","uur","Totaal binnen geldigheidsduur of tijdsonafhankelijk",null,81.75,70.75,73730188,"Team 050 B.V."]
[3,"3_Team 050 B.V.","45A53 Individuele begeleiding specialistisch","45A53","Individuele begeleiding specialistisch","Ambulant","uur","Totaal binnen geldigheidsduur of tijdsonafhankelijk",null,104.15,88.75,73730188,"Team 050 B.V."]
[1,"1_Timpaan Onderwijs B.V.","51G01 Individuele behandeling basis","51G01","Individuele behandeling basis","Ambulant","uur","Totaal binnen geldigheidsduur of tijdsonafhankelijk",null,122.65,119.80000000000001,53530275,"Timpaan Onderwijs B.V."]
[2,"2_Timpaan Onderwijs B.V.","52G06 Individuele diagnostiek","52G06","Individuele diagnostiek","Ambulant","uur","Totaal binnen geldigheidsduur of tijdsonafhankelijk",null,123.95,118.55000000000001,53530275,"Timpaan Onderwijs B.V."]
[3,"3_Timpaan Onderwijs B.V.","52G09 Individuele behandeling specialistisch","52G09","Individuele behandeling specialistisch","Ambulant","uur","Totaal binnen geldigheidsduur of tijdsonafhankelijk",null,130.5,123.60000000000001,53530275,"Timpaan Onderwijs B.V."]
[4,"4_Timpaan Onderwijs B.V.","52G14 Specifieke doelgroepen 8 Ernstige Dyslexie (ED)","52G14","Specifieke doelgroepen 8 Ernstige Dyslexie (ED)","Specifieke doelgroepen","stuk (12)","Totaal binnen geldigheidsduur of tijdsonafhankelijk",7000,9228.2000000000007,9047.6,53530275,"Timpaan Onderwijs B.V."]
[1,"1_Transcare Pijn B.V.","50G35 Specifieke doelgroepen 10 Consultatieve en ziekenhuis kinder- en jeugdpsychiatrie","50G35","Specifieke doelgroepen 10 Consultatieve en ziekenhuis kinder- en jeugdpsychiatrie","Specifieke doelgroepen","uur","Totaal binnen geldigheidsduur of tijdsonafhankelijk",null,156.9,153.85000000000002,"22221126","Transcare Pijn B.V."]
[2,"2_Transcare Pijn B.V.","52G09 Individuele behandeling specialistisch","52G09","Individuele behandeling specialistisch","Ambulant","uur","Totaal binnen geldigheidsduur of tijdsonafhankelijk",null,130.5,119.30000000000001,"22221126","Transcare Pijn B.V."]
[1,"1_Tressan","45A51 Gezinsbegeleiding basis","45A51","Gezinsbegeleiding basis","Ambulant","uur","Totaal binnen geldigheidsduur of tijdsonafhankelijk",null,81.75,73.900000000000006,90050955,"Tressan"]
[2,"2_Tressan","45A56 Gezinsbegeleiding specialistisch","45A56","Gezinsbegeleiding specialistisch","Ambulant","uur","Totaal binnen geldigheidsduur of tijdsonafhankelijk",null,104.15,91.850000000000009,90050955,"Tressan"]
[1,{"$f":"IF($A749=\"\",\"\",$A749&\"_\"&$M749)","v":"1_UnLimiteD B.V."},{"$f":"IF($A749=\"\",\"\",$D749&\" \"&$E749)","v":"45A04 Individuele begeleiding basis"},"45A04","Individuele begeleiding basis","Ambulant","uur","Totaal binnen geldigheidsduur of tijdsonafhankelijk",null,81.75,64.55,"73736696","UnLimiteD B.V."]
[2,"2_UnLimiteD B.V.","45A51 Gezinsbegeleiding basis","45A51","Gezinsbegeleiding basis","Ambulant","uur","Totaal binnen geldigheidsduur of tijdsonafhankelijk",null,81.75,64.55,"73736696","UnLimiteD B.V."]
[3,"3_UnLimiteD B.V.","45A53 Individuele begeleiding specialistisch","45A53","Individuele begeleiding specialistisch","Ambulant","uur","Totaal binnen geldigheidsduur of tijdsonafhankelijk",null,104.15,80.7,"73736696","UnLimiteD B.V."]
[4,"4_UnLimiteD B.V.","45A56 Gezinsbegeleiding specialistisch","45A56","Gezinsbegeleiding specialistisch","Ambulant","uur","Totaal binnen geldigheidsduur of tijdsonafhankelijk",null,104.15,80.7,"73736696","UnLimiteD B.V."]
[1,"1_Veni Etinam B.V.","45A04 Individuele begeleiding basis","45A04","Individuele begeleiding basis","Ambulant","uur","Totaal binnen geldigheidsduur of tijdsonafhankelijk",null,81.75,81.75,98104681,"Veni Etinam B.V."]
[2,"2_Veni Etinam B.V.","45A51 Gezinsbegeleiding basis","45A51","Gezinsbegeleiding basis","Ambulant","uur","Totaal binnen geldigheidsduur of tijdsonafhankelijk",null,81.75,81.75,98104681,"Veni Etinam B.V."]
[3,"3_Veni Etinam B.V.","45A53 Individuele begeleiding specialistisch","45A53","Individuele begeleiding specialistisch","Ambulant","uur","Totaal binnen geldigheidsduur of tijdsonafhankelijk",null,104.15,104.15,98104681,"Veni Etinam B.V."]
[4,"4_Veni Etinam B.V.","45A56 Gezinsbegeleiding specialistisch","45A56","Gezinsbegeleiding specialistisch","Ambulant","uur","Totaal binnen geldigheidsduur of tijdsonafhankelijk",null,104.15,104.15,98104681,"Veni Etinam B.V."]
[1,"1_Via Trox B.V.","45A53 Individuele begeleiding specialistisch","45A53","Individuele begeleiding specialistisch","Ambulant","uur","Totaal binnen geldigheidsduur of tijdsonafhankelijk",null,104.15,104.15,94065371,"Via Trox B.V."]
[2,"2_Via Trox B.V.","45A56 Gezinsbegeleiding specialistisch","45A56","Gezinsbegeleiding specialistisch","Ambulant","uur","Totaal binnen geldigheidsduur of tijdsonafhankelijk",null,104.15,104.15,94065371,"Via Trox B.V."]
[3,"3_Via Trox B.V.","45G02 Gezinsdiagnostiek","45G02","Gezinsdiagnostiek","Ambulant","uur","Totaal binnen geldigheidsduur of tijdsonafhankelijk",null,129.25,129.25,94065371,"Via Trox B.V."]
[4,"4_Via Trox B.V.","45G03 Intensieve ambulante of psychiatrische gezinsbehandeling","45G03","Intensieve ambulante of psychiatrische gezinsbehandeling","Ambulant","uur","Totaal binnen geldigheidsduur of tijdsonafhankelijk",null,113.4,113.4,94065371,"Via Trox B.V."]
[5,"5_Via Trox B.V.","45G04 Systeemtherapie","45G04","Systeemtherapie","Intensief ambulant","uur","Totaal binnen geldigheidsduur of tijdsonafhankelijk",null,141,141,94065371,"Via Trox B.V."]
[6,"6_Via Trox B.V.","45G06 Specifieke doelgroepen 7 Gezinnen met Geringe Sociale Redzaamheid met het accent op specialistische begeleiding en behandeling","45G06","Specifieke doelgroepen 7 Gezinnen met Geringe Sociale Redzaamheid met het accent op specialistische begeleiding en behandeling","Specifieke doelgroepen","uur","Totaal binnen geldigheidsduur of tijdsonafhankelijk",null,120,120,94065371,"Via Trox B.V."]
[7,"7_Via Trox B.V.","52G09 Individuele behandeling specialistisch","52G09","Individuele behandeling specialistisch","Ambulant","uur","Totaal binnen geldigheidsduur of tijdsonafhankelijk",null,130.5,130.5,94065371,"Via Trox B.V."]
[1,"1_Vossenburght B.V.","41A18 Dagbesteding","41A18","Dagbesteding","Dagbesteding / dagbehandeling","dagdeel","per week",null,76.5,70.900000000000006,98106901,"Vossenburght B.V."]
[2,"2_Vossenburght B.V.","42A01 Vervoer regulier","42A01","Vervoer regulier","Overig","stuk","Totaal binnen geldigheidsduur of tijdsonafhankelijk",null,11.9,11.1,98106901,"Vossenburght B.V."]
[3,"3_Vossenburght B.V.","43G08 Verblijf middel woonhoeve","43G08","Verblijf middel woonhoeve","Verblijf/ opname","etmaal","Totaal binnen geldigheidsduur of tijdsonafhankelijk",null,118.7,109.95,98106901,"Vossenburght B.V."]
[4,"4_Vossenburght B.V.","44A09 Logeren laag intensief","44A09","Logeren laag intensief","Logeren / Respijtzorg","etmaal","Totaal binnen geldigheidsduur of tijdsonafhankelijk",null,237.3,219.85425000000001,98106901,"Vossenburght B.V."]
[5,"5_Vossenburght B.V.","45A04 Individuele begeleiding basis","45A04","Individuele begeleiding basis","Ambulant","uur","Totaal binnen geldigheidsduur of tijdsonafhankelijk",null,81.75,75.75,98106901,"Vossenburght B.V."]
[{"$f":"IF($M769=\"\",\"\",IF($M769=$M768,$A768+1,1))","v":1},"1_Westerweelde Pedagogisch Centrum B.V.","45A04 Individuele begeleiding basis","45A04","Individuele begeleiding basis","Ambulant","uur","Totaal binnen geldigheidsduur of tijdsonafhankelijk",null,81.75,81.75,"94068859","Westerweelde Pedagogisch Centrum B.V."]
[2,"2_Westerweelde Pedagogisch Centrum B.V.","45A49 Groepsbegeleiding basis","45A49","Groepsbegeleiding basis","Ambulant","uur","Totaal binnen geldigheidsduur of tijdsonafhankelijk",null,21.05,21.05,"94068859","Westerweelde Pedagogisch Centrum B.V."]
[3,"3_Westerweelde Pedagogisch Centrum B.V.","45A53 Individuele begeleiding specialistisch","45A53","Individuele begeleiding specialistisch","Ambulant","uur","Totaal binnen geldigheidsduur of tijdsonafhankelijk",null,104.15,104.15,"94068859","Westerweelde Pedagogisch Centrum B.V."]
[4,"4_Westerweelde Pedagogisch Centrum B.V.","45A54 Groepsbegeleiding specialistisch","45A54","Groepsbegeleiding specialistisch","Ambulant","uur","Totaal binnen geldigheidsduur of tijdsonafhankelijk",null,26.4,26.400000000000002,"94068859","Westerweelde Pedagogisch Centrum B.V."]
[5,"5_Westerweelde Pedagogisch Centrum B.V.","51G01 Individuele behandeling basis","51G01","Individuele behandeling basis","Ambulant","uur","Totaal binnen geldigheidsduur of tijdsonafhankelijk",null,122.65,122.65,"94068859","Westerweelde Pedagogisch Centrum B.V."]
[6,"6_Westerweelde Pedagogisch Centrum B.V.","52G06 Individuele diagnostiek","52G06","Individuele diagnostiek","Ambulant","uur","Totaal binnen geldigheidsduur of tijdsonafhankelijk",null,123.95,123.95,"94068859","Westerweelde Pedagogisch Centrum B.V."]
[7,"7_Westerweelde Pedagogisch Centrum B.V.","52G09 Individuele behandeling specialistisch","52G09","Individuele behandeling specialistisch","Ambulant","uur","Totaal binnen geldigheidsduur of tijdsonafhankelijk",null,130.5,130.5,"94068859","Westerweelde Pedagogisch Centrum B.V."]
[8,"8_Westerweelde Pedagogisch Centrum B.V.","52G14 Specifieke doelgroepen 8 Ernstige Dyslexie (ED)","52G14","Specifieke doelgroepen 8 Ernstige Dyslexie (ED)","Specifieke doelgroepen","stuk (12)","Totaal binnen geldigheidsduur of tijdsonafhankelijk",7000,9228.2000000000007,9228.2000000000007,"94068859","Westerweelde Pedagogisch Centrum B.V."]
[1,"1_William Schrikker Stichting Gezinsvormen","43G01 Specialistische begeleiding/behandeling pleegzorg","43G01","Specialistische begeleiding/behandeling pleegzorg","Verblijf/ opname","uur","per week",null,113.4,109.35000000000001,98099350,"William Schrikker Stichting Gezinsvormen"]
[2,"2_William Schrikker Stichting Gezinsvormen","43G10 Verblijf middel gezinshuis-plus","43G10","Verblijf middel gezinshuis-plus","Verblijf/ opname","etmaal","per week",null,184.6,177.95000000000002,98099350,"William Schrikker Stichting Gezinsvormen"]
[3,"3_William Schrikker Stichting Gezinsvormen","44A07 Pleegzorg","44A07","Pleegzorg","Verblijf/ opname","etmaal","per week",null,52.75,52.75,98099350,"William Schrikker Stichting Gezinsvormen"]
[4,"4_William Schrikker Stichting Gezinsvormen","44B10 Deeltijd pleegzorg","44B10","Deeltijd pleegzorg","Verblijf/ opname","etmaal","per week",null,null,89.2,98099350,"William Schrikker Stichting Gezinsvormen"]
[5,"5_William Schrikker Stichting Gezinsvormen","45A53 Individuele begeleiding specialistisch","45A53","Individuele begeleiding specialistisch","Ambulant","uur","Totaal binnen geldigheidsduur of tijdsonafhankelijk",null,104.15,100.45,98099350,"William Schrikker Stichting Gezinsvormen"]
[1,"1_William Schrikker Stichting Jeugdbescherming- Jeugdreclassering","47B10 Jeugdreclassering","47B10","Jeugdreclassering","Jeugdreclassering","stuk","per maand",null,"tarieven niet publiceren",null,"98099349","William Schrikker Stichting Jeugdbescherming- Jeugdreclassering"]
[2,"2_William Schrikker Stichting Jeugdbescherming- Jeugdreclassering","47B11 GedragsBeïnvloedende Maatregel advies","47B11","GedragsBeïnvloedende Maatregel advies","Jeugdreclassering","stuk","per maand",null,"tarieven niet publiceren",null,"98099349","William Schrikker Stichting Jeugdbescherming- Jeugdreclassering"]
[3,"3_William Schrikker Stichting Jeugdbescherming- Jeugdreclassering","47B12 GedragsBeïnvloedende Maatregel uitvoering","47B12","GedragsBeïnvloedende Maatregel uitvoering","Jeugdreclassering","stuk","per maand",null,"tarieven niet publiceren",null,"98099349","William Schrikker Stichting Jeugdbescherming- Jeugdreclassering"]
[4,"4_William Schrikker Stichting Jeugdbescherming- Jeugdreclassering","47B13 Intensieve TrajectBegeleiding CRIEM","47B13","Intensieve TrajectBegeleiding CRIEM","Jeugdreclassering","stuk","per maand",null,"tarieven niet publiceren",null,"98099349","William Schrikker Stichting Jeugdbescherming- Jeugdreclassering"]
[5,"5_William Schrikker Stichting Jeugdbescherming- Jeugdreclassering","47B14 Intensieve TrajectBegeleiding Harde kern","47B14","Intensieve TrajectBegeleiding Harde kern","Jeugdreclassering","stuk","per maand",null,"tarieven niet publiceren",null,"98099349","William Schrikker Stichting Jeugdbescherming- Jeugdreclassering"]
[6,"6_William Schrikker Stichting Jeugdbescherming- Jeugdreclassering","47B15 Jeugdreclassering Samenloop","47B15","Jeugdreclassering Samenloop","Jeugdreclassering","stuk","per maand",null,"tarieven niet publiceren",null,"98099349","William Schrikker Stichting Jeugdbescherming- Jeugdreclassering"]
[7,"7_William Schrikker Stichting Jeugdbescherming- Jeugdreclassering","47B16 Scholings- en TrainingsProgramma","47B16","Scholings- en TrainingsProgramma","Jeugdreclassering","stuk","per maand",null,"tarieven niet publiceren",null,"98099349","William Schrikker Stichting Jeugdbescherming- Jeugdreclassering"]
[8,"8_William Schrikker Stichting Jeugdbescherming- Jeugdreclassering","48B10 Ondertoezichtstelling","48B10","Ondertoezichtstelling","Jeugdbescherming","stuk","per maand",null,"tarieven niet publiceren",null,"98099349","William Schrikker Stichting Jeugdbescherming- Jeugdreclassering"]
[9,"9_William Schrikker Stichting Jeugdbescherming- Jeugdreclassering","48B11 Voogdij","48B11","Voogdij","Jeugdbescherming","stuk","per maand",null,"tarieven niet publiceren",null,"98099349","William Schrikker Stichting Jeugdbescherming- Jeugdreclassering"]
[10,"10_William Schrikker Stichting Jeugdbescherming- Jeugdreclassering","48B12 LET Jeugdbescherming Ondertoezichtstelling","48B12","LET Jeugdbescherming Ondertoezichtstelling","Landelijk Expertise Team Jeugdbescherming","stuk","Totaal binnen geldigheidsduur of tijdsonafhankelijk",null,"tarieven niet publiceren",null,"98099349","William Schrikker Stichting Jeugdbescherming- Jeugdreclassering"]
[11,"11_William Schrikker Stichting Jeugdbescherming- Jeugdreclassering","48B13 LET Jeugdbescherming Voogdij","48B13","LET Jeugdbescherming Voogdij","Landelijk Expertise Team Jeugdbescherming","stuk","Totaal binnen geldigheidsduur of tijdsonafhankelijk",null,"tarieven niet publiceren",null,"98099349","William Schrikker Stichting Jeugdbescherming- Jeugdreclassering"]
[12,"12_William Schrikker Stichting Jeugdbescherming- Jeugdreclassering","49B01 Advies en ondersteuning GI bij veiligheidsvraagstukken (ter voorkoming van kinderbeschermingsmaatregelen)","49B01","Advies en ondersteuning GI bij veiligheidsvraagstukken (ter voorkoming van kinderbeschermingsmaatregelen)","Advies GI","uur","Totaal binnen geldigheidsduur of tijdsonafhankelijk",null,"tarieven niet publiceren",null,"98099349","William Schrikker Stichting Jeugdbescherming- Jeugdreclassering"]
[1,"1_Xperanza Nederland B.V.","43A35 Verblijf licht","43A35","Verblijf licht","Verblijf/ opname","etmaal","Totaal binnen geldigheidsduur of tijdsonafhankelijk",null,162.15,142.80000000000001,"98101596","Xperanza Nederland B.V."]
[2,"2_Xperanza Nederland B.V.","43A37 Verblijfstraject middelzwaar","43A37","Verblijfstraject middelzwaar","Verblijf/ opname","etmaal","Totaal binnen geldigheidsduur of tijdsonafhankelijk",null,398.15,350.65,"98101596","Xperanza Nederland B.V."]
[3,"3_Xperanza Nederland B.V.","43A38 Verblijfstraject zwaar","43A38","Verblijfstraject zwaar","Verblijf/ opname","etmaal","Totaal binnen geldigheidsduur of tijdsonafhankelijk",null,454.9,400.6,"98101596","Xperanza Nederland B.V."]
[4,"4_Xperanza Nederland B.V.","44G02 Verblijf langdurig (beschermd) wonen","44G02","Verblijf langdurig (beschermd) wonen","Verblijf/ opname","etmaal","per week",null,230.7,203.20000000000002,"98101596","Xperanza Nederland B.V."]
[5,"5_Xperanza Nederland B.V.","45A04 Individuele begeleiding basis","45A04","Individuele begeleiding basis","Ambulant","uur","Totaal binnen geldigheidsduur of tijdsonafhankelijk",null,81.75,72,"98101596","Xperanza Nederland B.V."]
[6,"6_Xperanza Nederland B.V.","45A53 Individuele begeleiding specialistisch","45A53","Individuele begeleiding specialistisch","Ambulant","uur","Totaal binnen geldigheidsduur of tijdsonafhankelijk",null,104.15,104.15,98101596,"Xperanza Nederland B.V."]
[7,"7_Xperanza Nederland B.V.","52G06 Individuele diagnostiek","52G06","Individuele diagnostiek","Ambulant","uur","Totaal binnen geldigheidsduur of tijdsonafhankelijk",null,123.95,109.15,"98101596","Xperanza Nederland B.V."]
[1,"1_X-Tense B.V.","43A37 Verblijfstraject middelzwaar","43A37","Verblijfstraject middelzwaar","Verblijf/ opname","etmaal","Totaal binnen geldigheidsduur of tijdsonafhankelijk",null,398.15,398,98105917,"X-Tense B.V."]
[2,"2_X-Tense B.V.","44G02 Verblijf langdurig (beschermd) wonen","44G02","Verblijf langdurig (beschermd) wonen","Verblijf/ opname","etmaal","per week",null,230.7,230,98105917,"X-Tense B.V."]
[3,"3_X-Tense B.V.","45A04 Individuele begeleiding basis","45A04","Individuele begeleiding basis","Ambulant","uur","Totaal binnen geldigheidsduur of tijdsonafhankelijk",null,81.75,77.95,98105917,"X-Tense B.V."]
[4,"4_X-Tense B.V.","45A51 Gezinsbegeleiding basis","45A51","Gezinsbegeleiding basis","Ambulant","uur","Totaal binnen geldigheidsduur of tijdsonafhankelijk",null,81.75,77.95,98105917,"X-Tense B.V."]
[5,"5_X-Tense B.V.","45A53 Individuele begeleiding specialistisch","45A53","Individuele begeleiding specialistisch","Ambulant","uur","Totaal binnen geldigheidsduur of tijdsonafhankelijk",null,104.15,100.4,98105917,"X-Tense B.V."]
[6,"6_X-Tense B.V.","45A56 Gezinsbegeleiding specialistisch","45A56","Gezinsbegeleiding specialistisch","Ambulant","uur","Totaal binnen geldigheidsduur of tijdsonafhankelijk",null,104.15,100.4,98105917,"X-Tense B.V."]
[7,"7_X-Tense B.V.","50G41 Specifieke doelgroepen 4 en 5 Ondersteuning jeugdigen en ouders bij complexe (echt)scheiding","50G41","Specifieke doelgroepen 4 en 5 Ondersteuning jeugdigen en ouders bij complexe (echt)scheiding","Specifieke doelgroepen","uur","Totaal binnen geldigheidsduur of tijdsonafhankelijk",null,118.65,118.60000000000001,98105917,"X-Tense B.V."]
[8,"8_X-Tense B.V.","51G01 Individuele behandeling basis","51G01","Individuele behandeling basis","Ambulant","uur","Totaal binnen geldigheidsduur of tijdsonafhankelijk",null,122.65,121.75,98105917,"X-Tense B.V."]
[9,{"$f":"IF($A809=\"\",\"\",$A809&\"_\"&$M809)","v":"9_X-Tense B.V."},{"$f":"IF($A809=\"\",\"\",$D809&\" \"&$E809)","v":"52G06 Individuele diagnostiek"},"52G06","Individuele diagnostiek","Ambulant","uur","Totaal binnen geldigheidsduur of tijdsonafhankelijk",null,123.95,123.85000000000001,98105917,"X-Tense B.V."]
[10,"10_X-Tense B.V.","52G09 Individuele behandeling specialistisch","52G09","Individuele behandeling specialistisch","Ambulant","uur","Totaal binnen geldigheidsduur of tijdsonafhankelijk",null,130.5,130.15,98105917,"X-Tense B.V."]
[1,"1_Yvonne van Pijkeren","51G01 Individuele behandeling basis","51G01","Individuele behandeling basis","Ambulant","uur","Totaal binnen geldigheidsduur of tijdsonafhankelijk",null,122.65,122.65,94059103,"Yvonne van Pijkeren"]
[2,"2_Yvonne van Pijkeren","52G09 Individuele behandeling specialistisch","52G09","Individuele behandeling specialistisch","Ambulant","uur","Totaal binnen geldigheidsduur of tijdsonafhankelijk",null,130.5,130.5,94059103,"Yvonne van Pijkeren"]
[1,"1_Zo- Zorgoplossingen","51G01 Individuele behandeling basis","51G01","Individuele behandeling basis","Ambulant","uur","Totaal binnen geldigheidsduur of tijdsonafhankelijk",null,122.65,109.75,94003646,"Zo- Zorgoplossingen"]
[2,"2_Zo- Zorgoplossingen","52G08 Individuele behandeling specialistisch zwaar-zeer zwaar","52G08","Individuele behandeling specialistisch zwaar-zeer zwaar","Ambulant","uur","Totaal binnen geldigheidsduur of tijdsonafhankelijk",null,134.5,120.45,94003646,"Zo- Zorgoplossingen"]
[3,"3_Zo- Zorgoplossingen","52G09 Individuele behandeling specialistisch","52G09","Individuele behandeling specialistisch","Ambulant","uur","Totaal binnen geldigheidsduur of tijdsonafhankelijk",null,130.5,116.85000000000001,94003646,"Zo- Zorgoplossingen"]
[1,"1_Zonnestraal Pedagogische Hulp","45A04 Individuele begeleiding basis","45A04","Individuele begeleiding basis","Ambulant","uur","Totaal binnen geldigheidsduur of tijdsonafhankelijk",null,81.75,80.45,"98103331","Zonnestraal Pedagogische Hulp"]
[1,"1_Zorg Anders B.V.","43A08 Ouderschapsdiagnostiek met opname","43A08","Ouderschapsdiagnostiek met opname","Verblijf/ opname","etmaal","Totaal binnen geldigheidsduur of tijdsonafhankelijk",null,456.65,456.65000000000003,"98103043","Zorg Anders B.V."]
[2,"2_Zorg Anders B.V.","43A37 Verblijfstraject middelzwaar","43A37","Verblijfstraject middelzwaar","Verblijf/ opname","etmaal","Totaal binnen geldigheidsduur of tijdsonafhankelijk",null,398.15,388.45000000000005,"98103043","Zorg Anders B.V."]
[3,"3_Zorg Anders B.V.","44G02 Verblijf langdurig (beschermd) wonen","44G02","Verblijf langdurig (beschermd) wonen","Verblijf/ opname","etmaal","per week",null,230.7,225.10000000000002,"98103043","Zorg Anders B.V."]
[4,"4_Zorg Anders B.V.","45A04 Individuele begeleiding basis","45A04","Individuele begeleiding basis","Ambulant","uur","Totaal binnen geldigheidsduur of tijdsonafhankelijk",null,81.75,79.7,"98103043","Zorg Anders B.V."]
[5,"5_Zorg Anders B.V.","45A53 Individuele begeleiding specialistisch","45A53","Individuele begeleiding specialistisch","Ambulant","uur","Totaal binnen geldigheidsduur of tijdsonafhankelijk",null,104.15,101.60000000000001,"98103043","Zorg Anders B.V."]
[1,"1_Zorg en Coaching Noord Nederland B.V.","43A35 Verblijf licht","43A35","Verblijf licht","Verblijf/ opname","etmaal","Totaal binnen geldigheidsduur of tijdsonafhankelijk",null,162.15,149.55000000000001,"98102631","Zorg en Coaching Noord Nederland B.V.",{"$f":"IFERROR(VLOOKUP(L820,'[1]Reacties LP24'!$A$1:$F$186,5,0), \"\")","v":1}]
[2,"2_Zorg en Coaching Noord Nederland B.V.","45A04 Individuele begeleiding basis","45A04","Individuele begeleiding basis","Ambulant","uur","Totaal binnen geldigheidsduur of tijdsonafhankelijk",null,81.75,75.350000000000009,"98102631","Zorg en Coaching Noord Nederland B.V.",{"$f":"IFERROR(VLOOKUP(L821,'[1]Reacties LP24'!$A$1:$F$186,5,0), \"\")","v":1}]
[1,"1_Zorg en Welzijn Academy Knaap B.V. ","41A18 Dagbesteding","41A18","Dagbesteding","Dagbesteding / dagbehandeling","dagdeel","per week",null,76.5,68.850000000000009,98104930,"Zorg en Welzijn Academy Knaap B.V. "]
[2,"2_Zorg en Welzijn Academy Knaap B.V. ","42A01 Vervoer regulier","42A01","Vervoer regulier","Overig","stuk","Totaal binnen geldigheidsduur of tijdsonafhankelijk",null,11.9,10.200000000000001,98104930,"Zorg en Welzijn Academy Knaap B.V. "]
[3,"3_Zorg en Welzijn Academy Knaap B.V. ","45A04 Individuele begeleiding basis","45A04","Individuele begeleiding basis","Ambulant","uur","Totaal binnen geldigheidsduur of tijdsonafhankelijk",null,81.75,73.400000000000006,98104930,"Zorg en Welzijn Academy Knaap B.V. "]
[1,"1_Zorg Intens B.V.","45A04 Individuele begeleiding basis","45A04","Individuele begeleiding basis","Ambulant","uur","Totaal binnen geldigheidsduur of tijdsonafhankelijk",null,81.75,79.400000000000006,73730258,"Zorg Intens B.V."]
[2,"2_Zorg Intens B.V.","45A51 Gezinsbegeleiding basis","45A51","Gezinsbegeleiding basis","Ambulant","uur","Totaal binnen geldigheidsduur of tijdsonafhankelijk",null,81.75,79.400000000000006,73730258,"Zorg Intens B.V."]
[3,"3_Zorg Intens B.V.","45A56 Gezinsbegeleiding specialistisch","45A56","Gezinsbegeleiding specialistisch","Ambulant","uur","Totaal binnen geldigheidsduur of tijdsonafhankelijk",null,104.15,96.050000000000011,73730258,"Zorg Intens B.V."]
[1,"1_Zorg Op Stee I B.V.","41A18 Dagbesteding","41A18","Dagbesteding","Dagbesteding / dagbehandeling","dagdeel","per week",null,76.5,68.900000000000006,41526844,"Zorg Op Stee I B.V."]
[2,"2_Zorg Op Stee I B.V.","42A01 Vervoer regulier","42A01","Vervoer regulier","Overig","stuk","Totaal binnen geldigheidsduur of tijdsonafhankelijk",null,11.9,10.75,41526844,"Zorg Op Stee I B.V."]
[3,"3_Zorg Op Stee I B.V.","44A09 Logeren laag intensief","44A09","Logeren laag intensief","Logeren / Respijtzorg","etmaal","Totaal binnen geldigheidsduur of tijdsonafhankelijk",null,237.3,213.70000000000002,41526844,"Zorg Op Stee I B.V."]
[{"$f":"IF($M833=\"\",\"\",IF($M833=$M832,$A832+1,1))","v":4},"4_Zorg Op Stee I B.V.","45A04 Individuele begeleiding basis","45A04","Individuele begeleiding basis","Ambulant","uur","Totaal binnen geldigheidsduur of tijdsonafhankelijk",null,81.75,73.650000000000006,41526844,"Zorg Op Stee I B.V."]
[1,"1_Zorgboerderij Veldzicht Zeegse","42A01 Vervoer regulier","42A01","Vervoer regulier","Overig","stuk","Totaal binnen geldigheidsduur of tijdsonafhankelijk",null,11.9,11.450000000000001,98101742,"Zorgboerderij Veldzicht Zeegse"]
[2,"2_Zorgboerderij Veldzicht Zeegse","43G08 Verblijf middel woonhoeve","43G08","Verblijf middel woonhoeve","Verblijf/ opname","etmaal","Totaal binnen geldigheidsduur of tijdsonafhankelijk",null,118.7,114.4,98101742,"Zorgboerderij Veldzicht Zeegse"]
[3,"3_Zorgboerderij Veldzicht Zeegse","44A09 Logeren laag intensief","44A09","Logeren laag intensief","Logeren / Respijtzorg","etmaal","Totaal binnen geldigheidsduur of tijdsonafhankelijk",null,237.3,228.75,98101742,"Zorgboerderij Veldzicht Zeegse"]
[1,"1_Zorgbureau Embrace ","45A04 Individuele begeleiding basis","45A04","Individuele begeleiding basis","Ambulant","uur","Totaal binnen geldigheidsduur of tijdsonafhankelijk",null,81.75,58.150000000000006,"94063543","Zorgbureau Embrace "]
[2,"2_Zorgbureau Embrace ","45A53 Individuele begeleiding specialistisch","45A53","Individuele begeleiding specialistisch","Ambulant","uur","Totaal binnen geldigheidsduur of tijdsonafhankelijk",null,104.15,91.850000000000009,"94063543","Zorgbureau Embrace "]
[1,"1_Zorgkracht 12, de Noordelijke Zorgcoöperatie U.A.","41A18 Dagbesteding","41A18","Dagbesteding","Dagbesteding / dagbehandeling","dagdeel","per week",null,76.5,76.5,"98105913","Zorgkracht 12, de Noordelijke Zorgcoöperatie U.A."]
[2,"2_Zorgkracht 12, de Noordelijke Zorgcoöperatie U.A.","42A01 Vervoer regulier","42A01","Vervoer regulier","Overig","stuk","Totaal binnen geldigheidsduur of tijdsonafhankelijk",null,11.9,11.9,"98105913","Zorgkracht 12, de Noordelijke Zorgcoöperatie U.A."]
[3,"3_Zorgkracht 12, de Noordelijke Zorgcoöperatie U.A.","43A35 Verblijf licht","43A35","Verblijf licht","Verblijf/ opname","etmaal","Totaal binnen geldigheidsduur of tijdsonafhankelijk",null,162.15,162.15,"98105913","Zorgkracht 12, de Noordelijke Zorgcoöperatie U.A."]
[4,"4_Zorgkracht 12, de Noordelijke Zorgcoöperatie U.A.","43A37 Verblijfstraject middelzwaar","43A37","Verblijfstraject middelzwaar","Verblijf/ opname","etmaal","Totaal binnen geldigheidsduur of tijdsonafhankelijk",null,398.15,398.15000000000003,"98105913","Zorgkracht 12, de Noordelijke Zorgcoöperatie U.A."]
[5,"5_Zorgkracht 12, de Noordelijke Zorgcoöperatie U.A.","43G09 Verblijf middel gezinshuis","43G09","Verblijf middel gezinshuis","Verblijf/ opname","etmaal","per week",null,131.9,131.9,"98105913","Zorgkracht 12, de Noordelijke Zorgcoöperatie U.A."]
[6,"6_Zorgkracht 12, de Noordelijke Zorgcoöperatie U.A.","43G10 Verblijf middel gezinshuis-plus","43G10","Verblijf middel gezinshuis-plus","Verblijf/ opname","etmaal","per week",null,184.6,184.6,"98105913","Zorgkracht 12, de Noordelijke Zorgcoöperatie U.A."]
[7,"7_Zorgkracht 12, de Noordelijke Zorgcoöperatie U.A.","44A09 Logeren laag intensief","44A09","Logeren laag intensief","Logeren / Respijtzorg","etmaal","Totaal binnen geldigheidsduur of tijdsonafhankelijk",null,237.3,237.3,"98105913","Zorgkracht 12, de Noordelijke Zorgcoöperatie U.A."]
[8,"8_Zorgkracht 12, de Noordelijke Zorgcoöperatie U.A.","44G02 Verblijf langdurig (beschermd) wonen","44G02","Verblijf langdurig (beschermd) wonen","Verblijf/ opname","etmaal","per week",null,230.7,230.70000000000002,"98105913","Zorgkracht 12, de Noordelijke Zorgcoöperatie U.A."]
[9,"9_Zorgkracht 12, de Noordelijke Zorgcoöperatie U.A.","45A04 Individuele begeleiding basis","45A04","Individuele begeleiding basis","Ambulant","uur","Totaal binnen geldigheidsduur of tijdsonafhankelijk",null,81.75,81.75,"98105913","Zorgkracht 12, de Noordelijke Zorgcoöperatie U.A."]
[10,"10_Zorgkracht 12, de Noordelijke Zorgcoöperatie U.A.","45A49 Groepsbegeleiding basis","45A49","Groepsbegeleiding basis","Ambulant","uur","Totaal binnen geldigheidsduur of tijdsonafhankelijk",null,21.05,21.05,"98105913","Zorgkracht 12, de Noordelijke Zorgcoöperatie U.A."]
[11,"11_Zorgkracht 12, de Noordelijke Zorgcoöperatie U.A.","45A51 Gezinsbegeleiding basis","45A51","Gezinsbegeleiding basis","Ambulant","uur","Totaal binnen geldigheidsduur of tijdsonafhankelijk",null,81.75,81.75,"98105913","Zorgkracht 12, de Noordelijke Zorgcoöperatie U.A."]
[12,"12_Zorgkracht 12, de Noordelijke Zorgcoöperatie U.A.","45A53 Individuele begeleiding specialistisch","45A53","Individuele begeleiding specialistisch","Ambulant","uur","Totaal binnen geldigheidsduur of tijdsonafhankelijk",null,104.15,104.15,"98105913","Zorgkracht 12, de Noordelijke Zorgcoöperatie U.A."]
[13,"13_Zorgkracht 12, de Noordelijke Zorgcoöperatie U.A.","45A54 Groepsbegeleiding specialistisch","45A54","Groepsbegeleiding specialistisch","Ambulant","uur","Totaal binnen geldigheidsduur of tijdsonafhankelijk",null,26.4,26.400000000000002,"98105913","Zorgkracht 12, de Noordelijke Zorgcoöperatie U.A."]
[14,"14_Zorgkracht 12, de Noordelijke Zorgcoöperatie U.A.","45A56 Gezinsbegeleiding specialistisch","45A56","Gezinsbegeleiding specialistisch","Ambulant","uur","Totaal binnen geldigheidsduur of tijdsonafhankelijk",null,104.15,104.15,"98105913","Zorgkracht 12, de Noordelijke Zorgcoöperatie U.A."]
[15,"15_Zorgkracht 12, de Noordelijke Zorgcoöperatie U.A.","45G03 Intensieve ambulante of psychiatrische gezinsbehandeling","45G03","Intensieve ambulante of psychiatrische gezinsbehandeling","Ambulant","uur","Totaal binnen geldigheidsduur of tijdsonafhankelijk",null,113.4,113.4,"98105913","Zorgkracht 12, de Noordelijke Zorgcoöperatie U.A."]
[16,"16_Zorgkracht 12, de Noordelijke Zorgcoöperatie U.A.","45G29 Groepsbegeleidingsprogramma jongeren met overnachting","45G29","Groepsbegeleidingsprogramma jongeren met overnachting","Intensief ambulant","stuk (12)","Totaal binnen geldigheidsduur of tijdsonafhankelijk",3250,4284.55,4284.55,"98105913","Zorgkracht 12, de Noordelijke Zorgcoöperatie U.A."]
[17,"17_Zorgkracht 12, de Noordelijke Zorgcoöperatie U.A.","50G26 Specifieke doelgroepen 3 Behoud van en Toeleiding naar onderwijsdeelname (deelproduct jeugdhulp)","50G26","Specifieke doelgroepen 3 Behoud van en Toeleiding naar onderwijsdeelname (deelproduct jeugdhulp)","Specifieke doelgroepen","uur","Totaal binnen geldigheidsduur of tijdsonafhankelijk",null,113.4,113.4,"98105913","Zorgkracht 12, de Noordelijke Zorgcoöperatie U.A."]
[18,"18_Zorgkracht 12, de Noordelijke Zorgcoöperatie U.A.","50G41 Specifieke doelgroepen 4 en 5 Ondersteuning jeugdigen en ouders bij complexe (echt)scheiding","50G41","Specifieke doelgroepen 4 en 5 Ondersteuning jeugdigen en ouders bij complexe (echt)scheiding","Specifieke doelgroepen","uur","Totaal binnen geldigheidsduur of tijdsonafhankelijk",null,118.65,118.65,"98105913","Zorgkracht 12, de Noordelijke Zorgcoöperatie U.A."]
[19,"19_Zorgkracht 12, de Noordelijke Zorgcoöperatie U.A.","51G01 Individuele behandeling basis","51G01","Individuele behandeling basis","Ambulant","uur","Totaal binnen geldigheidsduur of tijdsonafhankelijk",null,122.65,122.65,"98105913","Zorgkracht 12, de Noordelijke Zorgcoöperatie U.A."]
[20,"20_Zorgkracht 12, de Noordelijke Zorgcoöperatie U.A.","52G06 Individuele diagnostiek","52G06","Individuele diagnostiek","Ambulant","uur","Totaal binnen geldigheidsduur of tijdsonafhankelijk",null,123.95,123.95,"98105913","Zorgkracht 12, de Noordelijke Zorgcoöperatie U.A."]
[21,"21_Zorgkracht 12, de Noordelijke Zorgcoöperatie U.A.","52G09 Individuele behandeling specialistisch","52G09","Individuele behandeling specialistisch","Ambulant","uur","Totaal binnen geldigheidsduur of tijdsonafhankelijk",null,130.5,130.5,"98105913","Zorgkracht 12, de Noordelijke Zorgcoöperatie U.A."]
[1,"1_Zwat Werkplaats B.V.","41A18 Dagbesteding","41A18","Dagbesteding","Dagbesteding / dagbehandeling","dagdeel","per week",null,76.5,73,98099815,"Zwat Werkplaats B.V."]
[2,"2_Zwat Werkplaats B.V.","42A01 Vervoer regulier","42A01","Vervoer regulier","Overig","stuk","Totaal binnen geldigheidsduur of tijdsonafhankelijk",null,11.9,11.450000000000001,98099815,"Zwat Werkplaats B.V."]

{"sheet":"xblad","index":3,"n_rows":100,"n_cols":10,"rows_kept":100,"cut":false,"hidden":true,"merged":[]}
["Wachtwoord:",null,{"$f":"Formulier!$C$27","v":"MAAK EEN KEUZE"},"Teller1","Num_Aanbieder","Voorziening/Product in geval ZIN","Product categorie* ","Eenheid bij toekenning*","Frequentie bij toekenning*","Tarief voorziening/product JHA*"]
["Sarena@RIGGCM",null,null,0,{"$f":"IF(ISERROR(VLOOKUP($D2&\"_\"&$C$1,tbl_JHA!$B:$B,1,0)),\"\",VLOOKUP($D2&\"_\"&$C$1,tbl_JHA!$B:$B,1,0))","v":""},"MAAK EEN KEUZE",{"$f":"IF(ISERROR(VLOOKUP($E2,tbl_JHA!$B:$K,MATCH(xblad!G$1,tbl_JHA!$B$1:$K$1,0),0)),\"\",VLOOKUP($E2,tbl_JHA!$B:$K,MATCH(xblad!G$1,tbl_JHA!$B$1:$K$1,0),0))","v":""},{"$f":"IF(ISERROR(VLOOKUP($E2,tbl_JHA!$B:$K,MATCH(xblad!H$1,tbl_JHA!$B$1:$K$1,0),0)),\"\",VLOOKUP($E2,tbl_JHA!$B:$K,MATCH(xblad!H$1,tbl_JHA!$B$1:$K$1,0),0))","v":""},{"$f":"IF(ISERROR(VLOOKUP($E2,tbl_JHA!$B:$K,MATCH(xblad!I$1,tbl_JHA!$B$1:$K$1,0),0)),\"\",VLOOKUP($E2,tbl_JHA!$B:$K,MATCH(xblad!I$1,tbl_JHA!$B$1:$K$1,0),0))","v":""},{"$f":"IF(ISERROR(VLOOKUP($E2,tbl_JHA!$B:$K,MATCH(xblad!J$1,tbl_JHA!$B$1:$K$1,0),0)),\"\",VLOOKUP($E2,tbl_JHA!$B:$K,MATCH(xblad!J$1,tbl_JHA!$B$1:$K$1,0),0))","v":""}]
[null,null,null,1,{"$f":"IF(ISERROR(VLOOKUP($D3&\"_\"&$C$1,tbl_JHA!$B:$B,1,0)),\"\",VLOOKUP($D3&\"_\"&$C$1,tbl_JHA!$B:$B,1,0))","v":""},{"$f":"IF(ISERROR(VLOOKUP($E3,tbl_JHA!$B:$K,MATCH(xblad!F$1,tbl_JHA!$B$1:$K$1,0),0)),\"\",VLOOKUP($E3,tbl_JHA!$B:$K,MATCH(xblad!F$1,tbl_JHA!$B$1:$K$1,0),0))","v":""},{"$f":"IF(ISERROR(VLOOKUP($E3,tbl_JHA!$B:$K,MATCH(xblad!G$1,tbl_JHA!$B$1:$K$1,0),0)),\"\",VLOOKUP($E3,tbl_JHA!$B:$K,MATCH(xblad!G$1,tbl_JHA!$B$1:$K$1,0),0))","v":""},{"$f":"IF(ISERROR(VLOOKUP($E3,tbl_JHA!$B:$K,MATCH(xblad!H$1,tbl_JHA!$B$1:$K$1,0),0)),\"\",VLOOKUP($E3,tbl_JHA!$B:$K,MATCH(xblad!H$1,tbl_JHA!$B$1:$K$1,0),0))","v":""},{"$f":"IF(ISERROR(VLOOKUP($E3,tbl_JHA!$B:$K,MATCH(xblad!I$1,tbl_JHA!$B$1:$K$1,0),0)),\"\",VLOOKUP($E3,tbl_JHA!$B:$K,MATCH(xblad!I$1,tbl_JHA!$B$1:$K$1,0),0))","v":""},{"$f":"IF(ISERROR(VLOOKUP($E3,tbl_JHA!$B:$K,MATCH(xblad!J$1,tbl_JHA!$B$1:$K$1,0),0)),\"\",VLOOKUP($E3,tbl_JHA!$B:$K,MATCH(xblad!J$1,tbl_JHA!$B$1:$K$1,0),0))","v":""}]
[null,null,null,2,{"$f":"IF(ISERROR(VLOOKUP($D4&\"_\"&$C$1,tbl_JHA!$B:$B,1,0)),\"\",VLOOKUP($D4&\"_\"&$C$1,tbl_JHA!$B:$B,1,0))","v":""},{"$f":"IF(ISERROR(VLOOKUP($E4,tbl_JHA!$B:$K,MATCH(xblad!F$1,tbl_JHA!$B$1:$K$1,0),0)),\"\",VLOOKUP($E4,tbl_JHA!$B:$K,MATCH(xblad!F$1,tbl_JHA!$B$1:$K$1,0),0))","v":""},{"$f":"IF(ISERROR(VLOOKUP($E4,tbl_JHA!$B:$K,MATCH(xblad!G$1,tbl_JHA!$B$1:$K$1,0),0)),\"\",VLOOKUP($E4,tbl_JHA!$B:$K,MATCH(xblad!G$1,tbl_JHA!$B$1:$K$1,0),0))","v":""},{"$f":"IF(ISERROR(VLOOKUP($E4,tbl_JHA!$B:$K,MATCH(xblad!H$1,tbl_JHA!$B$1:$K$1,0),0)),\"\",VLOOKUP($E4,tbl_JHA!$B:$K,MATCH(xblad!H$1,tbl_JHA!$B$1:$K$1,0),0))","v":""},{"$f":"IF(ISERROR(VLOOKUP($E4,tbl_JHA!$B:$K,MATCH(xblad!I$1,tbl_JHA!$B$1:$K$1,0),0)),\"\",VLOOKUP($E4,tbl_JHA!$B:$K,MATCH(xblad!I$1,tbl_JHA!$B$1:$K$1,0),0))","v":""},{"$f":"IF(ISERROR(VLOOKUP($E4,tbl_JHA!$B:$K,MATCH(xblad!J$1,tbl_JHA!$B$1:$K$1,0),0)),\"\",VLOOKUP($E4,tbl_JHA!$B:$K,MATCH(xblad!J$1,tbl_JHA!$B$1:$K$1,0),0))","v":""}]
["2025-11-01",null,null,3,{"$f":"IF(ISERROR(VLOOKUP($D5&\"_\"&$C$1,tbl_JHA!$B:$B,1,0)),\"\",VLOOKUP($D5&\"_\"&$C$1,tbl_JHA!$B:$B,1,0))","v":""},{"$f":"IF(ISERROR(VLOOKUP($E5,tbl_JHA!$B:$K,MATCH(xblad!F$1,tbl_JHA!$B$1:$K$1,0),0)),\"\",VLOOKUP($E5,tbl_JHA!$B:$K,MATCH(xblad!F$1,tbl_JHA!$B$1:$K$1,0),0))","v":""},{"$f":"IF(ISERROR(VLOOKUP($E5,tbl_JHA!$B:$K,MATCH(xblad!G$1,tbl_JHA!$B$1:$K$1,0),0)),\"\",VLOOKUP($E5,tbl_JHA!$B:$K,MATCH(xblad!G$1,tbl_JHA!$B$1:$K$1,0),0))","v":""},{"$f":"IF(ISERROR(VLOOKUP($E5,tbl_JHA!$B:$K,MATCH(xblad!H$1,tbl_JHA!$B$1:$K$1,0),0)),\"\",VLOOKUP($E5,tbl_JHA!$B:$K,MATCH(xblad!H$1,tbl_JHA!$B$1:$K$1,0),0))","v":""},{"$f":"IF(ISERROR(VLOOKUP($E5,tbl_JHA!$B:$K,MATCH(xblad!I$1,tbl_JHA!$B$1:$K$1,0),0)),\"\",VLOOKUP($E5,tbl_JHA!$B:$K,MATCH(xblad!I$1,tbl_JHA!$B$1:$K$1,0),0))","v":""},{"$f":"IF(ISERROR(VLOOKUP($E5,tbl_JHA!$B:$K,MATCH(xblad!J$1,tbl_JHA!$B$1:$K$1,0),0)),\"\",VLOOKUP($E5,tbl_JHA!$B:$K,MATCH(xblad!J$1,tbl_JHA!$B$1:$K$1,0),0))","v":""}]
[null,null,null,4,{"$f":"IF(ISERROR(VLOOKUP($D6&\"_\"&$C$1,tbl_JHA!$B:$B,1,0)),\"\",VLOOKUP($D6&\"_\"&$C$1,tbl_JHA!$B:$B,1,0))","v":""},{"$f":"IF(ISERROR(VLOOKUP($E6,tbl_JHA!$B:$K,MATCH(xblad!F$1,tbl_JHA!$B$1:$K$1,0),0)),\"\",VLOOKUP($E6,tbl_JHA!$B:$K,MATCH(xblad!F$1,tbl_JHA!$B$1:$K$1,0),0))","v":""},{"$f":"IF(ISERROR(VLOOKUP($E6,tbl_JHA!$B:$K,MATCH(xblad!G$1,tbl_JHA!$B$1:$K$1,0),0)),\"\",VLOOKUP($E6,tbl_JHA!$B:$K,MATCH(xblad!G$1,tbl_JHA!$B$1:$K$1,0),0))","v":""},{"$f":"IF(ISERROR(VLOOKUP($E6,tbl_JHA!$B:$K,MATCH(xblad!H$1,tbl_JHA!$B$1:$K$1,0),0)),\"\",VLOOKUP($E6,tbl_JHA!$B:$K,MATCH(xblad!H$1,tbl_JHA!$B$1:$K$1,0),0))","v":""},{"$f":"IF(ISERROR(VLOOKUP($E6,tbl_JHA!$B:$K,MATCH(xblad!I$1,tbl_JHA!$B$1:$K$1,0),0)),\"\",VLOOKUP($E6,tbl_JHA!$B:$K,MATCH(xblad!I$1,tbl_JHA!$B$1:$K$1,0),0))","v":""},{"$f":"IF(ISERROR(VLOOKUP($E6,tbl_JHA!$B:$K,MATCH(xblad!J$1,tbl_JHA!$B$1:$K$1,0),0)),\"\",VLOOKUP($E6,tbl_JHA!$B:$K,MATCH(xblad!J$1,tbl_JHA!$B$1:$K$1,0),0))","v":""}]
[null,null,null,5,{"$f":"IF(ISERROR(VLOOKUP($D7&\"_\"&$C$1,tbl_JHA!$B:$B,1,0)),\"\",VLOOKUP($D7&\"_\"&$C$1,tbl_JHA!$B:$B,1,0))","v":""},{"$f":"IF(ISERROR(VLOOKUP($E7,tbl_JHA!$B:$K,MATCH(xblad!F$1,tbl_JHA!$B$1:$K$1,0),0)),\"\",VLOOKUP($E7,tbl_JHA!$B:$K,MATCH(xblad!F$1,tbl_JHA!$B$1:$K$1,0),0))","v":""},{"$f":"IF(ISERROR(VLOOKUP($E7,tbl_JHA!$B:$K,MATCH(xblad!G$1,tbl_JHA!$B$1:$K$1,0),0)),\"\",VLOOKUP($E7,tbl_JHA!$B:$K,MATCH(xblad!G$1,tbl_JHA!$B$1:$K$1,0),0))","v":""},{"$f":"IF(ISERROR(VLOOKUP($E7,tbl_JHA!$B:$K,MATCH(xblad!H$1,tbl_JHA!$B$1:$K$1,0),0)),\"\",VLOOKUP($E7,tbl_JHA!$B:$K,MATCH(xblad!H$1,tbl_JHA!$B$1:$K$1,0),0))","v":""},{"$f":"IF(ISERROR(VLOOKUP($E7,tbl_JHA!$B:$K,MATCH(xblad!I$1,tbl_JHA!$B$1:$K$1,0),0)),\"\",VLOOKUP($E7,tbl_JHA!$B:$K,MATCH(xblad!I$1,tbl_JHA!$B$1:$K$1,0),0))","v":""},{"$f":"IF(ISERROR(VLOOKUP($E7,tbl_JHA!$B:$K,MATCH(xblad!J$1,tbl_JHA!$B$1:$K$1,0),0)),\"\",VLOOKUP($E7,tbl_JHA!$B:$K,MATCH(xblad!J$1,tbl_JHA!$B$1:$K$1,0),0))","v":""}]
[null,null,null,6,{"$f":"IF(ISERROR(VLOOKUP($D8&\"_\"&$C$1,tbl_JHA!$B:$B,1,0)),\"\",VLOOKUP($D8&\"_\"&$C$1,tbl_JHA!$B:$B,1,0))","v":""},{"$f":"IF(ISERROR(VLOOKUP($E8,tbl_JHA!$B:$K,MATCH(xblad!F$1,tbl_JHA!$B$1:$K$1,0),0)),\"\",VLOOKUP($E8,tbl_JHA!$B:$K,MATCH(xblad!F$1,tbl_JHA!$B$1:$K$1,0),0))","v":""},{"$f":"IF(ISERROR(VLOOKUP($E8,tbl_JHA!$B:$K,MATCH(xblad!G$1,tbl_JHA!$B$1:$K$1,0),0)),\"\",VLOOKUP($E8,tbl_JHA!$B:$K,MATCH(xblad!G$1,tbl_JHA!$B$1:$K$1,0),0))","v":""},{"$f":"IF(ISERROR(VLOOKUP($E8,tbl_JHA!$B:$K,MATCH(xblad!H$1,tbl_JHA!$B$1:$K$1,0),0)),\"\",VLOOKUP($E8,tbl_JHA!$B:$K,MATCH(xblad!H$1,tbl_JHA!$B$1:$K$1,0),0))","v":""},{"$f":"IF(ISERROR(VLOOKUP($E8,tbl_JHA!$B:$K,MATCH(xblad!I$1,tbl_JHA!$B$1:$K$1,0),0)),\"\",VLOOKUP($E8,tbl_JHA!$B:$K,MATCH(xblad!I$1,tbl_JHA!$B$1:$K$1,0),0))","v":""},{"$f":"IF(ISERROR(VLOOKUP($E8,tbl_JHA!$B:$K,MATCH(xblad!J$1,tbl_JHA!$B$1:$K$1,0),0)),\"\",VLOOKUP($E8,tbl_JHA!$B:$K,MATCH(xblad!J$1,tbl_JHA!$B$1:$K$1,0),0))","v":""}]
[null,null,null,7,{"$f":"IF(ISERROR(VLOOKUP($D9&\"_\"&$C$1,tbl_JHA!$B:$B,1,0)),\"\",VLOOKUP($D9&\"_\"&$C$1,tbl_JHA!$B:$B,1,0))","v":""},{"$f":"IF(ISERROR(VLOOKUP($E9,tbl_JHA!$B:$K,MATCH(xblad!F$1,tbl_JHA!$B$1:$K$1,0),0)),\"\",VLOOKUP($E9,tbl_JHA!$B:$K,MATCH(xblad!F$1,tbl_JHA!$B$1:$K$1,0),0))","v":""},{"$f":"IF(ISERROR(VLOOKUP($E9,tbl_JHA!$B:$K,MATCH(xblad!G$1,tbl_JHA!$B$1:$K$1,0),0)),\"\",VLOOKUP($E9,tbl_JHA!$B:$K,MATCH(xblad!G$1,tbl_JHA!$B$1:$K$1,0),0))","v":""},{"$f":"IF(ISERROR(VLOOKUP($E9,tbl_JHA!$B:$K,MATCH(xblad!H$1,tbl_JHA!$B$1:$K$1,0),0)),\"\",VLOOKUP($E9,tbl_JHA!$B:$K,MATCH(xblad!H$1,tbl_JHA!$B$1:$K$1,0),0))","v":""},{"$f":"IF(ISERROR(VLOOKUP($E9,tbl_JHA!$B:$K,MATCH(xblad!I$1,tbl_JHA!$B$1:$K$1,0),0)),\"\",VLOOKUP($E9,tbl_JHA!$B:$K,MATCH(xblad!I$1,tbl_JHA!$B$1:$K$1,0),0))","v":""},{"$f":"IF(ISERROR(VLOOKUP($E9,tbl_JHA!$B:$K,MATCH(xblad!J$1,tbl_JHA!$B$1:$K$1,0),0)),\"\",VLOOKUP($E9,tbl_JHA!$B:$K,MATCH(xblad!J$1,tbl_JHA!$B$1:$K$1,0),0))","v":""}]
[null,null,null,8,{"$f":"IF(ISERROR(VLOOKUP($D10&\"_\"&$C$1,tbl_JHA!$B:$B,1,0)),\"\",VLOOKUP($D10&\"_\"&$C$1,tbl_JHA!$B:$B,1,0))","v":""},{"$f":"IF(ISERROR(VLOOKUP($E10,tbl_JHA!$B:$K,MATCH(xblad!F$1,tbl_JHA!$B$1:$K$1,0),0)),\"\",VLOOKUP($E10,tbl_JHA!$B:$K,MATCH(xblad!F$1,tbl_JHA!$B$1:$K$1,0),0))","v":""},{"$f":"IF(ISERROR(VLOOKUP($E10,tbl_JHA!$B:$K,MATCH(xblad!G$1,tbl_JHA!$B$1:$K$1,0),0)),\"\",VLOOKUP($E10,tbl_JHA!$B:$K,MATCH(xblad!G$1,tbl_JHA!$B$1:$K$1,0),0))","v":""},{"$f":"IF(ISERROR(VLOOKUP($E10,tbl_JHA!$B:$K,MATCH(xblad!H$1,tbl_JHA!$B$1:$K$1,0),0)),\"\",VLOOKUP($E10,tbl_JHA!$B:$K,MATCH(xblad!H$1,tbl_JHA!$B$1:$K$1,0),0))","v":""},{"$f":"IF(ISERROR(VLOOKUP($E10,tbl_JHA!$B:$K,MATCH(xblad!I$1,tbl_JHA!$B$1:$K$1,0),0)),\"\",VLOOKUP($E10,tbl_JHA!$B:$K,MATCH(xblad!I$1,tbl_JHA!$B$1:$K$1,0),0))","v":""},{"$f":"IF(ISERROR(VLOOKUP($E10,tbl_JHA!$B:$K,MATCH(xblad!J$1,tbl_JHA!$B$1:$K$1,0),0)),\"\",VLOOKUP($E10,tbl_JHA!$B:$K,MATCH(xblad!J$1,tbl_JHA!$B$1:$K$1,0),0))","v":""}]
[null,null,null,9,{"$f":"IF(ISERROR(VLOOKUP($D11&\"_\"&$C$1,tbl_JHA!$B:$B,1,0)),\"\",VLOOKUP($D11&\"_\"&$C$1,tbl_JHA!$B:$B,1,0))","v":""},{"$f":"IF(ISERROR(VLOOKUP($E11,tbl_JHA!$B:$K,MATCH(xblad!F$1,tbl_JHA!$B$1:$K$1,0),0)),\"\",VLOOKUP($E11,tbl_JHA!$B:$K,MATCH(xblad!F$1,tbl_JHA!$B$1:$K$1,0),0))","v":""},{"$f":"IF(ISERROR(VLOOKUP($E11,tbl_JHA!$B:$K,MATCH(xblad!G$1,tbl_JHA!$B$1:$K$1,0),0)),\"\",VLOOKUP($E11,tbl_JHA!$B:$K,MATCH(xblad!G$1,tbl_JHA!$B$1:$K$1,0),0))","v":""},{"$f":"IF(ISERROR(VLOOKUP($E11,tbl_JHA!$B:$K,MATCH(xblad!H$1,tbl_JHA!$B$1:$K$1,0),0)),\"\",VLOOKUP($E11,tbl_JHA!$B:$K,MATCH(xblad!H$1,tbl_JHA!$B$1:$K$1,0),0))","v":""},{"$f":"IF(ISERROR(VLOOKUP($E11,tbl_JHA!$B:$K,MATCH(xblad!I$1,tbl_JHA!$B$1:$K$1,0),0)),\"\",VLOOKUP($E11,tbl_JHA!$B:$K,MATCH(xblad!I$1,tbl_JHA!$B$1:$K$1,0),0))","v":""},{"$f":"IF(ISERROR(VLOOKUP($E11,tbl_JHA!$B:$K,MATCH(xblad!J$1,tbl_JHA!$B$1:$K$1,0),0)),\"\",VLOOKUP($E11,tbl_JHA!$B:$K,MATCH(xblad!J$1,tbl_JHA!$B$1:$K$1,0),0))","v":""}]
[null,null,null,10,{"$f":"IF(ISERROR(VLOOKUP($D12&\"_\"&$C$1,tbl_JHA!$B:$B,1,0)),\"\",VLOOKUP($D12&\"_\"&$C$1,tbl_JHA!$B:$B,1,0))","v":""},{"$f":"IF(ISERROR(VLOOKUP($E12,tbl_JHA!$B:$K,MATCH(xblad!F$1,tbl_JHA!$B$1:$K$1,0),0)),\"\",VLOOKUP($E12,tbl_JHA!$B:$K,MATCH(xblad!F$1,tbl_JHA!$B$1:$K$1,0),0))","v":""},{"$f":"IF(ISERROR(VLOOKUP($E12,tbl_JHA!$B:$K,MATCH(xblad!G$1,tbl_JHA!$B$1:$K$1,0),0)),\"\",VLOOKUP($E12,tbl_JHA!$B:$K,MATCH(xblad!G$1,tbl_JHA!$B$1:$K$1,0),0))","v":""},{"$f":"IF(ISERROR(VLOOKUP($E12,tbl_JHA!$B:$K,MATCH(xblad!H$1,tbl_JHA!$B$1:$K$1,0),0)),\"\",VLOOKUP($E12,tbl_JHA!$B:$K,MATCH(xblad!H$1,tbl_JHA!$B$1:$K$1,0),0))","v":""},{"$f":"IF(ISERROR(VLOOKUP($E12,tbl_JHA!$B:$K,MATCH(xblad!I$1,tbl_JHA!$B$1:$K$1,0),0)),\"\",VLOOKUP($E12,tbl_JHA!$B:$K,MATCH(xblad!I$1,tbl_JHA!$B$1:$K$1,0),0))","v":""},{"$f":"IF(ISERROR(VLOOKUP($E12,tbl_JHA!$B:$K,MATCH(xblad!J$1,tbl_JHA!$B$1:$K$1,0),0)),\"\",VLOOKUP($E12,tbl_JHA!$B:$K,MATCH(xblad!J$1,tbl_JHA!$B$1:$K$1,0),0))","v":""}]
[null,null,null,11,{"$f":"IF(ISERROR(VLOOKUP($D13&\"_\"&$C$1,tbl_JHA!$B:$B,1,0)),\"\",VLOOKUP($D13&\"_\"&$C$1,tbl_JHA!$B:$B,1,0))","v":""},{"$f":"IF(ISERROR(VLOOKUP($E13,tbl_JHA!$B:$K,MATCH(xblad!F$1,tbl_JHA!$B$1:$K$1,0),0)),\"\",VLOOKUP($E13,tbl_JHA!$B:$K,MATCH(xblad!F$1,tbl_JHA!$B$1:$K$1,0),0))","v":""},{"$f":"IF(ISERROR(VLOOKUP($E13,tbl_JHA!$B:$K,MATCH(xblad!G$1,tbl_JHA!$B$1:$K$1,0),0)),\"\",VLOOKUP($E13,tbl_JHA!$B:$K,MATCH(xblad!G$1,tbl_JHA!$B$1:$K$1,0),0))","v":""},{"$f":"IF(ISERROR(VLOOKUP($E13,tbl_JHA!$B:$K,MATCH(xblad!H$1,tbl_JHA!$B$1:$K$1,0),0)),\"\",VLOOKUP($E13,tbl_JHA!$B:$K,MATCH(xblad!H$1,tbl_JHA!$B$1:$K$1,0),0))","v":""},{"$f":"IF(ISERROR(VLOOKUP($E13,tbl_JHA!$B:$K,MATCH(xblad!I$1,tbl_JHA!$B$1:$K$1,0),0)),\"\",VLOOKUP($E13,tbl_JHA!$B:$K,MATCH(xblad!I$1,tbl_JHA!$B$1:$K$1,0),0))","v":""},{"$f":"IF(ISERROR(VLOOKUP($E13,tbl_JHA!$B:$K,MATCH(xblad!J$1,tbl_JHA!$B$1:$K$1,0),0)),\"\",VLOOKUP($E13,tbl_JHA!$B:$K,MATCH(xblad!J$1,tbl_JHA!$B$1:$K$1,0),0))","v":""}]
[null,null,null,12,{"$f":"IF(ISERROR(VLOOKUP($D14&\"_\"&$C$1,tbl_JHA!$B:$B,1,0)),\"\",VLOOKUP($D14&\"_\"&$C$1,tbl_JHA!$B:$B,1,0))","v":""},{"$f":"IF(ISERROR(VLOOKUP($E14,tbl_JHA!$B:$K,MATCH(xblad!F$1,tbl_JHA!$B$1:$K$1,0),0)),\"\",VLOOKUP($E14,tbl_JHA!$B:$K,MATCH(xblad!F$1,tbl_JHA!$B$1:$K$1,0),0))","v":""},{"$f":"IF(ISERROR(VLOOKUP($E14,tbl_JHA!$B:$K,MATCH(xblad!G$1,tbl_JHA!$B$1:$K$1,0),0)),\"\",VLOOKUP($E14,tbl_JHA!$B:$K,MATCH(xblad!G$1,tbl_JHA!$B$1:$K$1,0),0))","v":""},{"$f":"IF(ISERROR(VLOOKUP($E14,tbl_JHA!$B:$K,MATCH(xblad!H$1,tbl_JHA!$B$1:$K$1,0),0)),\"\",VLOOKUP($E14,tbl_JHA!$B:$K,MATCH(xblad!H$1,tbl_JHA!$B$1:$K$1,0),0))","v":""},{"$f":"IF(ISERROR(VLOOKUP($E14,tbl_JHA!$B:$K,MATCH(xblad!I$1,tbl_JHA!$B$1:$K$1,0),0)),\"\",VLOOKUP($E14,tbl_JHA!$B:$K,MATCH(xblad!I$1,tbl_JHA!$B$1:$K$1,0),0))","v":""},{"$f":"IF(ISERROR(VLOOKUP($E14,tbl_JHA!$B:$K,MATCH(xblad!J$1,tbl_JHA!$B$1:$K$1,0),0)),\"\",VLOOKUP($E14,tbl_JHA!$B:$K,MATCH(xblad!J$1,tbl_JHA!$B$1:$K$1,0),0))","v":""}]
[null,null,null,13,{"$f":"IF(ISERROR(VLOOKUP($D15&\"_\"&$C$1,tbl_JHA!$B:$B,1,0)),\"\",VLOOKUP($D15&\"_\"&$C$1,tbl_JHA!$B:$B,1,0))","v":""},{"$f":"IF(ISERROR(VLOOKUP($E15,tbl_JHA!$B:$K,MATCH(xblad!F$1,tbl_JHA!$B$1:$K$1,0),0)),\"\",VLOOKUP($E15,tbl_JHA!$B:$K,MATCH(xblad!F$1,tbl_JHA!$B$1:$K$1,0),0))","v":""},{"$f":"IF(ISERROR(VLOOKUP($E15,tbl_JHA!$B:$K,MATCH(xblad!G$1,tbl_JHA!$B$1:$K$1,0),0)),\"\",VLOOKUP($E15,tbl_JHA!$B:$K,MATCH(xblad!G$1,tbl_JHA!$B$1:$K$1,0),0))","v":""},{"$f":"IF(ISERROR(VLOOKUP($E15,tbl_JHA!$B:$K,MATCH(xblad!H$1,tbl_JHA!$B$1:$K$1,0),0)),\"\",VLOOKUP($E15,tbl_JHA!$B:$K,MATCH(xblad!H$1,tbl_JHA!$B$1:$K$1,0),0))","v":""},{"$f":"IF(ISERROR(VLOOKUP($E15,tbl_JHA!$B:$K,MATCH(xblad!I$1,tbl_JHA!$B$1:$K$1,0),0)),\"\",VLOOKUP($E15,tbl_JHA!$B:$K,MATCH(xblad!I$1,tbl_JHA!$B$1:$K$1,0),0))","v":""},{"$f":"IF(ISERROR(VLOOKUP($E15,tbl_JHA!$B:$K,MATCH(xblad!J$1,tbl_JHA!$B$1:$K$1,0),0)),\"\",VLOOKUP($E15,tbl_JHA!$B:$K,MATCH(xblad!J$1,tbl_JHA!$B$1:$K$1,0),0))","v":""}]
[null,null,null,14,{"$f":"IF(ISERROR(VLOOKUP($D16&\"_\"&$C$1,tbl_JHA!$B:$B,1,0)),\"\",VLOOKUP($D16&\"_\"&$C$1,tbl_JHA!$B:$B,1,0))","v":""},{"$f":"IF(ISERROR(VLOOKUP($E16,tbl_JHA!$B:$K,MATCH(xblad!F$1,tbl_JHA!$B$1:$K$1,0),0)),\"\",VLOOKUP($E16,tbl_JHA!$B:$K,MATCH(xblad!F$1,tbl_JHA!$B$1:$K$1,0),0))","v":""},{"$f":"IF(ISERROR(VLOOKUP($E16,tbl_JHA!$B:$K,MATCH(xblad!G$1,tbl_JHA!$B$1:$K$1,0),0)),\"\",VLOOKUP($E16,tbl_JHA!$B:$K,MATCH(xblad!G$1,tbl_JHA!$B$1:$K$1,0),0))","v":""},{"$f":"IF(ISERROR(VLOOKUP($E16,tbl_JHA!$B:$K,MATCH(xblad!H$1,tbl_JHA!$B$1:$K$1,0),0)),\"\",VLOOKUP($E16,tbl_JHA!$B:$K,MATCH(xblad!H$1,tbl_JHA!$B$1:$K$1,0),0))","v":""},{"$f":"IF(ISERROR(VLOOKUP($E16,tbl_JHA!$B:$K,MATCH(xblad!I$1,tbl_JHA!$B$1:$K$1,0),0)),\"\",VLOOKUP($E16,tbl_JHA!$B:$K,MATCH(xblad!I$1,tbl_JHA!$B$1:$K$1,0),0))","v":""},{"$f":"IF(ISERROR(VLOOKUP($E16,tbl_JHA!$B:$K,MATCH(xblad!J$1,tbl_JHA!$B$1:$K$1,0),0)),\"\",VLOOKUP($E16,tbl_JHA!$B:$K,MATCH(xblad!J$1,tbl_JHA!$B$1:$K$1,0),0))","v":""}]
[null,null,null,15,{"$f":"IF(ISERROR(VLOOKUP($D17&\"_\"&$C$1,tbl_JHA!$B:$B,1,0)),\"\",VLOOKUP($D17&\"_\"&$C$1,tbl_JHA!$B:$B,1,0))","v":""},{"$f":"IF(ISERROR(VLOOKUP($E17,tbl_JHA!$B:$K,MATCH(xblad!F$1,tbl_JHA!$B$1:$K$1,0),0)),\"\",VLOOKUP($E17,tbl_JHA!$B:$K,MATCH(xblad!F$1,tbl_JHA!$B$1:$K$1,0),0))","v":""},{"$f":"IF(ISERROR(VLOOKUP($E17,tbl_JHA!$B:$K,MATCH(xblad!G$1,tbl_JHA!$B$1:$K$1,0),0)),\"\",VLOOKUP($E17,tbl_JHA!$B:$K,MATCH(xblad!G$1,tbl_JHA!$B$1:$K$1,0),0))","v":""},{"$f":"IF(ISERROR(VLOOKUP($E17,tbl_JHA!$B:$K,MATCH(xblad!H$1,tbl_JHA!$B$1:$K$1,0),0)),\"\",VLOOKUP($E17,tbl_JHA!$B:$K,MATCH(xblad!H$1,tbl_JHA!$B$1:$K$1,0),0))","v":""},{"$f":"IF(ISERROR(VLOOKUP($E17,tbl_JHA!$B:$K,MATCH(xblad!I$1,tbl_JHA!$B$1:$K$1,0),0)),\"\",VLOOKUP($E17,tbl_JHA!$B:$K,MATCH(xblad!I$1,tbl_JHA!$B$1:$K$1,0),0))","v":""},{"$f":"IF(ISERROR(VLOOKUP($E17,tbl_JHA!$B:$K,MATCH(xblad!J$1,tbl_JHA!$B$1:$K$1,0),0)),\"\",VLOOKUP($E17,tbl_JHA!$B:$K,MATCH(xblad!J$1,tbl_JHA!$B$1:$K$1,0),0))","v":""}]
[null,null,null,16,{"$f":"IF(ISERROR(VLOOKUP($D18&\"_\"&$C$1,tbl_JHA!$B:$B,1,0)),\"\",VLOOKUP($D18&\"_\"&$C$1,tbl_JHA!$B:$B,1,0))","v":""},{"$f":"IF(ISERROR(VLOOKUP($E18,tbl_JHA!$B:$K,MATCH(xblad!F$1,tbl_JHA!$B$1:$K$1,0),0)),\"\",VLOOKUP($E18,tbl_JHA!$B:$K,MATCH(xblad!F$1,tbl_JHA!$B$1:$K$1,0),0))","v":""},{"$f":"IF(ISERROR(VLOOKUP($E18,tbl_JHA!$B:$K,MATCH(xblad!G$1,tbl_JHA!$B$1:$K$1,0),0)),\"\",VLOOKUP($E18,tbl_JHA!$B:$K,MATCH(xblad!G$1,tbl_JHA!$B$1:$K$1,0),0))","v":""},{"$f":"IF(ISERROR(VLOOKUP($E18,tbl_JHA!$B:$K,MATCH(xblad!H$1,tbl_JHA!$B$1:$K$1,0),0)),\"\",VLOOKUP($E18,tbl_JHA!$B:$K,MATCH(xblad!H$1,tbl_JHA!$B$1:$K$1,0),0))","v":""},{"$f":"IF(ISERROR(VLOOKUP($E18,tbl_JHA!$B:$K,MATCH(xblad!I$1,tbl_JHA!$B$1:$K$1,0),0)),\"\",VLOOKUP($E18,tbl_JHA!$B:$K,MATCH(xblad!I$1,tbl_JHA!$B$1:$K$1,0),0))","v":""},{"$f":"IF(ISERROR(VLOOKUP($E18,tbl_JHA!$B:$K,MATCH(xblad!J$1,tbl_JHA!$B$1:$K$1,0),0)),\"\",VLOOKUP($E18,tbl_JHA!$B:$K,MATCH(xblad!J$1,tbl_JHA!$B$1:$K$1,0),0))","v":""}]
[null,null,null,17,{"$f":"IF(ISERROR(VLOOKUP($D19&\"_\"&$C$1,tbl_JHA!$B:$B,1,0)),\"\",VLOOKUP($D19&\"_\"&$C$1,tbl_JHA!$B:$B,1,0))","v":""},{"$f":"IF(ISERROR(VLOOKUP($E19,tbl_JHA!$B:$K,MATCH(xblad!F$1,tbl_JHA!$B$1:$K$1,0),0)),\"\",VLOOKUP($E19,tbl_JHA!$B:$K,MATCH(xblad!F$1,tbl_JHA!$B$1:$K$1,0),0))","v":""},{"$f":"IF(ISERROR(VLOOKUP($E19,tbl_JHA!$B:$K,MATCH(xblad!G$1,tbl_JHA!$B$1:$K$1,0),0)),\"\",VLOOKUP($E19,tbl_JHA!$B:$K,MATCH(xblad!G$1,tbl_JHA!$B$1:$K$1,0),0))","v":""},{"$f":"IF(ISERROR(VLOOKUP($E19,tbl_JHA!$B:$K,MATCH(xblad!H$1,tbl_JHA!$B$1:$K$1,0),0)),\"\",VLOOKUP($E19,tbl_JHA!$B:$K,MATCH(xblad!H$1,tbl_JHA!$B$1:$K$1,0),0))","v":""},{"$f":"IF(ISERROR(VLOOKUP($E19,tbl_JHA!$B:$K,MATCH(xblad!I$1,tbl_JHA!$B$1:$K$1,0),0)),\"\",VLOOKUP($E19,tbl_JHA!$B:$K,MATCH(xblad!I$1,tbl_JHA!$B$1:$K$1,0),0))","v":""},{"$f":"IF(ISERROR(VLOOKUP($E19,tbl_JHA!$B:$K,MATCH(xblad!J$1,tbl_JHA!$B$1:$K$1,0),0)),\"\",VLOOKUP($E19,tbl_JHA!$B:$K,MATCH(xblad!J$1,tbl_JHA!$B$1:$K$1,0),0))","v":""}]
[null,null,null,18,{"$f":"IF(ISERROR(VLOOKUP($D20&\"_\"&$C$1,tbl_JHA!$B:$B,1,0)),\"\",VLOOKUP($D20&\"_\"&$C$1,tbl_JHA!$B:$B,1,0))","v":""},{"$f":"IF(ISERROR(VLOOKUP($E20,tbl_JHA!$B:$K,MATCH(xblad!F$1,tbl_JHA!$B$1:$K$1,0),0)),\"\",VLOOKUP($E20,tbl_JHA!$B:$K,MATCH(xblad!F$1,tbl_JHA!$B$1:$K$1,0),0))","v":""},{"$f":"IF(ISERROR(VLOOKUP($E20,tbl_JHA!$B:$K,MATCH(xblad!G$1,tbl_JHA!$B$1:$K$1,0),0)),\"\",VLOOKUP($E20,tbl_JHA!$B:$K,MATCH(xblad!G$1,tbl_JHA!$B$1:$K$1,0),0))","v":""},{"$f":"IF(ISERROR(VLOOKUP($E20,tbl_JHA!$B:$K,MATCH(xblad!H$1,tbl_JHA!$B$1:$K$1,0),0)),\"\",VLOOKUP($E20,tbl_JHA!$B:$K,MATCH(xblad!H$1,tbl_JHA!$B$1:$K$1,0),0))","v":""},{"$f":"IF(ISERROR(VLOOKUP($E20,tbl_JHA!$B:$K,MATCH(xblad!I$1,tbl_JHA!$B$1:$K$1,0),0)),\"\",VLOOKUP($E20,tbl_JHA!$B:$K,MATCH(xblad!I$1,tbl_JHA!$B$1:$K$1,0),0))","v":""},{"$f":"IF(ISERROR(VLOOKUP($E20,tbl_JHA!$B:$K,MATCH(xblad!J$1,tbl_JHA!$B$1:$K$1,0),0)),\"\",VLOOKUP($E20,tbl_JHA!$B:$K,MATCH(xblad!J$1,tbl_JHA!$B$1:$K$1,0),0))","v":""}]
[null,null,null,19,{"$f":"IF(ISERROR(VLOOKUP($D21&\"_\"&$C$1,tbl_JHA!$B:$B,1,0)),\"\",VLOOKUP($D21&\"_\"&$C$1,tbl_JHA!$B:$B,1,0))","v":""},{"$f":"IF(ISERROR(VLOOKUP($E21,tbl_JHA!$B:$K,MATCH(xblad!F$1,tbl_JHA!$B$1:$K$1,0),0)),\"\",VLOOKUP($E21,tbl_JHA!$B:$K,MATCH(xblad!F$1,tbl_JHA!$B$1:$K$1,0),0))","v":""},{"$f":"IF(ISERROR(VLOOKUP($E21,tbl_JHA!$B:$K,MATCH(xblad!G$1,tbl_JHA!$B$1:$K$1,0),0)),\"\",VLOOKUP($E21,tbl_JHA!$B:$K,MATCH(xblad!G$1,tbl_JHA!$B$1:$K$1,0),0))","v":""},{"$f":"IF(ISERROR(VLOOKUP($E21,tbl_JHA!$B:$K,MATCH(xblad!H$1,tbl_JHA!$B$1:$K$1,0),0)),\"\",VLOOKUP($E21,tbl_JHA!$B:$K,MATCH(xblad!H$1,tbl_JHA!$B$1:$K$1,0),0))","v":""},{"$f":"IF(ISERROR(VLOOKUP($E21,tbl_JHA!$B:$K,MATCH(xblad!I$1,tbl_JHA!$B$1:$K$1,0),0)),\"\",VLOOKUP($E21,tbl_JHA!$B:$K,MATCH(xblad!I$1,tbl_JHA!$B$1:$K$1,0),0))","v":""},{"$f":"IF(ISERROR(VLOOKUP($E21,tbl_JHA!$B:$K,MATCH(xblad!J$1,tbl_JHA!$B$1:$K$1,0),0)),\"\",VLOOKUP($E21,tbl_JHA!$B:$K,MATCH(xblad!J$1,tbl_JHA!$B$1:$K$1,0),0))","v":""}]
[null,null,null,20,{"$f":"IF(ISERROR(VLOOKUP($D22&\"_\"&$C$1,tbl_JHA!$B:$B,1,0)),\"\",VLOOKUP($D22&\"_\"&$C$1,tbl_JHA!$B:$B,1,0))","v":""},{"$f":"IF(ISERROR(VLOOKUP($E22,tbl_JHA!$B:$K,MATCH(xblad!F$1,tbl_JHA!$B$1:$K$1,0),0)),\"\",VLOOKUP($E22,tbl_JHA!$B:$K,MATCH(xblad!F$1,tbl_JHA!$B$1:$K$1,0),0))","v":""},{"$f":"IF(ISERROR(VLOOKUP($E22,tbl_JHA!$B:$K,MATCH(xblad!G$1,tbl_JHA!$B$1:$K$1,0),0)),\"\",VLOOKUP($E22,tbl_JHA!$B:$K,MATCH(xblad!G$1,tbl_JHA!$B$1:$K$1,0),0))","v":""},{"$f":"IF(ISERROR(VLOOKUP($E22,tbl_JHA!$B:$K,MATCH(xblad!H$1,tbl_JHA!$B$1:$K$1,0),0)),\"\",VLOOKUP($E22,tbl_JHA!$B:$K,MATCH(xblad!H$1,tbl_JHA!$B$1:$K$1,0),0))","v":""},{"$f":"IF(ISERROR(VLOOKUP($E22,tbl_JHA!$B:$K,MATCH(xblad!I$1,tbl_JHA!$B$1:$K$1,0),0)),\"\",VLOOKUP($E22,tbl_JHA!$B:$K,MATCH(xblad!I$1,tbl_JHA!$B$1:$K$1,0),0))","v":""},{"$f":"IF(ISERROR(VLOOKUP($E22,tbl_JHA!$B:$K,MATCH(xblad!J$1,tbl_JHA!$B$1:$K$1,0),0)),\"\",VLOOKUP($E22,tbl_JHA!$B:$K,MATCH(xblad!J$1,tbl_JHA!$B$1:$K$1,0),0))","v":""}]
[null,null,null,21,{"$f":"IF(ISERROR(VLOOKUP($D23&\"_\"&$C$1,tbl_JHA!$B:$B,1,0)),\"\",VLOOKUP($D23&\"_\"&$C$1,tbl_JHA!$B:$B,1,0))","v":""},{"$f":"IF(ISERROR(VLOOKUP($E23,tbl_JHA!$B:$K,MATCH(xblad!F$1,tbl_JHA!$B$1:$K$1,0),0)),\"\",VLOOKUP($E23,tbl_JHA!$B:$K,MATCH(xblad!F$1,tbl_JHA!$B$1:$K$1,0),0))","v":""},{"$f":"IF(ISERROR(VLOOKUP($E23,tbl_JHA!$B:$K,MATCH(xblad!G$1,tbl_JHA!$B$1:$K$1,0),0)),\"\",VLOOKUP($E23,tbl_JHA!$B:$K,MATCH(xblad!G$1,tbl_JHA!$B$1:$K$1,0),0))","v":""},{"$f":"IF(ISERROR(VLOOKUP($E23,tbl_JHA!$B:$K,MATCH(xblad!H$1,tbl_JHA!$B$1:$K$1,0),0)),\"\",VLOOKUP($E23,tbl_JHA!$B:$K,MATCH(xblad!H$1,tbl_JHA!$B$1:$K$1,0),0))","v":""},{"$f":"IF(ISERROR(VLOOKUP($E23,tbl_JHA!$B:$K,MATCH(xblad!I$1,tbl_JHA!$B$1:$K$1,0),0)),\"\",VLOOKUP($E23,tbl_JHA!$B:$K,MATCH(xblad!I$1,tbl_JHA!$B$1:$K$1,0),0))","v":""},{"$f":"IF(ISERROR(VLOOKUP($E23,tbl_JHA!$B:$K,MATCH(xblad!J$1,tbl_JHA!$B$1:$K$1,0),0)),\"\",VLOOKUP($E23,tbl_JHA!$B:$K,MATCH(xblad!J$1,tbl_JHA!$B$1:$K$1,0),0))","v":""}]
[null,null,null,22,{"$f":"IF(ISERROR(VLOOKUP($D24&\"_\"&$C$1,tbl_JHA!$B:$B,1,0)),\"\",VLOOKUP($D24&\"_\"&$C$1,tbl_JHA!$B:$B,1,0))","v":""},{"$f":"IF(ISERROR(VLOOKUP($E24,tbl_JHA!$B:$K,MATCH(xblad!F$1,tbl_JHA!$B$1:$K$1,0),0)),\"\",VLOOKUP($E24,tbl_JHA!$B:$K,MATCH(xblad!F$1,tbl_JHA!$B$1:$K$1,0),0))","v":""},{"$f":"IF(ISERROR(VLOOKUP($E24,tbl_JHA!$B:$K,MATCH(xblad!G$1,tbl_JHA!$B$1:$K$1,0),0)),\"\",VLOOKUP($E24,tbl_JHA!$B:$K,MATCH(xblad!G$1,tbl_JHA!$B$1:$K$1,0),0))","v":""},{"$f":"IF(ISERROR(VLOOKUP($E24,tbl_JHA!$B:$K,MATCH(xblad!H$1,tbl_JHA!$B$1:$K$1,0),0)),\"\",VLOOKUP($E24,tbl_JHA!$B:$K,MATCH(xblad!H$1,tbl_JHA!$B$1:$K$1,0),0))","v":""},{"$f":"IF(ISERROR(VLOOKUP($E24,tbl_JHA!$B:$K,MATCH(xblad!I$1,tbl_JHA!$B$1:$K$1,0),0)),\"\",VLOOKUP($E24,tbl_JHA!$B:$K,MATCH(xblad!I$1,tbl_JHA!$B$1:$K$1,0),0))","v":""},{"$f":"IF(ISERROR(VLOOKUP($E24,tbl_JHA!$B:$K,MATCH(xblad!J$1,tbl_JHA!$B$1:$K$1,0),0)),\"\",VLOOKUP($E24,tbl_JHA!$B:$K,MATCH(xblad!J$1,tbl_JHA!$B$1:$K$1,0),0))","v":""}]
[null,null,null,23,{"$f":"IF(ISERROR(VLOOKUP($D25&\"_\"&$C$1,tbl_JHA!$B:$B,1,0)),\"\",VLOOKUP($D25&\"_\"&$C$1,tbl_JHA!$B:$B,1,0))","v":""},{"$f":"IF(ISERROR(VLOOKUP($E25,tbl_JHA!$B:$K,MATCH(xblad!F$1,tbl_JHA!$B$1:$K$1,0),0)),\"\",VLOOKUP($E25,tbl_JHA!$B:$K,MATCH(xblad!F$1,tbl_JHA!$B$1:$K$1,0),0))","v":""},{"$f":"IF(ISERROR(VLOOKUP($E25,tbl_JHA!$B:$K,MATCH(xblad!G$1,tbl_JHA!$B$1:$K$1,0),0)),\"\",VLOOKUP($E25,tbl_JHA!$B:$K,MATCH(xblad!G$1,tbl_JHA!$B$1:$K$1,0),0))","v":""},{"$f":"IF(ISERROR(VLOOKUP($E25,tbl_JHA!$B:$K,MATCH(xblad!H$1,tbl_JHA!$B$1:$K$1,0),0)),\"\",VLOOKUP($E25,tbl_JHA!$B:$K,MATCH(xblad!H$1,tbl_JHA!$B$1:$K$1,0),0))","v":""},{"$f":"IF(ISERROR(VLOOKUP($E25,tbl_JHA!$B:$K,MATCH(xblad!I$1,tbl_JHA!$B$1:$K$1,0),0)),\"\",VLOOKUP($E25,tbl_JHA!$B:$K,MATCH(xblad!I$1,tbl_JHA!$B$1:$K$1,0),0))","v":""},{"$f":"IF(ISERROR(VLOOKUP($E25,tbl_JHA!$B:$K,MATCH(xblad!J$1,tbl_JHA!$B$1:$K$1,0),0)),\"\",VLOOKUP($E25,tbl_JHA!$B:$K,MATCH(xblad!J$1,tbl_JHA!$B$1:$K$1,0),0))","v":""}]
[null,null,null,24,{"$f":"IF(ISERROR(VLOOKUP($D26&\"_\"&$C$1,tbl_JHA!$B:$B,1,0)),\"\",VLOOKUP($D26&\"_\"&$C$1,tbl_JHA!$B:$B,1,0))","v":""},{"$f":"IF(ISERROR(VLOOKUP($E26,tbl_JHA!$B:$K,MATCH(xblad!F$1,tbl_JHA!$B$1:$K$1,0),0)),\"\",VLOOKUP($E26,tbl_JHA!$B:$K,MATCH(xblad!F$1,tbl_JHA!$B$1:$K$1,0),0))","v":""},{"$f":"IF(ISERROR(VLOOKUP($E26,tbl_JHA!$B:$K,MATCH(xblad!G$1,tbl_JHA!$B$1:$K$1,0),0)),\"\",VLOOKUP($E26,tbl_JHA!$B:$K,MATCH(xblad!G$1,tbl_JHA!$B$1:$K$1,0),0))","v":""},{"$f":"IF(ISERROR(VLOOKUP($E26,tbl_JHA!$B:$K,MATCH(xblad!H$1,tbl_JHA!$B$1:$K$1,0),0)),\"\",VLOOKUP($E26,tbl_JHA!$B:$K,MATCH(xblad!H$1,tbl_JHA!$B$1:$K$1,0),0))","v":""},{"$f":"IF(ISERROR(VLOOKUP($E26,tbl_JHA!$B:$K,MATCH(xblad!I$1,tbl_JHA!$B$1:$K$1,0),0)),\"\",VLOOKUP($E26,tbl_JHA!$B:$K,MATCH(xblad!I$1,tbl_JHA!$B$1:$K$1,0),0))","v":""},{"$f":"IF(ISERROR(VLOOKUP($E26,tbl_JHA!$B:$K,MATCH(xblad!J$1,tbl_JHA!$B$1:$K$1,0),0)),\"\",VLOOKUP($E26,tbl_JHA!$B:$K,MATCH(xblad!J$1,tbl_JHA!$B$1:$K$1,0),0))","v":""}]
[null,null,null,25,{"$f":"IF(ISERROR(VLOOKUP($D27&\"_\"&$C$1,tbl_JHA!$B:$B,1,0)),\"\",VLOOKUP($D27&\"_\"&$C$1,tbl_JHA!$B:$B,1,0))","v":""},{"$f":"IF(ISERROR(VLOOKUP($E27,tbl_JHA!$B:$K,MATCH(xblad!F$1,tbl_JHA!$B$1:$K$1,0),0)),\"\",VLOOKUP($E27,tbl_JHA!$B:$K,MATCH(xblad!F$1,tbl_JHA!$B$1:$K$1,0),0))","v":""},{"$f":"IF(ISERROR(VLOOKUP($E27,tbl_JHA!$B:$K,MATCH(xblad!G$1,tbl_JHA!$B$1:$K$1,0),0)),\"\",VLOOKUP($E27,tbl_JHA!$B:$K,MATCH(xblad!G$1,tbl_JHA!$B$1:$K$1,0),0))","v":""},{"$f":"IF(ISERROR(VLOOKUP($E27,tbl_JHA!$B:$K,MATCH(xblad!H$1,tbl_JHA!$B$1:$K$1,0),0)),\"\",VLOOKUP($E27,tbl_JHA!$B:$K,MATCH(xblad!H$1,tbl_JHA!$B$1:$K$1,0),0))","v":""},{"$f":"IF(ISERROR(VLOOKUP($E27,tbl_JHA!$B:$K,MATCH(xblad!I$1,tbl_JHA!$B$1:$K$1,0),0)),\"\",VLOOKUP($E27,tbl_JHA!$B:$K,MATCH(xblad!I$1,tbl_JHA!$B$1:$K$1,0),0))","v":""},{"$f":"IF(ISERROR(VLOOKUP($E27,tbl_JHA!$B:$K,MATCH(xblad!J$1,tbl_JHA!$B$1:$K$1,0),0)),\"\",VLOOKUP($E27,tbl_JHA!$B:$K,MATCH(xblad!J$1,tbl_JHA!$B$1:$K$1,0),0))","v":""}]
[null,null,null,26,{"$f":"IF(ISERROR(VLOOKUP($D28&\"_\"&$C$1,tbl_JHA!$B:$B,1,0)),\"\",VLOOKUP($D28&\"_\"&$C$1,tbl_JHA!$B:$B,1,0))","v":""},{"$f":"IF(ISERROR(VLOOKUP($E28,tbl_JHA!$B:$K,MATCH(xblad!F$1,tbl_JHA!$B$1:$K$1,0),0)),\"\",VLOOKUP($E28,tbl_JHA!$B:$K,MATCH(xblad!F$1,tbl_JHA!$B$1:$K$1,0),0))","v":""},{"$f":"IF(ISERROR(VLOOKUP($E28,tbl_JHA!$B:$K,MATCH(xblad!G$1,tbl_JHA!$B$1:$K$1,0),0)),\"\",VLOOKUP($E28,tbl_JHA!$B:$K,MATCH(xblad!G$1,tbl_JHA!$B$1:$K$1,0),0))","v":""},{"$f":"IF(ISERROR(VLOOKUP($E28,tbl_JHA!$B:$K,MATCH(xblad!H$1,tbl_JHA!$B$1:$K$1,0),0)),\"\",VLOOKUP($E28,tbl_JHA!$B:$K,MATCH(xblad!H$1,tbl_JHA!$B$1:$K$1,0),0))","v":""},{"$f":"IF(ISERROR(VLOOKUP($E28,tbl_JHA!$B:$K,MATCH(xblad!I$1,tbl_JHA!$B$1:$K$1,0),0)),\"\",VLOOKUP($E28,tbl_JHA!$B:$K,MATCH(xblad!I$1,tbl_JHA!$B$1:$K$1,0),0))","v":""},{"$f":"IF(ISERROR(VLOOKUP($E28,tbl_JHA!$B:$K,MATCH(xblad!J$1,tbl_JHA!$B$1:$K$1,0),0)),\"\",VLOOKUP($E28,tbl_JHA!$B:$K,MATCH(xblad!J$1,tbl_JHA!$B$1:$K$1,0),0))","v":""}]
[null,null,null,27,{"$f":"IF(ISERROR(VLOOKUP($D29&\"_\"&$C$1,tbl_JHA!$B:$B,1,0)),\"\",VLOOKUP($D29&\"_\"&$C$1,tbl_JHA!$B:$B,1,0))","v":""},{"$f":"IF(ISERROR(VLOOKUP($E29,tbl_JHA!$B:$K,MATCH(xblad!F$1,tbl_JHA!$B$1:$K$1,0),0)),\"\",VLOOKUP($E29,tbl_JHA!$B:$K,MATCH(xblad!F$1,tbl_JHA!$B$1:$K$1,0),0))","v":""},{"$f":"IF(ISERROR(VLOOKUP($E29,tbl_JHA!$B:$K,MATCH(xblad!G$1,tbl_JHA!$B$1:$K$1,0),0)),\"\",VLOOKUP($E29,tbl_JHA!$B:$K,MATCH(xblad!G$1,tbl_JHA!$B$1:$K$1,0),0))","v":""},{"$f":"IF(ISERROR(VLOOKUP($E29,tbl_JHA!$B:$K,MATCH(xblad!H$1,tbl_JHA!$B$1:$K$1,0),0)),\"\",VLOOKUP($E29,tbl_JHA!$B:$K,MATCH(xblad!H$1,tbl_JHA!$B$1:$K$1,0),0))","v":""},{"$f":"IF(ISERROR(VLOOKUP($E29,tbl_JHA!$B:$K,MATCH(xblad!I$1,tbl_JHA!$B$1:$K$1,0),0)),\"\",VLOOKUP($E29,tbl_JHA!$B:$K,MATCH(xblad!I$1,tbl_JHA!$B$1:$K$1,0),0))","v":""},{"$f":"IF(ISERROR(VLOOKUP($E29,tbl_JHA!$B:$K,MATCH(xblad!J$1,tbl_JHA!$B$1:$K$1,0),0)),\"\",VLOOKUP($E29,tbl_JHA!$B:$K,MATCH(xblad!J$1,tbl_JHA!$B$1:$K$1,0),0))","v":""}]
[null,null,null,28,{"$f":"IF(ISERROR(VLOOKUP($D30&\"_\"&$C$1,tbl_JHA!$B:$B,1,0)),\"\",VLOOKUP($D30&\"_\"&$C$1,tbl_JHA!$B:$B,1,0))","v":""},{"$f":"IF(ISERROR(VLOOKUP($E30,tbl_JHA!$B:$K,MATCH(xblad!F$1,tbl_JHA!$B$1:$K$1,0),0)),\"\",VLOOKUP($E30,tbl_JHA!$B:$K,MATCH(xblad!F$1,tbl_JHA!$B$1:$K$1,0),0))","v":""},{"$f":"IF(ISERROR(VLOOKUP($E30,tbl_JHA!$B:$K,MATCH(xblad!G$1,tbl_JHA!$B$1:$K$1,0),0)),\"\",VLOOKUP($E30,tbl_JHA!$B:$K,MATCH(xblad!G$1,tbl_JHA!$B$1:$K$1,0),0))","v":""},{"$f":"IF(ISERROR(VLOOKUP($E30,tbl_JHA!$B:$K,MATCH(xblad!H$1,tbl_JHA!$B$1:$K$1,0),0)),\"\",VLOOKUP($E30,tbl_JHA!$B:$K,MATCH(xblad!H$1,tbl_JHA!$B$1:$K$1,0),0))","v":""},{"$f":"IF(ISERROR(VLOOKUP($E30,tbl_JHA!$B:$K,MATCH(xblad!I$1,tbl_JHA!$B$1:$K$1,0),0)),\"\",VLOOKUP($E30,tbl_JHA!$B:$K,MATCH(xblad!I$1,tbl_JHA!$B$1:$K$1,0),0))","v":""},{"$f":"IF(ISERROR(VLOOKUP($E30,tbl_JHA!$B:$K,MATCH(xblad!J$1,tbl_JHA!$B$1:$K$1,0),0)),\"\",VLOOKUP($E30,tbl_JHA!$B:$K,MATCH(xblad!J$1,tbl_JHA!$B$1:$K$1,0),0))","v":""}]
[null,null,null,29,{"$f":"IF(ISERROR(VLOOKUP($D31&\"_\"&$C$1,tbl_JHA!$B:$B,1,0)),\"\",VLOOKUP($D31&\"_\"&$C$1,tbl_JHA!$B:$B,1,0))","v":""},{"$f":"IF(ISERROR(VLOOKUP($E31,tbl_JHA!$B:$K,MATCH(xblad!F$1,tbl_JHA!$B$1:$K$1,0),0)),\"\",VLOOKUP($E31,tbl_JHA!$B:$K,MATCH(xblad!F$1,tbl_JHA!$B$1:$K$1,0),0))","v":""},{"$f":"IF(ISERROR(VLOOKUP($E31,tbl_JHA!$B:$K,MATCH(xblad!G$1,tbl_JHA!$B$1:$K$1,0),0)),\"\",VLOOKUP($E31,tbl_JHA!$B:$K,MATCH(xblad!G$1,tbl_JHA!$B$1:$K$1,0),0))","v":""},{"$f":"IF(ISERROR(VLOOKUP($E31,tbl_JHA!$B:$K,MATCH(xblad!H$1,tbl_JHA!$B$1:$K$1,0),0)),\"\",VLOOKUP($E31,tbl_JHA!$B:$K,MATCH(xblad!H$1,tbl_JHA!$B$1:$K$1,0),0))","v":""},{"$f":"IF(ISERROR(VLOOKUP($E31,tbl_JHA!$B:$K,MATCH(xblad!I$1,tbl_JHA!$B$1:$K$1,0),0)),\"\",VLOOKUP($E31,tbl_JHA!$B:$K,MATCH(xblad!I$1,tbl_JHA!$B$1:$K$1,0),0))","v":""},{"$f":"IF(ISERROR(VLOOKUP($E31,tbl_JHA!$B:$K,MATCH(xblad!J$1,tbl_JHA!$B$1:$K$1,0),0)),\"\",VLOOKUP($E31,tbl_JHA!$B:$K,MATCH(xblad!J$1,tbl_JHA!$B$1:$K$1,0),0))","v":""}]
[null,null,null,30,{"$f":"IF(ISERROR(VLOOKUP($D32&\"_\"&$C$1,tbl_JHA!$B:$B,1,0)),\"\",VLOOKUP($D32&\"_\"&$C$1,tbl_JHA!$B:$B,1,0))","v":""},{"$f":"IF(ISERROR(VLOOKUP($E32,tbl_JHA!$B:$K,MATCH(xblad!F$1,tbl_JHA!$B$1:$K$1,0),0)),\"\",VLOOKUP($E32,tbl_JHA!$B:$K,MATCH(xblad!F$1,tbl_JHA!$B$1:$K$1,0),0))","v":""},{"$f":"IF(ISERROR(VLOOKUP($E32,tbl_JHA!$B:$K,MATCH(xblad!G$1,tbl_JHA!$B$1:$K$1,0),0)),\"\",VLOOKUP($E32,tbl_JHA!$B:$K,MATCH(xblad!G$1,tbl_JHA!$B$1:$K$1,0),0))","v":""},{"$f":"IF(ISERROR(VLOOKUP($E32,tbl_JHA!$B:$K,MATCH(xblad!H$1,tbl_JHA!$B$1:$K$1,0),0)),\"\",VLOOKUP($E32,tbl_JHA!$B:$K,MATCH(xblad!H$1,tbl_JHA!$B$1:$K$1,0),0))","v":""},{"$f":"IF(ISERROR(VLOOKUP($E32,tbl_JHA!$B:$K,MATCH(xblad!I$1,tbl_JHA!$B$1:$K$1,0),0)),\"\",VLOOKUP($E32,tbl_JHA!$B:$K,MATCH(xblad!I$1,tbl_JHA!$B$1:$K$1,0),0))","v":""},{"$f":"IF(ISERROR(VLOOKUP($E32,tbl_JHA!$B:$K,MATCH(xblad!J$1,tbl_JHA!$B$1:$K$1,0),0)),\"\",VLOOKUP($E32,tbl_JHA!$B:$K,MATCH(xblad!J$1,tbl_JHA!$B$1:$K$1,0),0))","v":""}]
[null,null,null,31,{"$f":"IF(ISERROR(VLOOKUP($D33&\"_\"&$C$1,tbl_JHA!$B:$B,1,0)),\"\",VLOOKUP($D33&\"_\"&$C$1,tbl_JHA!$B:$B,1,0))","v":""},{"$f":"IF(ISERROR(VLOOKUP($E33,tbl_JHA!$B:$K,MATCH(xblad!F$1,tbl_JHA!$B$1:$K$1,0),0)),\"\",VLOOKUP($E33,tbl_JHA!$B:$K,MATCH(xblad!F$1,tbl_JHA!$B$1:$K$1,0),0))","v":""},{"$f":"IF(ISERROR(VLOOKUP($E33,tbl_JHA!$B:$K,MATCH(xblad!G$1,tbl_JHA!$B$1:$K$1,0),0)),\"\",VLOOKUP($E33,tbl_JHA!$B:$K,MATCH(xblad!G$1,tbl_JHA!$B$1:$K$1,0),0))","v":""},{"$f":"IF(ISERROR(VLOOKUP($E33,tbl_JHA!$B:$K,MATCH(xblad!H$1,tbl_JHA!$B$1:$K$1,0),0)),\"\",VLOOKUP($E33,tbl_JHA!$B:$K,MATCH(xblad!H$1,tbl_JHA!$B$1:$K$1,0),0))","v":""},{"$f":"IF(ISERROR(VLOOKUP($E33,tbl_JHA!$B:$K,MATCH(xblad!I$1,tbl_JHA!$B$1:$K$1,0),0)),\"\",VLOOKUP($E33,tbl_JHA!$B:$K,MATCH(xblad!I$1,tbl_JHA!$B$1:$K$1,0),0))","v":""},{"$f":"IF(ISERROR(VLOOKUP($E33,tbl_JHA!$B:$K,MATCH(xblad!J$1,tbl_JHA!$B$1:$K$1,0),0)),\"\",VLOOKUP($E33,tbl_JHA!$B:$K,MATCH(xblad!J$1,tbl_JHA!$B$1:$K$1,0),0))","v":""}]
[null,null,null,32,{"$f":"IF(ISERROR(VLOOKUP($D34&\"_\"&$C$1,tbl_JHA!$B:$B,1,0)),\"\",VLOOKUP($D34&\"_\"&$C$1,tbl_JHA!$B:$B,1,0))","v":""},{"$f":"IF(ISERROR(VLOOKUP($E34,tbl_JHA!$B:$K,MATCH(xblad!F$1,tbl_JHA!$B$1:$K$1,0),0)),\"\",VLOOKUP($E34,tbl_JHA!$B:$K,MATCH(xblad!F$1,tbl_JHA!$B$1:$K$1,0),0))","v":""},{"$f":"IF(ISERROR(VLOOKUP($E34,tbl_JHA!$B:$K,MATCH(xblad!G$1,tbl_JHA!$B$1:$K$1,0),0)),\"\",VLOOKUP($E34,tbl_JHA!$B:$K,MATCH(xblad!G$1,tbl_JHA!$B$1:$K$1,0),0))","v":""},{"$f":"IF(ISERROR(VLOOKUP($E34,tbl_JHA!$B:$K,MATCH(xblad!H$1,tbl_JHA!$B$1:$K$1,0),0)),\"\",VLOOKUP($E34,tbl_JHA!$B:$K,MATCH(xblad!H$1,tbl_JHA!$B$1:$K$1,0),0))","v":""},{"$f":"IF(ISERROR(VLOOKUP($E34,tbl_JHA!$B:$K,MATCH(xblad!I$1,tbl_JHA!$B$1:$K$1,0),0)),\"\",VLOOKUP($E34,tbl_JHA!$B:$K,MATCH(xblad!I$1,tbl_JHA!$B$1:$K$1,0),0))","v":""},{"$f":"IF(ISERROR(VLOOKUP($E34,tbl_JHA!$B:$K,MATCH(xblad!J$1,tbl_JHA!$B$1:$K$1,0),0)),\"\",VLOOKUP($E34,tbl_JHA!$B:$K,MATCH(xblad!J$1,tbl_JHA!$B$1:$K$1,0),0))","v":""}]
[null,null,null,33,{"$f":"IF(ISERROR(VLOOKUP($D35&\"_\"&$C$1,tbl_JHA!$B:$B,1,0)),\"\",VLOOKUP($D35&\"_\"&$C$1,tbl_JHA!$B:$B,1,0))","v":""},{"$f":"IF(ISERROR(VLOOKUP($E35,tbl_JHA!$B:$K,MATCH(xblad!F$1,tbl_JHA!$B$1:$K$1,0),0)),\"\",VLOOKUP($E35,tbl_JHA!$B:$K,MATCH(xblad!F$1,tbl_JHA!$B$1:$K$1,0),0))","v":""},{"$f":"IF(ISERROR(VLOOKUP($E35,tbl_JHA!$B:$K,MATCH(xblad!G$1,tbl_JHA!$B$1:$K$1,0),0)),\"\",VLOOKUP($E35,tbl_JHA!$B:$K,MATCH(xblad!G$1,tbl_JHA!$B$1:$K$1,0),0))","v":""},{"$f":"IF(ISERROR(VLOOKUP($E35,tbl_JHA!$B:$K,MATCH(xblad!H$1,tbl_JHA!$B$1:$K$1,0),0)),\"\",VLOOKUP($E35,tbl_JHA!$B:$K,MATCH(xblad!H$1,tbl_JHA!$B$1:$K$1,0),0))","v":""},{"$f":"IF(ISERROR(VLOOKUP($E35,tbl_JHA!$B:$K,MATCH(xblad!I$1,tbl_JHA!$B$1:$K$1,0),0)),\"\",VLOOKUP($E35,tbl_JHA!$B:$K,MATCH(xblad!I$1,tbl_JHA!$B$1:$K$1,0),0))","v":""},{"$f":"IF(ISERROR(VLOOKUP($E35,tbl_JHA!$B:$K,MATCH(xblad!J$1,tbl_JHA!$B$1:$K$1,0),0)),\"\",VLOOKUP($E35,tbl_JHA!$B:$K,MATCH(xblad!J$1,tbl_JHA!$B$1:$K$1,0),0))","v":""}]
[null,null,null,34,{"$f":"IF(ISERROR(VLOOKUP($D36&\"_\"&$C$1,tbl_JHA!$B:$B,1,0)),\"\",VLOOKUP($D36&\"_\"&$C$1,tbl_JHA!$B:$B,1,0))","v":""},{"$f":"IF(ISERROR(VLOOKUP($E36,tbl_JHA!$B:$K,MATCH(xblad!F$1,tbl_JHA!$B$1:$K$1,0),0)),\"\",VLOOKUP($E36,tbl_JHA!$B:$K,MATCH(xblad!F$1,tbl_JHA!$B$1:$K$1,0),0))","v":""},{"$f":"IF(ISERROR(VLOOKUP($E36,tbl_JHA!$B:$K,MATCH(xblad!G$1,tbl_JHA!$B$1:$K$1,0),0)),\"\",VLOOKUP($E36,tbl_JHA!$B:$K,MATCH(xblad!G$1,tbl_JHA!$B$1:$K$1,0),0))","v":""},{"$f":"IF(ISERROR(VLOOKUP($E36,tbl_JHA!$B:$K,MATCH(xblad!H$1,tbl_JHA!$B$1:$K$1,0),0)),\"\",VLOOKUP($E36,tbl_JHA!$B:$K,MATCH(xblad!H$1,tbl_JHA!$B$1:$K$1,0),0))","v":""},{"$f":"IF(ISERROR(VLOOKUP($E36,tbl_JHA!$B:$K,MATCH(xblad!I$1,tbl_JHA!$B$1:$K$1,0),0)),\"\",VLOOKUP($E36,tbl_JHA!$B:$K,MATCH(xblad!I$1,tbl_JHA!$B$1:$K$1,0),0))","v":""},{"$f":"IF(ISERROR(VLOOKUP($E36,tbl_JHA!$B:$K,MATCH(xblad!J$1,tbl_JHA!$B$1:$K$1,0),0)),\"\",VLOOKUP($E36,tbl_JHA!$B:$K,MATCH(xblad!J$1,tbl_JHA!$B$1:$K$1,0),0))","v":""}]
[null,null,null,35,{"$f":"IF(ISERROR(VLOOKUP($D37&\"_\"&$C$1,tbl_JHA!$B:$B,1,0)),\"\",VLOOKUP($D37&\"_\"&$C$1,tbl_JHA!$B:$B,1,0))","v":""},{"$f":"IF(ISERROR(VLOOKUP($E37,tbl_JHA!$B:$K,MATCH(xblad!F$1,tbl_JHA!$B$1:$K$1,0),0)),\"\",VLOOKUP($E37,tbl_JHA!$B:$K,MATCH(xblad!F$1,tbl_JHA!$B$1:$K$1,0),0))","v":""},{"$f":"IF(ISERROR(VLOOKUP($E37,tbl_JHA!$B:$K,MATCH(xblad!G$1,tbl_JHA!$B$1:$K$1,0),0)),\"\",VLOOKUP($E37,tbl_JHA!$B:$K,MATCH(xblad!G$1,tbl_JHA!$B$1:$K$1,0),0))","v":""},{"$f":"IF(ISERROR(VLOOKUP($E37,tbl_JHA!$B:$K,MATCH(xblad!H$1,tbl_JHA!$B$1:$K$1,0),0)),\"\",VLOOKUP($E37,tbl_JHA!$B:$K,MATCH(xblad!H$1,tbl_JHA!$B$1:$K$1,0),0))","v":""},{"$f":"IF(ISERROR(VLOOKUP($E37,tbl_JHA!$B:$K,MATCH(xblad!I$1,tbl_JHA!$B$1:$K$1,0),0)),\"\",VLOOKUP($E37,tbl_JHA!$B:$K,MATCH(xblad!I$1,tbl_JHA!$B$1:$K$1,0),0))","v":""},{"$f":"IF(ISERROR(VLOOKUP($E37,tbl_JHA!$B:$K,MATCH(xblad!J$1,tbl_JHA!$B$1:$K$1,0),0)),\"\",VLOOKUP($E37,tbl_JHA!$B:$K,MATCH(xblad!J$1,tbl_JHA!$B$1:$K$1,0),0))","v":""}]
[null,null,null,36,{"$f":"IF(ISERROR(VLOOKUP($D38&\"_\"&$C$1,tbl_JHA!$B:$B,1,0)),\"\",VLOOKUP($D38&\"_\"&$C$1,tbl_JHA!$B:$B,1,0))","v":""},{"$f":"IF(ISERROR(VLOOKUP($E38,tbl_JHA!$B:$K,MATCH(xblad!F$1,tbl_JHA!$B$1:$K$1,0),0)),\"\",VLOOKUP($E38,tbl_JHA!$B:$K,MATCH(xblad!F$1,tbl_JHA!$B$1:$K$1,0),0))","v":""},{"$f":"IF(ISERROR(VLOOKUP($E38,tbl_JHA!$B:$K,MATCH(xblad!G$1,tbl_JHA!$B$1:$K$1,0),0)),\"\",VLOOKUP($E38,tbl_JHA!$B:$K,MATCH(xblad!G$1,tbl_JHA!$B$1:$K$1,0),0))","v":""},{"$f":"IF(ISERROR(VLOOKUP($E38,tbl_JHA!$B:$K,MATCH(xblad!H$1,tbl_JHA!$B$1:$K$1,0),0)),\"\",VLOOKUP($E38,tbl_JHA!$B:$K,MATCH(xblad!H$1,tbl_JHA!$B$1:$K$1,0),0))","v":""},{"$f":"IF(ISERROR(VLOOKUP($E38,tbl_JHA!$B:$K,MATCH(xblad!I$1,tbl_JHA!$B$1:$K$1,0),0)),\"\",VLOOKUP($E38,tbl_JHA!$B:$K,MATCH(xblad!I$1,tbl_JHA!$B$1:$K$1,0),0))","v":""},{"$f":"IF(ISERROR(VLOOKUP($E38,tbl_JHA!$B:$K,MATCH(xblad!J$1,tbl_JHA!$B$1:$K$1,0),0)),\"\",VLOOKUP($E38,tbl_JHA!$B:$K,MATCH(xblad!J$1,tbl_JHA!$B$1:$K$1,0),0))","v":""}]
[null,null,null,37,{"$f":"IF(ISERROR(VLOOKUP($D39&\"_\"&$C$1,tbl_JHA!$B:$B,1,0)),\"\",VLOOKUP($D39&\"_\"&$C$1,tbl_JHA!$B:$B,1,0))","v":""},{"$f":"IF(ISERROR(VLOOKUP($E39,tbl_JHA!$B:$K,MATCH(xblad!F$1,tbl_JHA!$B$1:$K$1,0),0)),\"\",VLOOKUP($E39,tbl_JHA!$B:$K,MATCH(xblad!F$1,tbl_JHA!$B$1:$K$1,0),0))","v":""},{"$f":"IF(ISERROR(VLOOKUP($E39,tbl_JHA!$B:$K,MATCH(xblad!G$1,tbl_JHA!$B$1:$K$1,0),0)),\"\",VLOOKUP($E39,tbl_JHA!$B:$K,MATCH(xblad!G$1,tbl_JHA!$B$1:$K$1,0),0))","v":""},{"$f":"IF(ISERROR(VLOOKUP($E39,tbl_JHA!$B:$K,MATCH(xblad!H$1,tbl_JHA!$B$1:$K$1,0),0)),\"\",VLOOKUP($E39,tbl_JHA!$B:$K,MATCH(xblad!H$1,tbl_JHA!$B$1:$K$1,0),0))","v":""},{"$f":"IF(ISERROR(VLOOKUP($E39,tbl_JHA!$B:$K,MATCH(xblad!I$1,tbl_JHA!$B$1:$K$1,0),0)),\"\",VLOOKUP($E39,tbl_JHA!$B:$K,MATCH(xblad!I$1,tbl_JHA!$B$1:$K$1,0),0))","v":""},{"$f":"IF(ISERROR(VLOOKUP($E39,tbl_JHA!$B:$K,MATCH(xblad!J$1,tbl_JHA!$B$1:$K$1,0),0)),\"\",VLOOKUP($E39,tbl_JHA!$B:$K,MATCH(xblad!J$1,tbl_JHA!$B$1:$K$1,0),0))","v":""}]
[null,null,null,38,{"$f":"IF(ISERROR(VLOOKUP($D40&\"_\"&$C$1,tbl_JHA!$B:$B,1,0)),\"\",VLOOKUP($D40&\"_\"&$C$1,tbl_JHA!$B:$B,1,0))","v":""},{"$f":"IF(ISERROR(VLOOKUP($E40,tbl_JHA!$B:$K,MATCH(xblad!F$1,tbl_JHA!$B$1:$K$1,0),0)),\"\",VLOOKUP($E40,tbl_JHA!$B:$K,MATCH(xblad!F$1,tbl_JHA!$B$1:$K$1,0),0))","v":""},{"$f":"IF(ISERROR(VLOOKUP($E40,tbl_JHA!$B:$K,MATCH(xblad!G$1,tbl_JHA!$B$1:$K$1,0),0)),\"\",VLOOKUP($E40,tbl_JHA!$B:$K,MATCH(xblad!G$1,tbl_JHA!$B$1:$K$1,0),0))","v":""},{"$f":"IF(ISERROR(VLOOKUP($E40,tbl_JHA!$B:$K,MATCH(xblad!H$1,tbl_JHA!$B$1:$K$1,0),0)),\"\",VLOOKUP($E40,tbl_JHA!$B:$K,MATCH(xblad!H$1,tbl_JHA!$B$1:$K$1,0),0))","v":""},{"$f":"IF(ISERROR(VLOOKUP($E40,tbl_JHA!$B:$K,MATCH(xblad!I$1,tbl_JHA!$B$1:$K$1,0),0)),\"\",VLOOKUP($E40,tbl_JHA!$B:$K,MATCH(xblad!I$1,tbl_JHA!$B$1:$K$1,0),0))","v":""},{"$f":"IF(ISERROR(VLOOKUP($E40,tbl_JHA!$B:$K,MATCH(xblad!J$1,tbl_JHA!$B$1:$K$1,0),0)),\"\",VLOOKUP($E40,tbl_JHA!$B:$K,MATCH(xblad!J$1,tbl_JHA!$B$1:$K$1,0),0))","v":""}]
[null,null,null,39,{"$f":"IF(ISERROR(VLOOKUP($D41&\"_\"&$C$1,tbl_JHA!$B:$B,1,0)),\"\",VLOOKUP($D41&\"_\"&$C$1,tbl_JHA!$B:$B,1,0))","v":""},{"$f":"IF(ISERROR(VLOOKUP($E41,tbl_JHA!$B:$K,MATCH(xblad!F$1,tbl_JHA!$B$1:$K$1,0),0)),\"\",VLOOKUP($E41,tbl_JHA!$B:$K,MATCH(xblad!F$1,tbl_JHA!$B$1:$K$1,0),0))","v":""},{"$f":"IF(ISERROR(VLOOKUP($E41,tbl_JHA!$B:$K,MATCH(xblad!G$1,tbl_JHA!$B$1:$K$1,0),0)),\"\",VLOOKUP($E41,tbl_JHA!$B:$K,MATCH(xblad!G$1,tbl_JHA!$B$1:$K$1,0),0))","v":""},{"$f":"IF(ISERROR(VLOOKUP($E41,tbl_JHA!$B:$K,MATCH(xblad!H$1,tbl_JHA!$B$1:$K$1,0),0)),\"\",VLOOKUP($E41,tbl_JHA!$B:$K,MATCH(xblad!H$1,tbl_JHA!$B$1:$K$1,0),0))","v":""},{"$f":"IF(ISERROR(VLOOKUP($E41,tbl_JHA!$B:$K,MATCH(xblad!I$1,tbl_JHA!$B$1:$K$1,0),0)),\"\",VLOOKUP($E41,tbl_JHA!$B:$K,MATCH(xblad!I$1,tbl_JHA!$B$1:$K$1,0),0))","v":""},{"$f":"IF(ISERROR(VLOOKUP($E41,tbl_JHA!$B:$K,MATCH(xblad!J$1,tbl_JHA!$B$1:$K$1,0),0)),\"\",VLOOKUP($E41,tbl_JHA!$B:$K,MATCH(xblad!J$1,tbl_JHA!$B$1:$K$1,0),0))","v":""}]
[null,null,null,40,{"$f":"IF(ISERROR(VLOOKUP($D42&\"_\"&$C$1,tbl_JHA!$B:$B,1,0)),\"\",VLOOKUP($D42&\"_\"&$C$1,tbl_JHA!$B:$B,1,0))","v":""},{"$f":"IF(ISERROR(VLOOKUP($E42,tbl_JHA!$B:$K,MATCH(xblad!F$1,tbl_JHA!$B$1:$K$1,0),0)),\"\",VLOOKUP($E42,tbl_JHA!$B:$K,MATCH(xblad!F$1,tbl_JHA!$B$1:$K$1,0),0))","v":""},{"$f":"IF(ISERROR(VLOOKUP($E42,tbl_JHA!$B:$K,MATCH(xblad!G$1,tbl_JHA!$B$1:$K$1,0),0)),\"\",VLOOKUP($E42,tbl_JHA!$B:$K,MATCH(xblad!G$1,tbl_JHA!$B$1:$K$1,0),0))","v":""},{"$f":"IF(ISERROR(VLOOKUP($E42,tbl_JHA!$B:$K,MATCH(xblad!H$1,tbl_JHA!$B$1:$K$1,0),0)),\"\",VLOOKUP($E42,tbl_JHA!$B:$K,MATCH(xblad!H$1,tbl_JHA!$B$1:$K$1,0),0))","v":""},{"$f":"IF(ISERROR(VLOOKUP($E42,tbl_JHA!$B:$K,MATCH(xblad!I$1,tbl_JHA!$B$1:$K$1,0),0)),\"\",VLOOKUP($E42,tbl_JHA!$B:$K,MATCH(xblad!I$1,tbl_JHA!$B$1:$K$1,0),0))","v":""},{"$f":"IF(ISERROR(VLOOKUP($E42,tbl_JHA!$B:$K,MATCH(xblad!J$1,tbl_JHA!$B$1:$K$1,0),0)),\"\",VLOOKUP($E42,tbl_JHA!$B:$K,MATCH(xblad!J$1,tbl_JHA!$B$1:$K$1,0),0))","v":""}]
[null,null,null,41,{"$f":"IF(ISERROR(VLOOKUP($D43&\"_\"&$C$1,tbl_JHA!$B:$B,1,0)),\"\",VLOOKUP($D43&\"_\"&$C$1,tbl_JHA!$B:$B,1,0))","v":""},{"$f":"IF(ISERROR(VLOOKUP($E43,tbl_JHA!$B:$K,MATCH(xblad!F$1,tbl_JHA!$B$1:$K$1,0),0)),\"\",VLOOKUP($E43,tbl_JHA!$B:$K,MATCH(xblad!F$1,tbl_JHA!$B$1:$K$1,0),0))","v":""},{"$f":"IF(ISERROR(VLOOKUP($E43,tbl_JHA!$B:$K,MATCH(xblad!G$1,tbl_JHA!$B$1:$K$1,0),0)),\"\",VLOOKUP($E43,tbl_JHA!$B:$K,MATCH(xblad!G$1,tbl_JHA!$B$1:$K$1,0),0))","v":""},{"$f":"IF(ISERROR(VLOOKUP($E43,tbl_JHA!$B:$K,MATCH(xblad!H$1,tbl_JHA!$B$1:$K$1,0),0)),\"\",VLOOKUP($E43,tbl_JHA!$B:$K,MATCH(xblad!H$1,tbl_JHA!$B$1:$K$1,0),0))","v":""},{"$f":"IF(ISERROR(VLOOKUP($E43,tbl_JHA!$B:$K,MATCH(xblad!I$1,tbl_JHA!$B$1:$K$1,0),0)),\"\",VLOOKUP($E43,tbl_JHA!$B:$K,MATCH(xblad!I$1,tbl_JHA!$B$1:$K$1,0),0))","v":""},{"$f":"IF(ISERROR(VLOOKUP($E43,tbl_JHA!$B:$K,MATCH(xblad!J$1,tbl_JHA!$B$1:$K$1,0),0)),\"\",VLOOKUP($E43,tbl_JHA!$B:$K,MATCH(xblad!J$1,tbl_JHA!$B$1:$K$1,0),0))","v":""}]
[null,null,null,42,{"$f":"IF(ISERROR(VLOOKUP($D44&\"_\"&$C$1,tbl_JHA!$B:$B,1,0)),\"\",VLOOKUP($D44&\"_\"&$C$1,tbl_JHA!$B:$B,1,0))","v":""},{"$f":"IF(ISERROR(VLOOKUP($E44,tbl_JHA!$B:$K,MATCH(xblad!F$1,tbl_JHA!$B$1:$K$1,0),0)),\"\",VLOOKUP($E44,tbl_JHA!$B:$K,MATCH(xblad!F$1,tbl_JHA!$B$1:$K$1,0),0))","v":""},{"$f":"IF(ISERROR(VLOOKUP($E44,tbl_JHA!$B:$K,MATCH(xblad!G$1,tbl_JHA!$B$1:$K$1,0),0)),\"\",VLOOKUP($E44,tbl_JHA!$B:$K,MATCH(xblad!G$1,tbl_JHA!$B$1:$K$1,0),0))","v":""},{"$f":"IF(ISERROR(VLOOKUP($E44,tbl_JHA!$B:$K,MATCH(xblad!H$1,tbl_JHA!$B$1:$K$1,0),0)),\"\",VLOOKUP($E44,tbl_JHA!$B:$K,MATCH(xblad!H$1,tbl_JHA!$B$1:$K$1,0),0))","v":""},{"$f":"IF(ISERROR(VLOOKUP($E44,tbl_JHA!$B:$K,MATCH(xblad!I$1,tbl_JHA!$B$1:$K$1,0),0)),\"\",VLOOKUP($E44,tbl_JHA!$B:$K,MATCH(xblad!I$1,tbl_JHA!$B$1:$K$1,0),0))","v":""},{"$f":"IF(ISERROR(VLOOKUP($E44,tbl_JHA!$B:$K,MATCH(xblad!J$1,tbl_JHA!$B$1:$K$1,0),0)),\"\",VLOOKUP($E44,tbl_JHA!$B:$K,MATCH(xblad!J$1,tbl_JHA!$B$1:$K$1,0),0))","v":""}]
[null,null,null,43,{"$f":"IF(ISERROR(VLOOKUP($D45&\"_\"&$C$1,tbl_JHA!$B:$B,1,0)),\"\",VLOOKUP($D45&\"_\"&$C$1,tbl_JHA!$B:$B,1,0))","v":""},{"$f":"IF(ISERROR(VLOOKUP($E45,tbl_JHA!$B:$K,MATCH(xblad!F$1,tbl_JHA!$B$1:$K$1,0),0)),\"\",VLOOKUP($E45,tbl_JHA!$B:$K,MATCH(xblad!F$1,tbl_JHA!$B$1:$K$1,0),0))","v":""},{"$f":"IF(ISERROR(VLOOKUP($E45,tbl_JHA!$B:$K,MATCH(xblad!G$1,tbl_JHA!$B$1:$K$1,0),0)),\"\",VLOOKUP($E45,tbl_JHA!$B:$K,MATCH(xblad!G$1,tbl_JHA!$B$1:$K$1,0),0))","v":""},{"$f":"IF(ISERROR(VLOOKUP($E45,tbl_JHA!$B:$K,MATCH(xblad!H$1,tbl_JHA!$B$1:$K$1,0),0)),\"\",VLOOKUP($E45,tbl_JHA!$B:$K,MATCH(xblad!H$1,tbl_JHA!$B$1:$K$1,0),0))","v":""},{"$f":"IF(ISERROR(VLOOKUP($E45,tbl_JHA!$B:$K,MATCH(xblad!I$1,tbl_JHA!$B$1:$K$1,0),0)),\"\",VLOOKUP($E45,tbl_JHA!$B:$K,MATCH(xblad!I$1,tbl_JHA!$B$1:$K$1,0),0))","v":""},{"$f":"IF(ISERROR(VLOOKUP($E45,tbl_JHA!$B:$K,MATCH(xblad!J$1,tbl_JHA!$B$1:$K$1,0),0)),\"\",VLOOKUP($E45,tbl_JHA!$B:$K,MATCH(xblad!J$1,tbl_JHA!$B$1:$K$1,0),0))","v":""}]
[null,null,null,44,{"$f":"IF(ISERROR(VLOOKUP($D46&\"_\"&$C$1,tbl_JHA!$B:$B,1,0)),\"\",VLOOKUP($D46&\"_\"&$C$1,tbl_JHA!$B:$B,1,0))","v":""},{"$f":"IF(ISERROR(VLOOKUP($E46,tbl_JHA!$B:$K,MATCH(xblad!F$1,tbl_JHA!$B$1:$K$1,0),0)),\"\",VLOOKUP($E46,tbl_JHA!$B:$K,MATCH(xblad!F$1,tbl_JHA!$B$1:$K$1,0),0))","v":""},{"$f":"IF(ISERROR(VLOOKUP($E46,tbl_JHA!$B:$K,MATCH(xblad!G$1,tbl_JHA!$B$1:$K$1,0),0)),\"\",VLOOKUP($E46,tbl_JHA!$B:$K,MATCH(xblad!G$1,tbl_JHA!$B$1:$K$1,0),0))","v":""},{"$f":"IF(ISERROR(VLOOKUP($E46,tbl_JHA!$B:$K,MATCH(xblad!H$1,tbl_JHA!$B$1:$K$1,0),0)),\"\",VLOOKUP($E46,tbl_JHA!$B:$K,MATCH(xblad!H$1,tbl_JHA!$B$1:$K$1,0),0))","v":""},{"$f":"IF(ISERROR(VLOOKUP($E46,tbl_JHA!$B:$K,MATCH(xblad!I$1,tbl_JHA!$B$1:$K$1,0),0)),\"\",VLOOKUP($E46,tbl_JHA!$B:$K,MATCH(xblad!I$1,tbl_JHA!$B$1:$K$1,0),0))","v":""},{"$f":"IF(ISERROR(VLOOKUP($E46,tbl_JHA!$B:$K,MATCH(xblad!J$1,tbl_JHA!$B$1:$K$1,0),0)),\"\",VLOOKUP($E46,tbl_JHA!$B:$K,MATCH(xblad!J$1,tbl_JHA!$B$1:$K$1,0),0))","v":""}]
[null,null,null,45,{"$f":"IF(ISERROR(VLOOKUP($D47&\"_\"&$C$1,tbl_JHA!$B:$B,1,0)),\"\",VLOOKUP($D47&\"_\"&$C$1,tbl_JHA!$B:$B,1,0))","v":""},{"$f":"IF(ISERROR(VLOOKUP($E47,tbl_JHA!$B:$K,MATCH(xblad!F$1,tbl_JHA!$B$1:$K$1,0),0)),\"\",VLOOKUP($E47,tbl_JHA!$B:$K,MATCH(xblad!F$1,tbl_JHA!$B$1:$K$1,0),0))","v":""},{"$f":"IF(ISERROR(VLOOKUP($E47,tbl_JHA!$B:$K,MATCH(xblad!G$1,tbl_JHA!$B$1:$K$1,0),0)),\"\",VLOOKUP($E47,tbl_JHA!$B:$K,MATCH(xblad!G$1,tbl_JHA!$B$1:$K$1,0),0))","v":""},{"$f":"IF(ISERROR(VLOOKUP($E47,tbl_JHA!$B:$K,MATCH(xblad!H$1,tbl_JHA!$B$1:$K$1,0),0)),\"\",VLOOKUP($E47,tbl_JHA!$B:$K,MATCH(xblad!H$1,tbl_JHA!$B$1:$K$1,0),0))","v":""},{"$f":"IF(ISERROR(VLOOKUP($E47,tbl_JHA!$B:$K,MATCH(xblad!I$1,tbl_JHA!$B$1:$K$1,0),0)),\"\",VLOOKUP($E47,tbl_JHA!$B:$K,MATCH(xblad!I$1,tbl_JHA!$B$1:$K$1,0),0))","v":""},{"$f":"IF(ISERROR(VLOOKUP($E47,tbl_JHA!$B:$K,MATCH(xblad!J$1,tbl_JHA!$B$1:$K$1,0),0)),\"\",VLOOKUP($E47,tbl_JHA!$B:$K,MATCH(xblad!J$1,tbl_JHA!$B$1:$K$1,0),0))","v":""}]
[null,null,null,46,{"$f":"IF(ISERROR(VLOOKUP($D48&\"_\"&$C$1,tbl_JHA!$B:$B,1,0)),\"\",VLOOKUP($D48&\"_\"&$C$1,tbl_JHA!$B:$B,1,0))","v":""},{"$f":"IF(ISERROR(VLOOKUP($E48,tbl_JHA!$B:$K,MATCH(xblad!F$1,tbl_JHA!$B$1:$K$1,0),0)),\"\",VLOOKUP($E48,tbl_JHA!$B:$K,MATCH(xblad!F$1,tbl_JHA!$B$1:$K$1,0),0))","v":""},{"$f":"IF(ISERROR(VLOOKUP($E48,tbl_JHA!$B:$K,MATCH(xblad!G$1,tbl_JHA!$B$1:$K$1,0),0)),\"\",VLOOKUP($E48,tbl_JHA!$B:$K,MATCH(xblad!G$1,tbl_JHA!$B$1:$K$1,0),0))","v":""},{"$f":"IF(ISERROR(VLOOKUP($E48,tbl_JHA!$B:$K,MATCH(xblad!H$1,tbl_JHA!$B$1:$K$1,0),0)),\"\",VLOOKUP($E48,tbl_JHA!$B:$K,MATCH(xblad!H$1,tbl_JHA!$B$1:$K$1,0),0))","v":""},{"$f":"IF(ISERROR(VLOOKUP($E48,tbl_JHA!$B:$K,MATCH(xblad!I$1,tbl_JHA!$B$1:$K$1,0),0)),\"\",VLOOKUP($E48,tbl_JHA!$B:$K,MATCH(xblad!I$1,tbl_JHA!$B$1:$K$1,0),0))","v":""},{"$f":"IF(ISERROR(VLOOKUP($E48,tbl_JHA!$B:$K,MATCH(xblad!J$1,tbl_JHA!$B$1:$K$1,0),0)),\"\",VLOOKUP($E48,tbl_JHA!$B:$K,MATCH(xblad!J$1,tbl_JHA!$B$1:$K$1,0),0))","v":""}]
[null,null,null,47,{"$f":"IF(ISERROR(VLOOKUP($D49&\"_\"&$C$1,tbl_JHA!$B:$B,1,0)),\"\",VLOOKUP($D49&\"_\"&$C$1,tbl_JHA!$B:$B,1,0))","v":""},{"$f":"IF(ISERROR(VLOOKUP($E49,tbl_JHA!$B:$K,MATCH(xblad!F$1,tbl_JHA!$B$1:$K$1,0),0)),\"\",VLOOKUP($E49,tbl_JHA!$B:$K,MATCH(xblad!F$1,tbl_JHA!$B$1:$K$1,0),0))","v":""},{"$f":"IF(ISERROR(VLOOKUP($E49,tbl_JHA!$B:$K,MATCH(xblad!G$1,tbl_JHA!$B$1:$K$1,0),0)),\"\",VLOOKUP($E49,tbl_JHA!$B:$K,MATCH(xblad!G$1,tbl_JHA!$B$1:$K$1,0),0))","v":""},{"$f":"IF(ISERROR(VLOOKUP($E49,tbl_JHA!$B:$K,MATCH(xblad!H$1,tbl_JHA!$B$1:$K$1,0),0)),\"\",VLOOKUP($E49,tbl_JHA!$B:$K,MATCH(xblad!H$1,tbl_JHA!$B$1:$K$1,0),0))","v":""},{"$f":"IF(ISERROR(VLOOKUP($E49,tbl_JHA!$B:$K,MATCH(xblad!I$1,tbl_JHA!$B$1:$K$1,0),0)),\"\",VLOOKUP($E49,tbl_JHA!$B:$K,MATCH(xblad!I$1,tbl_JHA!$B$1:$K$1,0),0))","v":""},{"$f":"IF(ISERROR(VLOOKUP($E49,tbl_JHA!$B:$K,MATCH(xblad!J$1,tbl_JHA!$B$1:$K$1,0),0)),\"\",VLOOKUP($E49,tbl_JHA!$B:$K,MATCH(xblad!J$1,tbl_JHA!$B$1:$K$1,0),0))","v":""}]
[null,null,null,48,{"$f":"IF(ISERROR(VLOOKUP($D50&\"_\"&$C$1,tbl_JHA!$B:$B,1,0)),\"\",VLOOKUP($D50&\"_\"&$C$1,tbl_JHA!$B:$B,1,0))","v":""},{"$f":"IF(ISERROR(VLOOKUP($E50,tbl_JHA!$B:$K,MATCH(xblad!F$1,tbl_JHA!$B$1:$K$1,0),0)),\"\",VLOOKUP($E50,tbl_JHA!$B:$K,MATCH(xblad!F$1,tbl_JHA!$B$1:$K$1,0),0))","v":""},{"$f":"IF(ISERROR(VLOOKUP($E50,tbl_JHA!$B:$K,MATCH(xblad!G$1,tbl_JHA!$B$1:$K$1,0),0)),\"\",VLOOKUP($E50,tbl_JHA!$B:$K,MATCH(xblad!G$1,tbl_JHA!$B$1:$K$1,0),0))","v":""},{"$f":"IF(ISERROR(VLOOKUP($E50,tbl_JHA!$B:$K,MATCH(xblad!H$1,tbl_JHA!$B$1:$K$1,0),0)),\"\",VLOOKUP($E50,tbl_JHA!$B:$K,MATCH(xblad!H$1,tbl_JHA!$B$1:$K$1,0),0))","v":""},{"$f":"IF(ISERROR(VLOOKUP($E50,tbl_JHA!$B:$K,MATCH(xblad!I$1,tbl_JHA!$B$1:$K$1,0),0)),\"\",VLOOKUP($E50,tbl_JHA!$B:$K,MATCH(xblad!I$1,tbl_JHA!$B$1:$K$1,0),0))","v":""},{"$f":"IF(ISERROR(VLOOKUP($E50,tbl_JHA!$B:$K,MATCH(xblad!J$1,tbl_JHA!$B$1:$K$1,0),0)),\"\",VLOOKUP($E50,tbl_JHA!$B:$K,MATCH(xblad!J$1,tbl_JHA!$B$1:$K$1,0),0))","v":""}]
[null,null,null,49,{"$f":"IF(ISERROR(VLOOKUP($D51&\"_\"&$C$1,tbl_JHA!$B:$B,1,0)),\"\",VLOOKUP($D51&\"_\"&$C$1,tbl_JHA!$B:$B,1,0))","v":""},{"$f":"IF(ISERROR(VLOOKUP($E51,tbl_JHA!$B:$K,MATCH(xblad!F$1,tbl_JHA!$B$1:$K$1,0),0)),\"\",VLOOKUP($E51,tbl_JHA!$B:$K,MATCH(xblad!F$1,tbl_JHA!$B$1:$K$1,0),0))","v":""},{"$f":"IF(ISERROR(VLOOKUP($E51,tbl_JHA!$B:$K,MATCH(xblad!G$1,tbl_JHA!$B$1:$K$1,0),0)),\"\",VLOOKUP($E51,tbl_JHA!$B:$K,MATCH(xblad!G$1,tbl_JHA!$B$1:$K$1,0),0))","v":""},{"$f":"IF(ISERROR(VLOOKUP($E51,tbl_JHA!$B:$K,MATCH(xblad!H$1,tbl_JHA!$B$1:$K$1,0),0)),\"\",VLOOKUP($E51,tbl_JHA!$B:$K,MATCH(xblad!H$1,tbl_JHA!$B$1:$K$1,0),0))","v":""},{"$f":"IF(ISERROR(VLOOKUP($E51,tbl_JHA!$B:$K,MATCH(xblad!I$1,tbl_JHA!$B$1:$K$1,0),0)),\"\",VLOOKUP($E51,tbl_JHA!$B:$K,MATCH(xblad!I$1,tbl_JHA!$B$1:$K$1,0),0))","v":""},{"$f":"IF(ISERROR(VLOOKUP($E51,tbl_JHA!$B:$K,MATCH(xblad!J$1,tbl_JHA!$B$1:$K$1,0),0)),\"\",VLOOKUP($E51,tbl_JHA!$B:$K,MATCH(xblad!J$1,tbl_JHA!$B$1:$K$1,0),0))","v":""}]
[null,null,null,50,{"$f":"IF(ISERROR(VLOOKUP($D52&\"_\"&$C$1,tbl_JHA!$B:$B,1,0)),\"\",VLOOKUP($D52&\"_\"&$C$1,tbl_JHA!$B:$B,1,0))","v":""},{"$f":"IF(ISERROR(VLOOKUP($E52,tbl_JHA!$B:$K,MATCH(xblad!F$1,tbl_JHA!$B$1:$K$1,0),0)),\"\",VLOOKUP($E52,tbl_JHA!$B:$K,MATCH(xblad!F$1,tbl_JHA!$B$1:$K$1,0),0))","v":""},{"$f":"IF(ISERROR(VLOOKUP($E52,tbl_JHA!$B:$K,MATCH(xblad!G$1,tbl_JHA!$B$1:$K$1,0),0)),\"\",VLOOKUP($E52,tbl_JHA!$B:$K,MATCH(xblad!G$1,tbl_JHA!$B$1:$K$1,0),0))","v":""},{"$f":"IF(ISERROR(VLOOKUP($E52,tbl_JHA!$B:$K,MATCH(xblad!H$1,tbl_JHA!$B$1:$K$1,0),0)),\"\",VLOOKUP($E52,tbl_JHA!$B:$K,MATCH(xblad!H$1,tbl_JHA!$B$1:$K$1,0),0))","v":""},{"$f":"IF(ISERROR(VLOOKUP($E52,tbl_JHA!$B:$K,MATCH(xblad!I$1,tbl_JHA!$B$1:$K$1,0),0)),\"\",VLOOKUP($E52,tbl_JHA!$B:$K,MATCH(xblad!I$1,tbl_JHA!$B$1:$K$1,0),0))","v":""},{"$f":"IF(ISERROR(VLOOKUP($E52,tbl_JHA!$B:$K,MATCH(xblad!J$1,tbl_JHA!$B$1:$K$1,0),0)),\"\",VLOOKUP($E52,tbl_JHA!$B:$K,MATCH(xblad!J$1,tbl_JHA!$B$1:$K$1,0),0))","v":""}]
[]
[]
[]
[]
[]
[]
[]
[]
[]
[]
[]
[]
[]
[]
[]
[]
[]
[]
[]
[]
[]
[]
[]
[]
[]
[]
[]
[]
[]
[]
[]
[]
[]
[]
[]
[]
[]
[]
[]
[]
[]
[]
[]
[]
[]
[]
[]
[{"$f":"\"Versie2 \"&TEXT($A$5,\"mmmm\")&\" \"&TEXT($A$5,\"jjjj\")","v":"Versie2 november 2025"}]

{"sheet":"referentieblad","index":4,"n_rows":130,"n_cols":26,"rows_kept":130,"cut":false,"hidden":true,"merged":[[0,20,0,21]]}
[null,"IJW 1.0","COD046 - GESLACHT",null,"IJW 1.0","COD700 - NAAMCODE",null,"IJW 1.0","COD478 - LEEFEENHEID",null,"IJW 1.0","COD757 - SOORT ADRES",null,null,"Vektis-lijst",null,null,"Gemeente",null,null," verw instantieCOD459 en COD327",null,null,null,"Gemeentelijst oud"]
[]
[null,"Code","Betekenis",null,"Code","Betekenis",null,"Code","Betekenis",null,"Code","Betekenis",null,"Waarde","Betekenis","Omschrijving",null,"Gemeentecode","Gemeentenaam",null,"Code","Betekenis",null,null,"Gemeentecode","Gemeentenaam"]
[null,"0","MAAK EEN KEUZE",null,"0","MAAK EEN KEUZE",null,"0","MAAK EEN KEUZE",null,"0","MAAK EEN KEUZE",null,"0","MAAK EEN KEUZE",null,null,"0","MAAK EEN KEUZE",null,"0","MAAK EEN KEUZE",null,null,"0","MAAK EEN KEUZE"]
[null,"1","MANNELIJK",null,"1","EIGEN NAAM",null,"1","WOONT ALLEEN EN ZELFSTANDIG (EENPERSOONSHUISHOUDEN)",null,"01","GBA ADRES",null,"10","OUDER","Ook: verzorger.",null,"1979","Eemsdelta",null,"01","Gemeente",null,null,"0003","Appingedam"]
[null,"2","VROUWELIJK",null,"2","NAAM ECHTGENOOT OF GEREGISTREERD PARTNER OF ALTERNATIEVE NAAM",null,"2","WOONT ALS KIND SAMEN MET OUDER(S) IN OUDERLIJK HUIS",null,"02","CORRESPONDENTIE-ADRES",null,"01","EERSTE RELATIE/CONTACTPERSOON","",null,"0014","Groningen",null,"02","Huisarts",null,null,"0005","Bedum"]
[null,"9","NIET GESPECIFICEERD",null,"3","NAAM ECHTGENOOT OF GEREGISTREERD PARTNER GEVOLGD DOOR EIGEN NAAM",null,"3","HEEFT EEN ZELFSTANDIG HUISHOUDEN MET UITSLUITEND PARTNER",null,"03","VERBLIJFADRES",null,"02","TWEEDE RELATIE/CONTACTPERSOON","",null,"1966","Het Hogeland",null,"03","Jeugdarts",null,null,"0007","Bellingwedde"]
[null,null,null,null,"4","EIGEN NAAM GEVOLGD DOOR NAAM ECHTGENOOT OF GEREGISTREERD PARTNER",null,"4","HEEFT EEN HUISHOUDEN MET PARTNER EN THUISWONENDE KINDEREN",null,"04","TIJDELIJK VERBLIJFADRES",null,"03","CURATOR (JURIDISCH)","",null,"1952","Midden-Groningen",null,"04","Medisch specialist",null,null,"0009","Ten Boer"]
[null,null,null,null,"5","PSEUDONIEM",null,"5","HEEFT EEN HUISHOUDEN VAN VOLWASSENE MET 1 OF MEER KINDEREN",null,null,null,null,"04","FINANCIEEL (GEMACHTIGD)","",null,"1895","Oldambt",null,"05","Zelfverwijzer",null,null,"0010","Delfzijl"]
[null,null,null,null,null,null,null,"6","EEN ANDER MEERPERSOONSHUISHOUDEN",null,null,null,null,"05","FINANCIEEL (TOETSING)","",null,"0765","Pekela",null,"06","Gecertificeerde instelling",null,null,"0014","Groningen"]
[null,null,null,null,null,null,null,"7","WOONT IN EEN ZORGINSTELLING MET VERBLIJF",null,null,null,null,"06","LEEFEENHEID","",null,"0037","Stadskanaal",null,"0100","CIZ Groningen",null,null,"0015","Grootegast"]
[null,null,null,null,null,null,null,"9","ONBEKEND",null,null,null,null,"07","HULPVERLENER","Ook: zorgaanbieder, behandelaar. Anders dan specialist of huisarts.",null,"0047","Veendam",null,"0110","CIZ locatie Sellingen",null,null,"0017","Haren"]
[null,null,null,null,null,null,null,null,null,null,null,null,null,"08","SPECIALIST","",null,"1969","Westerkwartier",null,"0120","CIZ locatie Nieuwe Pekela",null,null,"0018","Hoogezand-Sappemeer"]
[null,null,null,null,null,null,null,null,null,null,null,null,null,"09","ANDERS","",null,"1950","Westerwolde",null,"0130","CIZ locatie Bedum",null,null,"0022","Leek"]
[null,null,null,null,null,null,null,null,null,null,null,null,null,"11","VOOGD","",null,null,null,null,"0140","CIZ locatie Groningen",null,null,"0024","Loppersum"]
[null,null,null,null,null,null,null,null,null,null,null,{"$f":"UPPER(#REF!)","v":{"$error":"#REF!"}},null,"12","PARTNER/ECHTGENO(O)T(E)","",null,null,null,null,"0141","CIZ locatie Hoogezand",null,null,"0025","Marum"]
[null,null,null,null,null,null,null,null,null,null,null,null,null,"13","PLEEGOUDER","",null,null,null,null,"0142","CIZ locatie Leek",null,null,"0037","Stadskanaal"]
[null,null,null,null,null,null,null,null,null,null,null,null,null,"14","BEWINDVOERDER","",null,null,null,null,"0200","CIZ Regiobureau Leeuwarden",null,null,"0040","Slochteren"]
[null,null,null,null,null,null,null,null,null,null,null,null,null,"15","MENTOR","",null,null,null,null,"0210","CIZ locatie Leeuwarden",null,null,"0047","Veendam"]
[null,null,null,null,null,null,null,null,null,null,null,null,null,"16","ZOON/DOCHTER","",null,null,null,null,"0220","CIZ Locatie Sneek",null,null,"0048","Vlagtwedde"]
[null,null,null,null,null,null,null,null,null,null,null,null,null,"17","FAMILIELID","Anders dan zoon/dochter.",null,null,null,null,"0230","CIZ locatie Drachten",null,null,"0053","Winsum"]
[null,null,null,null,null,null,null,null,null,null,null,null,null,"18","GEZINSLID","Anders dan ouder, zoon/dochter.",null,null,null,null,"0300","CIZ Drenthe",null,null,"0056","Zuidhorn"]
[null,null,null,null,null,null,null,null,null,null,null,null,null,"19","BUUR","",null,null,null,null,"0310","CIZ locatie Norg",null,null,"0765","Pekela"]
[null,null,null,null,null,null,null,null,null,null,null,null,null,"20","VRIEND(IN)/KENNIS","",null,null,null,null,"0320","CIZ locatie Emmen",null,null,"1651","Eemsmond"]
[null,null,null,null,null,null,null,null,null,null,null,null,null,"21","CLIËNTONDERSTEUNER","",null,null,null,null,"0330","CIZ locatie Dwingelo",null,null,"1663","De Marne"]
[null,null,null,null,null,null,null,null,null,null,null,null,null,"22","HUISARTS","",null,null,null,null,"0400","CIZ Zwolle",null,null,"1895","Oldambt"]
[null,null,null,null,null,null,null,null,null,null,null,null,null,"23","CONTACTPERSOON","In geval van een PGB relatie.",null,null,null,null,"0410","CIZ locatie Zwolle",null,null,"1950","Westerwolde"]
[null,null,null,null,null,null,null,null,null,null,null,null,null,"24","WETTELIJKE VERTEGENWOORDIGER","In geval van een PGB relatie",null,null,null,null,"0420","CIZ locatie Harderwijk",null,null,"1966","Het Hogeland"]
[null,null,null,null,null,null,null,null,null,null,null,null,null,"99","NIET VAN TOEPASSING","",null,null,null,null,"0500","CIZ Twente",null,null,"1969","Westerkwartier"]
[null,null,null,null,null,null,null,null,null,null,null,null,null,null,null,null,null,null,null,null,"0510","CIZ locatie Almelo",null,null,"1952","Midden-Groningen"]
[null,null,null,null,null,null,null,null,null,null,null,null,null,null,null,null,null,null,null,null,"0520","CIZ locatie Hengelo",null,null,"1987","Menterwolde"]
[null,null,null,null,null,null,null,null,null,null,null,null,null,null,null,null,null,null,null,null,"0530","CIZ locatie Enschede",null,null,"0003","Appingedam"]
[null,null,null,null,null,null,null,null,null,null,null,null,null,null,null,null,null,null,null,null,"0600","CIZ Deventer Apeldoorn",null,null,"0010","Delfzijl"]
[null,null,null,null,null,null,null,null,null,null,null,null,null,null,null,null,null,null,null,null,"0610","Regionaal indicatieorgaan Zutphen e.o.",null,null,"0024","Loppersum"]
[null,null,null,null,null,null,null,null,null,null,null,null,null,null,null,null,null,null,null,null,"0620","Stichting Het Scharfshuis"]
[null,null,null,null,null,null,null,null,null,null,null,null,null,null,null,null,null,null,null,null,"0630","CIZ locatie Apeldoorn"]
[null,null,null,null,null,null,null,null,null,null,null,null,null,null,null,null,null,null,null,null,"0700","CIZ Gelderland"]
[null,null,null,null,null,null,null,null,null,null,null,null,null,null,null,null,null,null,null,null,"0710","CIZ locatie Doetinchem"]
[null,null,null,null,null,null,null,null,null,null,null,null,null,null,null,null,null,null,null,null,"0720","CIZ locatie Groenlo"]
[null,null,null,null,null,null,null,null,null,null,null,null,null,null,null,null,null,null,null,null,"0730","CIZ locatie Arnhem"]
[null,null,null,null,null,null,null,null,null,null,null,null,null,null,null,null,null,null,null,null,"0740","St. indicatieorgaan Renkum"]
[null,null,null,null,null,null,null,null,null,null,null,null,null,null,null,null,null,null,null,null,"0750","CIZ locatie Rheden"]
[null,null,null,null,null,null,null,null,null,null,null,null,null,null,null,null,null,null,null,null,"0760","CIZ locatie Duiven"]
[null,null,null,null,null,null,null,null,null,null,null,null,null,null,null,null,null,null,null,null,"0770","CIZ locatie Huissen"]
[null,null,null,null,null,null,null,null,null,null,null,null,null,null,null,null,null,null,null,null,"0780","RIO Gelderse Vallei"]
[null,null,null,null,null,null,null,null,null,null,null,null,null,null,null,null,null,null,null,null,"0790","CIZ locatie Ede"]
[null,null,null,null,null,null,null,null,null,null,null,null,null,null,null,null,null,null,null,null,"0800","CIZ Nijmegen Tiel"]
[null,null,null,null,null,null,null,null,null,null,null,null,null,null,null,null,null,null,null,null,"0810","CIZ locatie Nijmegen"]
[null,null,null,null,null,null,null,null,null,null,null,null,null,null,null,null,null,null,null,null,"0820","CIZ locatie Tiel"]
[null,null,null,null,null,null,null,null,null,null,null,null,null,null,null,null,null,null,null,null,"0900","CIZ Utrecht"]
[null,null,null,null,null,null,null,null,null,null,null,null,null,null,null,null,null,null,null,null,"0910","CIZ locatie Amersfoort"]
[null,null,null,null,null,null,null,null,null,null,null,null,null,null,null,null,null,null,null,null,"0920","RIO De Bilt Zeist"]
[null,null,null,null,null,null,null,null,null,null,null,null,null,null,null,null,null,null,null,null,"0930","RIO Zuidoost Utrecht oost"]
[null,null,null,null,null,null,null,null,null,null,null,null,null,null,null,null,null,null,null,null,"0940","RIO Zuidoost Utrecht"]
[null,null,null,null,null,null,null,null,null,null,null,null,null,null,null,null,null,null,null,null,"0950","CIZ locatie Utrecht"]
[null,null,null,null,null,null,null,null,null,null,null,null,null,null,null,null,null,null,null,null,"0960","Stichting RIO ZWU"]
[null,null,null,null,null,null,null,null,null,null,null,null,null,null,null,null,null,null,null,null,"0970","RIO West Utrecht"]
[null,null,null,null,null,null,null,null,null,null,null,null,null,null,null,null,null,null,null,null,"0980","CIZ locatie Heuvelrug"]
[null,null,null,null,null,null,null,null,null,null,null,null,null,null,null,null,null,null,null,null,"0981","CIZ locatie Zeist"]
[null,null,null,null,null,null,null,null,null,null,null,null,null,null,null,null,null,null,null,null,"0982","CIZ locatie Maarn"]
[null,null,null,null,null,null,null,null,null,null,null,null,null,null,null,null,null,null,null,null,"0983","CIZ locatie Veenendaal"]
[null,null,null,null,null,null,null,null,null,null,null,null,null,null,null,null,null,null,null,null,"0990","CIZ locatie IJsselstein"]
[null,null,null,null,null,null,null,null,null,null,null,null,null,null,null,null,null,null,null,null,"1000","CIZ Flevoland Almere"]
[null,null,null,null,null,null,null,null,null,null,null,null,null,null,null,null,null,null,null,null,"1010","CIZ locatie Lelystad"]
[null,null,null,null,null,null,null,null,null,null,null,null,null,null,null,null,null,null,null,null,"1020","CIZ locatie Almere"]
[null,null,null,null,null,null,null,null,null,null,null,null,null,null,null,null,null,null,null,null,"1100","CIZ locatie Hilversum"]
[null,null,null,null,null,null,null,null,null,null,null,null,null,null,null,null,null,null,null,null,"1200","CIZ locatie Noord-Holland Noord"]
[null,null,null,null,null,null,null,null,null,null,null,null,null,null,null,null,null,null,null,null,"1210","CIZ locatie Hoorn"]
[null,null,null,null,null,null,null,null,null,null,null,null,null,null,null,null,null,null,null,null,"1220","CIZ locatie Alkmaar"]
[null,null,null,null,null,null,null,null,null,null,null,null,null,null,null,null,null,null,null,null,"1230","CIZ locatie Den Helder"]
[null,null,null,null,null,null,null,null,null,null,null,null,null,null,null,null,null,null,null,null,"1240","CIZ locatie Den Helder (Texel Wieringen)"]
[null,null,null,null,null,null,null,null,null,null,null,null,null,null,null,null,null,null,null,null,"1300","CIZ Haarlem Beverwijk"]
[null,null,null,null,null,null,null,null,null,null,null,null,null,null,null,null,null,null,null,null,"1310","CIZ locatie Beverwijk"]
[null,null,null,null,null,null,null,null,null,null,null,null,null,null,null,null,null,null,null,null,"1320","CIZ locatie Haarlem"]
[null,null,null,null,null,null,null,null,null,null,null,null,null,null,null,null,null,null,null,null,"1400","CIZ Purmerend Zaandam"]
[null,null,null,null,null,null,null,null,null,null,null,null,null,null,null,null,null,null,null,null,"1410","CIZ locatie Purmerend"]
[null,null,null,null,null,null,null,null,null,null,null,null,null,null,null,null,null,null,null,null,"1420","CIZ locatie Zaandam"]
[null,null,null,null,null,null,null,null,null,null,null,null,null,null,null,null,null,null,null,null,"1500","CIZ locatie Amsterdam"]
[null,null,null,null,null,null,null,null,null,null,null,null,null,null,null,null,null,null,null,null,"1600","CIZ locatie Amstelveen"]
[null,null,null,null,null,null,null,null,null,null,null,null,null,null,null,null,null,null,null,null,"1700","CIZ Zuid-Holland Zuid"]
[null,null,null,null,null,null,null,null,null,null,null,null,null,null,null,null,null,null,null,null,"1710","CIZ locatie Noordwijk"]
[null,null,null,null,null,null,null,null,null,null,null,null,null,null,null,null,null,null,null,null,"1720","CIZ locatie Alphen aan den Rijn"]
[null,null,null,null,null,null,null,null,null,null,null,null,null,null,null,null,null,null,null,null,"1730","CIZ locatie Leiderdorp"]
[null,null,null,null,null,null,null,null,null,null,null,null,null,null,null,null,null,null,null,null,"1800","CIZ regio Den Haag"]
[null,null,null,null,null,null,null,null,null,null,null,null,null,null,null,null,null,null,null,null,"1810","CIZ locatie Voorburg"]
[null,null,null,null,null,null,null,null,null,null,null,null,null,null,null,null,null,null,null,null,"1820","CIZ locatie Den Haag"]
[null,null,null,null,null,null,null,null,null,null,null,null,null,null,null,null,null,null,null,null,"1830","CIZ locatie Zoetermeer"]
[null,null,null,null,null,null,null,null,null,null,null,null,null,null,null,null,null,null,null,null,"1840","CIZ locatie Holland West"]
[null,null,null,null,null,null,null,null,null,null,null,null,null,null,null,null,null,null,null,null,"1900","CIZ Delft"]
[null,null,null,null,null,null,null,null,null,null,null,null,null,null,null,null,null,null,null,null,"1910","CIZ locatie Delft"]
[null,null,null,null,null,null,null,null,null,null,null,null,null,null,null,null,null,null,null,null,"1920","CIZ locatie Bergschenhoek"]
[null,null,null,null,null,null,null,null,null,null,null,null,null,null,null,null,null,null,null,null,"2000","CIZ locatie Gouda"]
[null,null,null,null,null,null,null,null,null,null,null,null,null,null,null,null,null,null,null,null,"2100","CIZ regio Rotterdam"]
[null,null,null,null,null,null,null,null,null,null,null,null,null,null,null,null,null,null,null,null,"2110","CIZ locatie Rotterdam"]
[null,null,null,null,null,null,null,null,null,null,null,null,null,null,null,null,null,null,null,null,"2120","CIZ locatie Capelle aan den IJssel"]
[null,null,null,null,null,null,null,null,null,null,null,null,null,null,null,null,null,null,null,null,"2200","CIZ locatie Schiedam"]
[null,null,null,null,null,null,null,null,null,null,null,null,null,null,null,null,null,null,null,null,"2300","CIZ locatie Ridderkerk"]
[null,null,null,null,null,null,null,null,null,null,null,null,null,null,null,null,null,null,null,null,"2310","RIOBAR"]
[null,null,null,null,null,null,null,null,null,null,null,null,null,null,null,null,null,null,null,null,"2320","RIO Voorne, Putten en Rozenburg"]
[null,null,null,null,null,null,null,null,null,null,null,null,null,null,null,null,null,null,null,null,"2330","RIO Hoekse Waard"]
[null,null,null,null,null,null,null,null,null,null,null,null,null,null,null,null,null,null,null,null,"2340","RIO Goeree-Overflakkee"]
[null,null,null,null,null,null,null,null,null,null,null,null,null,null,null,null,null,null,null,null,"2400","CIZ Gorinchem Dordrecht"]
[null,null,null,null,null,null,null,null,null,null,null,null,null,null,null,null,null,null,null,null,"2410","CIZ locatie Gorinchem"]
[null,null,null,null,null,null,null,null,null,null,null,null,null,null,null,null,null,null,null,null,"2420","CIZ locatie Dordrecht"]
[null,null,null,null,null,null,null,null,null,null,null,null,null,null,null,null,null,null,null,null,"2500","CIZ Zeeland"]
[null,null,null,null,null,null,null,null,null,null,null,null,null,null,null,null,null,null,null,null,"2510","CIZ locatie Goes"]
[null,null,null,null,null,null,null,null,null,null,null,null,null,null,null,null,null,null,null,null,"2520","CIZ locatie Vlissingen"]
[null,null,null,null,null,null,null,null,null,null,null,null,null,null,null,null,null,null,null,null,"2530","CIZ locatie Terneuzen"]
[null,null,null,null,null,null,null,null,null,null,null,null,null,null,null,null,null,null,null,null,"2540","CIZ locatie Sint Maartensdijk"]
[null,null,null,null,null,null,null,null,null,null,null,null,null,null,null,null,null,null,null,null,"2600","CIZ Noord-Brabant West"]
[null,null,null,null,null,null,null,null,null,null,null,null,null,null,null,null,null,null,null,null,"2610","CIZ locatie Wouw"]
[null,null,null,null,null,null,null,null,null,null,null,null,null,null,null,null,null,null,null,null,"2620","CIZ locatie Breda"]
[null,null,null,null,null,null,null,null,null,null,null,null,null,null,null,null,null,null,null,null,"2630","CIZ locatie Almkerk"]
[null,null,null,null,null,null,null,null,null,null,null,null,null,null,null,null,null,null,null,null,"2700","CIZ locatie Tilburg"]
[null,null,null,null,null,null,null,null,null,null,null,null,null,null,null,null,null,null,null,null,"2800","CIZ Noord-Brabant Noord"]
[null,null,null,null,null,null,null,null,null,null,null,null,null,null,null,null,null,null,null,null,"2810","CIZ locatie Den Bosch"]
[null,null,null,null,null,null,null,null,null,null,null,null,null,null,null,null,null,null,null,null,"2820","CIZ locatie Oss"]
[null,null,null,null,null,null,null,null,null,null,null,null,null,null,null,null,null,null,null,null,"2900","CIZ locatie Veldhoven"]
[null,null,null,null,null,null,null,null,null,null,null,null,null,null,null,null,null,null,null,null,"2910","RIO Eindhoven"]
[null,null,null,null,null,null,null,null,null,null,null,null,null,null,null,null,null,null,null,null,"2920","RIO Groot Kemperland"]
[null,null,null,null,null,null,null,null,null,null,null,null,null,null,null,null,null,null,null,null,"2930","RIO Helmond e.o."]
[null,null,null,null,null,null,null,null,null,null,null,null,null,null,null,null,null,null,null,null,"3000","CIZ Limburg Midden Noord"]
[null,null,null,null,null,null,null,null,null,null,null,null,null,null,null,null,null,null,null,null,"3010","CIZ locatie Horst"]
[null,null,null,null,null,null,null,null,null,null,null,null,null,null,null,null,null,null,null,null,"3020","CIZ locatie Roermond"]
[null,null,null,null,null,null,null,null,null,null,null,null,null,null,null,null,null,null,null,null,"3100","CIZ Limburg Zuid"]
[null,null,null,null,null,null,null,null,null,null,null,null,null,null,null,null,null,null,null,null,"3110","CIZ locatie Geleen"]
[null,null,null,null,null,null,null,null,null,null,null,null,null,null,null,null,null,null,null,null,"3120","CIZ locatie Heerlen"]
[null,null,null,null,null,null,null,null,null,null,null,null,null,null,null,null,null,null,null,null,"3130","LIO Landgraaf"]
[null,null,null,null,null,null,null,null,null,null,null,null,null,null,null,null,null,null,null,null,"3140","CIZ locatie Maastricht"]
[null,null,null,null,null,null,null,null,null,null,null,null,null,null,null,null,null,null,null,null,"3200","CIZ locatie Deventer"]